Workbook

Sheet START
C11: +7(985)201-6607 | F11: =INDIRECT("START!I25") -> START | I11: =INDIRECT("START!K25") -> Описание методологии финмодели
I13: лист | K13: описание листа/столбца/строки/ячейки/блока ячеек
D14: =INDIRECT("Cntrl!M17") -> 0 | E14: =SUM($F14:$PL14) -> 0 | F14: =IFERROR(_xlfn.SHEET($A$1)-SUMIFS(Cntrl!O$15:O$100000,Cntrl!I$15:I$100000,$F$11),1) -> 0
A15: =ROW() -> 15 | I15: разработка финмоделей: https://mngmnt.ru/
A16: =ROW() -> 16 | H16: ФИНАНСОВАЯ МОДЕЛЬ
A17: =ROW() -> 17
A18: =ROW() -> 18
A19: =ROW() -> 19 | H19: ИНВЕСТПРОЕКТ СОЗДАНИЯ СЕТИ ПРОДАЖ
A20: =ROW() -> 20
A21: =ROW() -> 21
A22: =ROW() -> 22
A23: =ROW() -> 23 | H23: Методология. Список и предназначение листов настоящей финансовой модели
A24: =ROW() -> 24
A25: =ROW() -> 25 | I25: START | K25: Описание методологии финмодели
A26: =ROW() -> 26 | I26: Cntrl | K26: Общий контроль финансовой модели
A27: =ROW() -> 27 | I27: Periods | K27: Периоды и горизонты моделирования фактических и прогнозных данных
A28: =ROW() -> 28 | I28: Lists | K28: Выпадающие списки финансовой модели
A29: =ROW() -> 29 | I29: Macro | K29: Макропоказатели внешней среды
A30: =ROW() -> 30 | I30: Items | K30: Справочники статей доходов и расходов и т.д.
A31: =ROW() -> 31 | I31: KPI | K31: Справочники ключевых показателей эффективности
A32: =ROW() -> 32 | I32: Mrkting | K32: Маркетинг. Параметры рынков сбыта и каналов привлечения клиентов
A33: =ROW() -> 33 | I33: CapEx | K33: Календарный план-график капитальных затрат
A34: =ROW() -> 34 | I34: Sales | K34: Параметры бюджета продаж
A35: =ROW() -> 35 | I35: Prdction | K35: Технологическая карта производственного процесса
A36: =ROW() -> 36 | I36: HR | K36: Штатное расписание
A37: =ROW() -> 37 | I37: Exp | K37: Прочие расходы бизнес-проекта
A38: =ROW() -> 38 | I38: Credits | K38: Источники финансирования и их условия
A39: =ROW() -> 39 | I39: PL | K39: Итоговый отчет о прибылях и убытках
A40: =ROW() -> 40 | I40: CF | K40: Итоговый отчет о движении денежных средств
A41: =ROW() -> 41 | I41: BS | K41: Итоговый баланс
A42: =ROW() -> 42 | I42: MAIN | K42: Ключевые параметры управления и результаты финансовой модели
A43: =ROW() -> 43 | I43: PLd | K43: Детализированный отчет о прибылях и убытках
A44: =ROW() -> 44 | I44: CFd | K44: Детализированный отчет о движении денежных средств
A45: =ROW() -> 45 | I45: BSd | K45: Детализированный баланс
A46: =ROW() -> 46 | I46: Sens | K46: Анализ чувствительности финмодели
A47: =ROW() -> 47 | I47: UnitEc | K47: Расчет юнит-экономики бизнес-проекта
A48: =ROW() -> 48 | I48: CFind | K48: Анализ финансового потока косвенным методом
A49: =ROW() -> 49 | I49: FinEcAn | K49: Финансово-экономический анализ проекта
A50: =ROW() -> 50 | I50: InvAn | K50: Инвестиционный анализ проекта
A51: =ROW() -> 51 | I51: EBITDA | K51: Анализ собственной операционной деят-сти. Точки безубыточности
A52: =ROW() -> 52 | I52: Rep | K52: Укрупненное формирование всей отчетности финмодели
A53: =ROW() -> 53 | I53: Repd | K53: Детализированное формирование всей отчетности финмодели
A54: =ROW() -> 54 | I54: Calc | K54: Функционал финансовой модели. Все расчеты
A55: =ROW() -> 55 | I55: Fact | K55: Учет фактических операций
A56: =ROW() -> 56 | I56: 1S | K56: Выгрузки из 1С карточек с оборотами по счетам бухучета
A57: =ROW() -> 57 | I57: Rules | K57: Правила сопоставления статей для выгрузок из 1С
A58: =ROW() -> 58 | I58: Res1 | K58: Резервная вкладка 1
A59: =ROW() -> 59 | I59: Res2 | K59: Резервная вкладка 2
A60: =ROW() -> 60 | I60: Res3 | K60: Резервная вкладка 3
A61: =ROW() -> 61 | I61: Res4 | K61: Резервная вкладка 4
A62: =ROW() -> 62 | I62: Res5 | K62: Резервная вкладка 5
A63: =ROW() -> 63
A64: =ROW() -> 64 | H64: Обозначение ячеек для задания исходных данных
A65: =ROW() -> 65
A66: =ROW() -> 66 | H66: * | K66: Ячейки для задания исходных данных финмодели вручную
A67: =ROW() -> 67
A68: =ROW() -> 68 | H68: * | J68: ^ | K68: Ячейки для задания исходных данных финмодели из выпадающих списков вкладки "Lists"
A69: =ROW() -> 69
A70: =ROW() -> 70 | H70: Ячейка F11 | K70: Для каждого листа в этой ячейке отображается название (ярлычка) листа
A71: =ROW() -> 71
A72: =ROW() -> 72 | H72: Ячейка I11 | K72: Для каждого листа в этой ячейке отображается заголовок листа
A73: =ROW() -> 73
A74: =ROW() -> 74 | H74: Ячейка E14 | K74: Для каждого листа в этой ячейке суммируются все контроли листа по 14-той строке
A75: =ROW() -> 75
A76: =ROW() -> 76 | H76: Ячейка D14 | K76: Для каждого листа в этой ячейке отображается общий контроль финмодели из листа "Cntrl"
A77: =ROW() -> 77
A78: =ROW() -> 78 | H78: Ячейка F14 | K78: Для каждого листа в этой ячейке проверяется соответствие названия листа их списку из "START"
A79: =ROW() -> 79
A80: =ROW() -> 80 | H80: Строка 13 | K80: Для каждого листа в этой строке отображаются заголовки столбцов
A81: =ROW() -> 81
A82: =ROW() -> 82 | I82: =$I$26 -> Cntrl | K82: =$K$26 -> Общий контроль финансовой модели
A83: =ROW() -> 83
A84: =ROW() -> 84 | I84: столбец M | K84: Со строки 19 здесь подтягиваются контроли всех листов из ячеек E14
A85: =ROW() -> 85
A86: =ROW() -> 86 | I86: M17 | K86: Общий контроль финмодели - сумма всех контрлей листов в столбце M
A87: =ROW() -> 87
A88: =ROW() -> 88 | I88: столбец O | K88: Со строки 19 здесь рассчитываются порядковые номера ярлычков листов в нижней панели
A89: =ROW() -> 89
A90: =ROW() -> 90 | I90: столбец Q | K90: Со строки 19 здесь из выпадающего списка пользователь выбирает тип листов
A91: =ROW() -> 91
A92: =ROW() -> 92 | I92: столбец S | K92: Со строки 19 здесь проверяется наличие значений из столбца Q в списке столбца U листа "Lists"
A93: =ROW() -> 93
A94: =ROW() -> 94 | I94: столбец G | K94: Со строки 19 здесь проверяется наличие названия из столбца H в заголовках списков листа "Lists"
A95: =ROW() -> 95
A96: =ROW() -> 96 | I96: =$I$27 -> Periods | K96: =$K$27 -> Периоды и горизонты моделирования фактических и прогнозных данных
A97: =ROW() -> 97
A98: =ROW() -> 98 | I98: Q16 | K98: Пользователь задает, выбирая из выпадающего списка, минимальный период шкалы времени
A99: =ROW() -> 99
A100: =ROW() -> 100 | I100: Q17 | K100: Пользователь задает вручную дату, с которой начинаются расчеты моделирования - старт
A101: =ROW() -> 101
A102: =ROW() -> 102 | I102: Q18 | K102: Пользователь задает вручную (от 1 до 400) количество периодов в шкале расчетов - горизонт
A103: =ROW() -> 103
A104: =ROW() -> 104 | I104: строки 20,21 | K104: По данным из ячеек Q16,Q17,Q18 рассчитываются даты начала и окончания периодов шкалы расчетов
A105: =ROW() -> 105
A106: =ROW() -> 106 | I106: строка 22 | K106: Формируются названия периодов шкалы расчетов
A107: =ROW() -> 107
A108: =ROW() -> 108 | I108: Q25 | K108: Пользователь указывает на необходимость отражения фактически проведенных операций
A109: =ROW() -> 109
A110: =ROW() -> 110 | I110: Q26 | K110: В случае выбора "да" в ячейке Q25, пользователь выбирает вариант задания фактического периода
A111: =ROW() -> 111
A112: =ROW() -> 112 | I112: Q30 | K112: Если в ячейках Q25 и Q26 "да", то здесь отображается текущая дата - окончание фактического периода
A113: =ROW() -> 113
A114: =ROW() -> 114 | I114: Q31 | K114: Если в ячейке Q25 "да" и в Q26 "нет", то здесь вручную задаем дату окончания фактического периода
A115: =ROW() -> 115
A116: =ROW() -> 116 | I116: строки 28,29 | K116: По данным из ячеек Q25,Q26,Q30,Q31 рассчитываются даты начала и окончания фактических периодов
A117: =ROW() -> 117
A118: =ROW() -> 118 | I118: Q33 | K118: Пользователь задает, выбирая из выпадающего списка, период шкалы времени для отчетности
A119: =ROW() -> 119
A120: =ROW() -> 120 | I120: строки 35,36 | K120: Рассчитываются даты начала и окончания периодов шкалы отчетности
A121: =ROW() -> 121
A122: =ROW() -> 122 | I122: строка 37 | K122: Формируются названия периодов шкалы отчетности
A123: =ROW() -> 123
A124: =ROW() -> 124 | I124: Q12 | K124: Отображается тип листа
A125: =ROW() -> 125
A126: =ROW() -> 126 | I126: строки 11,12 | K126: В зависимости от типа листа отображаются соответствующие даты начала и окончания периодов
A127: =ROW() -> 127
A128: =ROW() -> 128 | I128: строки 1-10 | K128: Строки носят технический характер, в них рассчитываются следующие параметры:
A129: =ROW() -> 129
A130: =ROW() -> 130 | K130: номер столбца:
A131: =ROW() -> 131 | K131: номер периода модели:
A132: =ROW() -> 132 | K132: номер факт-периода:
A133: =ROW() -> 133 | K133: номер план-периода:
A134: =ROW() -> 134 | K134: число даты начала:
A135: =ROW() -> 135 | K135: номер месяца даты начала:
A136: =ROW() -> 136 | K136: год даты начала:
A137: =ROW() -> 137 | K137: число даты окончания:
A138: =ROW() -> 138 | K138: номер месяца даты окончания:
A139: =ROW() -> 139 | K139: год даты окончания:
A140: =ROW() -> 140
A141: =ROW() -> 141 | I141: столбцы G,S | K141: Производится контроль за корректностью работы выпадающих списков
A142: =ROW() -> 142
A143: =ROW() -> 143 | I143: Lists | K143: Выпадающие списки финансовой модели
A144: =ROW() -> 144
A145: =ROW() -> 145 | I145: строка 1 | K145: Для технических нужд отображаются номера столбцов, в которых находятся выпадающие списки
A146: =ROW() -> 146
A147: =ROW() -> 147 | I147: строка 2 | K147: Для технических нужд отображаются названия столбцов, в которых находятся выпадающие списки
A148: =ROW() -> 148
A149: =ROW() -> 149 | I149: строка 15 | K149: Для технических нужд рассчитываются адреса блоков ячеек с выпадающими списками
A150: =ROW() -> 150
A151: =ROW() -> 151 | I151: столбец Q | K151: Значения выпадающего списка зависят от значения ячейки Q16 листа "Periods" и столбца I
A152: =ROW() -> 152
A153: =ROW() -> 153 | I153: справа от списков | K153: В 1-ом столбце справа от вып.списков производится нумерация актуальных значений вып.списков
A154: =ROW() -> 154
A155: =ROW() -> 155 | I155: справа от списков | K155: Во 2-ом столбце справа от вып.списков производится контроль за неповторяемостью значений
A156: =ROW() -> 156
A157: =ROW() -> 157
A158: =ROW() -> 158
A159: =ROW() -> 159
A160: =ROW() -> 160
A161: =ROW() -> 161
A162: =ROW() -> 162
A163: =ROW() -> 163
A164: =ROW() -> 164
A165: =ROW() -> 165
A166: =ROW() -> 166
A167: =ROW() -> 167
A168: =ROW() -> 168
A169: =ROW() -> 169
A170: =ROW() -> 170
A171: =ROW() -> 171
A172: =ROW() -> 172
A173: =ROW() -> 173
A174: =ROW() -> 174
A175: =ROW() -> 175
A176: =ROW() -> 176

Sheet Cntrl
C11: +7(985)201-6607 | F11: Cntrl | I11: Общий контроль финансовой модели
I13: лист | K13: ячейка с контролем | M13: контроль | O13: номер листа | Q13: тип листа | V13: точность
D14: 0 | E14: 0 | F14: 0 | G14: 0 | S14: 0
A15: 15 | I15: разработка финмоделей: https://mngmnt.ru/
A16: 16
A17: 17 | G17: 0 | H17: Общий контроль | M17: 0
A18: 18
A19: 19 | G19: 0 | H19: тип листа | I19: START | K19: E14 | M19: 0 | O19: 1 | P19: * | Q19: технический | R19: ^ | S19: 0 | U19: * | V19: 0
A20: 20 | G20: 0 | H20: тип листа | I20: Cntrl | K20: E14 | M20: 0 | O20: 2 | P20: * | Q20: технический | R20: ^ | S20: 0 | U20: * | V20: 0
A21: 21 | G21: 0 | H21: тип листа | I21: Periods | K21: E14 | M21: 0 | O21: 3 | P21: * | Q21: расчетный | R21: ^ | S21: 0 | U21: * | V21: 0
A22: 22 | G22: 0 | H22: тип листа | I22: Lists | K22: E14 | M22: 0 | O22: 4 | P22: * | Q22: технический | R22: ^ | S22: 0 | U22: * | V22: 0
A23: 23 | G23: 0 | H23: тип листа | I23: Macro | K23: E14 | M23: 0 | O23: 5 | P23: * | Q23: расчетный | R23: ^ | S23: 0 | U23: * | V23: 0
A24: 24 | G24: 0 | H24: тип листа | I24: Items | K24: E14 | M24: 0 | O24: 6 | P24: * | Q24: технический | R24: ^ | S24: 0 | U24: * | V24: 0
A25: 25 | G25: 0 | H25: тип листа | I25: KPI | K25: E14 | M25: 0 | O25: 7 | P25: * | Q25: технический | R25: ^ | S25: 0 | U25: * | V25: 0
A26: 26 | G26: 0 | H26: тип листа | I26: Mrkting | K26: E14 | M26: 0 | O26: 8 | P26: * | Q26: расчетный | R26: ^ | S26: 0 | U26: * | V26: 1e-05
A27: 27 | G27: 0 | H27: тип листа | I27: CapEx | K27: E14 | M27: 0 | O27: 9 | P27: * | Q27: расчетный | R27: ^ | S27: 0 | U27: * | V27: 1e-05
A28: 28 | G28: 0 | H28: тип листа | I28: Sales | K28: E14 | M28: 0 | O28: 10 | P28: * | Q28: расчетный | R28: ^ | S28: 0 | U28: * | V28: 1e-05
A29: 29 | G29: 0 | H29: тип листа | I29: Prdction | K29: E14 | M29: 0 | O29: 11 | P29: * | Q29: расчетный | R29: ^ | S29: 0 | U29: * | V29: 1e-05
A30: 30 | G30: 0 | H30: тип листа | I30: HR | K30: E14 | M30: 0 | O30: 12 | P30: * | Q30: расчетный | R30: ^ | S30: 0 | U30: * | V30: 1e-05
A31: 31 | G31: 0 | H31: тип листа | I31: Exp | K31: E14 | M31: 0 | O31: 13 | P31: * | Q31: расчетный | R31: ^ | S31: 0 | U31: * | V31: 1e-05
A32: 32 | G32: 0 | H32: тип листа | I32: Credits | K32: E14 | M32: 0 | O32: 14 | P32: * | Q32: расчетный | R32: ^ | S32: 0 | U32: * | V32: 1e-05
A33: 33 | G33: 0 | H33: тип листа | I33: PL | K33: E14 | M33: 0 | O33: 15 | P33: * | Q33: отчетный | R33: ^ | S33: 0 | U33: * | V33: 1e-05
A34: 34 | G34: 0 | H34: тип листа | I34: CF | K34: E14 | M34: 0 | O34: 16 | P34: * | Q34: отчетный | R34: ^ | S34: 0 | U34: * | V34: 1e-05
A35: 35 | G35: 0 | H35: тип листа | I35: BS | K35: E14 | M35: 0 | O35: 17 | P35: * | Q35: отчетный | R35: ^ | S35: 0 | U35: * | V35: 1e-05
A36: 36 | G36: 0 | H36: тип листа | I36: MAIN | K36: E14 | M36: 0 | O36: 18 | P36: * | Q36: отчетный | R36: ^ | S36: 0 | U36: * | V36: 1e-05
A37: 37 | G37: 0 | H37: тип листа | I37: PLd | K37: E14 | M37: 0 | O37: 19 | P37: * | Q37: расчетный | R37: ^ | S37: 0 | U37: * | V37: 1e-05
A38: 38 | G38: 0 | H38: тип листа | I38: CFd | K38: E14 | M38: 0 | O38: 20 | P38: * | Q38: расчетный | R38: ^ | S38: 0 | U38: * | V38: 1e-05
A39: 39 | G39: 0 | H39: тип листа | I39: BSd | K39: E14 | M39: 0 | O39: 21 | P39: * | Q39: расчетный | R39: ^ | S39: 0 | U39: * | V39: 0.001
A40: 40 | G40: 0 | H40: тип листа | I40: Sens | K40: E14 | M40: 0 | O40: 22 | P40: * | Q40: отчетный | R40: ^ | S40: 0 | U40: * | V40: 1e-05
A41: 41 | G41: 0 | H41: тип листа | I41: UnitEc | K41: E14 | M41: 0 | O41: 23 | P41: * | Q41: отчетный | R41: ^ | S41: 0 | U41: * | V41: 1e-05
A42: 42 | G42: 0 | H42: тип листа | I42: CFind | K42: E14 | M42: 0 | O42: 24 | P42: * | Q42: отчетный | R42: ^ | S42: 0 | U42: * | V42: 1e-05
A43: 43 | G43: 0 | H43: тип листа | I43: FinEcAn | K43: E14 | M43: 0 | O43: 25 | P43: * | Q43: отчетный | R43: ^ | S43: 0 | U43: * | V43: 1e-05
A44: 44 | G44: 0 | H44: тип листа | I44: InvAn | K44: E14 | M44: 0 | O44: 26 | P44: * | Q44: отчетный | R44: ^ | S44: 0 | U44: * | V44: 1e-05
A45: 45 | G45: 0 | H45: тип листа | I45: EBITDA | K45: E14 | M45: 0 | O45: 27 | P45: * | Q45: отчетный | R45: ^ | S45: 0 | U45: * | V45: 1e-05
A46: 46 | G46: 0 | H46: тип листа | I46: Rep | K46: E14 | M46: 0 | O46: 28 | P46: * | Q46: отчетный | R46: ^ | S46: 0 | U46: * | V46: 1e-05
A47: 47 | G47: 0 | H47: тип листа | I47: Repd | K47: E14 | M47: 0 | O47: 29 | P47: * | Q47: расчетный | R47: ^ | S47: 0 | U47: * | V47: 0.001
A48: 48 | G48: 0 | H48: тип листа | I48: Calc | K48: E14 | M48: 0 | O48: 30 | P48: * | Q48: расчетный | R48: ^ | S48: 0 | U48: * | V48: 0.001
A49: 49 | G49: 0 | H49: тип листа | I49: Fact | K49: E14 | P49: * | Q49: расчетный | R49: ^ | S49: 0 | U49: * | V49: 0
A50: 50 | G50: 0 | H50: тип листа | I50: 1S | K50: E14 | P50: * | Q50: расчетный | R50: ^ | S50: 0 | U50: * | V50: 0
A51: 51 | G51: 0 | H51: тип листа | I51: Rules | K51: E14 | P51: * | Q51: расчетный | R51: ^ | S51: 0 | U51: * | V51: 0
A52: 52 | G52: 0 | H52: тип листа | I52: Res1 | K52: E14 | P52: * | Q52: расчетный | R52: ^ | S52: 0 | U52: * | V52: 0
A53: 53 | G53: 0 | H53: тип листа | I53: Res2 | K53: E14 | P53: * | Q53: расчетный | R53: ^ | S53: 0 | U53: * | V53: 0
A54: 54 | G54: 0 | H54: тип листа | I54: Res3 | K54: E14 | P54: * | Q54: расчетный | R54: ^ | S54: 0 | U54: * | V54: 0
A55: 55 | G55: 0 | H55: тип листа | I55: Res4 | K55: E14 | P55: * | Q55: расчетный | R55: ^ | S55: 0 | U55: * | V55: 0
A56: 56 | G56: 0 | H56: тип листа | I56: Res5 | K56: E14 | P56: * | Q56: расчетный | R56: ^ | S56: 0 | U56: * | V56: 0
A57: 57
A58: 58
A59: 59
A60: 60
A61: 61
A62: 62
A63: 63
A64: 64
A65: 65
A66: 66
A67: 67
A68: 68
A69: 69
A70: 70

Sheet Periods
Y1: номер столбца: | AA1: 27 | AB1: 28 | AC1: 29 | AD1: 30 | AE1: 31 | AF1: 32 | AG1: 33 | AH1: 34 | AI1: 35 | AJ1: 36 | AK1: 37 | AL1: 38 | AM1: 39 | AN1: 40 | AO1: 41 | AP1: 42 | AQ1: 43 | AR1: 44 | AS1: 45 | AT1: 46 | AU1: 47 | AV1: 48 | AW1: 49 | AX1: 50 | AY1: 51 | AZ1: 52 | BA1: 53 | BB1: 54 | BC1: 55 | BD1: 56 | BE1: 57 | BF1: 58 | BG1: 59 | BH1: 60 | BI1: 61 | BJ1: 62 | BK1: 63 | BL1: 64 | BM1: 65 | BN1: 66 | BO1: 67 | BP1: 68 | BQ1: 69 | BR1: 70 | BS1: 71 | BT1: 72 | BU1: 73 | BV1: 74 | BW1: 75 | BX1: 76 | BY1: 77 | BZ1: 78 | CA1: 79 | CB1: 80 | CC1: 81 | CD1: 82 | CE1: 83 | CF1: 84 | CG1: 85 | CH1: 86 | CI1: 87 | CJ1: 88 | CK1: 89 | CL1: 90 | CM1: 91 | CN1: 92 | CO1: 93 | CP1: 94 | CQ1: 95 | CR1: 96 | CS1: 97 | CT1: 98 | CU1: 99 | CV1: 100 | CW1: 101 | CX1: 102 | CY1: 103 | CZ1: 104 | DA1: 105 | DB1: 106 | DC1: 107 | DD1: 108 | DE1: 109 | DF1: 110 | DG1: 111 | DH1: 112 | DI1: 113 | DJ1: 114 | DK1: 115 | DL1: 116 | DM1: 117 | DN1: 118 | DO1: 119 | DP1: 120 | DQ1: 121 | DR1: 122 | DS1: 123 | DT1: 124 | DU1: 125 | DV1: 126 | DW1: 127 | DX1: 128 | DY1: 129 | DZ1: 130 | EA1: 131 | EB1: 132 | EC1: 133 | ED1: 134 | EE1: 135 | EF1: 136 | EG1: 137 | EH1: 138 | EI1: 139 | EJ1: 140 | EK1: 141 | EL1: 142 | EM1: 143 | EN1: 144 | EO1: 145 | EP1: 146 | EQ1: 147 | ER1: 148 | ES1: 149 | ET1: 150 | EU1: 151 | EV1: 152 | EW1: 153 | EX1: 154 | EY1: 155 | EZ1: 156 | FA1: 157 | FB1: 158 | FC1: 159
Y2: номер периода модели: | AA2: 1 | AB2: 2 | AC2: 3 | AD2: 4 | AE2: 5 | AF2: 6 | AG2: 7 | AH2: 8 | AI2: 9 | AJ2: 10 | AK2: 11 | AL2: 12 | AM2: 13 | AN2: 14 | AO2: 15 | AP2: 16 | AQ2: 17 | AR2: 18 | AS2: 19 | AT2: 20 | AU2: 21 | AV2: 22 | AW2: 23 | AX2: 24 | AY2: 25 | AZ2: 26 | BA2: 27 | BB2: 28 | BC2: 29 | BD2: 30 | BE2: 31 | BF2: 32 | BG2: 33 | BH2: 34 | BI2: 35 | BJ2: 36 | BK2: 37 | BL2: 38 | BM2: 39 | BN2: 40 | BO2: 41 | BP2: 42 | BQ2: 43 | BR2: 44 | BS2: 45 | BT2: 46 | BU2: 47 | BV2: 48 | BW2: 49 | BX2: 50 | BY2: 51 | BZ2: 52 | CA2: 53 | CB2: 54 | CC2: 55 | CD2: 56 | CE2: 57 | CF2: 58 | CG2: 59 | CH2: 60 | CI2: 61 | CJ2: 62 | CK2: 63 | CL2: 64 | CM2: 65 | CN2: 66 | CO2: 67 | CP2: 68 | CQ2: 69 | CR2: 70 | CS2: 71 | CT2: 72 | CU2: 73 | CV2: 74 | CW2: 75 | CX2: 76 | CY2: 77 | CZ2: 78 | DA2: 79 | DB2: 80 | DC2: 81 | DD2: 82 | DE2: 83 | DF2: 84 | DG2: 85 | DH2: 86 | DI2: 87 | DJ2: 88 | DK2: 89 | DL2: 90 | DM2: 91 | DN2: 92 | DO2: 93 | DP2: 94 | DQ2: 95 | DR2: 96 | DS2: 97 | DT2: 98 | DU2: 99 | DV2: 100 | DW2: 101 | DX2: 102 | DY2: 103 | DZ2: 104 | EA2: 105 | EB2: 106 | EC2: 107 | ED2: 108 | EE2: 109 | EF2: 110 | EG2: 111 | EH2: 112 | EI2: 113 | EJ2: 114 | EK2: 115 | EL2: 116 | EM2: 117 | EN2: 118 | EO2: 119 | EP2: 120 | EQ2: 121 | ER2: 122 | ES2: 123 | ET2: 124 | EU2: 125 | EV2: 126 | EW2: 127 | EX2: 128 | EY2: 129 | EZ2: 130 | FA2: 131 | FB2: 132 | FC2: 133
Y3: номер факт-периода:
Y4: номер план-периода: | AA4: 1 | AB4: 2 | AC4: 3 | AD4: 4 | AE4: 5 | AF4: 6 | AG4: 7 | AH4: 8 | AI4: 9 | AJ4: 10 | AK4: 11 | AL4: 12 | AM4: 13 | AN4: 14 | AO4: 15 | AP4: 16 | AQ4: 17 | AR4: 18 | AS4: 19 | AT4: 20 | AU4: 21 | AV4: 22 | AW4: 23 | AX4: 24 | AY4: 25 | AZ4: 26 | BA4: 27 | BB4: 28 | BC4: 29 | BD4: 30 | BE4: 31 | BF4: 32 | BG4: 33 | BH4: 34 | BI4: 35 | BJ4: 36 | BK4: 37 | BL4: 38 | BM4: 39 | BN4: 40 | BO4: 41 | BP4: 42 | BQ4: 43 | BR4: 44 | BS4: 45 | BT4: 46 | BU4: 47 | BV4: 48 | BW4: 49 | BX4: 50 | BY4: 51 | BZ4: 52 | CA4: 53 | CB4: 54 | CC4: 55 | CD4: 56 | CE4: 57 | CF4: 58 | CG4: 59 | CH4: 60 | CI4: 61 | CJ4: 62 | CK4: 63 | CL4: 64 | CM4: 65 | CN4: 66 | CO4: 67 | CP4: 68 | CQ4: 69 | CR4: 70 | CS4: 71 | CT4: 72 | CU4: 73 | CV4: 74 | CW4: 75 | CX4: 76 | CY4: 77 | CZ4: 78 | DA4: 79 | DB4: 80 | DC4: 81 | DD4: 82 | DE4: 83 | DF4: 84 | DG4: 85 | DH4: 86 | DI4: 87 | DJ4: 88 | DK4: 89 | DL4: 90 | DM4: 91 | DN4: 92 | DO4: 93 | DP4: 94 | DQ4: 95 | DR4: 96 | DS4: 97 | DT4: 98 | DU4: 99 | DV4: 100 | DW4: 101 | DX4: 102 | DY4: 103 | DZ4: 104 | EA4: 105 | EB4: 106 | EC4: 107 | ED4: 108 | EE4: 109 | EF4: 110 | EG4: 111 | EH4: 112 | EI4: 113 | EJ4: 114 | EK4: 115 | EL4: 116 | EM4: 117 | EN4: 118 | EO4: 119 | EP4: 120
Y5: число даты начала: | AA5: 1 | AB5: 1 | AC5: 1 | AD5: 1 | AE5: 1 | AF5: 1 | AG5: 1 | AH5: 1 | AI5: 1 | AJ5: 1 | AK5: 1 | AL5: 1 | AM5: 1 | AN5: 1 | AO5: 1 | AP5: 1 | AQ5: 1 | AR5: 1 | AS5: 1 | AT5: 1 | AU5: 1 | AV5: 1 | AW5: 1 | AX5: 1 | AY5: 1 | AZ5: 1 | BA5: 1 | BB5: 1 | BC5: 1 | BD5: 1 | BE5: 1 | BF5: 1 | BG5: 1 | BH5: 1 | BI5: 1 | BJ5: 1 | BK5: 1 | BL5: 1 | BM5: 1 | BN5: 1 | BO5: 1 | BP5: 1 | BQ5: 1 | BR5: 1 | BS5: 1 | BT5: 1 | BU5: 1 | BV5: 1 | BW5: 1 | BX5: 1 | BY5: 1 | BZ5: 1 | CA5: 1 | CB5: 1 | CC5: 1 | CD5: 1 | CE5: 1 | CF5: 1 | CG5: 1 | CH5: 1 | CI5: 1 | CJ5: 1 | CK5: 1 | CL5: 1 | CM5: 1 | CN5: 1 | CO5: 1 | CP5: 1 | CQ5: 1 | CR5: 1 | CS5: 1 | CT5: 1 | CU5: 1 | CV5: 1 | CW5: 1 | CX5: 1 | CY5: 1 | CZ5: 1 | DA5: 1 | DB5: 1 | DC5: 1 | DD5: 1 | DE5: 1 | DF5: 1 | DG5: 1 | DH5: 1 | DI5: 1 | DJ5: 1 | DK5: 1 | DL5: 1 | DM5: 1 | DN5: 1 | DO5: 1 | DP5: 1 | DQ5: 1 | DR5: 1 | DS5: 1 | DT5: 1 | DU5: 1 | DV5: 1 | DW5: 1 | DX5: 1 | DY5: 1 | DZ5: 1 | EA5: 1 | EB5: 1 | EC5: 1 | ED5: 1 | EE5: 1 | EF5: 1 | EG5: 1 | EH5: 1 | EI5: 1 | EJ5: 1 | EK5: 1 | EL5: 1 | EM5: 1 | EN5: 1 | EO5: 1 | EP5: 1
Y6: номер месяца даты начала: | AA6: 7 | AB6: 8 | AC6: 9 | AD6: 10 | AE6: 11 | AF6: 12 | AG6: 1 | AH6: 2 | AI6: 3 | AJ6: 4 | AK6: 5 | AL6: 6 | AM6: 7 | AN6: 8 | AO6: 9 | AP6: 10 | AQ6: 11 | AR6: 12 | AS6: 1 | AT6: 2 | AU6: 3 | AV6: 4 | AW6: 5 | AX6: 6 | AY6: 7 | AZ6: 8 | BA6: 9 | BB6: 10 | BC6: 11 | BD6: 12 | BE6: 1 | BF6: 2 | BG6: 3 | BH6: 4 | BI6: 5 | BJ6: 6 | BK6: 7 | BL6: 8 | BM6: 9 | BN6: 10 | BO6: 11 | BP6: 12 | BQ6: 1 | BR6: 2 | BS6: 3 | BT6: 4 | BU6: 5 | BV6: 6 | BW6: 7 | BX6: 8 | BY6: 9 | BZ6: 10 | CA6: 11 | CB6: 12 | CC6: 1 | CD6: 2 | CE6: 3 | CF6: 4 | CG6: 5 | CH6: 6 | CI6: 7 | CJ6: 8 | CK6: 9 | CL6: 10 | CM6: 11 | CN6: 12 | CO6: 1 | CP6: 2 | CQ6: 3 | CR6: 4 | CS6: 5 | CT6: 6 | CU6: 7 | CV6: 8 | CW6: 9 | CX6: 10 | CY6: 11 | CZ6: 12 | DA6: 1 | DB6: 2 | DC6: 3 | DD6: 4 | DE6: 5 | DF6: 6 | DG6: 7 | DH6: 8 | DI6: 9 | DJ6: 10 | DK6: 11 | DL6: 12 | DM6: 1 | DN6: 2 | DO6: 3 | DP6: 4 | DQ6: 5 | DR6: 6 | DS6: 7 | DT6: 8 | DU6: 9 | DV6: 10 | DW6: 11 | DX6: 12 | DY6: 1 | DZ6: 2 | EA6: 3 | EB6: 4 | EC6: 5 | ED6: 6 | EE6: 7 | EF6: 8 | EG6: 9 | EH6: 10 | EI6: 11 | EJ6: 12 | EK6: 1 | EL6: 2 | EM6: 3 | EN6: 4 | EO6: 5 | EP6: 6
Y7: год даты начала: | AA7: 21 | AB7: 21 | AC7: 21 | AD7: 21 | AE7: 21 | AF7: 21 | AG7: 22 | AH7: 22 | AI7: 22 | AJ7: 22 | AK7: 22 | AL7: 22 | AM7: 22 | AN7: 22 | AO7: 22 | AP7: 22 | AQ7: 22 | AR7: 22 | AS7: 23 | AT7: 23 | AU7: 23 | AV7: 23 | AW7: 23 | AX7: 23 | AY7: 23 | AZ7: 23 | BA7: 23 | BB7: 23 | BC7: 23 | BD7: 23 | BE7: 24 | BF7: 24 | BG7: 24 | BH7: 24 | BI7: 24 | BJ7: 24 | BK7: 24 | BL7: 24 | BM7: 24 | BN7: 24 | BO7: 24 | BP7: 24 | BQ7: 25 | BR7: 25 | BS7: 25 | BT7: 25 | BU7: 25 | BV7: 25 | BW7: 25 | BX7: 25 | BY7: 25 | BZ7: 25 | CA7: 25 | CB7: 25 | CC7: 26 | CD7: 26 | CE7: 26 | CF7: 26 | CG7: 26 | CH7: 26 | CI7: 26 | CJ7: 26 | CK7: 26 | CL7: 26 | CM7: 26 | CN7: 26 | CO7: 27 | CP7: 27 | CQ7: 27 | CR7: 27 | CS7: 27 | CT7: 27 | CU7: 27 | CV7: 27 | CW7: 27 | CX7: 27 | CY7: 27 | CZ7: 27 | DA7: 28 | DB7: 28 | DC7: 28 | DD7: 28 | DE7: 28 | DF7: 28 | DG7: 28 | DH7: 28 | DI7: 28 | DJ7: 28 | DK7: 28 | DL7: 28 | DM7: 29 | DN7: 29 | DO7: 29 | DP7: 29 | DQ7: 29 | DR7: 29 | DS7: 29 | DT7: 29 | DU7: 29 | DV7: 29 | DW7: 29 | DX7: 29 | DY7: 30 | DZ7: 30 | EA7: 30 | EB7: 30 | EC7: 30 | ED7: 30 | EE7: 30 | EF7: 30 | EG7: 30 | EH7: 30 | EI7: 30 | EJ7: 30 | EK7: 31 | EL7: 31 | EM7: 31 | EN7: 31 | EO7: 31 | EP7: 31
Y8: число даты окончания: | AA8: 31 | AB8: 31 | AC8: 30 | AD8: 31 | AE8: 30 | AF8: 31 | AG8: 31 | AH8: 28 | AI8: 31 | AJ8: 30 | AK8: 31 | AL8: 30 | AM8: 31 | AN8: 31 | AO8: 30 | AP8: 31 | AQ8: 30 | AR8: 31 | AS8: 31 | AT8: 28 | AU8: 31 | AV8: 30 | AW8: 31 | AX8: 30 | AY8: 31 | AZ8: 31 | BA8: 30 | BB8: 31 | BC8: 30 | BD8: 31 | BE8: 31 | BF8: 29 | BG8: 31 | BH8: 30 | BI8: 31 | BJ8: 30 | BK8: 31 | BL8: 31 | BM8: 30 | BN8: 31 | BO8: 30 | BP8: 31 | BQ8: 31 | BR8: 28 | BS8: 31 | BT8: 30 | BU8: 31 | BV8: 30 | BW8: 31 | BX8: 31 | BY8: 30 | BZ8: 31 | CA8: 30 | CB8: 31 | CC8: 31 | CD8: 28 | CE8: 31 | CF8: 30 | CG8: 31 | CH8: 30 | CI8: 31 | CJ8: 31 | CK8: 30 | CL8: 31 | CM8: 30 | CN8: 31 | CO8: 31 | CP8: 28 | CQ8: 31 | CR8: 30 | CS8: 31 | CT8: 30 | CU8: 31 | CV8: 31 | CW8: 30 | CX8: 31 | CY8: 30 | CZ8: 31 | DA8: 31 | DB8: 29 | DC8: 31 | DD8: 30 | DE8: 31 | DF8: 30 | DG8: 31 | DH8: 31 | DI8: 30 | DJ8: 31 | DK8: 30 | DL8: 31 | DM8: 31 | DN8: 28 | DO8: 31 | DP8: 30 | DQ8: 31 | DR8: 30 | DS8: 31 | DT8: 31 | DU8: 30 | DV8: 31 | DW8: 30 | DX8: 31 | DY8: 31 | DZ8: 28 | EA8: 31 | EB8: 30 | EC8: 31 | ED8: 30 | EE8: 31 | EF8: 31 | EG8: 30 | EH8: 31 | EI8: 30 | EJ8: 31 | EK8: 31 | EL8: 28 | EM8: 31 | EN8: 30 | EO8: 31 | EP8: 30
Y9: номер месяца даты окончания: | AA9: 7 | AB9: 8 | AC9: 9 | AD9: 10 | AE9: 11 | AF9: 12 | AG9: 1 | AH9: 2 | AI9: 3 | AJ9: 4 | AK9: 5 | AL9: 6 | AM9: 7 | AN9: 8 | AO9: 9 | AP9: 10 | AQ9: 11 | AR9: 12 | AS9: 1 | AT9: 2 | AU9: 3 | AV9: 4 | AW9: 5 | AX9: 6 | AY9: 7 | AZ9: 8 | BA9: 9 | BB9: 10 | BC9: 11 | BD9: 12 | BE9: 1 | BF9: 2 | BG9: 3 | BH9: 4 | BI9: 5 | BJ9: 6 | BK9: 7 | BL9: 8 | BM9: 9 | BN9: 10 | BO9: 11 | BP9: 12 | BQ9: 1 | BR9: 2 | BS9: 3 | BT9: 4 | BU9: 5 | BV9: 6 | BW9: 7 | BX9: 8 | BY9: 9 | BZ9: 10 | CA9: 11 | CB9: 12 | CC9: 1 | CD9: 2 | CE9: 3 | CF9: 4 | CG9: 5 | CH9: 6 | CI9: 7 | CJ9: 8 | CK9: 9 | CL9: 10 | CM9: 11 | CN9: 12 | CO9: 1 | CP9: 2 | CQ9: 3 | CR9: 4 | CS9: 5 | CT9: 6 | CU9: 7 | CV9: 8 | CW9: 9 | CX9: 10 | CY9: 11 | CZ9: 12 | DA9: 1 | DB9: 2 | DC9: 3 | DD9: 4 | DE9: 5 | DF9: 6 | DG9: 7 | DH9: 8 | DI9: 9 | DJ9: 10 | DK9: 11 | DL9: 12 | DM9: 1 | DN9: 2 | DO9: 3 | DP9: 4 | DQ9: 5 | DR9: 6 | DS9: 7 | DT9: 8 | DU9: 9 | DV9: 10 | DW9: 11 | DX9: 12 | DY9: 1 | DZ9: 2 | EA9: 3 | EB9: 4 | EC9: 5 | ED9: 6 | EE9: 7 | EF9: 8 | EG9: 9 | EH9: 10 | EI9: 11 | EJ9: 12 | EK9: 1 | EL9: 2 | EM9: 3 | EN9: 4 | EO9: 5 | EP9: 6
Y10: год даты окончания: | AA10: 21 | AB10: 21 | AC10: 21 | AD10: 21 | AE10: 21 | AF10: 21 | AG10: 22 | AH10: 22 | AI10: 22 | AJ10: 22 | AK10: 22 | AL10: 22 | AM10: 22 | AN10: 22 | AO10: 22 | AP10: 22 | AQ10: 22 | AR10: 22 | AS10: 23 | AT10: 23 | AU10: 23 | AV10: 23 | AW10: 23 | AX10: 23 | AY10: 23 | AZ10: 23 | BA10: 23 | BB10: 23 | BC10: 23 | BD10: 23 | BE10: 24 | BF10: 24 | BG10: 24 | BH10: 24 | BI10: 24 | BJ10: 24 | BK10: 24 | BL10: 24 | BM10: 24 | BN10: 24 | BO10: 24 | BP10: 24 | BQ10: 25 | BR10: 25 | BS10: 25 | BT10: 25 | BU10: 25 | BV10: 25 | BW10: 25 | BX10: 25 | BY10: 25 | BZ10: 25 | CA10: 25 | CB10: 25 | CC10: 26 | CD10: 26 | CE10: 26 | CF10: 26 | CG10: 26 | CH10: 26 | CI10: 26 | CJ10: 26 | CK10: 26 | CL10: 26 | CM10: 26 | CN10: 26 | CO10: 27 | CP10: 27 | CQ10: 27 | CR10: 27 | CS10: 27 | CT10: 27 | CU10: 27 | CV10: 27 | CW10: 27 | CX10: 27 | CY10: 27 | CZ10: 27 | DA10: 28 | DB10: 28 | DC10: 28 | DD10: 28 | DE10: 28 | DF10: 28 | DG10: 28 | DH10: 28 | DI10: 28 | DJ10: 28 | DK10: 28 | DL10: 28 | DM10: 29 | DN10: 29 | DO10: 29 | DP10: 29 | DQ10: 29 | DR10: 29 | DS10: 29 | DT10: 29 | DU10: 29 | DV10: 29 | DW10: 29 | DX10: 29 | DY10: 30 | DZ10: 30 | EA10: 30 | EB10: 30 | EC10: 30 | ED10: 30 | EE10: 30 | EF10: 30 | EG10: 30 | EH10: 30 | EI10: 30 | EJ10: 30 | EK10: 31 | EL10: 31 | EM10: 31 | EN10: 31 | EO10: 31 | EP10: 31
C11: +7(985)201-6607 | F11: Periods | I11: Периоды и горизонты моделирования фактических и прогнозных данных | X11: 2021-07-01 | AA11: 2021-07-01 | AB11: 2021-08-01 | AC11: 2021-09-01 | AD11: 2021-10-01 | AE11: 2021-11-01 | AF11: 2021-12-01 | AG11: 2022-01-01 | AH11: 2022-02-01 | AI11: 2022-03-01 | AJ11: 2022-04-01 | AK11: 2022-05-01 | AL11: 2022-06-01 | AM11: 2022-07-01 | AN11: 2022-08-01 | AO11: 2022-09-01 | AP11: 2022-10-01 | AQ11: 2022-11-01 | AR11: 2022-12-01 | AS11: 2023-01-01 | AT11: 2023-02-01 | AU11: 2023-03-01 | AV11: 2023-04-01 | AW11: 2023-05-01 | AX11: 2023-06-01 | AY11: 2023-07-01 | AZ11: 2023-08-01 | BA11: 2023-09-01 | BB11: 2023-10-01 | BC11: 2023-11-01 | BD11: 2023-12-01 | BE11: 2024-01-01 | BF11: 2024-02-01 | BG11: 2024-03-01 | BH11: 2024-04-01 | BI11: 2024-05-01 | BJ11: 2024-06-01 | BK11: 2024-07-01 | BL11: 2024-08-01 | BM11: 2024-09-01 | BN11: 2024-10-01 | BO11: 2024-11-01 | BP11: 2024-12-01 | BQ11: 2025-01-01 | BR11: 2025-02-01 | BS11: 2025-03-01 | BT11: 2025-04-01 | BU11: 2025-05-01 | BV11: 2025-06-01 | BW11: 2025-07-01 | BX11: 2025-08-01 | BY11: 2025-09-01 | BZ11: 2025-10-01 | CA11: 2025-11-01 | CB11: 2025-12-01 | CC11: 2026-01-01 | CD11: 2026-02-01 | CE11: 2026-03-01 | CF11: 2026-04-01 | CG11: 2026-05-01 | CH11: 2026-06-01 | CI11: 2026-07-01 | CJ11: 2026-08-01 | CK11: 2026-09-01 | CL11: 2026-10-01 | CM11: 2026-11-01 | CN11: 2026-12-01 | CO11: 2027-01-01 | CP11: 2027-02-01 | CQ11: 2027-03-01 | CR11: 2027-04-01 | CS11: 2027-05-01 | CT11: 2027-06-01 | CU11: 2027-07-01 | CV11: 2027-08-01 | CW11: 2027-09-01 | CX11: 2027-10-01 | CY11: 2027-11-01 | CZ11: 2027-12-01 | DA11: 2028-01-01 | DB11: 2028-02-01 | DC11: 2028-03-01 | DD11: 2028-04-01 | DE11: 2028-05-01 | DF11: 2028-06-01 | DG11: 2028-07-01 | DH11: 2028-08-01 | DI11: 2028-09-01 | DJ11: 2028-10-01 | DK11: 2028-11-01 | DL11: 2028-12-01 | DM11: 2029-01-01 | DN11: 2029-02-01 | DO11: 2029-03-01 | DP11: 2029-04-01 | DQ11: 2029-05-01 | DR11: 2029-06-01 | DS11: 2029-07-01 | DT11: 2029-08-01 | DU11: 2029-09-01 | DV11: 2029-10-01 | DW11: 2029-11-01 | DX11: 2029-12-01 | DY11: 2030-01-01 | DZ11: 2030-02-01 | EA11: 2030-03-01 | EB11: 2030-04-01 | EC11: 2030-05-01 | ED11: 2030-06-01 | EE11: 2030-07-01 | EF11: 2030-08-01 | EG11: 2030-09-01 | EH11: 2030-10-01 | EI11: 2030-11-01 | EJ11: 2030-12-01 | EK11: 2031-01-01 | EL11: 2031-02-01 | EM11: 2031-03-01 | EN11: 2031-04-01 | EO11: 2031-05-01 | EP11: 2031-06-01
H12: тип листа | Q12: расчетный | X12: 2031-06-30 | AA12: 2021-07-31 | AB12: 2021-08-31 | AC12: 2021-09-30 | AD12: 2021-10-31 | AE12: 2021-11-30 | AF12: 2021-12-31 | AG12: 2022-01-31 | AH12: 2022-02-28 | AI12: 2022-03-31 | AJ12: 2022-04-30 | AK12: 2022-05-31 | AL12: 2022-06-30 | AM12: 2022-07-31 | AN12: 2022-08-31 | AO12: 2022-09-30 | AP12: 2022-10-31 | AQ12: 2022-11-30 | AR12: 2022-12-31 | AS12: 2023-01-31 | AT12: 2023-02-28 | AU12: 2023-03-31 | AV12: 2023-04-30 | AW12: 2023-05-31 | AX12: 2023-06-30 | AY12: 2023-07-31 | AZ12: 2023-08-31 | BA12: 2023-09-30 | BB12: 2023-10-31 | BC12: 2023-11-30 | BD12: 2023-12-31 | BE12: 2024-01-31 | BF12: 2024-02-29 | BG12: 2024-03-31 | BH12: 2024-04-30 | BI12: 2024-05-31 | BJ12: 2024-06-30 | BK12: 2024-07-31 | BL12: 2024-08-31 | BM12: 2024-09-30 | BN12: 2024-10-31 | BO12: 2024-11-30 | BP12: 2024-12-31 | BQ12: 2025-01-31 | BR12: 2025-02-28 | BS12: 2025-03-31 | BT12: 2025-04-30 | BU12: 2025-05-31 | BV12: 2025-06-30 | BW12: 2025-07-31 | BX12: 2025-08-31 | BY12: 2025-09-30 | BZ12: 2025-10-31 | CA12: 2025-11-30 | CB12: 2025-12-31 | CC12: 2026-01-31 | CD12: 2026-02-28 | CE12: 2026-03-31 | CF12: 2026-04-30 | CG12: 2026-05-31 | CH12: 2026-06-30 | CI12: 2026-07-31 | CJ12: 2026-08-31 | CK12: 2026-09-30 | CL12: 2026-10-31 | CM12: 2026-11-30 | CN12: 2026-12-31 | CO12: 2027-01-31 | CP12: 2027-02-28 | CQ12: 2027-03-31 | CR12: 2027-04-30 | CS12: 2027-05-31 | CT12: 2027-06-30 | CU12: 2027-07-31 | CV12: 2027-08-31 | CW12: 2027-09-30 | CX12: 2027-10-31 | CY12: 2027-11-30 | CZ12: 2027-12-31 | DA12: 2028-01-31 | DB12: 2028-02-29 | DC12: 2028-03-31 | DD12: 2028-04-30 | DE12: 2028-05-31 | DF12: 2028-06-30 | DG12: 2028-07-31 | DH12: 2028-08-31 | DI12: 2028-09-30 | DJ12: 2028-10-31 | DK12: 2028-11-30 | DL12: 2028-12-31 | DM12: 2029-01-31 | DN12: 2029-02-28 | DO12: 2029-03-31 | DP12: 2029-04-30 | DQ12: 2029-05-31 | DR12: 2029-06-30 | DS12: 2029-07-31 | DT12: 2029-08-31 | DU12: 2029-09-30 | DV12: 2029-10-31 | DW12: 2029-11-30 | DX12: 2029-12-31 | DY12: 2030-01-31 | DZ12: 2030-02-28 | EA12: 2030-03-31 | EB12: 2030-04-30 | EC12: 2030-05-31 | ED12: 2030-06-30 | EE12: 2030-07-31 | EF12: 2030-08-31 | EG12: 2030-09-30 | EH12: 2030-10-31 | EI12: 2030-11-30 | EJ12: 2030-12-31 | EK12: 2031-01-31 | EL12: 2031-02-28 | EM12: 2031-03-31 | EN12: 2031-04-30 | EO12: 2031-05-31 | EP12: 2031-06-30
H13: показатель | Q13: значение | X13: итого | AA13: 2021-07-01 | AB13: 2021-08-01 | AC13: 2021-09-01 | AD13: 2021-10-01 | AE13: 2021-11-01 | AF13: 2021-12-01 | AG13: 2022-01-01 | AH13: 2022-02-01 | AI13: 2022-03-01 | AJ13: 2022-04-01 | AK13: 2022-05-01 | AL13: 2022-06-01 | AM13: 2022-07-01 | AN13: 2022-08-01 | AO13: 2022-09-01 | AP13: 2022-10-01 | AQ13: 2022-11-01 | AR13: 2022-12-01 | AS13: 2023-01-01 | AT13: 2023-02-01 | AU13: 2023-03-01 | AV13: 2023-04-01 | AW13: 2023-05-01 | AX13: 2023-06-01 | AY13: 2023-07-01 | AZ13: 2023-08-01 | BA13: 2023-09-01 | BB13: 2023-10-01 | BC13: 2023-11-01 | BD13: 2023-12-01 | BE13: 2024-01-01 | BF13: 2024-02-01 | BG13: 2024-03-01 | BH13: 2024-04-01 | BI13: 2024-05-01 | BJ13: 2024-06-01 | BK13: 2024-07-01 | BL13: 2024-08-01 | BM13: 2024-09-01 | BN13: 2024-10-01 | BO13: 2024-11-01 | BP13: 2024-12-01 | BQ13: 2025-01-01 | BR13: 2025-02-01 | BS13: 2025-03-01 | BT13: 2025-04-01 | BU13: 2025-05-01 | BV13: 2025-06-01 | BW13: 2025-07-01 | BX13: 2025-08-01 | BY13: 2025-09-01 | BZ13: 2025-10-01 | CA13: 2025-11-01 | CB13: 2025-12-01 | CC13: 2026-01-01 | CD13: 2026-02-01 | CE13: 2026-03-01 | CF13: 2026-04-01 | CG13: 2026-05-01 | CH13: 2026-06-01 | CI13: 2026-07-01 | CJ13: 2026-08-01 | CK13: 2026-09-01 | CL13: 2026-10-01 | CM13: 2026-11-01 | CN13: 2026-12-01 | CO13: 2027-01-01 | CP13: 2027-02-01 | CQ13: 2027-03-01 | CR13: 2027-04-01 | CS13: 2027-05-01 | CT13: 2027-06-01 | CU13: 2027-07-01 | CV13: 2027-08-01 | CW13: 2027-09-01 | CX13: 2027-10-01 | CY13: 2027-11-01 | CZ13: 2027-12-01 | DA13: 2028-01-01 | DB13: 2028-02-01 | DC13: 2028-03-01 | DD13: 2028-04-01 | DE13: 2028-05-01 | DF13: 2028-06-01 | DG13: 2028-07-01 | DH13: 2028-08-01 | DI13: 2028-09-01 | DJ13: 2028-10-01 | DK13: 2028-11-01 | DL13: 2028-12-01 | DM13: 2029-01-01 | DN13: 2029-02-01 | DO13: 2029-03-01 | DP13: 2029-04-01 | DQ13: 2029-05-01 | DR13: 2029-06-01 | DS13: 2029-07-01 | DT13: 2029-08-01 | DU13: 2029-09-01 | DV13: 2029-10-01 | DW13: 2029-11-01 | DX13: 2029-12-01 | DY13: 2030-01-01 | DZ13: 2030-02-01 | EA13: 2030-03-01 | EB13: 2030-04-01 | EC13: 2030-05-01 | ED13: 2030-06-01 | EE13: 2030-07-01 | EF13: 2030-08-01 | EG13: 2030-09-01 | EH13: 2030-10-01 | EI13: 2030-11-01 | EJ13: 2030-12-01 | EK13: 2031-01-01 | EL13: 2031-02-01 | EM13: 2031-03-01 | EN13: 2031-04-01 | EO13: 2031-05-01 | EP13: 2031-06-01
D14: 0 | E14: 0 | F14: 0 | G14: 0 | S14: 0
A15: 15 | H15: разработка финмоделей: https://mngmnt.ru/
A16: 16 | G16: 0 | H16: минимальный период расчетов | P16: * | Q16: месяц | R16: ^ | S16: 0 | Y16: номер периода модели: | AA16: 1 | AB16: 2 | AC16: 3 | AD16: 4 | AE16: 5 | AF16: 6 | AG16: 7 | AH16: 8 | AI16: 9 | AJ16: 10 | AK16: 11 | AL16: 12 | AM16: 13 | AN16: 14 | AO16: 15 | AP16: 16 | AQ16: 17 | AR16: 18 | AS16: 19 | AT16: 20 | AU16: 21 | AV16: 22 | AW16: 23 | AX16: 24 | AY16: 25 | AZ16: 26 | BA16: 27 | BB16: 28 | BC16: 29 | BD16: 30 | BE16: 31 | BF16: 32 | BG16: 33 | BH16: 34 | BI16: 35 | BJ16: 36 | BK16: 37 | BL16: 38 | BM16: 39 | BN16: 40 | BO16: 41 | BP16: 42 | BQ16: 43 | BR16: 44 | BS16: 45 | BT16: 46 | BU16: 47 | BV16: 48 | BW16: 49 | BX16: 50 | BY16: 51 | BZ16: 52 | CA16: 53 | CB16: 54 | CC16: 55 | CD16: 56 | CE16: 57 | CF16: 58 | CG16: 59 | CH16: 60 | CI16: 61 | CJ16: 62 | CK16: 63 | CL16: 64 | CM16: 65 | CN16: 66 | CO16: 67 | CP16: 68 | CQ16: 69 | CR16: 70 | CS16: 71 | CT16: 72 | CU16: 73 | CV16: 74 | CW16: 75 | CX16: 76 | CY16: 77 | CZ16: 78 | DA16: 79 | DB16: 80 | DC16: 81 | DD16: 82 | DE16: 83 | DF16: 84 | DG16: 85 | DH16: 86 | DI16: 87 | DJ16: 88 | DK16: 89 | DL16: 90 | DM16: 91 | DN16: 92 | DO16: 93 | DP16: 94 | DQ16: 95 | DR16: 96 | DS16: 97 | DT16: 98 | DU16: 99 | DV16: 100 | DW16: 101 | DX16: 102 | DY16: 103 | DZ16: 104 | EA16: 105 | EB16: 106 | EC16: 107 | ED16: 108 | EE16: 109 | EF16: 110 | EG16: 111 | EH16: 112 | EI16: 113 | EJ16: 114 | EK16: 115 | EL16: 116 | EM16: 117 | EN16: 118 | EO16: 119 | EP16: 120 | EQ16: 121 | ER16: 122 | ES16: 123 | ET16: 124 | EU16: 125 | EV16: 126 | EW16: 127 | EX16: 128 | EY16: 129 | EZ16: 130 | FA16: 131 | FB16: 132 | FC16: 133
A17: 17 | G17: 0 | H17: дата старта проекта | P17: * | Q17: 2021-07-01 | S17: 0 | Y17: номер месяца даты начала: | AA17: 7 | AB17: 8 | AC17: 9 | AD17: 10 | AE17: 11 | AF17: 12 | AG17: 1 | AH17: 2 | AI17: 3 | AJ17: 4 | AK17: 5 | AL17: 6 | AM17: 7 | AN17: 8 | AO17: 9 | AP17: 10 | AQ17: 11 | AR17: 12 | AS17: 1 | AT17: 2 | AU17: 3 | AV17: 4 | AW17: 5 | AX17: 6 | AY17: 7 | AZ17: 8 | BA17: 9 | BB17: 10 | BC17: 11 | BD17: 12 | BE17: 1 | BF17: 2 | BG17: 3 | BH17: 4 | BI17: 5 | BJ17: 6 | BK17: 7 | BL17: 8 | BM17: 9 | BN17: 10 | BO17: 11 | BP17: 12 | BQ17: 1 | BR17: 2 | BS17: 3 | BT17: 4 | BU17: 5 | BV17: 6 | BW17: 7 | BX17: 8 | BY17: 9 | BZ17: 10 | CA17: 11 | CB17: 12 | CC17: 1 | CD17: 2 | CE17: 3 | CF17: 4 | CG17: 5 | CH17: 6 | CI17: 7 | CJ17: 8 | CK17: 9 | CL17: 10 | CM17: 11 | CN17: 12 | CO17: 1 | CP17: 2 | CQ17: 3 | CR17: 4 | CS17: 5 | CT17: 6 | CU17: 7 | CV17: 8 | CW17: 9 | CX17: 10 | CY17: 11 | CZ17: 12 | DA17: 1 | DB17: 2 | DC17: 3 | DD17: 4 | DE17: 5 | DF17: 6 | DG17: 7 | DH17: 8 | DI17: 9 | DJ17: 10 | DK17: 11 | DL17: 12 | DM17: 1 | DN17: 2 | DO17: 3 | DP17: 4 | DQ17: 5 | DR17: 6 | DS17: 7 | DT17: 8 | DU17: 9 | DV17: 10 | DW17: 11 | DX17: 12 | DY17: 1 | DZ17: 2 | EA17: 3 | EB17: 4 | EC17: 5 | ED17: 6 | EE17: 7 | EF17: 8 | EG17: 9 | EH17: 10 | EI17: 11 | EJ17: 12 | EK17: 1 | EL17: 2 | EM17: 3 | EN17: 4 | EO17: 5 | EP17: 6
A18: 18 | G18: 0 | H18: горизонт моделирования в кол-ве периодов | P18: * | Q18: 120 | S18: 0 | Y18: год даты начала: | AA18: 21 | AB18: 21 | AC18: 21 | AD18: 21 | AE18: 21 | AF18: 21 | AG18: 22 | AH18: 22 | AI18: 22 | AJ18: 22 | AK18: 22 | AL18: 22 | AM18: 22 | AN18: 22 | AO18: 22 | AP18: 22 | AQ18: 22 | AR18: 22 | AS18: 23 | AT18: 23 | AU18: 23 | AV18: 23 | AW18: 23 | AX18: 23 | AY18: 23 | AZ18: 23 | BA18: 23 | BB18: 23 | BC18: 23 | BD18: 23 | BE18: 24 | BF18: 24 | BG18: 24 | BH18: 24 | BI18: 24 | BJ18: 24 | BK18: 24 | BL18: 24 | BM18: 24 | BN18: 24 | BO18: 24 | BP18: 24 | BQ18: 25 | BR18: 25 | BS18: 25 | BT18: 25 | BU18: 25 | BV18: 25 | BW18: 25 | BX18: 25 | BY18: 25 | BZ18: 25 | CA18: 25 | CB18: 25 | CC18: 26 | CD18: 26 | CE18: 26 | CF18: 26 | CG18: 26 | CH18: 26 | CI18: 26 | CJ18: 26 | CK18: 26 | CL18: 26 | CM18: 26 | CN18: 26 | CO18: 27 | CP18: 27 | CQ18: 27 | CR18: 27 | CS18: 27 | CT18: 27 | CU18: 27 | CV18: 27 | CW18: 27 | CX18: 27 | CY18: 27 | CZ18: 27 | DA18: 28 | DB18: 28 | DC18: 28 | DD18: 28 | DE18: 28 | DF18: 28 | DG18: 28 | DH18: 28 | DI18: 28 | DJ18: 28 | DK18: 28 | DL18: 28 | DM18: 29 | DN18: 29 | DO18: 29 | DP18: 29 | DQ18: 29 | DR18: 29 | DS18: 29 | DT18: 29 | DU18: 29 | DV18: 29 | DW18: 29 | DX18: 29 | DY18: 30 | DZ18: 30 | EA18: 30 | EB18: 30 | EC18: 30 | ED18: 30 | EE18: 30 | EF18: 30 | EG18: 30 | EH18: 30 | EI18: 30 | EJ18: 30 | EK18: 31 | EL18: 31 | EM18: 31 | EN18: 31 | EO18: 31 | EP18: 31
A19: 19
A20: 20 | G20: 0 | H20: дата старта периода расчетов модели | X20: 2021-07-01 | AA20: 2021-07-01 | AB20: 2021-08-01 | AC20: 2021-09-01 | AD20: 2021-10-01 | AE20: 2021-11-01 | AF20: 2021-12-01 | AG20: 2022-01-01 | AH20: 2022-02-01 | AI20: 2022-03-01 | AJ20: 2022-04-01 | AK20: 2022-05-01 | AL20: 2022-06-01 | AM20: 2022-07-01 | AN20: 2022-08-01 | AO20: 2022-09-01 | AP20: 2022-10-01 | AQ20: 2022-11-01 | AR20: 2022-12-01 | AS20: 2023-01-01 | AT20: 2023-02-01 | AU20: 2023-03-01 | AV20: 2023-04-01 | AW20: 2023-05-01 | AX20: 2023-06-01 | AY20: 2023-07-01 | AZ20: 2023-08-01 | BA20: 2023-09-01 | BB20: 2023-10-01 | BC20: 2023-11-01 | BD20: 2023-12-01 | BE20: 2024-01-01 | BF20: 2024-02-01 | BG20: 2024-03-01 | BH20: 2024-04-01 | BI20: 2024-05-01 | BJ20: 2024-06-01 | BK20: 2024-07-01 | BL20: 2024-08-01 | BM20: 2024-09-01 | BN20: 2024-10-01 | BO20: 2024-11-01 | BP20: 2024-12-01 | BQ20: 2025-01-01 | BR20: 2025-02-01 | BS20: 2025-03-01 | BT20: 2025-04-01 | BU20: 2025-05-01 | BV20: 2025-06-01 | BW20: 2025-07-01 | BX20: 2025-08-01 | BY20: 2025-09-01 | BZ20: 2025-10-01 | CA20: 2025-11-01 | CB20: 2025-12-01 | CC20: 2026-01-01 | CD20: 2026-02-01 | CE20: 2026-03-01 | CF20: 2026-04-01 | CG20: 2026-05-01 | CH20: 2026-06-01 | CI20: 2026-07-01 | CJ20: 2026-08-01 | CK20: 2026-09-01 | CL20: 2026-10-01 | CM20: 2026-11-01 | CN20: 2026-12-01 | CO20: 2027-01-01 | CP20: 2027-02-01 | CQ20: 2027-03-01 | CR20: 2027-04-01 | CS20: 2027-05-01 | CT20: 2027-06-01 | CU20: 2027-07-01 | CV20: 2027-08-01 | CW20: 2027-09-01 | CX20: 2027-10-01 | CY20: 2027-11-01 | CZ20: 2027-12-01 | DA20: 2028-01-01 | DB20: 2028-02-01 | DC20: 2028-03-01 | DD20: 2028-04-01 | DE20: 2028-05-01 | DF20: 2028-06-01 | DG20: 2028-07-01 | DH20: 2028-08-01 | DI20: 2028-09-01 | DJ20: 2028-10-01 | DK20: 2028-11-01 | DL20: 2028-12-01 | DM20: 2029-01-01 | DN20: 2029-02-01 | DO20: 2029-03-01 | DP20: 2029-04-01 | DQ20: 2029-05-01 | DR20: 2029-06-01 | DS20: 2029-07-01 | DT20: 2029-08-01 | DU20: 2029-09-01 | DV20: 2029-10-01 | DW20: 2029-11-01 | DX20: 2029-12-01 | DY20: 2030-01-01 | DZ20: 2030-02-01 | EA20: 2030-03-01 | EB20: 2030-04-01 | EC20: 2030-05-01 | ED20: 2030-06-01 | EE20: 2030-07-01 | EF20: 2030-08-01 | EG20: 2030-09-01 | EH20: 2030-10-01 | EI20: 2030-11-01 | EJ20: 2030-12-01 | EK20: 2031-01-01 | EL20: 2031-02-01 | EM20: 2031-03-01 | EN20: 2031-04-01 | EO20: 2031-05-01 | EP20: 2031-06-01
A21: 21 | G21: 0 | H21: дата завершения периода расчетов модели | X21: 2031-06-30 | AA21: 2021-07-31 | AB21: 2021-08-31 | AC21: 2021-09-30 | AD21: 2021-10-31 | AE21: 2021-11-30 | AF21: 2021-12-31 | AG21: 2022-01-31 | AH21: 2022-02-28 | AI21: 2022-03-31 | AJ21: 2022-04-30 | AK21: 2022-05-31 | AL21: 2022-06-30 | AM21: 2022-07-31 | AN21: 2022-08-31 | AO21: 2022-09-30 | AP21: 2022-10-31 | AQ21: 2022-11-30 | AR21: 2022-12-31 | AS21: 2023-01-31 | AT21: 2023-02-28 | AU21: 2023-03-31 | AV21: 2023-04-30 | AW21: 2023-05-31 | AX21: 2023-06-30 | AY21: 2023-07-31 | AZ21: 2023-08-31 | BA21: 2023-09-30 | BB21: 2023-10-31 | BC21: 2023-11-30 | BD21: 2023-12-31 | BE21: 2024-01-31 | BF21: 2024-02-29 | BG21: 2024-03-31 | BH21: 2024-04-30 | BI21: 2024-05-31 | BJ21: 2024-06-30 | BK21: 2024-07-31 | BL21: 2024-08-31 | BM21: 2024-09-30 | BN21: 2024-10-31 | BO21: 2024-11-30 | BP21: 2024-12-31 | BQ21: 2025-01-31 | BR21: 2025-02-28 | BS21: 2025-03-31 | BT21: 2025-04-30 | BU21: 2025-05-31 | BV21: 2025-06-30 | BW21: 2025-07-31 | BX21: 2025-08-31 | BY21: 2025-09-30 | BZ21: 2025-10-31 | CA21: 2025-11-30 | CB21: 2025-12-31 | CC21: 2026-01-31 | CD21: 2026-02-28 | CE21: 2026-03-31 | CF21: 2026-04-30 | CG21: 2026-05-31 | CH21: 2026-06-30 | CI21: 2026-07-31 | CJ21: 2026-08-31 | CK21: 2026-09-30 | CL21: 2026-10-31 | CM21: 2026-11-30 | CN21: 2026-12-31 | CO21: 2027-01-31 | CP21: 2027-02-28 | CQ21: 2027-03-31 | CR21: 2027-04-30 | CS21: 2027-05-31 | CT21: 2027-06-30 | CU21: 2027-07-31 | CV21: 2027-08-31 | CW21: 2027-09-30 | CX21: 2027-10-31 | CY21: 2027-11-30 | CZ21: 2027-12-31 | DA21: 2028-01-31 | DB21: 2028-02-29 | DC21: 2028-03-31 | DD21: 2028-04-30 | DE21: 2028-05-31 | DF21: 2028-06-30 | DG21: 2028-07-31 | DH21: 2028-08-31 | DI21: 2028-09-30 | DJ21: 2028-10-31 | DK21: 2028-11-30 | DL21: 2028-12-31 | DM21: 2029-01-31 | DN21: 2029-02-28 | DO21: 2029-03-31 | DP21: 2029-04-30 | DQ21: 2029-05-31 | DR21: 2029-06-30 | DS21: 2029-07-31 | DT21: 2029-08-31 | DU21: 2029-09-30 | DV21: 2029-10-31 | DW21: 2029-11-30 | DX21: 2029-12-31 | DY21: 2030-01-31 | DZ21: 2030-02-28 | EA21: 2030-03-31 | EB21: 2030-04-30 | EC21: 2030-05-31 | ED21: 2030-06-30 | EE21: 2030-07-31 | EF21: 2030-08-31 | EG21: 2030-09-30 | EH21: 2030-10-31 | EI21: 2030-11-30 | EJ21: 2030-12-31 | EK21: 2031-01-31 | EL21: 2031-02-28 | EM21: 2031-03-31 | EN21: 2031-04-30 | EO21: 2031-05-31 | EP21: 2031-06-30
A22: 22 | G22: 0 | H22: названия периодов расчета | AA22: 2021-07-01 | AB22: 2021-08-01 | AC22: 2021-09-01 | AD22: 2021-10-01 | AE22: 2021-11-01 | AF22: 2021-12-01 | AG22: 2022-01-01 | AH22: 2022-02-01 | AI22: 2022-03-01 | AJ22: 2022-04-01 | AK22: 2022-05-01 | AL22: 2022-06-01 | AM22: 2022-07-01 | AN22: 2022-08-01 | AO22: 2022-09-01 | AP22: 2022-10-01 | AQ22: 2022-11-01 | AR22: 2022-12-01 | AS22: 2023-01-01 | AT22: 2023-02-01 | AU22: 2023-03-01 | AV22: 2023-04-01 | AW22: 2023-05-01 | AX22: 2023-06-01 | AY22: 2023-07-01 | AZ22: 2023-08-01 | BA22: 2023-09-01 | BB22: 2023-10-01 | BC22: 2023-11-01 | BD22: 2023-12-01 | BE22: 2024-01-01 | BF22: 2024-02-01 | BG22: 2024-03-01 | BH22: 2024-04-01 | BI22: 2024-05-01 | BJ22: 2024-06-01 | BK22: 2024-07-01 | BL22: 2024-08-01 | BM22: 2024-09-01 | BN22: 2024-10-01 | BO22: 2024-11-01 | BP22: 2024-12-01 | BQ22: 2025-01-01 | BR22: 2025-02-01 | BS22: 2025-03-01 | BT22: 2025-04-01 | BU22: 2025-05-01 | BV22: 2025-06-01 | BW22: 2025-07-01 | BX22: 2025-08-01 | BY22: 2025-09-01 | BZ22: 2025-10-01 | CA22: 2025-11-01 | CB22: 2025-12-01 | CC22: 2026-01-01 | CD22: 2026-02-01 | CE22: 2026-03-01 | CF22: 2026-04-01 | CG22: 2026-05-01 | CH22: 2026-06-01 | CI22: 2026-07-01 | CJ22: 2026-08-01 | CK22: 2026-09-01 | CL22: 2026-10-01 | CM22: 2026-11-01 | CN22: 2026-12-01 | CO22: 2027-01-01 | CP22: 2027-02-01 | CQ22: 2027-03-01 | CR22: 2027-04-01 | CS22: 2027-05-01 | CT22: 2027-06-01 | CU22: 2027-07-01 | CV22: 2027-08-01 | CW22: 2027-09-01 | CX22: 2027-10-01 | CY22: 2027-11-01 | CZ22: 2027-12-01 | DA22: 2028-01-01 | DB22: 2028-02-01 | DC22: 2028-03-01 | DD22: 2028-04-01 | DE22: 2028-05-01 | DF22: 2028-06-01 | DG22: 2028-07-01 | DH22: 2028-08-01 | DI22: 2028-09-01 | DJ22: 2028-10-01 | DK22: 2028-11-01 | DL22: 2028-12-01 | DM22: 2029-01-01 | DN22: 2029-02-01 | DO22: 2029-03-01 | DP22: 2029-04-01 | DQ22: 2029-05-01 | DR22: 2029-06-01 | DS22: 2029-07-01 | DT22: 2029-08-01 | DU22: 2029-09-01 | DV22: 2029-10-01 | DW22: 2029-11-01 | DX22: 2029-12-01 | DY22: 2030-01-01 | DZ22: 2030-02-01 | EA22: 2030-03-01 | EB22: 2030-04-01 | EC22: 2030-05-01 | ED22: 2030-06-01 | EE22: 2030-07-01 | EF22: 2030-08-01 | EG22: 2030-09-01 | EH22: 2030-10-01 | EI22: 2030-11-01 | EJ22: 2030-12-01 | EK22: 2031-01-01 | EL22: 2031-02-01 | EM22: 2031-03-01 | EN22: 2031-04-01 | EO22: 2031-05-01 | EP22: 2031-06-01
A23: 23
A24: 24 | G24: 0 | H24: ответ "да/нет"
A25: 25 | G25: 0 | H25: ответ "да/нет" | I25: учесть фактические данные? | P25: * | Q25: нет | R25: ^ | S25: 0
A26: 26 | G26: 0 | H26: ответ "да/нет" | I26: фактический период выбрать по умолчанию? | Q26: да | R26: ^ | S26: 0
A27: 27
A28: 28 | G28: 0 | H28: дата начала фактического периода
A29: 29 | G29: 0 | H29: дата окончания фактического периода
A30: 30 | G30: 0 | H30: дата окончания фактического периода | I30: по умолчанию - сегодняшний день | Q30: 2022-02-07
A31: 31 | G31: 0 | H31: дата окончания фактического периода | I31: задать вручную дату окончания периода | Q31: 2020-10-31 | Y31: номер периода модели: | AA31: 1 | AB31: 2 | AC31: 3 | AD31: 4 | AE31: 5 | AF31: 6 | AG31: 7 | AH31: 8 | AI31: 9 | AJ31: 10 | AK31: 11 | AL31: 12 | AM31: 13 | AN31: 14 | AO31: 15 | AP31: 16 | AQ31: 17 | AR31: 18 | AS31: 19 | AT31: 20 | AU31: 21 | AV31: 22 | AW31: 23 | AX31: 24 | AY31: 25 | AZ31: 26 | BA31: 27 | BB31: 28 | BC31: 29 | BD31: 30 | BE31: 31 | BF31: 32 | BG31: 33 | BH31: 34 | BI31: 35 | BJ31: 36 | BK31: 37 | BL31: 38 | BM31: 39 | BN31: 40 | BO31: 41 | BP31: 42 | BQ31: 43 | BR31: 44 | BS31: 45 | BT31: 46 | BU31: 47 | BV31: 48 | BW31: 49 | BX31: 50 | BY31: 51 | BZ31: 52 | CA31: 53 | CB31: 54 | CC31: 55 | CD31: 56 | CE31: 57 | CF31: 58 | CG31: 59 | CH31: 60 | CI31: 61 | CJ31: 62 | CK31: 63 | CL31: 64 | CM31: 65 | CN31: 66 | CO31: 67 | CP31: 68 | CQ31: 69 | CR31: 70 | CS31: 71 | CT31: 72 | CU31: 73 | CV31: 74 | CW31: 75 | CX31: 76 | CY31: 77 | CZ31: 78 | DA31: 79 | DB31: 80 | DC31: 81 | DD31: 82 | DE31: 83 | DF31: 84 | DG31: 85 | DH31: 86 | DI31: 87 | DJ31: 88 | DK31: 89 | DL31: 90 | DM31: 91 | DN31: 92 | DO31: 93 | DP31: 94 | DQ31: 95 | DR31: 96 | DS31: 97 | DT31: 98 | DU31: 99 | DV31: 100 | DW31: 101 | DX31: 102 | DY31: 103 | DZ31: 104 | EA31: 105 | EB31: 106 | EC31: 107 | ED31: 108 | EE31: 109 | EF31: 110 | EG31: 111 | EH31: 112 | EI31: 113 | EJ31: 114 | EK31: 115 | EL31: 116 | EM31: 117 | EN31: 118 | EO31: 119 | EP31: 120 | EQ31: 121 | ER31: 122 | ES31: 123 | ET31: 124 | EU31: 125 | EV31: 126 | EW31: 127 | EX31: 128 | EY31: 129 | EZ31: 130 | FA31: 131 | FB31: 132 | FC31: 133
A32: 32 | Y32: номер месяца даты начала: | AA32: 7 | AB32: 7 | AC32: 7 | AD32: 7 | AE32: 7 | AF32: 7 | AG32: 7 | AH32: 7 | AI32: 7 | AJ32: 7
A33: 33 | G33: 0 | H33: период отчетности | P33: * | Q33: год текущий | R33: ^ | S33: 0 | Y33: год даты начала: | AA33: 21 | AB33: 22 | AC33: 23 | AD33: 24 | AE33: 25 | AF33: 26 | AG33: 27 | AH33: 28 | AI33: 29 | AJ33: 30
A34: 34
A35: 35 | G35: 0 | H35: дата старта отчетности модели | X35: 2021-07-01 | AA35: 2021-07-01 | AB35: 2022-07-01 | AC35: 2023-07-01 | AD35: 2024-07-01 | AE35: 2025-07-01 | AF35: 2026-07-01 | AG35: 2027-07-01 | AH35: 2028-07-01 | AI35: 2029-07-01 | AJ35: 2030-07-01
A36: 36 | G36: 0 | H36: дата завершения отчетности модели | X36: 2031-06-30 | AA36: 2022-06-30 | AB36: 2023-06-30 | AC36: 2024-06-30 | AD36: 2025-06-30 | AE36: 2026-06-30 | AF36: 2027-06-30 | AG36: 2028-06-30 | AH36: 2029-06-30 | AI36: 2030-06-30 | AJ36: 2031-06-30
A37: 37 | G37: 0 | H37: названия периодов отчетности | AA37: 1 год | AB37: 2 год | AC37: 3 год | AD37: 4 год | AE37: 5 год | AF37: 6 год | AG37: 7 год | AH37: 8 год | AI37: 9 год | AJ37: 10 год
A38: 38
A39: 39
A40: 40
A41: 41
A42: 42 | H42: разработка финмоделей: https://mngmnt.ru/
A43: 43
A44: 44
A45: 45
A46: 46
A47: 47
A48: 48
A49: 49
A50: 50
A51: 51
A52: 52
A53: 53
A54: 54
A55: 55
A56: 56
A57: 57
A58: 58
A59: 59
A60: 60
A61: 61
A62: 62
A63: 63
A64: 64
A65: 65
A66: 66
A67: 67
A68: 68
A69: 69
A70: 70

Sheet Lists
I1: =COLUMN() -> 9 | M1: =COLUMN() -> 13 | Q1: =COLUMN() -> 17 | U1: =COLUMN() -> 21 | AB1: =COLUMN() -> 28 | AF1: =COLUMN() -> 32 | AI1: =COLUMN() -> 35 | AM1: =COLUMN() -> 39 | AQ1: =COLUMN() -> 43 | AU1: =COLUMN() -> 47 | AY1: =COLUMN() -> 51 | BC1: =COLUMN() -> 55 | BG1: =COLUMN() -> 59 | BK1: =COLUMN() -> 63 | BO1: =COLUMN() -> 67 | BS1: =COLUMN() -> 71 | BW1: =COLUMN() -> 75 | CA1: =COLUMN() -> 79 | CE1: =COLUMN() -> 83 | CI1: =COLUMN() -> 87 | CM1: =COLUMN() -> 91 | CQ1: =COLUMN() -> 95 | CU1: =COLUMN() -> 99
I2: =LEFT(ADDRESS(1,COLUMN(),4),LEN(ADDRESS(1,COLUMN(),4))-1) -> I | M2: =LEFT(ADDRESS(1,COLUMN(),4),LEN(ADDRESS(1,COLUMN(),4))-1) -> M | Q2: =LEFT(ADDRESS(1,COLUMN(),4),LEN(ADDRESS(1,COLUMN(),4))-1) -> Q | U2: =LEFT(ADDRESS(1,COLUMN(),4),LEN(ADDRESS(1,COLUMN(),4))-1) -> U | AB2: =LEFT(ADDRESS(1,COLUMN(),4),LEN(ADDRESS(1,COLUMN(),4))-1) -> AB | AF2: =LEFT(ADDRESS(1,COLUMN(),4),LEN(ADDRESS(1,COLUMN(),4))-1) -> AF | AI2: =LEFT(ADDRESS(1,COLUMN(),4),LEN(ADDRESS(1,COLUMN(),4))-1) -> AI | AM2: =LEFT(ADDRESS(1,COLUMN(),4),LEN(ADDRESS(1,COLUMN(),4))-1) -> AM | AQ2: =LEFT(ADDRESS(1,COLUMN(),4),LEN(ADDRESS(1,COLUMN(),4))-1) -> AQ | AU2: =LEFT(ADDRESS(1,COLUMN(),4),LEN(ADDRESS(1,COLUMN(),4))-1) -> AU | AY2: =LEFT(ADDRESS(1,COLUMN(),4),LEN(ADDRESS(1,COLUMN(),4))-1) -> AY | BC2: =LEFT(ADDRESS(1,COLUMN(),4),LEN(ADDRESS(1,COLUMN(),4))-1) -> BC | BG2: =LEFT(ADDRESS(1,COLUMN(),4),LEN(ADDRESS(1,COLUMN(),4))-1) -> BG | BK2: =LEFT(ADDRESS(1,COLUMN(),4),LEN(ADDRESS(1,COLUMN(),4))-1) -> BK | BO2: =LEFT(ADDRESS(1,COLUMN(),4),LEN(ADDRESS(1,COLUMN(),4))-1) -> BO | BS2: =LEFT(ADDRESS(1,COLUMN(),4),LEN(ADDRESS(1,COLUMN(),4))-1) -> BS | BW2: =LEFT(ADDRESS(1,COLUMN(),4),LEN(ADDRESS(1,COLUMN(),4))-1) -> BW | CA2: =LEFT(ADDRESS(1,COLUMN(),4),LEN(ADDRESS(1,COLUMN(),4))-1) -> CA | CE2: =LEFT(ADDRESS(1,COLUMN(),4),LEN(ADDRESS(1,COLUMN(),4))-1) -> CE | CI2: =LEFT(ADDRESS(1,COLUMN(),4),LEN(ADDRESS(1,COLUMN(),4))-1) -> CI | CM2: =LEFT(ADDRESS(1,COLUMN(),4),LEN(ADDRESS(1,COLUMN(),4))-1) -> CM | CQ2: =LEFT(ADDRESS(1,COLUMN(),4),LEN(ADDRESS(1,COLUMN(),4))-1) -> CQ | CU2: =LEFT(ADDRESS(1,COLUMN(),4),LEN(ADDRESS(1,COLUMN(),4))-1) -> CU
C11: +7(985)201-6607 | F11: =INDIRECT("START!I28") -> Lists | I11: =INDIRECT("START!K28") -> Выпадающие списки финансовой модели
AI12: =START!$I$32 -> Mrkting | AY12: =START!$I$32 -> Mrkting | BC12: =START!$I$32 -> Mrkting | BK12: =START!$I$34 -> Sales | BO12: =START!$I$35 -> Prdction | BS12: =START!$I$33 -> CapEx | BW12: =START!$I$33 -> CapEx | CA12: =START!$I$36 -> HR | CI12: =START!$I$36 -> HR | CM12: =START!$I$29 -> Macro | CQ12: =START!$I$29 -> Macro | CU12: =START!$I$54 -> Calc
I13: минимальный период расчетов | M13: ответ "да/нет" | Q13: период отчетности | U13: тип листа | AB13: тип прогрессии | AF13: кол-во дней в периоде | AI13: каналы привлечения клиентов | AM13: продукция | AQ13: дата старта | AU13: тип учета | AY13: натуральные факторы переменных расходов маркетинга | BC13: денежные факторы переменных расходов маркетинга | BG13: тип зависимости переменных расходов | BK13: типы деятельности сотрудников отдела продаж | BO13: типы деятельности производственных сотрудников | BS13: Ввод в эксплуатацию | BW13: Налоги на внеоборотные активы | CA13: Типы и должности персонала | CE13: Типы оплаты | CI13: Потребность в офисе | CM13: Система налогообложения | CQ13: Налоги и сборы | CU13: Метки расчетов
D14: =INDIRECT("Cntrl!M17") -> 0 | E14: =SUM($F14:$PH14) -> 0 | F14: =IFERROR(_xlfn.SHEET($A$1)-SUMIFS(Cntrl!O$15:O$100000,Cntrl!I$15:I$100000,$F$11),1) -> 0 | I14: =IF(OR(I13=0,I13=""),1,IF(COUNTIF(13:13,I13)=1,0,1)) -> 0 | K14: =SUM(K$15:K$100000) -> 0 | M14: =IF(OR(M13=0,M13=""),1,IF(COUNTIF(13:13,M13)=1,0,1)) -> 0 | O14: =SUM(O$15:O$100000) -> 0 | Q14: =IF(OR(Q13=0,Q13=""),1,IF(COUNTIF(13:13,Q13)=1,0,1)) -> 0 | S14: =SUM(S$15:S$100000) -> 0 | U14: =IF(OR(U13=0,U13=""),1,IF(COUNTIF(13:13,U13)=1,0,1)) -> 0 | W14: =SUM(W$15:W$100000) -> 0 | AD14: =SUM(AD$15:AD$100000) -> 0 | AF14: =IF(OR(AF13=0,AF13=""),1,IF(COUNTIF(13:13,AF13)=1,0,1)) -> 0 | AI14: =IF(OR(AI13=0,AI13=""),1,IF(COUNTIF(13:13,AI13)=1,0,1)) -> 0 | AK14: =SUM(AK$15:AK$100000) -> 0 | AM14: =IF(OR(AM13=0,AM13=""),1,IF(COUNTIF(13:13,AM13)=1,0,1)) -> 0 | AO14: =SUM(AO$15:AO$100000) -> 0 | AQ14: =IF(OR(AQ13=0,AQ13=""),1,IF(COUNTIF(13:13,AQ13)=1,0,1)) -> 0 | AS14: =SUM(AS$15:AS$100000) -> 0 | AU14: =IF(OR(AU13=0,AU13=""),1,IF(COUNTIF(13:13,AU13)=1,0,1)) -> 0 | AW14: =SUM(AW$15:AW$100000) -> 0 | AY14: =IF(OR(AY13=0,AY13=""),1,IF(COUNTIF(13:13,AY13)=1,0,1)) -> 0 | BA14: =SUM(BA$15:BA$100000) -> 0 | BC14: =IF(OR(BC13=0,BC13=""),1,IF(COUNTIF(13:13,BC13)=1,0,1)) -> 0 | BE14: =SUM(BE$15:BE$100000) -> 0 | BG14: =IF(OR(BG13=0,BG13=""),1,IF(COUNTIF(13:13,BG13)=1,0,1)) -> 0 | BI14: =SUM(BI$15:BI$100000) -> 0 | BK14: =IF(OR(BK13=0,BK13=""),1,IF(COUNTIF(13:13,BK13)=1,0,1)) -> 0 | BM14: =SUM(BM$15:BM$100000) -> 0 | BO14: =IF(OR(BO13=0,BO13=""),1,IF(COUNTIF(13:13,BO13)=1,0,1)) -> 0 | BQ14: =SUM(BQ$15:BQ$100000) -> 0 | BS14: =IF(OR(BS13=0,BS13=""),1,IF(COUNTIF(13:13,BS13)=1,0,1)) -> 0 | BU14: =SUM(BU$15:BU$100000) -> 0 | BW14: =IF(OR(BW13=0,BW13=""),1,IF(COUNTIF(13:13,BW13)=1,0,1)) -> 0 | BY14: =SUM(BY$15:BY$100000) -> 0 | CA14: =IF(OR(CA13=0,CA13=""),1,IF(COUNTIF(13:13,CA13)=1,0,1)) -> 0 | CC14: =SUM(CC$15:CC$100000) -> 0 | CE14: =IF(OR(CE13=0,CE13=""),1,IF(COUNTIF(13:13,CE13)=1,0,1)) -> 0 | CG14: =SUM(CG$15:CG$100000) -> 0 | CI14: =IF(OR(CI13=0,CI13=""),1,IF(COUNTIF(13:13,CI13)=1,0,1)) -> 0 | CK14: =SUM(CK$15:CK$100000) -> 0 | CM14: =IF(OR(CM13=0,CM13=""),1,IF(COUNTIF(13:13,CM13)=1,0,1)) -> 0 | CO14: =SUM(CO$15:CO$100000) -> 0 | CQ14: =IF(OR(CQ13=0,CQ13=""),1,IF(COUNTIF(13:13,CQ13)=1,0,1)) -> 0 | CS14: =SUM(CS$15:CS$100000) -> 0 | CU14: =IF(OR(CU13=0,CU13=""),1,IF(COUNTIF(13:13,CU13)=1,0,1)) -> 0 | CW14: =SUM(CW$15:CW$100000) -> 0
A15: =ROW() -> 15 | I15: =$F$11&"!"&I$2&$A16&":"&I$2&($A15+MAX(J$15:J$100000)) -> Lists!I16:I22 | M15: =$F$11&"!"&M$2&$A16&":"&M$2&($A15+MAX(N$15:N$100000)) -> Lists!M16:M17 | Q15: =$F$11&"!"&Q$2&$A16&":"&Q$2&($A15+MAX(R$15:R$100000)) -> Lists!Q16:Q18 | U15: =$F$11&"!"&U$2&$A16&":"&U$2&($A15+MAX(V$15:V$100000)) -> Lists!U16:U18 | AB15: =$F$11&"!"&AB$2&$A16&":"&AB$2&($A15+MAX(AC$15:AC$100000)) -> Lists!AB16:AB17 | AF15: =$F$11&"!"&AF$2&$A16&":"&AF$2&($A15+MAX(AG$15:AG$100000)) -> Lists!AF16:AF22 | AI15: =$F$11&"!"&AI$2&$A16&":"&AI$2&($A15+MAX(AJ$15:AJ$100000)) -> Lists!AI16:AI17 | AM15: =$F$11&"!"&AM$2&$A16&":"&AM$2&($A15+MAX(AN$15:AN$100000)) -> Lists!AM16:AM18 | AQ15: =$F$11&"!"&AQ$2&$A16&":"&AQ$2&($A15+MAX(AR$15:AR$100000)) -> Lists!AQ16:AQ135 | AU15: =$F$11&"!"&AU$2&$A16&":"&AU$2&($A15+MAX(AV$15:AV$100000)) -> Lists!AU16:AU20 | AY15: =$F$11&"!"&AY$2&$A16&":"&AY$2&($A15+MAX(AZ$15:AZ$100000)) -> Lists!AY16:AY19 | BC15: =$F$11&"!"&BC$2&$A16&":"&BC$2&($A15+MAX(BD$15:BD$100000)) -> Lists!BC16:BC17 | BG15: =$F$11&"!"&BG$2&$A16&":"&BG$2&($A15+MAX(BH$15:BH$100000)) -> Lists!BG16:BG17 | BK15: =$F$11&"!"&BK$2&$A16&":"&BK$2&($A15+MAX(BL$15:BL$100000)) -> Lists!BK16:BK18 | BO15: =$F$11&"!"&BO$2&$A16&":"&BO$2&($A15+MAX(BP$15:BP$100000)) -> Lists!BO16:BO18 | BS15: =$F$11&"!"&BS$2&$A16&":"&BS$2&($A15+MAX(BT$15:BT$100000)) -> Lists!BS16:BS18 | BW15: =$F$11&"!"&BW$2&$A16&":"&BW$2&($A15+MAX(BX$15:BX$100000)) -> Lists!BW16:BW18 | CA15: =$F$11&"!"&CA$2&$A16&":"&CA$2&($A15+MAX(CB$15:CB$100000)) -> Lists!CA16:CA25 | CE15: =$F$11&"!"&CE$2&$A16&":"&CE$2&($A15+MAX(CF$15:CF$100000)) -> Lists!CE16:CE18 | CI15: =$F$11&"!"&CI$2&$A16&":"&CI$2&($A15+MAX(CJ$15:CJ$100000)) -> Lists!CI16:CI17 | CM15: =$F$11&"!"&CM$2&$A16&":"&CM$2&($A15+MAX(CN$15:CN$100000)) -> Lists!CM16:CM19 | CQ15: =$F$11&"!"&CQ$2&$A16&":"&CQ$2&($A15+MAX(CR$15:CR$100000)) -> Lists!CQ16:CQ19 | CU15: =$F$11&"!"&CU$2&$A16&":"&CU$2&($A15+MAX(CV$15:CV$100000)) -> Lists!CU16:CU29
A16: =ROW() -> 16 | I16: день | J16: =MAX(J$15:J15)+1 -> 1 | K16: =IF(OR(I16=0,I16=""),0,IF(COUNTIF(I$15:I$100000,I16)=1,0,1)) -> 0 | M16: да | N16: =MAX(N$15:N15)+1 -> 1 | O16: =IF(OR(M16=0,M16=""),0,IF(COUNTIF(M$15:M$100000,M16)=1,0,1)) -> 0 | Q16: =IF(Periods!$Q$16=$I$16,$I17,IF(OR(Periods!$Q$16=$I$17,Periods!$Q$16=$I$18),$I19,IF(Periods!$Q$16=$I$19,$I20,IF(Periods!$Q$16=$I$20,$I21,IF(Periods!$Q$16=$I$21,$I22,""))))) -> квартал | R16: =IF(OR(Q16="",Q16=0),"",MAX(R$15:R15)+1) -> 1 | S16: =IF(OR(Q16=0,Q16=""),0,IF(COUNTIF(Q$15:Q$100000,Q16)=1,0,1)) -> 0 | U16: расчетный | V16: =MAX(V$15:V15)+1 -> 1 | W16: =IF(OR(U16=0,U16=""),0,IF(COUNTIF(U$15:U$100000,U16)=1,0,1)) -> 0 | AB16: линейная | AC16: =MAX(AC$15:AC15)+1 -> 1 | AD16: =IF(OR(AB16=0,AB16=""),0,IF(COUNTIF(AB$15:AB$100000,AB16)=1,0,1)) -> 0 | AF16: 1 | AG16: =MAX(AG$15:AG15)+1 -> 1 | AH16: =MAX(AH$15:AH15)+1 -> 1 | AI16: =IF(SUMIFS(Mrkting!$A:$A,Mrkting!$K:$K,AH16)=0,"",INDEX(Mrkting!$L:$L,SUMIFS(Mrkting!$A:$A,Mrkting!$K:$K,AH16))) -> Канал привлечения клиентов - 1 | AJ16: =IF(OR(AI16="",AI16=0),"",MAX(AJ$15:AJ15)+1) -> 1 | AK16: =IF(OR(AI16=0,AI16=""),0,IF(COUNTIF(AI$15:AI$100000,AI16)=1,0,1)) -> 0 | AL16: * | AM16: Продукт - 1 | AN16: =MAX(AN$15:AN15)+1 -> 1 | AO16: =IF(OR(AM16=0,AM16=""),0,IF(COUNTIF(AM$15:AM$100000,AM16)=1,0,1)) -> 0 | AP16: =MAX(AP$15:AP15)+1 -> 1 | AQ16: =SUMIFS(Periods!$11:$11,Periods!$2:$2,AP16) -> 2021-07-01 | AR16: =IF(OR(AQ16="",AQ16=0),"",MAX(AR$15:AR15)+1) -> 1 | AS16: =IF(OR(AQ16=0,AQ16=""),0,IF(COUNTIF(AQ$15:AQ$100000,AQ16)=1,0,1)) -> 0 | AU16: начисление | AV16: =MAX(AV$15:AV15)+1 -> 1 | AW16: =IF(OR(AU16=0,AU16=""),0,IF(COUNTIF(AU$15:AU$100000,AU16)=1,0,1)) -> 0 | AY16: =Mrkting!$H$19 -> Поток запусков создания торговых точек (ТТ) | AZ16: =MAX(AZ$15:AZ15)+1 -> 1 | BA16: =IF(OR(AY16=0,AY16=""),0,IF(COUNTIF(AY$15:AY$100000,AY16)=1,0,1)) -> 0 | BC16: =Mrkting!$H$97 -> Общий оборот (GMV) | BD16: =MAX(BD$15:BD15)+1 -> 1 | BE16: =IF(OR(BC16=0,BC16=""),0,IF(COUNTIF(BC$15:BC$100000,BC16)=1,0,1)) -> 0 | BG16: натуральные факторы | BH16: =MAX(BH$15:BH15)+1 -> 1 | BI16: =IF(OR(BG16=0,BG16=""),0,IF(COUNTIF(BG$15:BG$100000,BG16)=1,0,1)) -> 0 | BJ16: * | BK16: информирование об услугах | BL16: =MAX(BL$15:BL15)+1 -> 1 | BM16: =IF(OR(BK16=0,BK16=""),0,IF(COUNTIF(BK$15:BK$100000,BK16)=1,0,1)) -> 0 | BN16: * | BO16: Контроль качества | BP16: =MAX(BP$15:BP15)+1 -> 1 | BQ16: =IF(OR(BO16=0,BO16=""),0,IF(COUNTIF(BO$15:BO$100000,BO16)=1,0,1)) -> 0 | BS16: в последний период всех капзатрат | BT16: =MAX(BT$15:BT15)+1 -> 1 | BU16: =IF(OR(BS16=0,BS16=""),0,IF(COUNTIF(BS$15:BS$100000,BS16)=1,0,1)) -> 0 | BW16: земельный налог | BX16: =MAX(BX$15:BX15)+1 -> 1 | BY16: =IF(OR(BW16=0,BW16=""),0,IF(COUNTIF(BW$15:BW$100000,BW16)=1,0,1)) -> 0 | CA16: Сотрудники маркетинга | CB16: =MAX(CB$15:CB15)+1 -> 1 | CC16: =IF(OR(CA16=0,CA16=""),0,IF(COUNTIF(CA$15:CA$100000,CA16)=1,0,1)) -> 0 | CE16: аванс-доплата | CF16: =MAX(CF$15:CF15)+1 -> 1 | CG16: =IF(OR(CE16=0,CE16=""),0,IF(COUNTIF(CE$15:CE$100000,CE16)=1,0,1)) -> 0 | CI16: нужен офис | CJ16: =MAX(CJ$15:CJ15)+1 -> 1 | CK16: =IF(OR(CI16=0,CI16=""),0,IF(COUNTIF(CI$15:CI$100000,CI16)=1,0,1)) -> 0 | CM16: ОСНО | CN16: =MAX(CN$15:CN15)+1 -> 1 | CO16: =IF(OR(CM16=0,CM16=""),0,IF(COUNTIF(CM$15:CM$100000,CM16)=1,0,1)) -> 0 | CQ16: НДС | CR16: =MAX(CR$15:CR15)+1 -> 1 | CS16: =IF(OR(CQ16=0,CQ16=""),0,IF(COUNTIF(CQ$15:CQ$100000,CQ16)=1,0,1)) -> 0 | CU16: ндс(+) | CV16: =MAX(CV$15:CV15)+1 -> 1 | CW16: =IF(OR(CU16=0,CU16=""),0,IF(COUNTIF(CU$15:CU$100000,CU16)=1,0,1)) -> 0
A17: =ROW() -> 17 | I17: неделя | J17: =MAX(J$15:J16)+1 -> 2 | K17: =IF(OR(I17=0,I17=""),0,IF(COUNTIF(I$15:I$100000,I17)=1,0,1)) -> 0 | M17: нет | N17: =MAX(N$15:N16)+1 -> 2 | O17: =IF(OR(M17=0,M17=""),0,IF(COUNTIF(M$15:M$100000,M17)=1,0,1)) -> 0 | Q17: =IF(Periods!$Q$16=$I$16,$I18,IF(OR(Periods!$Q$16=$I$17,Periods!$Q$16=$I$18),$I20,IF(Periods!$Q$16=$I$19,$I21,IF(Periods!$Q$16=$I$20,$I22,IF(Periods!$Q$16=$I$21,$I23,""))))) -> год текущий | R17: =IF(OR(Q17="",Q17=0),"",MAX(R$15:R16)+1) -> 2 | S17: =IF(OR(Q17=0,Q17=""),0,IF(COUNTIF(Q$15:Q$100000,Q17)=1,0,1)) -> 0 | U17: отчетный | V17: =MAX(V$15:V16)+1 -> 2 | W17: =IF(OR(U17=0,U17=""),0,IF(COUNTIF(U$15:U$100000,U17)=1,0,1)) -> 0 | AB17: геометрическая | AC17: =MAX(AC$15:AC16)+1 -> 2 | AD17: =IF(OR(AB17=0,AB17=""),0,IF(COUNTIF(AB$15:AB$100000,AB17)=1,0,1)) -> 0 | AF17: 7 | AG17: =MAX(AG$15:AG16)+1 -> 2 | AH17: =MAX(AH$15:AH16)+1 -> 2 | AI17: =IF(SUMIFS(Mrkting!$A:$A,Mrkting!$K:$K,AH17)=0,"",INDEX(Mrkting!$L:$L,SUMIFS(Mrkting!$A:$A,Mrkting!$K:$K,AH17))) -> Канал привлечения клиентов - 2 | AJ17: =IF(OR(AI17="",AI17=0),"",MAX(AJ$15:AJ16)+1) -> 2 | AK17: =IF(OR(AI17=0,AI17=""),0,IF(COUNTIF(AI$15:AI$100000,AI17)=1,0,1)) -> 0 | AL17: * | AM17: Продукт - 2 | AN17: =MAX(AN$15:AN16)+1 -> 2 | AO17: =IF(OR(AM17=0,AM17=""),0,IF(COUNTIF(AM$15:AM$100000,AM17)=1,0,1)) -> 0 | AP17: =MAX(AP$15:AP16)+1 -> 2 | AQ17: =SUMIFS(Periods!$11:$11,Periods!$2:$2,AP17) -> 2021-08-01 | AR17: =IF(OR(AQ17="",AQ17=0),"",MAX(AR$15:AR16)+1) -> 2 | AS17: =IF(OR(AQ17=0,AQ17=""),0,IF(COUNTIF(AQ$15:AQ$100000,AQ17)=1,0,1)) -> 0 | AU17: учет | AV17: =MAX(AV$15:AV16)+1 -> 2 | AW17: =IF(OR(AU17=0,AU17=""),0,IF(COUNTIF(AU$15:AU$100000,AU17)=1,0,1)) -> 0 | AY17: =Mrkting!$H$65 -> Трафик | AZ17: =MAX(AZ$15:AZ16)+1 -> 2 | BA17: =IF(OR(AY17=0,AY17=""),0,IF(COUNTIF(AY$15:AY$100000,AY17)=1,0,1)) -> 0 | BC17: =Mrkting!$H$131 -> Общий оборот (GMV) с учетом скидок | BD17: =MAX(BD$15:BD16)+1 -> 2 | BE17: =IF(OR(BC17=0,BC17=""),0,IF(COUNTIF(BC$15:BC$100000,BC17)=1,0,1)) -> 0 | BG17: денежные факторы | BH17: =MAX(BH$15:BH16)+1 -> 2 | BI17: =IF(OR(BG17=0,BG17=""),0,IF(COUNTIF(BG$15:BG$100000,BG17)=1,0,1)) -> 0 | BJ17: * | BK17: информирование о ценах и условиях | BL17: =MAX(BL$15:BL16)+1 -> 2 | BM17: =IF(OR(BK17=0,BK17=""),0,IF(COUNTIF(BK$15:BK$100000,BK17)=1,0,1)) -> 0 | BN17: * | BO17: Складские работы | BP17: =MAX(BP$15:BP16)+1 -> 2 | BQ17: =IF(OR(BO17=0,BO17=""),0,IF(COUNTIF(BO$15:BO$100000,BO17)=1,0,1)) -> 0 | BS17: в последний период данной статьи | BT17: =MAX(BT$15:BT16)+1 -> 2 | BU17: =IF(OR(BS17=0,BS17=""),0,IF(COUNTIF(BS$15:BS$100000,BS17)=1,0,1)) -> 0 | BW17: транспортный налог | BX17: =MAX(BX$15:BX16)+1 -> 2 | BY17: =IF(OR(BW17=0,BW17=""),0,IF(COUNTIF(BW$15:BW$100000,BW17)=1,0,1)) -> 0 | CA17: Продавцы-консультанты | CB17: =MAX(CB$15:CB16)+1 -> 2 | CC17: =IF(OR(CA17=0,CA17=""),0,IF(COUNTIF(CA$15:CA$100000,CA17)=1,0,1)) -> 0 | CE17: аванс-платеж | CF17: =MAX(CF$15:CF16)+1 -> 2 | CG17: =IF(OR(CE17=0,CE17=""),0,IF(COUNTIF(CE$15:CE$100000,CE17)=1,0,1)) -> 0 | CI17: не нужен офис | CJ17: =MAX(CJ$15:CJ16)+1 -> 2 | CK17: =IF(OR(CI17=0,CI17=""),0,IF(COUNTIF(CI$15:CI$100000,CI17)=1,0,1)) -> 0 | CM17: УСН(6%) | CN17: =MAX(CN$15:CN16)+1 -> 2 | CO17: =IF(OR(CM17=0,CM17=""),0,IF(COUNTIF(CM$15:CM$100000,CM17)=1,0,1)) -> 0 | CQ17: Соцсборы | CR17: =MAX(CR$15:CR16)+1 -> 2 | CS17: =IF(OR(CQ17=0,CQ17=""),0,IF(COUNTIF(CQ$15:CQ$100000,CQ17)=1,0,1)) -> 0 | CU17: ндс(-) | CV17: =MAX(CV$15:CV16)+1 -> 2 | CW17: 0
A18: =ROW() -> 18 | I18: декада | J18: =MAX(J$15:J17)+1 -> 3 | K18: 0 | Q18: =IF(Periods!$Q$16=$I$16,$I19,IF(OR(Periods!$Q$16=$I$17,Periods!$Q$16=$I$18),$I21,IF(Periods!$Q$16=$I$19,$I22,IF(Periods!$Q$16=$I$20,$I23,IF(Periods!$Q$16=$I$21,$I24,""))))) -> год календ. | R18: =IF(OR(Q18="",Q18=0),"",MAX(R$15:R17)+1) -> 3 | S18: 0 | U18: технический | V18: =MAX(V$15:V17)+1 -> 3 | W18: =IF(OR(U18=0,U18=""),0,IF(COUNTIF(U$15:U$100000,U18)=1,0,1)) -> 0 | AF18: 10 | AG18: =MAX(AG$15:AG17)+1 -> 3 | AH18: =MAX(AH$15:AH17)+1 -> 3 | AI18: =IF(SUMIFS(Mrkting!$A:$A,Mrkting!$K:$K,AH18)=0,"",INDEX(Mrkting!$L:$L,SUMIFS(Mrkting!$A:$A,Mrkting!$K:$K,AH18))) ->  | AJ18: =IF(OR(AI18="",AI18=0),"",MAX(AJ$15:AJ17)+1) ->  | AK18: 0 | AL18: * | AM18: Продукт - 3 | AN18: =MAX(AN$15:AN17)+1 -> 3 | AO18: =IF(OR(AM18=0,AM18=""),0,IF(COUNTIF(AM$15:AM$100000,AM18)=1,0,1)) -> 0 | AP18: =MAX(AP$15:AP17)+1 -> 3 | AQ18: =SUMIFS(Periods!$11:$11,Periods!$2:$2,AP18) -> 2021-09-01 | AR18: =IF(OR(AQ18="",AQ18=0),"",MAX(AR$15:AR17)+1) -> 3 | AS18: 0 | AU18: оплата | AV18: =MAX(AV$15:AV17)+1 -> 3 | AW18: =IF(OR(AU18=0,AU18=""),0,IF(COUNTIF(AU$15:AU$100000,AU18)=1,0,1)) -> 0 | AY18: =Mrkting!$H$67 -> Конверсия в посетителя | AZ18: =MAX(AZ$15:AZ17)+1 -> 3 | BA18: =IF(OR(AY18=0,AY18=""),0,IF(COUNTIF(AY$15:AY$100000,AY18)=1,0,1)) -> 0 | BJ18: * | BK18: представительская деятельность | BL18: =MAX(BL$15:BL17)+1 -> 3 | BM18: =IF(OR(BK18=0,BK18=""),0,IF(COUNTIF(BK$15:BK$100000,BK18)=1,0,1)) -> 0 | BN18: * | BO18: Транспортные расходы | BP18: =MAX(BP$15:BP17)+1 -> 3 | BQ18: =IF(OR(BO18=0,BO18=""),0,IF(COUNTIF(BO$15:BO$100000,BO18)=1,0,1)) -> 0 | BS18: в каждый период начисления | BT18: =MAX(BT$15:BT17)+1 -> 3 | BU18: =IF(OR(BS18=0,BS18=""),0,IF(COUNTIF(BS$15:BS$100000,BS18)=1,0,1)) -> 0 | BW18: налог на имущество организаций | BX18: =MAX(BX$15:BX17)+1 -> 3 | BY18: =IF(OR(BW18=0,BW18=""),0,IF(COUNTIF(BW$15:BW$100000,BW18)=1,0,1)) -> 0 | CA18: Производственные рабочие | CB18: =MAX(CB$15:CB17)+1 -> 3 | CC18: =IF(OR(CA18=0,CA18=""),0,IF(COUNTIF(CA$15:CA$100000,CA18)=1,0,1)) -> 0 | CE18: ретро-платеж | CF18: =MAX(CF$15:CF17)+1 -> 3 | CG18: =IF(OR(CE18=0,CE18=""),0,IF(COUNTIF(CE$15:CE$100000,CE18)=1,0,1)) -> 0 | CM18: УСН(15%) | CN18: =MAX(CN$15:CN17)+1 -> 3 | CO18: =IF(OR(CM18=0,CM18=""),0,IF(COUNTIF(CM$15:CM$100000,CM18)=1,0,1)) -> 0 | CQ18: Налог на прибыль | CR18: =MAX(CR$15:CR17)+1 -> 3 | CS18: =IF(OR(CQ18=0,CQ18=""),0,IF(COUNTIF(CQ$15:CQ$100000,CQ18)=1,0,1)) -> 0 | CU18: PL(+) | CV18: =MAX(CV$15:CV17)+1 -> 3 | CW18: 0
A19: =ROW() -> 19 | I19: месяц | J19: =MAX(J$15:J18)+1 -> 4 | K19: 0 | Q19: =IF(Periods!$Q$16=$I$16,$I20,IF(OR(Periods!$Q$16=$I$17,Periods!$Q$16=$I$18),$I22,IF(Periods!$Q$16=$I$19,$I23,IF(Periods!$Q$16=$I$20,$I24,IF(Periods!$Q$16=$I$21,$I25,""))))) -> 0 | R19: =IF(OR(Q19="",Q19=0),"",MAX(R$15:R18)+1) ->  | S19: 0 | AF19: 30 | AG19: =MAX(AG$15:AG18)+1 -> 4 | AH19: =MAX(AH$15:AH18)+1 -> 4 | AI19: =IF(SUMIFS(Mrkting!$A:$A,Mrkting!$K:$K,AH19)=0,"",INDEX(Mrkting!$L:$L,SUMIFS(Mrkting!$A:$A,Mrkting!$K:$K,AH19))) ->  | AJ19: =IF(OR(AI19="",AI19=0),"",MAX(AJ$15:AJ18)+1) ->  | AK19: 0 | AP19: =MAX(AP$15:AP18)+1 -> 4 | AQ19: =SUMIFS(Periods!$11:$11,Periods!$2:$2,AP19) -> 2021-10-01 | AR19: =IF(OR(AQ19="",AQ19=0),"",MAX(AR$15:AR18)+1) -> 4 | AS19: 0 | AU19: списание | AV19: =MAX(AV$15:AV18)+1 -> 4 | AW19: =IF(OR(AU19=0,AU19=""),0,IF(COUNTIF(AU$15:AU$100000,AU19)=1,0,1)) -> 0 | AY19: =Mrkting!$H$76 -> Валовый поток посетителей | AZ19: =MAX(AZ$15:AZ18)+1 -> 4 | BA19: =IF(OR(AY19=0,AY19=""),0,IF(COUNTIF(AY$15:AY$100000,AY19)=1,0,1)) -> 0 | BZ19: * | CA19: Генеральный директор | CB19: =MAX(CB$15:CB18)+1 -> 4 | CC19: =IF(OR(CA19=0,CA19=""),0,IF(COUNTIF(CA$15:CA$100000,CA19)=1,0,1)) -> 0 | CM19: ТОСЭР | CN19: =MAX(CN$15:CN18)+1 -> 4 | CO19: =IF(OR(CM19=0,CM19=""),0,IF(COUNTIF(CM$15:CM$100000,CM19)=1,0,1)) -> 0 | CQ19: ТОСЭР | CR19: =MAX(CR$15:CR18)+1 -> 4 | CS19: =IF(OR(CQ19=0,CQ19=""),0,IF(COUNTIF(CQ$15:CQ$100000,CQ19)=1,0,1)) -> 0 | CU19: PL(-) | CV19: =MAX(CV$15:CV18)+1 -> 4 | CW19: 0
A20: =ROW() -> 20 | I20: квартал | J20: =MAX(J$15:J19)+1 -> 5 | K20: 0 | Q20: =IF(Periods!$Q$16=$I$16,$I21,IF(OR(Periods!$Q$16=$I$17,Periods!$Q$16=$I$18),$I23,IF(Periods!$Q$16=$I$19,$I24,IF(Periods!$Q$16=$I$20,$I25,IF(Periods!$Q$16=$I$21,$I26,""))))) -> 0 | R20: =IF(OR(Q20="",Q20=0),"",MAX(R$15:R19)+1) ->  | S20: 0 | AF20: 90 | AG20: =MAX(AG$15:AG19)+1 -> 5 | AH20: =MAX(AH$15:AH19)+1 -> 5 | AI20: =IF(SUMIFS(Mrkting!$A:$A,Mrkting!$K:$K,AH20)=0,"",INDEX(Mrkting!$L:$L,SUMIFS(Mrkting!$A:$A,Mrkting!$K:$K,AH20))) ->  | AJ20: =IF(OR(AI20="",AI20=0),"",MAX(AJ$15:AJ19)+1) ->  | AK20: 0 | AP20: =MAX(AP$15:AP19)+1 -> 5 | AQ20: =SUMIFS(Periods!$11:$11,Periods!$2:$2,AP20) -> 2021-11-01 | AR20: =IF(OR(AQ20="",AQ20=0),"",MAX(AR$15:AR19)+1) -> 5 | AS20: 0 | AU20: калькуляция | AV20: =MAX(AV$15:AV19)+1 -> 5 | AW20: =IF(OR(AU20=0,AU20=""),0,IF(COUNTIF(AU$15:AU$100000,AU20)=1,0,1)) -> 0 | BZ20: * | CA20: Операционный директор | CB20: =MAX(CB$15:CB19)+1 -> 5 | CC20: 0 | CU20: PL | CV20: =MAX(CV$15:CV19)+1 -> 5 | CW20: 0
A21: =ROW() -> 21 | I21: год текущий | J21: =MAX(J$15:J20)+1 -> 6 | K21: 0 | Q21: =IF(Periods!$Q$16=$I$16,$I22,IF(OR(Periods!$Q$16=$I$17,Periods!$Q$16=$I$18),$I24,IF(Periods!$Q$16=$I$19,$I25,IF(Periods!$Q$16=$I$20,$I26,IF(Periods!$Q$16=$I$21,$I27,""))))) -> 0 | R21: =IF(OR(Q21="",Q21=0),"",MAX(R$15:R20)+1) ->  | S21: 0 | AF21: 360 | AG21: =MAX(AG$15:AG20)+1 -> 6 | AH21: =MAX(AH$15:AH20)+1 -> 6 | AI21: =IF(SUMIFS(Mrkting!$A:$A,Mrkting!$K:$K,AH21)=0,"",INDEX(Mrkting!$L:$L,SUMIFS(Mrkting!$A:$A,Mrkting!$K:$K,AH21))) ->  | AJ21: =IF(OR(AI21="",AI21=0),"",MAX(AJ$15:AJ20)+1) ->  | AK21: 0 | AP21: =MAX(AP$15:AP20)+1 -> 6 | AQ21: =SUMIFS(Periods!$11:$11,Periods!$2:$2,AP21) -> 2021-12-01 | AR21: =IF(OR(AQ21="",AQ21=0),"",MAX(AR$15:AR20)+1) -> 6 | AS21: 0 | BZ21: * | CA21: Главный бухгалтер | CB21: =MAX(CB$15:CB20)+1 -> 6 | CC21: 0 | CU21: CF(+) | CV21: =MAX(CV$15:CV20)+1 -> 6 | CW21: 0
A22: =ROW() -> 22 | I22: год календ. | J22: =MAX(J$15:J21)+1 -> 7 | K22: 0 | Q22: =IF(Periods!$Q$16=$I$16,$I23,IF(OR(Periods!$Q$16=$I$17,Periods!$Q$16=$I$18),$I25,IF(Periods!$Q$16=$I$19,$I26,IF(Periods!$Q$16=$I$20,$I27,IF(Periods!$Q$16=$I$21,$I28,""))))) -> 0 | R22: =IF(OR(Q22="",Q22=0),"",MAX(R$15:R21)+1) ->  | S22: 0 | AF22: 360 | AG22: =MAX(AG$15:AG21)+1 -> 7 | AH22: =MAX(AH$15:AH21)+1 -> 7 | AI22: =IF(SUMIFS(Mrkting!$A:$A,Mrkting!$K:$K,AH22)=0,"",INDEX(Mrkting!$L:$L,SUMIFS(Mrkting!$A:$A,Mrkting!$K:$K,AH22))) ->  | AJ22: =IF(OR(AI22="",AI22=0),"",MAX(AJ$15:AJ21)+1) ->  | AK22: 0 | AP22: =MAX(AP$15:AP21)+1 -> 7 | AQ22: =SUMIFS(Periods!$11:$11,Periods!$2:$2,AP22) -> 2022-01-01 | AR22: =IF(OR(AQ22="",AQ22=0),"",MAX(AR$15:AR21)+1) -> 7 | AS22: 0 | BZ22: * | CA22: ИТ-специалисты | CB22: =MAX(CB$15:CB21)+1 -> 7 | CC22: 0 | CU22: CF(-) | CV22: =MAX(CV$15:CV21)+1 -> 7 | CW22: 0
A23: =ROW() -> 23 | AH23: =MAX(AH$15:AH22)+1 -> 8 | AI23: =IF(SUMIFS(Mrkting!$A:$A,Mrkting!$K:$K,AH23)=0,"",INDEX(Mrkting!$L:$L,SUMIFS(Mrkting!$A:$A,Mrkting!$K:$K,AH23))) ->  | AJ23: =IF(OR(AI23="",AI23=0),"",MAX(AJ$15:AJ22)+1) ->  | AK23: =IF(OR(AI23=0,AI23=""),0,IF(COUNTIF(AI$15:AI$100000,AI23)=1,0,1)) -> 0 | AP23: =MAX(AP$15:AP22)+1 -> 8 | AQ23: =SUMIFS(Periods!$11:$11,Periods!$2:$2,AP23) -> 2022-02-01 | AR23: =IF(OR(AQ23="",AQ23=0),"",MAX(AR$15:AR22)+1) -> 8 | AS23: =IF(OR(AQ23=0,AQ23=""),0,IF(COUNTIF(AQ$15:AQ$100000,AQ23)=1,0,1)) -> 0 | BZ23: * | CA23: Финансовые менеджеры | CB23: =MAX(CB$15:CB22)+1 -> 8 | CC23: 0 | CU23: CF | CV23: =MAX(CV$15:CV22)+1 -> 8 | CW23: 0
A24: =ROW() -> 24 | AH24: =MAX(AH$15:AH23)+1 -> 9 | AI24: =IF(SUMIFS(Mrkting!$A:$A,Mrkting!$K:$K,AH24)=0,"",INDEX(Mrkting!$L:$L,SUMIFS(Mrkting!$A:$A,Mrkting!$K:$K,AH24))) ->  | AJ24: =IF(OR(AI24="",AI24=0),"",MAX(AJ$15:AJ23)+1) ->  | AK24: 0 | AP24: =MAX(AP$15:AP23)+1 -> 9 | AQ24: =SUMIFS(Periods!$11:$11,Periods!$2:$2,AP24) -> 2022-03-01 | AR24: =IF(OR(AQ24="",AQ24=0),"",MAX(AR$15:AR23)+1) -> 9 | AS24: 0 | BZ24: * | CA24: Бухгалтера | CB24: =MAX(CB$15:CB23)+1 -> 9 | CC24: 0 | CU24: BS | CV24: =MAX(CV$15:CV23)+1 -> 9 | CW24: 0
A25: =ROW() -> 25 | AH25: =MAX(AH$15:AH24)+1 -> 10 | AI25: =IF(SUMIFS(Mrkting!$A:$A,Mrkting!$K:$K,AH25)=0,"",INDEX(Mrkting!$L:$L,SUMIFS(Mrkting!$A:$A,Mrkting!$K:$K,AH25))) ->  | AJ25: =IF(OR(AI25="",AI25=0),"",MAX(AJ$15:AJ24)+1) ->  | AK25: 0 | AP25: =MAX(AP$15:AP24)+1 -> 10 | AQ25: =SUMIFS(Periods!$11:$11,Periods!$2:$2,AP25) -> 2022-04-01 | AR25: =IF(OR(AQ25="",AQ25=0),"",MAX(AR$15:AR24)+1) -> 10 | AS25: 0 | BZ25: * | CA25: Прочие сотрудники | CB25: =MAX(CB$15:CB24)+1 -> 10 | CC25: 0 | CU25: BS(+) | CV25: =MAX(CV$15:CV24)+1 -> 10 | CW25: 0
A26: =ROW() -> 26 | AH26: =MAX(AH$15:AH25)+1 -> 11 | AI26: =IF(SUMIFS(Mrkting!$A:$A,Mrkting!$K:$K,AH26)=0,"",INDEX(Mrkting!$L:$L,SUMIFS(Mrkting!$A:$A,Mrkting!$K:$K,AH26))) ->  | AJ26: =IF(OR(AI26="",AI26=0),"",MAX(AJ$15:AJ25)+1) ->  | AK26: 0 | AP26: =MAX(AP$15:AP25)+1 -> 11 | AQ26: =SUMIFS(Periods!$11:$11,Periods!$2:$2,AP26) -> 2022-05-01 | AR26: =IF(OR(AQ26="",AQ26=0),"",MAX(AR$15:AR25)+1) -> 11 | AS26: 0 | CU26: BS(-) | CV26: =MAX(CV$15:CV25)+1 -> 11 | CW26: 0
A27: =ROW() -> 27 | AH27: =MAX(AH$15:AH26)+1 -> 12 | AI27: =IF(SUMIFS(Mrkting!$A:$A,Mrkting!$K:$K,AH27)=0,"",INDEX(Mrkting!$L:$L,SUMIFS(Mrkting!$A:$A,Mrkting!$K:$K,AH27))) ->  | AJ27: =IF(OR(AI27="",AI27=0),"",MAX(AJ$15:AJ26)+1) ->  | AK27: 0 | AP27: =MAX(AP$15:AP26)+1 -> 12 | AQ27: =SUMIFS(Periods!$11:$11,Periods!$2:$2,AP27) -> 2022-06-01 | AR27: =IF(OR(AQ27="",AQ27=0),"",MAX(AR$15:AR26)+1) -> 12 | AS27: 0 | CU27: SF(+) | CV27: =MAX(CV$15:CV26)+1 -> 12 | CW27: 0
A28: =ROW() -> 28 | AH28: =MAX(AH$15:AH27)+1 -> 13 | AI28: =IF(SUMIFS(Mrkting!$A:$A,Mrkting!$K:$K,AH28)=0,"",INDEX(Mrkting!$L:$L,SUMIFS(Mrkting!$A:$A,Mrkting!$K:$K,AH28))) ->  | AJ28: =IF(OR(AI28="",AI28=0),"",MAX(AJ$15:AJ27)+1) ->  | AK28: 0 | AP28: =MAX(AP$15:AP27)+1 -> 13 | AQ28: =SUMIFS(Periods!$11:$11,Periods!$2:$2,AP28) -> 2022-07-01 | AR28: =IF(OR(AQ28="",AQ28=0),"",MAX(AR$15:AR27)+1) -> 13 | AS28: 0 | CU28: SF(-) | CV28: =MAX(CV$15:CV27)+1 -> 13 | CW28: 0
A29: =ROW() -> 29 | AH29: =MAX(AH$15:AH28)+1 -> 14 | AI29: =IF(SUMIFS(Mrkting!$A:$A,Mrkting!$K:$K,AH29)=0,"",INDEX(Mrkting!$L:$L,SUMIFS(Mrkting!$A:$A,Mrkting!$K:$K,AH29))) ->  | AJ29: =IF(OR(AI29="",AI29=0),"",MAX(AJ$15:AJ28)+1) ->  | AK29: =IF(OR(AI29=0,AI29=""),0,IF(COUNTIF(AI$15:AI$100000,AI29)=1,0,1)) -> 0 | AP29: =MAX(AP$15:AP28)+1 -> 14 | AQ29: =SUMIFS(Periods!$11:$11,Periods!$2:$2,AP29) -> 2022-08-01 | AR29: =IF(OR(AQ29="",AQ29=0),"",MAX(AR$15:AR28)+1) -> 14 | AS29: 0 | CU29: SF | CV29: =MAX(CV$15:CV28)+1 -> 14 | CW29: 0
A30: =ROW() -> 30 | AH30: =MAX(AH$15:AH29)+1 -> 15 | AI30: =IF(SUMIFS(Mrkting!$A:$A,Mrkting!$K:$K,AH30)=0,"",INDEX(Mrkting!$L:$L,SUMIFS(Mrkting!$A:$A,Mrkting!$K:$K,AH30))) ->  | AJ30: =IF(OR(AI30="",AI30=0),"",MAX(AJ$15:AJ29)+1) ->  | AK30: =IF(OR(AI30=0,AI30=""),0,IF(COUNTIF(AI$15:AI$100000,AI30)=1,0,1)) -> 0 | AP30: =MAX(AP$15:AP29)+1 -> 15 | AQ30: =SUMIFS(Periods!$11:$11,Periods!$2:$2,AP30) -> 2022-09-01 | AR30: =IF(OR(AQ30="",AQ30=0),"",MAX(AR$15:AR29)+1) -> 15 | AS30: 0
A31: =ROW() -> 31 | AP31: =MAX(AP$15:AP30)+1 -> 16 | AQ31: =SUMIFS(Periods!$11:$11,Periods!$2:$2,AP31) -> 2022-10-01 | AR31: =IF(OR(AQ31="",AQ31=0),"",MAX(AR$15:AR30)+1) -> 16 | AS31: =IF(OR(AQ31=0,AQ31=""),0,IF(COUNTIF(AQ$15:AQ$100000,AQ31)=1,0,1)) -> 0
A32: =ROW() -> 32 | AP32: =MAX(AP$15:AP31)+1 -> 17 | AQ32: =SUMIFS(Periods!$11:$11,Periods!$2:$2,AP32) -> 2022-11-01 | AR32: =IF(OR(AQ32="",AQ32=0),"",MAX(AR$15:AR31)+1) -> 17 | AS32: 0
A33: =ROW() -> 33 | AP33: =MAX(AP$15:AP32)+1 -> 18 | AQ33: =SUMIFS(Periods!$11:$11,Periods!$2:$2,AP33) -> 2022-12-01 | AR33: =IF(OR(AQ33="",AQ33=0),"",MAX(AR$15:AR32)+1) -> 18 | AS33: 0
A34: =ROW() -> 34 | AP34: =MAX(AP$15:AP33)+1 -> 19 | AQ34: =SUMIFS(Periods!$11:$11,Periods!$2:$2,AP34) -> 2023-01-01 | AR34: =IF(OR(AQ34="",AQ34=0),"",MAX(AR$15:AR33)+1) -> 19 | AS34: 0
A35: =ROW() -> 35 | AP35: =MAX(AP$15:AP34)+1 -> 20 | AQ35: =SUMIFS(Periods!$11:$11,Periods!$2:$2,AP35) -> 2023-02-01 | AR35: =IF(OR(AQ35="",AQ35=0),"",MAX(AR$15:AR34)+1) -> 20 | AS35: 0
A36: =ROW() -> 36 | AP36: =MAX(AP$15:AP35)+1 -> 21 | AQ36: =SUMIFS(Periods!$11:$11,Periods!$2:$2,AP36) -> 2023-03-01 | AR36: =IF(OR(AQ36="",AQ36=0),"",MAX(AR$15:AR35)+1) -> 21 | AS36: 0
A37: =ROW() -> 37 | AP37: =MAX(AP$15:AP36)+1 -> 22 | AQ37: =SUMIFS(Periods!$11:$11,Periods!$2:$2,AP37) -> 2023-04-01 | AR37: =IF(OR(AQ37="",AQ37=0),"",MAX(AR$15:AR36)+1) -> 22 | AS37: 0
A38: =ROW() -> 38 | AP38: =MAX(AP$15:AP37)+1 -> 23 | AQ38: =SUMIFS(Periods!$11:$11,Periods!$2:$2,AP38) -> 2023-05-01 | AR38: =IF(OR(AQ38="",AQ38=0),"",MAX(AR$15:AR37)+1) -> 23 | AS38: 0
A39: =ROW() -> 39 | AP39: =MAX(AP$15:AP38)+1 -> 24 | AQ39: =SUMIFS(Periods!$11:$11,Periods!$2:$2,AP39) -> 2023-06-01 | AR39: =IF(OR(AQ39="",AQ39=0),"",MAX(AR$15:AR38)+1) -> 24 | AS39: 0
A40: =ROW() -> 40 | AP40: =MAX(AP$15:AP39)+1 -> 25 | AQ40: =SUMIFS(Periods!$11:$11,Periods!$2:$2,AP40) -> 2023-07-01 | AR40: =IF(OR(AQ40="",AQ40=0),"",MAX(AR$15:AR39)+1) -> 25 | AS40: 0
A41: =ROW() -> 41 | AP41: =MAX(AP$15:AP40)+1 -> 26 | AQ41: =SUMIFS(Periods!$11:$11,Periods!$2:$2,AP41) -> 2023-08-01 | AR41: =IF(OR(AQ41="",AQ41=0),"",MAX(AR$15:AR40)+1) -> 26 | AS41: 0
A42: =ROW() -> 42 | AP42: =MAX(AP$15:AP41)+1 -> 27 | AQ42: =SUMIFS(Periods!$11:$11,Periods!$2:$2,AP42) -> 2023-09-01 | AR42: =IF(OR(AQ42="",AQ42=0),"",MAX(AR$15:AR41)+1) -> 27 | AS42: 0
A43: =ROW() -> 43 | I43: разработка финмоделей: https://mngmnt.ru/ | AP43: =MAX(AP$15:AP42)+1 -> 28 | AQ43: =SUMIFS(Periods!$11:$11,Periods!$2:$2,AP43) -> 2023-10-01 | AR43: =IF(OR(AQ43="",AQ43=0),"",MAX(AR$15:AR42)+1) -> 28 | AS43: 0
A44: =ROW() -> 44 | AP44: =MAX(AP$15:AP43)+1 -> 29 | AQ44: =SUMIFS(Periods!$11:$11,Periods!$2:$2,AP44) -> 2023-11-01 | AR44: =IF(OR(AQ44="",AQ44=0),"",MAX(AR$15:AR43)+1) -> 29 | AS44: 0
A45: =ROW() -> 45 | AP45: =MAX(AP$15:AP44)+1 -> 30 | AQ45: =SUMIFS(Periods!$11:$11,Periods!$2:$2,AP45) -> 2023-12-01 | AR45: =IF(OR(AQ45="",AQ45=0),"",MAX(AR$15:AR44)+1) -> 30 | AS45: 0
A46: =ROW() -> 46 | AP46: =MAX(AP$15:AP45)+1 -> 31 | AQ46: =SUMIFS(Periods!$11:$11,Periods!$2:$2,AP46) -> 2024-01-01 | AR46: =IF(OR(AQ46="",AQ46=0),"",MAX(AR$15:AR45)+1) -> 31 | AS46: 0
A47: =ROW() -> 47 | AP47: =MAX(AP$15:AP46)+1 -> 32 | AQ47: =SUMIFS(Periods!$11:$11,Periods!$2:$2,AP47) -> 2024-02-01 | AR47: =IF(OR(AQ47="",AQ47=0),"",MAX(AR$15:AR46)+1) -> 32 | AS47: 0
A48: =ROW() -> 48 | AP48: =MAX(AP$15:AP47)+1 -> 33 | AQ48: =SUMIFS(Periods!$11:$11,Periods!$2:$2,AP48) -> 2024-03-01 | AR48: =IF(OR(AQ48="",AQ48=0),"",MAX(AR$15:AR47)+1) -> 33 | AS48: 0
A49: =ROW() -> 49 | AP49: =MAX(AP$15:AP48)+1 -> 34 | AQ49: =SUMIFS(Periods!$11:$11,Periods!$2:$2,AP49) -> 2024-04-01 | AR49: =IF(OR(AQ49="",AQ49=0),"",MAX(AR$15:AR48)+1) -> 34 | AS49: 0
A50: =ROW() -> 50 | AP50: =MAX(AP$15:AP49)+1 -> 35 | AQ50: =SUMIFS(Periods!$11:$11,Periods!$2:$2,AP50) -> 2024-05-01 | AR50: =IF(OR(AQ50="",AQ50=0),"",MAX(AR$15:AR49)+1) -> 35 | AS50: 0
A51: =ROW() -> 51 | AP51: =MAX(AP$15:AP50)+1 -> 36 | AQ51: =SUMIFS(Periods!$11:$11,Periods!$2:$2,AP51) -> 2024-06-01 | AR51: =IF(OR(AQ51="",AQ51=0),"",MAX(AR$15:AR50)+1) -> 36 | AS51: 0
A52: =ROW() -> 52 | AP52: =MAX(AP$15:AP51)+1 -> 37 | AQ52: =SUMIFS(Periods!$11:$11,Periods!$2:$2,AP52) -> 2024-07-01 | AR52: =IF(OR(AQ52="",AQ52=0),"",MAX(AR$15:AR51)+1) -> 37 | AS52: 0
A53: =ROW() -> 53 | AP53: =MAX(AP$15:AP52)+1 -> 38 | AQ53: =SUMIFS(Periods!$11:$11,Periods!$2:$2,AP53) -> 2024-08-01 | AR53: =IF(OR(AQ53="",AQ53=0),"",MAX(AR$15:AR52)+1) -> 38 | AS53: 0
A54: =ROW() -> 54 | AP54: =MAX(AP$15:AP53)+1 -> 39 | AQ54: =SUMIFS(Periods!$11:$11,Periods!$2:$2,AP54) -> 2024-09-01 | AR54: =IF(OR(AQ54="",AQ54=0),"",MAX(AR$15:AR53)+1) -> 39 | AS54: 0
A55: =ROW() -> 55 | AP55: =MAX(AP$15:AP54)+1 -> 40 | AQ55: =SUMIFS(Periods!$11:$11,Periods!$2:$2,AP55) -> 2024-10-01 | AR55: =IF(OR(AQ55="",AQ55=0),"",MAX(AR$15:AR54)+1) -> 40 | AS55: 0
A56: =ROW() -> 56 | AP56: =MAX(AP$15:AP55)+1 -> 41 | AQ56: =SUMIFS(Periods!$11:$11,Periods!$2:$2,AP56) -> 2024-11-01 | AR56: =IF(OR(AQ56="",AQ56=0),"",MAX(AR$15:AR55)+1) -> 41 | AS56: 0
A57: =ROW() -> 57 | AP57: =MAX(AP$15:AP56)+1 -> 42 | AQ57: =SUMIFS(Periods!$11:$11,Periods!$2:$2,AP57) -> 2024-12-01 | AR57: =IF(OR(AQ57="",AQ57=0),"",MAX(AR$15:AR56)+1) -> 42 | AS57: 0
A58: =ROW() -> 58 | AP58: =MAX(AP$15:AP57)+1 -> 43 | AQ58: =SUMIFS(Periods!$11:$11,Periods!$2:$2,AP58) -> 2025-01-01 | AR58: =IF(OR(AQ58="",AQ58=0),"",MAX(AR$15:AR57)+1) -> 43 | AS58: 0
A59: =ROW() -> 59 | AP59: =MAX(AP$15:AP58)+1 -> 44 | AQ59: =SUMIFS(Periods!$11:$11,Periods!$2:$2,AP59) -> 2025-02-01 | AR59: =IF(OR(AQ59="",AQ59=0),"",MAX(AR$15:AR58)+1) -> 44 | AS59: 0
A60: =ROW() -> 60 | AP60: =MAX(AP$15:AP59)+1 -> 45 | AQ60: =SUMIFS(Periods!$11:$11,Periods!$2:$2,AP60) -> 2025-03-01 | AR60: =IF(OR(AQ60="",AQ60=0),"",MAX(AR$15:AR59)+1) -> 45 | AS60: 0
A61: =ROW() -> 61 | AP61: =MAX(AP$15:AP60)+1 -> 46 | AQ61: =SUMIFS(Periods!$11:$11,Periods!$2:$2,AP61) -> 2025-04-01 | AR61: =IF(OR(AQ61="",AQ61=0),"",MAX(AR$15:AR60)+1) -> 46 | AS61: 0
A62: =ROW() -> 62 | AP62: =MAX(AP$15:AP61)+1 -> 47 | AQ62: =SUMIFS(Periods!$11:$11,Periods!$2:$2,AP62) -> 2025-05-01 | AR62: =IF(OR(AQ62="",AQ62=0),"",MAX(AR$15:AR61)+1) -> 47 | AS62: 0
A63: =ROW() -> 63 | AP63: =MAX(AP$15:AP62)+1 -> 48 | AQ63: =SUMIFS(Periods!$11:$11,Periods!$2:$2,AP63) -> 2025-06-01 | AR63: =IF(OR(AQ63="",AQ63=0),"",MAX(AR$15:AR62)+1) -> 48 | AS63: 0
A64: =ROW() -> 64 | AP64: =MAX(AP$15:AP63)+1 -> 49 | AQ64: =SUMIFS(Periods!$11:$11,Periods!$2:$2,AP64) -> 2025-07-01 | AR64: =IF(OR(AQ64="",AQ64=0),"",MAX(AR$15:AR63)+1) -> 49 | AS64: 0
A65: =ROW() -> 65 | AP65: =MAX(AP$15:AP64)+1 -> 50 | AQ65: =SUMIFS(Periods!$11:$11,Periods!$2:$2,AP65) -> 2025-08-01 | AR65: =IF(OR(AQ65="",AQ65=0),"",MAX(AR$15:AR64)+1) -> 50 | AS65: 0
A66: =ROW() -> 66 | AP66: =MAX(AP$15:AP65)+1 -> 51 | AQ66: =SUMIFS(Periods!$11:$11,Periods!$2:$2,AP66) -> 2025-09-01 | AR66: =IF(OR(AQ66="",AQ66=0),"",MAX(AR$15:AR65)+1) -> 51 | AS66: 0
A67: =ROW() -> 67 | AP67: =MAX(AP$15:AP66)+1 -> 52 | AQ67: =SUMIFS(Periods!$11:$11,Periods!$2:$2,AP67) -> 2025-10-01 | AR67: =IF(OR(AQ67="",AQ67=0),"",MAX(AR$15:AR66)+1) -> 52 | AS67: 0
A68: =ROW() -> 68 | AP68: =MAX(AP$15:AP67)+1 -> 53 | AQ68: =SUMIFS(Periods!$11:$11,Periods!$2:$2,AP68) -> 2025-11-01 | AR68: =IF(OR(AQ68="",AQ68=0),"",MAX(AR$15:AR67)+1) -> 53 | AS68: 0
A69: =ROW() -> 69 | AP69: =MAX(AP$15:AP68)+1 -> 54 | AQ69: =SUMIFS(Periods!$11:$11,Periods!$2:$2,AP69) -> 2025-12-01 | AR69: =IF(OR(AQ69="",AQ69=0),"",MAX(AR$15:AR68)+1) -> 54 | AS69: 0
A70: =ROW() -> 70 | AP70: =MAX(AP$15:AP69)+1 -> 55 | AQ70: =SUMIFS(Periods!$11:$11,Periods!$2:$2,AP70) -> 2026-01-01 | AR70: =IF(OR(AQ70="",AQ70=0),"",MAX(AR$15:AR69)+1) -> 55 | AS70: 0
AP71: =MAX(AP$15:AP70)+1 -> 56 | AQ71: =SUMIFS(Periods!$11:$11,Periods!$2:$2,AP71) -> 2026-02-01 | AR71: =IF(OR(AQ71="",AQ71=0),"",MAX(AR$15:AR70)+1) -> 56 | AS71: 0
AP72: =MAX(AP$15:AP71)+1 -> 57 | AQ72: =SUMIFS(Periods!$11:$11,Periods!$2:$2,AP72) -> 2026-03-01 | AR72: =IF(OR(AQ72="",AQ72=0),"",MAX(AR$15:AR71)+1) -> 57 | AS72: 0
AP73: =MAX(AP$15:AP72)+1 -> 58 | AQ73: =SUMIFS(Periods!$11:$11,Periods!$2:$2,AP73) -> 2026-04-01 | AR73: =IF(OR(AQ73="",AQ73=0),"",MAX(AR$15:AR72)+1) -> 58 | AS73: 0
AP74: =MAX(AP$15:AP73)+1 -> 59 | AQ74: =SUMIFS(Periods!$11:$11,Periods!$2:$2,AP74) -> 2026-05-01 | AR74: =IF(OR(AQ74="",AQ74=0),"",MAX(AR$15:AR73)+1) -> 59 | AS74: 0
AP75: =MAX(AP$15:AP74)+1 -> 60 | AQ75: =SUMIFS(Periods!$11:$11,Periods!$2:$2,AP75) -> 2026-06-01 | AR75: =IF(OR(AQ75="",AQ75=0),"",MAX(AR$15:AR74)+1) -> 60 | AS75: 0
AP76: =MAX(AP$15:AP75)+1 -> 61 | AQ76: =SUMIFS(Periods!$11:$11,Periods!$2:$2,AP76) -> 2026-07-01 | AR76: =IF(OR(AQ76="",AQ76=0),"",MAX(AR$15:AR75)+1) -> 61 | AS76: 0
AP77: =MAX(AP$15:AP76)+1 -> 62 | AQ77: =SUMIFS(Periods!$11:$11,Periods!$2:$2,AP77) -> 2026-08-01 | AR77: =IF(OR(AQ77="",AQ77=0),"",MAX(AR$15:AR76)+1) -> 62 | AS77: 0
AP78: =MAX(AP$15:AP77)+1 -> 63 | AQ78: =SUMIFS(Periods!$11:$11,Periods!$2:$2,AP78) -> 2026-09-01 | AR78: =IF(OR(AQ78="",AQ78=0),"",MAX(AR$15:AR77)+1) -> 63 | AS78: 0
AP79: =MAX(AP$15:AP78)+1 -> 64 | AQ79: =SUMIFS(Periods!$11:$11,Periods!$2:$2,AP79) -> 2026-10-01 | AR79: =IF(OR(AQ79="",AQ79=0),"",MAX(AR$15:AR78)+1) -> 64 | AS79: 0
AP80: =MAX(AP$15:AP79)+1 -> 65 | AQ80: =SUMIFS(Periods!$11:$11,Periods!$2:$2,AP80) -> 2026-11-01 | AR80: =IF(OR(AQ80="",AQ80=0),"",MAX(AR$15:AR79)+1) -> 65 | AS80: 0
AP81: =MAX(AP$15:AP80)+1 -> 66 | AQ81: =SUMIFS(Periods!$11:$11,Periods!$2:$2,AP81) -> 2026-12-01 | AR81: =IF(OR(AQ81="",AQ81=0),"",MAX(AR$15:AR80)+1) -> 66 | AS81: 0
AP82: =MAX(AP$15:AP81)+1 -> 67 | AQ82: =SUMIFS(Periods!$11:$11,Periods!$2:$2,AP82) -> 2027-01-01 | AR82: =IF(OR(AQ82="",AQ82=0),"",MAX(AR$15:AR81)+1) -> 67 | AS82: 0
AP83: =MAX(AP$15:AP82)+1 -> 68 | AQ83: =SUMIFS(Periods!$11:$11,Periods!$2:$2,AP83) -> 2027-02-01 | AR83: =IF(OR(AQ83="",AQ83=0),"",MAX(AR$15:AR82)+1) -> 68 | AS83: 0
AP84: =MAX(AP$15:AP83)+1 -> 69 | AQ84: =SUMIFS(Periods!$11:$11,Periods!$2:$2,AP84) -> 2027-03-01 | AR84: =IF(OR(AQ84="",AQ84=0),"",MAX(AR$15:AR83)+1) -> 69 | AS84: 0
AP85: =MAX(AP$15:AP84)+1 -> 70 | AQ85: =SUMIFS(Periods!$11:$11,Periods!$2:$2,AP85) -> 2027-04-01 | AR85: =IF(OR(AQ85="",AQ85=0),"",MAX(AR$15:AR84)+1) -> 70 | AS85: 0
AP86: =MAX(AP$15:AP85)+1 -> 71 | AQ86: =SUMIFS(Periods!$11:$11,Periods!$2:$2,AP86) -> 2027-05-01 | AR86: =IF(OR(AQ86="",AQ86=0),"",MAX(AR$15:AR85)+1) -> 71 | AS86: 0
AP87: =MAX(AP$15:AP86)+1 -> 72 | AQ87: =SUMIFS(Periods!$11:$11,Periods!$2:$2,AP87) -> 2027-06-01 | AR87: =IF(OR(AQ87="",AQ87=0),"",MAX(AR$15:AR86)+1) -> 72 | AS87: 0
AP88: =MAX(AP$15:AP87)+1 -> 73 | AQ88: =SUMIFS(Periods!$11:$11,Periods!$2:$2,AP88) -> 2027-07-01 | AR88: =IF(OR(AQ88="",AQ88=0),"",MAX(AR$15:AR87)+1) -> 73 | AS88: 0
AP89: =MAX(AP$15:AP88)+1 -> 74 | AQ89: =SUMIFS(Periods!$11:$11,Periods!$2:$2,AP89) -> 2027-08-01 | AR89: =IF(OR(AQ89="",AQ89=0),"",MAX(AR$15:AR88)+1) -> 74 | AS89: 0
AP90: =MAX(AP$15:AP89)+1 -> 75 | AQ90: =SUMIFS(Periods!$11:$11,Periods!$2:$2,AP90) -> 2027-09-01 | AR90: =IF(OR(AQ90="",AQ90=0),"",MAX(AR$15:AR89)+1) -> 75 | AS90: 0
AP91: =MAX(AP$15:AP90)+1 -> 76 | AQ91: =SUMIFS(Periods!$11:$11,Periods!$2:$2,AP91) -> 2027-10-01 | AR91: =IF(OR(AQ91="",AQ91=0),"",MAX(AR$15:AR90)+1) -> 76 | AS91: 0
AP92: =MAX(AP$15:AP91)+1 -> 77 | AQ92: =SUMIFS(Periods!$11:$11,Periods!$2:$2,AP92) -> 2027-11-01 | AR92: =IF(OR(AQ92="",AQ92=0),"",MAX(AR$15:AR91)+1) -> 77 | AS92: 0
AP93: =MAX(AP$15:AP92)+1 -> 78 | AQ93: =SUMIFS(Periods!$11:$11,Periods!$2:$2,AP93) -> 2027-12-01 | AR93: =IF(OR(AQ93="",AQ93=0),"",MAX(AR$15:AR92)+1) -> 78 | AS93: 0
AP94: =MAX(AP$15:AP93)+1 -> 79 | AQ94: =SUMIFS(Periods!$11:$11,Periods!$2:$2,AP94) -> 2028-01-01 | AR94: =IF(OR(AQ94="",AQ94=0),"",MAX(AR$15:AR93)+1) -> 79 | AS94: 0
AP95: =MAX(AP$15:AP94)+1 -> 80 | AQ95: =SUMIFS(Periods!$11:$11,Periods!$2:$2,AP95) -> 2028-02-01 | AR95: =IF(OR(AQ95="",AQ95=0),"",MAX(AR$15:AR94)+1) -> 80 | AS95: =IF(OR(AQ95=0,AQ95=""),0,IF(COUNTIF(AQ$15:AQ$100000,AQ95)=1,0,1)) -> 0
AP96: =MAX(AP$15:AP95)+1 -> 81 | AQ96: =SUMIFS(Periods!$11:$11,Periods!$2:$2,AP96) -> 2028-03-01 | AR96: =IF(OR(AQ96="",AQ96=0),"",MAX(AR$15:AR95)+1) -> 81 | AS96: 0
AP97: =MAX(AP$15:AP96)+1 -> 82 | AQ97: =SUMIFS(Periods!$11:$11,Periods!$2:$2,AP97) -> 2028-04-01 | AR97: =IF(OR(AQ97="",AQ97=0),"",MAX(AR$15:AR96)+1) -> 82 | AS97: 0
AP98: =MAX(AP$15:AP97)+1 -> 83 | AQ98: =SUMIFS(Periods!$11:$11,Periods!$2:$2,AP98) -> 2028-05-01 | AR98: =IF(OR(AQ98="",AQ98=0),"",MAX(AR$15:AR97)+1) -> 83 | AS98: 0
AP99: =MAX(AP$15:AP98)+1 -> 84 | AQ99: =SUMIFS(Periods!$11:$11,Periods!$2:$2,AP99) -> 2028-06-01 | AR99: =IF(OR(AQ99="",AQ99=0),"",MAX(AR$15:AR98)+1) -> 84 | AS99: 0
AP100: =MAX(AP$15:AP99)+1 -> 85 | AQ100: =SUMIFS(Periods!$11:$11,Periods!$2:$2,AP100) -> 2028-07-01 | AR100: =IF(OR(AQ100="",AQ100=0),"",MAX(AR$15:AR99)+1) -> 85 | AS100: 0
AP101: =MAX(AP$15:AP100)+1 -> 86 | AQ101: =SUMIFS(Periods!$11:$11,Periods!$2:$2,AP101) -> 2028-08-01 | AR101: =IF(OR(AQ101="",AQ101=0),"",MAX(AR$15:AR100)+1) -> 86 | AS101: 0
AP102: =MAX(AP$15:AP101)+1 -> 87 | AQ102: =SUMIFS(Periods!$11:$11,Periods!$2:$2,AP102) -> 2028-09-01 | AR102: =IF(OR(AQ102="",AQ102=0),"",MAX(AR$15:AR101)+1) -> 87 | AS102: 0
AP103: =MAX(AP$15:AP102)+1 -> 88 | AQ103: =SUMIFS(Periods!$11:$11,Periods!$2:$2,AP103) -> 2028-10-01 | AR103: =IF(OR(AQ103="",AQ103=0),"",MAX(AR$15:AR102)+1) -> 88 | AS103: 0
AP104: =MAX(AP$15:AP103)+1 -> 89 | AQ104: =SUMIFS(Periods!$11:$11,Periods!$2:$2,AP104) -> 2028-11-01 | AR104: =IF(OR(AQ104="",AQ104=0),"",MAX(AR$15:AR103)+1) -> 89 | AS104: 0
AP105: =MAX(AP$15:AP104)+1 -> 90 | AQ105: =SUMIFS(Periods!$11:$11,Periods!$2:$2,AP105) -> 2028-12-01 | AR105: =IF(OR(AQ105="",AQ105=0),"",MAX(AR$15:AR104)+1) -> 90 | AS105: 0
AP106: =MAX(AP$15:AP105)+1 -> 91 | AQ106: =SUMIFS(Periods!$11:$11,Periods!$2:$2,AP106) -> 2029-01-01 | AR106: =IF(OR(AQ106="",AQ106=0),"",MAX(AR$15:AR105)+1) -> 91 | AS106: 0
AP107: =MAX(AP$15:AP106)+1 -> 92 | AQ107: =SUMIFS(Periods!$11:$11,Periods!$2:$2,AP107) -> 2029-02-01 | AR107: =IF(OR(AQ107="",AQ107=0),"",MAX(AR$15:AR106)+1) -> 92 | AS107: 0
AP108: =MAX(AP$15:AP107)+1 -> 93 | AQ108: =SUMIFS(Periods!$11:$11,Periods!$2:$2,AP108) -> 2029-03-01 | AR108: =IF(OR(AQ108="",AQ108=0),"",MAX(AR$15:AR107)+1) -> 93 | AS108: 0
AP109: =MAX(AP$15:AP108)+1 -> 94 | AQ109: =SUMIFS(Periods!$11:$11,Periods!$2:$2,AP109) -> 2029-04-01 | AR109: =IF(OR(AQ109="",AQ109=0),"",MAX(AR$15:AR108)+1) -> 94 | AS109: 0
AP110: =MAX(AP$15:AP109)+1 -> 95 | AQ110: =SUMIFS(Periods!$11:$11,Periods!$2:$2,AP110) -> 2029-05-01 | AR110: =IF(OR(AQ110="",AQ110=0),"",MAX(AR$15:AR109)+1) -> 95 | AS110: 0
AP111: =MAX(AP$15:AP110)+1 -> 96 | AQ111: =SUMIFS(Periods!$11:$11,Periods!$2:$2,AP111) -> 2029-06-01 | AR111: =IF(OR(AQ111="",AQ111=0),"",MAX(AR$15:AR110)+1) -> 96 | AS111: 0
AP112: =MAX(AP$15:AP111)+1 -> 97 | AQ112: =SUMIFS(Periods!$11:$11,Periods!$2:$2,AP112) -> 2029-07-01 | AR112: =IF(OR(AQ112="",AQ112=0),"",MAX(AR$15:AR111)+1) -> 97 | AS112: 0
AP113: =MAX(AP$15:AP112)+1 -> 98 | AQ113: =SUMIFS(Periods!$11:$11,Periods!$2:$2,AP113) -> 2029-08-01 | AR113: =IF(OR(AQ113="",AQ113=0),"",MAX(AR$15:AR112)+1) -> 98 | AS113: 0
AP114: =MAX(AP$15:AP113)+1 -> 99 | AQ114: =SUMIFS(Periods!$11:$11,Periods!$2:$2,AP114) -> 2029-09-01 | AR114: =IF(OR(AQ114="",AQ114=0),"",MAX(AR$15:AR113)+1) -> 99 | AS114: 0
AP115: =MAX(AP$15:AP114)+1 -> 100 | AQ115: =SUMIFS(Periods!$11:$11,Periods!$2:$2,AP115) -> 2029-10-01 | AR115: =IF(OR(AQ115="",AQ115=0),"",MAX(AR$15:AR114)+1) -> 100 | AS115: 0
AP116: =MAX(AP$15:AP115)+1 -> 101 | AQ116: =SUMIFS(Periods!$11:$11,Periods!$2:$2,AP116) -> 2029-11-01 | AR116: =IF(OR(AQ116="",AQ116=0),"",MAX(AR$15:AR115)+1) -> 101 | AS116: 0
AP117: =MAX(AP$15:AP116)+1 -> 102 | AQ117: =SUMIFS(Periods!$11:$11,Periods!$2:$2,AP117) -> 2029-12-01 | AR117: =IF(OR(AQ117="",AQ117=0),"",MAX(AR$15:AR116)+1) -> 102 | AS117: 0
AP118: =MAX(AP$15:AP117)+1 -> 103 | AQ118: =SUMIFS(Periods!$11:$11,Periods!$2:$2,AP118) -> 2030-01-01 | AR118: =IF(OR(AQ118="",AQ118=0),"",MAX(AR$15:AR117)+1) -> 103 | AS118: 0
AP119: =MAX(AP$15:AP118)+1 -> 104 | AQ119: =SUMIFS(Periods!$11:$11,Periods!$2:$2,AP119) -> 2030-02-01 | AR119: =IF(OR(AQ119="",AQ119=0),"",MAX(AR$15:AR118)+1) -> 104 | AS119: 0
AP120: =MAX(AP$15:AP119)+1 -> 105 | AQ120: =SUMIFS(Periods!$11:$11,Periods!$2:$2,AP120) -> 2030-03-01 | AR120: =IF(OR(AQ120="",AQ120=0),"",MAX(AR$15:AR119)+1) -> 105 | AS120: 0
AP121: =MAX(AP$15:AP120)+1 -> 106 | AQ121: =SUMIFS(Periods!$11:$11,Periods!$2:$2,AP121) -> 2030-04-01 | AR121: =IF(OR(AQ121="",AQ121=0),"",MAX(AR$15:AR120)+1) -> 106 | AS121: 0
AP122: =MAX(AP$15:AP121)+1 -> 107 | AQ122: =SUMIFS(Periods!$11:$11,Periods!$2:$2,AP122) -> 2030-05-01 | AR122: =IF(OR(AQ122="",AQ122=0),"",MAX(AR$15:AR121)+1) -> 107 | AS122: 0
AP123: =MAX(AP$15:AP122)+1 -> 108 | AQ123: =SUMIFS(Periods!$11:$11,Periods!$2:$2,AP123) -> 2030-06-01 | AR123: =IF(OR(AQ123="",AQ123=0),"",MAX(AR$15:AR122)+1) -> 108 | AS123: 0
AP124: =MAX(AP$15:AP123)+1 -> 109 | AQ124: =SUMIFS(Periods!$11:$11,Periods!$2:$2,AP124) -> 2030-07-01 | AR124: =IF(OR(AQ124="",AQ124=0),"",MAX(AR$15:AR123)+1) -> 109 | AS124: 0
AP125: =MAX(AP$15:AP124)+1 -> 110 | AQ125: =SUMIFS(Periods!$11:$11,Periods!$2:$2,AP125) -> 2030-08-01 | AR125: =IF(OR(AQ125="",AQ125=0),"",MAX(AR$15:AR124)+1) -> 110 | AS125: 0
AP126: =MAX(AP$15:AP125)+1 -> 111 | AQ126: =SUMIFS(Periods!$11:$11,Periods!$2:$2,AP126) -> 2030-09-01 | AR126: =IF(OR(AQ126="",AQ126=0),"",MAX(AR$15:AR125)+1) -> 111 | AS126: 0
AP127: =MAX(AP$15:AP126)+1 -> 112 | AQ127: =SUMIFS(Periods!$11:$11,Periods!$2:$2,AP127) -> 2030-10-01 | AR127: =IF(OR(AQ127="",AQ127=0),"",MAX(AR$15:AR126)+1) -> 112 | AS127: 0
AP128: =MAX(AP$15:AP127)+1 -> 113 | AQ128: =SUMIFS(Periods!$11:$11,Periods!$2:$2,AP128) -> 2030-11-01 | AR128: =IF(OR(AQ128="",AQ128=0),"",MAX(AR$15:AR127)+1) -> 113 | AS128: 0
AP129: =MAX(AP$15:AP128)+1 -> 114 | AQ129: =SUMIFS(Periods!$11:$11,Periods!$2:$2,AP129) -> 2030-12-01 | AR129: =IF(OR(AQ129="",AQ129=0),"",MAX(AR$15:AR128)+1) -> 114 | AS129: 0
AP130: =MAX(AP$15:AP129)+1 -> 115 | AQ130: =SUMIFS(Periods!$11:$11,Periods!$2:$2,AP130) -> 2031-01-01 | AR130: =IF(OR(AQ130="",AQ130=0),"",MAX(AR$15:AR129)+1) -> 115 | AS130: 0
AP131: =MAX(AP$15:AP130)+1 -> 116 | AQ131: =SUMIFS(Periods!$11:$11,Periods!$2:$2,AP131) -> 2031-02-01 | AR131: =IF(OR(AQ131="",AQ131=0),"",MAX(AR$15:AR130)+1) -> 116 | AS131: 0
AP132: =MAX(AP$15:AP131)+1 -> 117 | AQ132: =SUMIFS(Periods!$11:$11,Periods!$2:$2,AP132) -> 2031-03-01 | AR132: =IF(OR(AQ132="",AQ132=0),"",MAX(AR$15:AR131)+1) -> 117 | AS132: 0
AP133: =MAX(AP$15:AP132)+1 -> 118 | AQ133: =SUMIFS(Periods!$11:$11,Periods!$2:$2,AP133) -> 2031-04-01 | AR133: =IF(OR(AQ133="",AQ133=0),"",MAX(AR$15:AR132)+1) -> 118 | AS133: 0
AP134: =MAX(AP$15:AP133)+1 -> 119 | AQ134: =SUMIFS(Periods!$11:$11,Periods!$2:$2,AP134) -> 2031-05-01 | AR134: =IF(OR(AQ134="",AQ134=0),"",MAX(AR$15:AR133)+1) -> 119 | AS134: 0
AP135: =MAX(AP$15:AP134)+1 -> 120 | AQ135: =SUMIFS(Periods!$11:$11,Periods!$2:$2,AP135) -> 2031-06-01 | AR135: =IF(OR(AQ135="",AQ135=0),"",MAX(AR$15:AR134)+1) -> 120 | AS135: 0
AP136: =MAX(AP$15:AP135)+1 -> 121 | AQ136: =SUMIFS(Periods!$11:$11,Periods!$2:$2,AP136) -> 00:00:00 | AR136: =IF(OR(AQ136="",AQ136=0),"",MAX(AR$15:AR135)+1) ->  | AS136: 0
AP137: =MAX(AP$15:AP136)+1 -> 122 | AQ137: =SUMIFS(Periods!$11:$11,Periods!$2:$2,AP137) -> 00:00:00 | AR137: =IF(OR(AQ137="",AQ137=0),"",MAX(AR$15:AR136)+1) ->  | AS137: 0
AP138: =MAX(AP$15:AP137)+1 -> 123 | AQ138: =SUMIFS(Periods!$11:$11,Periods!$2:$2,AP138) -> 00:00:00 | AR138: =IF(OR(AQ138="",AQ138=0),"",MAX(AR$15:AR137)+1) ->  | AS138: 0
AP139: =MAX(AP$15:AP138)+1 -> 124 | AQ139: =SUMIFS(Periods!$11:$11,Periods!$2:$2,AP139) -> 00:00:00 | AR139: =IF(OR(AQ139="",AQ139=0),"",MAX(AR$15:AR138)+1) ->  | AS139: 0
AP140: =MAX(AP$15:AP139)+1 -> 125 | AQ140: =SUMIFS(Periods!$11:$11,Periods!$2:$2,AP140) -> 00:00:00 | AR140: =IF(OR(AQ140="",AQ140=0),"",MAX(AR$15:AR139)+1) ->  | AS140: 0
AP141: =MAX(AP$15:AP140)+1 -> 126 | AQ141: =SUMIFS(Periods!$11:$11,Periods!$2:$2,AP141) -> 00:00:00 | AR141: =IF(OR(AQ141="",AQ141=0),"",MAX(AR$15:AR140)+1) ->  | AS141: 0
AP142: =MAX(AP$15:AP141)+1 -> 127 | AQ142: =SUMIFS(Periods!$11:$11,Periods!$2:$2,AP142) -> 00:00:00 | AR142: =IF(OR(AQ142="",AQ142=0),"",MAX(AR$15:AR141)+1) ->  | AS142: 0
AP143: =MAX(AP$15:AP142)+1 -> 128 | AQ143: =SUMIFS(Periods!$11:$11,Periods!$2:$2,AP143) -> 00:00:00 | AR143: =IF(OR(AQ143="",AQ143=0),"",MAX(AR$15:AR142)+1) ->  | AS143: 0
AP144: =MAX(AP$15:AP143)+1 -> 129 | AQ144: =SUMIFS(Periods!$11:$11,Periods!$2:$2,AP144) -> 00:00:00 | AR144: =IF(OR(AQ144="",AQ144=0),"",MAX(AR$15:AR143)+1) ->  | AS144: 0
AP145: =MAX(AP$15:AP144)+1 -> 130 | AQ145: =SUMIFS(Periods!$11:$11,Periods!$2:$2,AP145) -> 00:00:00 | AR145: =IF(OR(AQ145="",AQ145=0),"",MAX(AR$15:AR144)+1) ->  | AS145: 0
AP146: =MAX(AP$15:AP145)+1 -> 131 | AQ146: =SUMIFS(Periods!$11:$11,Periods!$2:$2,AP146) -> 00:00:00 | AR146: =IF(OR(AQ146="",AQ146=0),"",MAX(AR$15:AR145)+1) ->  | AS146: 0
AP147: =MAX(AP$15:AP146)+1 -> 132 | AQ147: =SUMIFS(Periods!$11:$11,Periods!$2:$2,AP147) -> 00:00:00 | AR147: =IF(OR(AQ147="",AQ147=0),"",MAX(AR$15:AR146)+1) ->  | AS147: 0
AP148: =MAX(AP$15:AP147)+1 -> 133 | AQ148: =SUMIFS(Periods!$11:$11,Periods!$2:$2,AP148) -> 00:00:00 | AR148: =IF(OR(AQ148="",AQ148=0),"",MAX(AR$15:AR147)+1) ->  | AS148: 0
AP149: =MAX(AP$15:AP148)+1 -> 134 | AQ149: =SUMIFS(Periods!$11:$11,Periods!$2:$2,AP149) -> 00:00:00 | AR149: =IF(OR(AQ149="",AQ149=0),"",MAX(AR$15:AR148)+1) ->  | AS149: 0
AP150: =MAX(AP$15:AP149)+1 -> 135 | AQ150: =SUMIFS(Periods!$11:$11,Periods!$2:$2,AP150) -> 00:00:00 | AR150: =IF(OR(AQ150="",AQ150=0),"",MAX(AR$15:AR149)+1) ->  | AS150: 0
AP151: =MAX(AP$15:AP150)+1 -> 136 | AQ151: =SUMIFS(Periods!$11:$11,Periods!$2:$2,AP151) -> 00:00:00 | AR151: =IF(OR(AQ151="",AQ151=0),"",MAX(AR$15:AR150)+1) ->  | AS151: 0
AP152: =MAX(AP$15:AP151)+1 -> 137 | AQ152: =SUMIFS(Periods!$11:$11,Periods!$2:$2,AP152) -> 00:00:00 | AR152: =IF(OR(AQ152="",AQ152=0),"",MAX(AR$15:AR151)+1) ->  | AS152: 0
AP153: =MAX(AP$15:AP152)+1 -> 138 | AQ153: =SUMIFS(Periods!$11:$11,Periods!$2:$2,AP153) -> 00:00:00 | AR153: =IF(OR(AQ153="",AQ153=0),"",MAX(AR$15:AR152)+1) ->  | AS153: 0
AP154: =MAX(AP$15:AP153)+1 -> 139 | AQ154: =SUMIFS(Periods!$11:$11,Periods!$2:$2,AP154) -> 00:00:00 | AR154: =IF(OR(AQ154="",AQ154=0),"",MAX(AR$15:AR153)+1) ->  | AS154: 0
AP155: =MAX(AP$15:AP154)+1 -> 140 | AQ155: =SUMIFS(Periods!$11:$11,Periods!$2:$2,AP155) -> 00:00:00 | AR155: =IF(OR(AQ155="",AQ155=0),"",MAX(AR$15:AR154)+1) ->  | AS155: 0
AP156: =MAX(AP$15:AP155)+1 -> 141 | AQ156: =SUMIFS(Periods!$11:$11,Periods!$2:$2,AP156) -> 00:00:00 | AR156: =IF(OR(AQ156="",AQ156=0),"",MAX(AR$15:AR155)+1) ->  | AS156: 0
AP157: =MAX(AP$15:AP156)+1 -> 142 | AQ157: =SUMIFS(Periods!$11:$11,Periods!$2:$2,AP157) -> 00:00:00 | AR157: =IF(OR(AQ157="",AQ157=0),"",MAX(AR$15:AR156)+1) ->  | AS157: 0
AP158: =MAX(AP$15:AP157)+1 -> 143 | AQ158: =SUMIFS(Periods!$11:$11,Periods!$2:$2,AP158) -> 00:00:00 | AR158: =IF(OR(AQ158="",AQ158=0),"",MAX(AR$15:AR157)+1) ->  | AS158: 0
AP159: =MAX(AP$15:AP158)+1 -> 144 | AQ159: =SUMIFS(Periods!$11:$11,Periods!$2:$2,AP159) -> 00:00:00 | AR159: =IF(OR(AQ159="",AQ159=0),"",MAX(AR$15:AR158)+1) ->  | AS159: =IF(OR(AQ159=0,AQ159=""),0,IF(COUNTIF(AQ$15:AQ$100000,AQ159)=1,0,1)) -> 0
AP160: =MAX(AP$15:AP159)+1 -> 145 | AQ160: =SUMIFS(Periods!$11:$11,Periods!$2:$2,AP160) -> 00:00:00 | AR160: =IF(OR(AQ160="",AQ160=0),"",MAX(AR$15:AR159)+1) ->  | AS160: 0
AP161: =MAX(AP$15:AP160)+1 -> 146 | AQ161: =SUMIFS(Periods!$11:$11,Periods!$2:$2,AP161) -> 00:00:00 | AR161: =IF(OR(AQ161="",AQ161=0),"",MAX(AR$15:AR160)+1) ->  | AS161: 0
AP162: =MAX(AP$15:AP161)+1 -> 147 | AQ162: =SUMIFS(Periods!$11:$11,Periods!$2:$2,AP162) -> 00:00:00 | AR162: =IF(OR(AQ162="",AQ162=0),"",MAX(AR$15:AR161)+1) ->  | AS162: 0
AP163: =MAX(AP$15:AP162)+1 -> 148 | AQ163: =SUMIFS(Periods!$11:$11,Periods!$2:$2,AP163) -> 00:00:00 | AR163: =IF(OR(AQ163="",AQ163=0),"",MAX(AR$15:AR162)+1) ->  | AS163: 0
AP164: =MAX(AP$15:AP163)+1 -> 149 | AQ164: =SUMIFS(Periods!$11:$11,Periods!$2:$2,AP164) -> 00:00:00 | AR164: =IF(OR(AQ164="",AQ164=0),"",MAX(AR$15:AR163)+1) ->  | AS164: 0
AP165: =MAX(AP$15:AP164)+1 -> 150 | AQ165: =SUMIFS(Periods!$11:$11,Periods!$2:$2,AP165) -> 00:00:00 | AR165: =IF(OR(AQ165="",AQ165=0),"",MAX(AR$15:AR164)+1) ->  | AS165: 0
AP166: =MAX(AP$15:AP165)+1 -> 151 | AQ166: =SUMIFS(Periods!$11:$11,Periods!$2:$2,AP166) -> 00:00:00 | AR166: =IF(OR(AQ166="",AQ166=0),"",MAX(AR$15:AR165)+1) ->  | AS166: 0
AP167: =MAX(AP$15:AP166)+1 -> 152 | AQ167: =SUMIFS(Periods!$11:$11,Periods!$2:$2,AP167) -> 00:00:00 | AR167: =IF(OR(AQ167="",AQ167=0),"",MAX(AR$15:AR166)+1) ->  | AS167: 0
AP168: =MAX(AP$15:AP167)+1 -> 153 | AQ168: =SUMIFS(Periods!$11:$11,Periods!$2:$2,AP168) -> 00:00:00 | AR168: =IF(OR(AQ168="",AQ168=0),"",MAX(AR$15:AR167)+1) ->  | AS168: 0
AP169: =MAX(AP$15:AP168)+1 -> 154 | AQ169: =SUMIFS(Periods!$11:$11,Periods!$2:$2,AP169) -> 00:00:00 | AR169: =IF(OR(AQ169="",AQ169=0),"",MAX(AR$15:AR168)+1) ->  | AS169: 0
AP170: =MAX(AP$15:AP169)+1 -> 155 | AQ170: =SUMIFS(Periods!$11:$11,Periods!$2:$2,AP170) -> 00:00:00 | AR170: =IF(OR(AQ170="",AQ170=0),"",MAX(AR$15:AR169)+1) ->  | AS170: 0
AP171: =MAX(AP$15:AP170)+1 -> 156 | AQ171: =SUMIFS(Periods!$11:$11,Periods!$2:$2,AP171) -> 00:00:00 | AR171: =IF(OR(AQ171="",AQ171=0),"",MAX(AR$15:AR170)+1) ->  | AS171: 0
AP172: =MAX(AP$15:AP171)+1 -> 157 | AQ172: =SUMIFS(Periods!$11:$11,Periods!$2:$2,AP172) -> 00:00:00 | AR172: =IF(OR(AQ172="",AQ172=0),"",MAX(AR$15:AR171)+1) ->  | AS172: 0
AP173: =MAX(AP$15:AP172)+1 -> 158 | AQ173: =SUMIFS(Periods!$11:$11,Periods!$2:$2,AP173) -> 00:00:00 | AR173: =IF(OR(AQ173="",AQ173=0),"",MAX(AR$15:AR172)+1) ->  | AS173: 0
AP174: =MAX(AP$15:AP173)+1 -> 159 | AQ174: =SUMIFS(Periods!$11:$11,Periods!$2:$2,AP174) -> 00:00:00 | AR174: =IF(OR(AQ174="",AQ174=0),"",MAX(AR$15:AR173)+1) ->  | AS174: 0
AP175: =MAX(AP$15:AP174)+1 -> 160 | AQ175: =SUMIFS(Periods!$11:$11,Periods!$2:$2,AP175) -> 00:00:00 | AR175: =IF(OR(AQ175="",AQ175=0),"",MAX(AR$15:AR174)+1) ->  | AS175: 0
AP176: =MAX(AP$15:AP175)+1 -> 161 | AQ176: =SUMIFS(Periods!$11:$11,Periods!$2:$2,AP176) -> 00:00:00 | AR176: =IF(OR(AQ176="",AQ176=0),"",MAX(AR$15:AR175)+1) ->  | AS176: 0
AP177: =MAX(AP$15:AP176)+1 -> 162 | AQ177: =SUMIFS(Periods!$11:$11,Periods!$2:$2,AP177) -> 00:00:00 | AR177: =IF(OR(AQ177="",AQ177=0),"",MAX(AR$15:AR176)+1) ->  | AS177: 0
AP178: =MAX(AP$15:AP177)+1 -> 163 | AQ178: =SUMIFS(Periods!$11:$11,Periods!$2:$2,AP178) -> 00:00:00 | AR178: =IF(OR(AQ178="",AQ178=0),"",MAX(AR$15:AR177)+1) ->  | AS178: 0
AP179: =MAX(AP$15:AP178)+1 -> 164 | AQ179: =SUMIFS(Periods!$11:$11,Periods!$2:$2,AP179) -> 00:00:00 | AR179: =IF(OR(AQ179="",AQ179=0),"",MAX(AR$15:AR178)+1) ->  | AS179: 0
AP180: =MAX(AP$15:AP179)+1 -> 165 | AQ180: =SUMIFS(Periods!$11:$11,Periods!$2:$2,AP180) -> 00:00:00 | AR180: =IF(OR(AQ180="",AQ180=0),"",MAX(AR$15:AR179)+1) ->  | AS180: 0
AP181: =MAX(AP$15:AP180)+1 -> 166 | AQ181: =SUMIFS(Periods!$11:$11,Periods!$2:$2,AP181) -> 00:00:00 | AR181: =IF(OR(AQ181="",AQ181=0),"",MAX(AR$15:AR180)+1) ->  | AS181: 0
AP182: =MAX(AP$15:AP181)+1 -> 167 | AQ182: =SUMIFS(Periods!$11:$11,Periods!$2:$2,AP182) -> 00:00:00 | AR182: =IF(OR(AQ182="",AQ182=0),"",MAX(AR$15:AR181)+1) ->  | AS182: 0
AP183: =MAX(AP$15:AP182)+1 -> 168 | AQ183: =SUMIFS(Periods!$11:$11,Periods!$2:$2,AP183) -> 00:00:00 | AR183: =IF(OR(AQ183="",AQ183=0),"",MAX(AR$15:AR182)+1) ->  | AS183: 0
AP184: =MAX(AP$15:AP183)+1 -> 169 | AQ184: =SUMIFS(Periods!$11:$11,Periods!$2:$2,AP184) -> 00:00:00 | AR184: =IF(OR(AQ184="",AQ184=0),"",MAX(AR$15:AR183)+1) ->  | AS184: 0
AP185: =MAX(AP$15:AP184)+1 -> 170 | AQ185: =SUMIFS(Periods!$11:$11,Periods!$2:$2,AP185) -> 00:00:00 | AR185: =IF(OR(AQ185="",AQ185=0),"",MAX(AR$15:AR184)+1) ->  | AS185: 0
AP186: =MAX(AP$15:AP185)+1 -> 171 | AQ186: =SUMIFS(Periods!$11:$11,Periods!$2:$2,AP186) -> 00:00:00 | AR186: =IF(OR(AQ186="",AQ186=0),"",MAX(AR$15:AR185)+1) ->  | AS186: 0
AP187: =MAX(AP$15:AP186)+1 -> 172 | AQ187: =SUMIFS(Periods!$11:$11,Periods!$2:$2,AP187) -> 00:00:00 | AR187: =IF(OR(AQ187="",AQ187=0),"",MAX(AR$15:AR186)+1) ->  | AS187: 0
AP188: =MAX(AP$15:AP187)+1 -> 173 | AQ188: =SUMIFS(Periods!$11:$11,Periods!$2:$2,AP188) -> 00:00:00 | AR188: =IF(OR(AQ188="",AQ188=0),"",MAX(AR$15:AR187)+1) ->  | AS188: 0
AP189: =MAX(AP$15:AP188)+1 -> 174 | AQ189: =SUMIFS(Periods!$11:$11,Periods!$2:$2,AP189) -> 00:00:00 | AR189: =IF(OR(AQ189="",AQ189=0),"",MAX(AR$15:AR188)+1) ->  | AS189: 0
AP190: =MAX(AP$15:AP189)+1 -> 175 | AQ190: =SUMIFS(Periods!$11:$11,Periods!$2:$2,AP190) -> 00:00:00 | AR190: =IF(OR(AQ190="",AQ190=0),"",MAX(AR$15:AR189)+1) ->  | AS190: 0
AP191: =MAX(AP$15:AP190)+1 -> 176 | AQ191: =SUMIFS(Periods!$11:$11,Periods!$2:$2,AP191) -> 00:00:00 | AR191: =IF(OR(AQ191="",AQ191=0),"",MAX(AR$15:AR190)+1) ->  | AS191: 0
AP192: =MAX(AP$15:AP191)+1 -> 177 | AQ192: =SUMIFS(Periods!$11:$11,Periods!$2:$2,AP192) -> 00:00:00 | AR192: =IF(OR(AQ192="",AQ192=0),"",MAX(AR$15:AR191)+1) ->  | AS192: 0
AP193: =MAX(AP$15:AP192)+1 -> 178 | AQ193: =SUMIFS(Periods!$11:$11,Periods!$2:$2,AP193) -> 00:00:00 | AR193: =IF(OR(AQ193="",AQ193=0),"",MAX(AR$15:AR192)+1) ->  | AS193: 0
AP194: =MAX(AP$15:AP193)+1 -> 179 | AQ194: =SUMIFS(Periods!$11:$11,Periods!$2:$2,AP194) -> 00:00:00 | AR194: =IF(OR(AQ194="",AQ194=0),"",MAX(AR$15:AR193)+1) ->  | AS194: 0
AP195: =MAX(AP$15:AP194)+1 -> 180 | AQ195: =SUMIFS(Periods!$11:$11,Periods!$2:$2,AP195) -> 00:00:00 | AR195: =IF(OR(AQ195="",AQ195=0),"",MAX(AR$15:AR194)+1) ->  | AS195: 0
AP196: =MAX(AP$15:AP195)+1 -> 181 | AQ196: =SUMIFS(Periods!$11:$11,Periods!$2:$2,AP196) -> 00:00:00 | AR196: =IF(OR(AQ196="",AQ196=0),"",MAX(AR$15:AR195)+1) ->  | AS196: 0
AP197: =MAX(AP$15:AP196)+1 -> 182 | AQ197: =SUMIFS(Periods!$11:$11,Periods!$2:$2,AP197) -> 00:00:00 | AR197: =IF(OR(AQ197="",AQ197=0),"",MAX(AR$15:AR196)+1) ->  | AS197: 0
AP198: =MAX(AP$15:AP197)+1 -> 183 | AQ198: =SUMIFS(Periods!$11:$11,Periods!$2:$2,AP198) -> 00:00:00 | AR198: =IF(OR(AQ198="",AQ198=0),"",MAX(AR$15:AR197)+1) ->  | AS198: 0
AP199: =MAX(AP$15:AP198)+1 -> 184 | AQ199: =SUMIFS(Periods!$11:$11,Periods!$2:$2,AP199) -> 00:00:00 | AR199: =IF(OR(AQ199="",AQ199=0),"",MAX(AR$15:AR198)+1) ->  | AS199: 0
AP200: =MAX(AP$15:AP199)+1 -> 185 | AQ200: =SUMIFS(Periods!$11:$11,Periods!$2:$2,AP200) -> 00:00:00 | AR200: =IF(OR(AQ200="",AQ200=0),"",MAX(AR$15:AR199)+1) ->  | AS200: 0
AP201: =MAX(AP$15:AP200)+1 -> 186 | AQ201: =SUMIFS(Periods!$11:$11,Periods!$2:$2,AP201) -> 00:00:00 | AR201: =IF(OR(AQ201="",AQ201=0),"",MAX(AR$15:AR200)+1) ->  | AS201: 0
AP202: =MAX(AP$15:AP201)+1 -> 187 | AQ202: =SUMIFS(Periods!$11:$11,Periods!$2:$2,AP202) -> 00:00:00 | AR202: =IF(OR(AQ202="",AQ202=0),"",MAX(AR$15:AR201)+1) ->  | AS202: 0
AP203: =MAX(AP$15:AP202)+1 -> 188 | AQ203: =SUMIFS(Periods!$11:$11,Periods!$2:$2,AP203) -> 00:00:00 | AR203: =IF(OR(AQ203="",AQ203=0),"",MAX(AR$15:AR202)+1) ->  | AS203: 0
AP204: =MAX(AP$15:AP203)+1 -> 189 | AQ204: =SUMIFS(Periods!$11:$11,Periods!$2:$2,AP204) -> 00:00:00 | AR204: =IF(OR(AQ204="",AQ204=0),"",MAX(AR$15:AR203)+1) ->  | AS204: 0
AP205: =MAX(AP$15:AP204)+1 -> 190 | AQ205: =SUMIFS(Periods!$11:$11,Periods!$2:$2,AP205) -> 00:00:00 | AR205: =IF(OR(AQ205="",AQ205=0),"",MAX(AR$15:AR204)+1) ->  | AS205: 0
AP206: =MAX(AP$15:AP205)+1 -> 191 | AQ206: =SUMIFS(Periods!$11:$11,Periods!$2:$2,AP206) -> 00:00:00 | AR206: =IF(OR(AQ206="",AQ206=0),"",MAX(AR$15:AR205)+1) ->  | AS206: 0
AP207: =MAX(AP$15:AP206)+1 -> 192 | AQ207: =SUMIFS(Periods!$11:$11,Periods!$2:$2,AP207) -> 00:00:00 | AR207: =IF(OR(AQ207="",AQ207=0),"",MAX(AR$15:AR206)+1) ->  | AS207: 0
AP208: =MAX(AP$15:AP207)+1 -> 193 | AQ208: =SUMIFS(Periods!$11:$11,Periods!$2:$2,AP208) -> 00:00:00 | AR208: =IF(OR(AQ208="",AQ208=0),"",MAX(AR$15:AR207)+1) ->  | AS208: 0
... 207 more rows

Sheet Macro
Y1: =START!$K$130 -> номер столбца: | AA1: =COLUMN() -> 27 | AB1: =COLUMN() -> 28 | AC1: =COLUMN() -> 29 | AD1: =COLUMN() -> 30 | AE1: =COLUMN() -> 31 | AF1: =COLUMN() -> 32 | AG1: =COLUMN() -> 33 | AH1: =COLUMN() -> 34 | AI1: =COLUMN() -> 35 | AJ1: =COLUMN() -> 36 | AK1: =COLUMN() -> 37 | AL1: =COLUMN() -> 38 | AM1: =COLUMN() -> 39 | AN1: =COLUMN() -> 40 | AO1: =COLUMN() -> 41 | AP1: =COLUMN() -> 42 | AQ1: =COLUMN() -> 43 | AR1: =COLUMN() -> 44 | AS1: =COLUMN() -> 45 | AT1: =COLUMN() -> 46 | AU1: =COLUMN() -> 47 | AV1: =COLUMN() -> 48 | AW1: =COLUMN() -> 49 | AX1: =COLUMN() -> 50 | AY1: =COLUMN() -> 51 | AZ1: =COLUMN() -> 52 | BA1: =COLUMN() -> 53 | BB1: =COLUMN() -> 54 | BC1: =COLUMN() -> 55 | BD1: =COLUMN() -> 56 | BE1: =COLUMN() -> 57 | BF1: =COLUMN() -> 58 | BG1: =COLUMN() -> 59 | BH1: =COLUMN() -> 60 | BI1: =COLUMN() -> 61 | BJ1: =COLUMN() -> 62 | BK1: =COLUMN() -> 63 | BL1: =COLUMN() -> 64 | BM1: =COLUMN() -> 65 | BN1: =COLUMN() -> 66 | BO1: =COLUMN() -> 67 | BP1: =COLUMN() -> 68 | BQ1: =COLUMN() -> 69 | BR1: =COLUMN() -> 70 | BS1: =COLUMN() -> 71 | BT1: =COLUMN() -> 72 | BU1: =COLUMN() -> 73 | BV1: =COLUMN() -> 74 | BW1: =COLUMN() -> 75 | BX1: =COLUMN() -> 76 | BY1: =COLUMN() -> 77 | BZ1: =COLUMN() -> 78 | CA1: =COLUMN() -> 79 | CB1: =COLUMN() -> 80 | CC1: =COLUMN() -> 81 | CD1: =COLUMN() -> 82 | CE1: =COLUMN() -> 83 | CF1: =COLUMN() -> 84 | CG1: =COLUMN() -> 85 | CH1: =COLUMN() -> 86 | CI1: =COLUMN() -> 87 | CJ1: =COLUMN() -> 88 | CK1: =COLUMN() -> 89 | CL1: =COLUMN() -> 90 | CM1: =COLUMN() -> 91 | CN1: =COLUMN() -> 92 | CO1: =COLUMN() -> 93 | CP1: =COLUMN() -> 94 | CQ1: =COLUMN() -> 95 | CR1: =COLUMN() -> 96 | CS1: =COLUMN() -> 97 | CT1: =COLUMN() -> 98 | CU1: =COLUMN() -> 99 | CV1: =COLUMN() -> 100 | CW1: =COLUMN() -> 101 | CX1: =COLUMN() -> 102 | CY1: =COLUMN() -> 103 | CZ1: =COLUMN() -> 104 | DA1: =COLUMN() -> 105 | DB1: =COLUMN() -> 106 | DC1: =COLUMN() -> 107 | DD1: =COLUMN() -> 108 | DE1: =COLUMN() -> 109 | DF1: =COLUMN() -> 110 | DG1: =COLUMN() -> 111 | DH1: =COLUMN() -> 112 | DI1: =COLUMN() -> 113 | DJ1: =COLUMN() -> 114 | DK1: =COLUMN() -> 115 | DL1: =COLUMN() -> 116 | DM1: =COLUMN() -> 117 | DN1: =COLUMN() -> 118 | DO1: =COLUMN() -> 119 | DP1: =COLUMN() -> 120 | DQ1: =COLUMN() -> 121 | DR1: =COLUMN() -> 122 | DS1: =COLUMN() -> 123 | DT1: =COLUMN() -> 124 | DU1: =COLUMN() -> 125 | DV1: =COLUMN() -> 126 | DW1: =COLUMN() -> 127 | DX1: =COLUMN() -> 128 | DY1: =COLUMN() -> 129 | DZ1: =COLUMN() -> 130 | EA1: =COLUMN() -> 131 | EB1: =COLUMN() -> 132 | EC1: =COLUMN() -> 133 | ED1: =COLUMN() -> 134 | EE1: =COLUMN() -> 135 | EF1: =COLUMN() -> 136 | EG1: =COLUMN() -> 137 | EH1: =COLUMN() -> 138 | EI1: =COLUMN() -> 139 | EJ1: =COLUMN() -> 140 | EK1: =COLUMN() -> 141 | EL1: =COLUMN() -> 142 | EM1: =COLUMN() -> 143 | EN1: =COLUMN() -> 144 | EO1: =COLUMN() -> 145 | EP1: =COLUMN() -> 146 | EQ1: =COLUMN() -> 147 | ER1: =COLUMN() -> 148 | ES1: =COLUMN() -> 149 | ET1: =COLUMN() -> 150 | EU1: =COLUMN() -> 151 | EV1: =COLUMN() -> 152 | EW1: =COLUMN() -> 153 | EX1: =COLUMN() -> 154 | EY1: =COLUMN() -> 155 | EZ1: =COLUMN() -> 156 | FA1: =COLUMN() -> 157 | FB1: =COLUMN() -> 158 | FC1: =COLUMN() -> 159
Y2: =START!$K$131 -> номер периода модели: | AA2: =MAX($Z2:Z2)+1 -> 1 | AB2: =MAX($Z2:AA2)+1 -> 2 | AC2: =MAX($Z2:AB2)+1 -> 3 | AD2: =MAX($Z2:AC2)+1 -> 4 | AE2: =MAX($Z2:AD2)+1 -> 5 | AF2: =MAX($Z2:AE2)+1 -> 6 | AG2: =MAX($Z2:AF2)+1 -> 7 | AH2: =MAX($Z2:AG2)+1 -> 8 | AI2: =MAX($Z2:AH2)+1 -> 9 | AJ2: =MAX($Z2:AI2)+1 -> 10 | AK2: =MAX($Z2:AJ2)+1 -> 11 | AL2: =MAX($Z2:AK2)+1 -> 12 | AM2: =MAX($Z2:AL2)+1 -> 13 | AN2: =MAX($Z2:AM2)+1 -> 14 | AO2: =MAX($Z2:AN2)+1 -> 15 | AP2: =MAX($Z2:AO2)+1 -> 16 | AQ2: =MAX($Z2:AP2)+1 -> 17 | AR2: =MAX($Z2:AQ2)+1 -> 18 | AS2: =MAX($Z2:AR2)+1 -> 19 | AT2: =MAX($Z2:AS2)+1 -> 20 | AU2: =MAX($Z2:AT2)+1 -> 21 | AV2: =MAX($Z2:AU2)+1 -> 22 | AW2: =MAX($Z2:AV2)+1 -> 23 | AX2: =MAX($Z2:AW2)+1 -> 24 | AY2: =MAX($Z2:AX2)+1 -> 25 | AZ2: =MAX($Z2:AY2)+1 -> 26 | BA2: =MAX($Z2:AZ2)+1 -> 27 | BB2: =MAX($Z2:BA2)+1 -> 28 | BC2: =MAX($Z2:BB2)+1 -> 29 | BD2: =MAX($Z2:BC2)+1 -> 30 | BE2: =MAX($Z2:BD2)+1 -> 31 | BF2: =MAX($Z2:BE2)+1 -> 32 | BG2: =MAX($Z2:BF2)+1 -> 33 | BH2: =MAX($Z2:BG2)+1 -> 34 | BI2: =MAX($Z2:BH2)+1 -> 35 | BJ2: =MAX($Z2:BI2)+1 -> 36 | BK2: =MAX($Z2:BJ2)+1 -> 37 | BL2: =MAX($Z2:BK2)+1 -> 38 | BM2: =MAX($Z2:BL2)+1 -> 39 | BN2: =MAX($Z2:BM2)+1 -> 40 | BO2: =MAX($Z2:BN2)+1 -> 41 | BP2: =MAX($Z2:BO2)+1 -> 42 | BQ2: =MAX($Z2:BP2)+1 -> 43 | BR2: =MAX($Z2:BQ2)+1 -> 44 | BS2: =MAX($Z2:BR2)+1 -> 45 | BT2: =MAX($Z2:BS2)+1 -> 46 | BU2: =MAX($Z2:BT2)+1 -> 47 | BV2: =MAX($Z2:BU2)+1 -> 48 | BW2: =MAX($Z2:BV2)+1 -> 49 | BX2: =MAX($Z2:BW2)+1 -> 50 | BY2: =MAX($Z2:BX2)+1 -> 51 | BZ2: =MAX($Z2:BY2)+1 -> 52 | CA2: =MAX($Z2:BZ2)+1 -> 53 | CB2: =MAX($Z2:CA2)+1 -> 54 | CC2: =MAX($Z2:CB2)+1 -> 55 | CD2: =MAX($Z2:CC2)+1 -> 56 | CE2: =MAX($Z2:CD2)+1 -> 57 | CF2: =MAX($Z2:CE2)+1 -> 58 | CG2: =MAX($Z2:CF2)+1 -> 59 | CH2: =MAX($Z2:CG2)+1 -> 60 | CI2: =MAX($Z2:CH2)+1 -> 61 | CJ2: =MAX($Z2:CI2)+1 -> 62 | CK2: =MAX($Z2:CJ2)+1 -> 63 | CL2: =MAX($Z2:CK2)+1 -> 64 | CM2: =MAX($Z2:CL2)+1 -> 65 | CN2: =MAX($Z2:CM2)+1 -> 66 | CO2: =MAX($Z2:CN2)+1 -> 67 | CP2: =MAX($Z2:CO2)+1 -> 68 | CQ2: =MAX($Z2:CP2)+1 -> 69 | CR2: =MAX($Z2:CQ2)+1 -> 70 | CS2: =MAX($Z2:CR2)+1 -> 71 | CT2: =MAX($Z2:CS2)+1 -> 72 | CU2: =MAX($Z2:CT2)+1 -> 73 | CV2: =MAX($Z2:CU2)+1 -> 74 | CW2: =MAX($Z2:CV2)+1 -> 75 | CX2: =MAX($Z2:CW2)+1 -> 76 | CY2: =MAX($Z2:CX2)+1 -> 77 | CZ2: =MAX($Z2:CY2)+1 -> 78 | DA2: =MAX($Z2:CZ2)+1 -> 79 | DB2: =MAX($Z2:DA2)+1 -> 80 | DC2: =MAX($Z2:DB2)+1 -> 81 | DD2: =MAX($Z2:DC2)+1 -> 82 | DE2: =MAX($Z2:DD2)+1 -> 83 | DF2: =MAX($Z2:DE2)+1 -> 84 | DG2: =MAX($Z2:DF2)+1 -> 85 | DH2: =MAX($Z2:DG2)+1 -> 86 | DI2: =MAX($Z2:DH2)+1 -> 87 | DJ2: =MAX($Z2:DI2)+1 -> 88 | DK2: =MAX($Z2:DJ2)+1 -> 89 | DL2: =MAX($Z2:DK2)+1 -> 90 | DM2: =MAX($Z2:DL2)+1 -> 91 | DN2: =MAX($Z2:DM2)+1 -> 92 | DO2: =MAX($Z2:DN2)+1 -> 93 | DP2: =MAX($Z2:DO2)+1 -> 94 | DQ2: =MAX($Z2:DP2)+1 -> 95 | DR2: =MAX($Z2:DQ2)+1 -> 96 | DS2: =MAX($Z2:DR2)+1 -> 97 | DT2: =MAX($Z2:DS2)+1 -> 98 | DU2: =MAX($Z2:DT2)+1 -> 99 | DV2: =MAX($Z2:DU2)+1 -> 100 | DW2: =MAX($Z2:DV2)+1 -> 101 | DX2: =MAX($Z2:DW2)+1 -> 102 | DY2: =MAX($Z2:DX2)+1 -> 103 | DZ2: =MAX($Z2:DY2)+1 -> 104 | EA2: =MAX($Z2:DZ2)+1 -> 105 | EB2: =MAX($Z2:EA2)+1 -> 106 | EC2: =MAX($Z2:EB2)+1 -> 107 | ED2: =MAX($Z2:EC2)+1 -> 108 | EE2: =MAX($Z2:ED2)+1 -> 109 | EF2: =MAX($Z2:EE2)+1 -> 110 | EG2: =MAX($Z2:EF2)+1 -> 111 | EH2: =MAX($Z2:EG2)+1 -> 112 | EI2: =MAX($Z2:EH2)+1 -> 113 | EJ2: =MAX($Z2:EI2)+1 -> 114 | EK2: =MAX($Z2:EJ2)+1 -> 115 | EL2: =MAX($Z2:EK2)+1 -> 116 | EM2: =MAX($Z2:EL2)+1 -> 117 | EN2: =MAX($Z2:EM2)+1 -> 118 | EO2: =MAX($Z2:EN2)+1 -> 119 | EP2: =MAX($Z2:EO2)+1 -> 120 | EQ2: =MAX($Z2:EP2)+1 -> 121 | ER2: =MAX($Z2:EQ2)+1 -> 122 | ES2: =MAX($Z2:ER2)+1 -> 123 | ET2: =MAX($Z2:ES2)+1 -> 124 | EU2: =MAX($Z2:ET2)+1 -> 125 | EV2: =MAX($Z2:EU2)+1 -> 126 | EW2: =MAX($Z2:EV2)+1 -> 127 | EX2: =MAX($Z2:EW2)+1 -> 128 | EY2: =MAX($Z2:EX2)+1 -> 129 | EZ2: =MAX($Z2:EY2)+1 -> 130 | FA2: =MAX($Z2:EZ2)+1 -> 131 | FB2: =MAX($Z2:FA2)+1 -> 132 | FC2: =MAX($Z2:FB2)+1 -> 133
Y3: =START!$K$132 -> номер факт-периода: | AA3: =IF($Q$12=Lists!$U$16,IF(Periods!AA28="","",MAX($Z3:Z3)+1),"") ->  | AB3: =IF($Q$12=Lists!$U$16,IF(Periods!AB28="","",MAX($Z3:AA3)+1),"") ->  | AC3: =IF($Q$12=Lists!$U$16,IF(Periods!AC28="","",MAX($Z3:AB3)+1),"") ->  | AD3: =IF($Q$12=Lists!$U$16,IF(Periods!AD28="","",MAX($Z3:AC3)+1),"") ->  | AE3: =IF($Q$12=Lists!$U$16,IF(Periods!AE28="","",MAX($Z3:AD3)+1),"") ->  | AF3: =IF($Q$12=Lists!$U$16,IF(Periods!AF28="","",MAX($Z3:AE3)+1),"") ->  | AG3: =IF($Q$12=Lists!$U$16,IF(Periods!AG28="","",MAX($Z3:AF3)+1),"") ->  | AH3: =IF($Q$12=Lists!$U$16,IF(Periods!AH28="","",MAX($Z3:AG3)+1),"") ->  | AI3: =IF($Q$12=Lists!$U$16,IF(Periods!AI28="","",MAX($Z3:AH3)+1),"") ->  | AJ3: =IF($Q$12=Lists!$U$16,IF(Periods!AJ28="","",MAX($Z3:AI3)+1),"") ->  | AK3: =IF($Q$12=Lists!$U$16,IF(Periods!AK28="","",MAX($Z3:AJ3)+1),"") ->  | AL3: =IF($Q$12=Lists!$U$16,IF(Periods!AL28="","",MAX($Z3:AK3)+1),"") ->  | AM3: =IF($Q$12=Lists!$U$16,IF(Periods!AM28="","",MAX($Z3:AL3)+1),"") ->  | AN3: =IF($Q$12=Lists!$U$16,IF(Periods!AN28="","",MAX($Z3:AM3)+1),"") ->  | AO3: =IF($Q$12=Lists!$U$16,IF(Periods!AO28="","",MAX($Z3:AN3)+1),"") ->  | AP3: =IF($Q$12=Lists!$U$16,IF(Periods!AP28="","",MAX($Z3:AO3)+1),"") ->  | AQ3: =IF($Q$12=Lists!$U$16,IF(Periods!AQ28="","",MAX($Z3:AP3)+1),"") ->  | AR3: =IF($Q$12=Lists!$U$16,IF(Periods!AR28="","",MAX($Z3:AQ3)+1),"") ->  | AS3: =IF($Q$12=Lists!$U$16,IF(Periods!AS28="","",MAX($Z3:AR3)+1),"") ->  | AT3: =IF($Q$12=Lists!$U$16,IF(Periods!AT28="","",MAX($Z3:AS3)+1),"") ->  | AU3: =IF($Q$12=Lists!$U$16,IF(Periods!AU28="","",MAX($Z3:AT3)+1),"") ->  | AV3: =IF($Q$12=Lists!$U$16,IF(Periods!AV28="","",MAX($Z3:AU3)+1),"") ->  | AW3: =IF($Q$12=Lists!$U$16,IF(Periods!AW28="","",MAX($Z3:AV3)+1),"") ->  | AX3: =IF($Q$12=Lists!$U$16,IF(Periods!AX28="","",MAX($Z3:AW3)+1),"") ->  | AY3: =IF($Q$12=Lists!$U$16,IF(Periods!AY28="","",MAX($Z3:AX3)+1),"") ->  | AZ3: =IF($Q$12=Lists!$U$16,IF(Periods!AZ28="","",MAX($Z3:AY3)+1),"") ->  | BA3: =IF($Q$12=Lists!$U$16,IF(Periods!BA28="","",MAX($Z3:AZ3)+1),"") ->  | BB3: =IF($Q$12=Lists!$U$16,IF(Periods!BB28="","",MAX($Z3:BA3)+1),"") ->  | BC3: =IF($Q$12=Lists!$U$16,IF(Periods!BC28="","",MAX($Z3:BB3)+1),"") ->  | BD3: =IF($Q$12=Lists!$U$16,IF(Periods!BD28="","",MAX($Z3:BC3)+1),"") ->  | BE3: =IF($Q$12=Lists!$U$16,IF(Periods!BE28="","",MAX($Z3:BD3)+1),"") ->  | BF3: =IF($Q$12=Lists!$U$16,IF(Periods!BF28="","",MAX($Z3:BE3)+1),"") ->  | BG3: =IF($Q$12=Lists!$U$16,IF(Periods!BG28="","",MAX($Z3:BF3)+1),"") ->  | BH3: =IF($Q$12=Lists!$U$16,IF(Periods!BH28="","",MAX($Z3:BG3)+1),"") ->  | BI3: =IF($Q$12=Lists!$U$16,IF(Periods!BI28="","",MAX($Z3:BH3)+1),"") ->  | BJ3: =IF($Q$12=Lists!$U$16,IF(Periods!BJ28="","",MAX($Z3:BI3)+1),"") ->  | BK3: =IF($Q$12=Lists!$U$16,IF(Periods!BK28="","",MAX($Z3:BJ3)+1),"") ->  | BL3: =IF($Q$12=Lists!$U$16,IF(Periods!BL28="","",MAX($Z3:BK3)+1),"") ->  | BM3: =IF($Q$12=Lists!$U$16,IF(Periods!BM28="","",MAX($Z3:BL3)+1),"") ->  | BN3: =IF($Q$12=Lists!$U$16,IF(Periods!BN28="","",MAX($Z3:BM3)+1),"") ->  | BO3: =IF($Q$12=Lists!$U$16,IF(Periods!BO28="","",MAX($Z3:BN3)+1),"") ->  | BP3: =IF($Q$12=Lists!$U$16,IF(Periods!BP28="","",MAX($Z3:BO3)+1),"") ->  | BQ3: =IF($Q$12=Lists!$U$16,IF(Periods!BQ28="","",MAX($Z3:BP3)+1),"") ->  | BR3: =IF($Q$12=Lists!$U$16,IF(Periods!BR28="","",MAX($Z3:BQ3)+1),"") ->  | BS3: =IF($Q$12=Lists!$U$16,IF(Periods!BS28="","",MAX($Z3:BR3)+1),"") ->  | BT3: =IF($Q$12=Lists!$U$16,IF(Periods!BT28="","",MAX($Z3:BS3)+1),"") ->  | BU3: =IF($Q$12=Lists!$U$16,IF(Periods!BU28="","",MAX($Z3:BT3)+1),"") ->  | BV3: =IF($Q$12=Lists!$U$16,IF(Periods!BV28="","",MAX($Z3:BU3)+1),"") ->  | BW3: =IF($Q$12=Lists!$U$16,IF(Periods!BW28="","",MAX($Z3:BV3)+1),"") ->  | BX3: =IF($Q$12=Lists!$U$16,IF(Periods!BX28="","",MAX($Z3:BW3)+1),"") ->  | BY3: =IF($Q$12=Lists!$U$16,IF(Periods!BY28="","",MAX($Z3:BX3)+1),"") ->  | BZ3: =IF($Q$12=Lists!$U$16,IF(Periods!BZ28="","",MAX($Z3:BY3)+1),"") ->  | CA3: =IF($Q$12=Lists!$U$16,IF(Periods!CA28="","",MAX($Z3:BZ3)+1),"") ->  | CB3: =IF($Q$12=Lists!$U$16,IF(Periods!CB28="","",MAX($Z3:CA3)+1),"") ->  | CC3: =IF($Q$12=Lists!$U$16,IF(Periods!CC28="","",MAX($Z3:CB3)+1),"") ->  | CD3: =IF($Q$12=Lists!$U$16,IF(Periods!CD28="","",MAX($Z3:CC3)+1),"") ->  | CE3: =IF($Q$12=Lists!$U$16,IF(Periods!CE28="","",MAX($Z3:CD3)+1),"") ->  | CF3: =IF($Q$12=Lists!$U$16,IF(Periods!CF28="","",MAX($Z3:CE3)+1),"") ->  | CG3: =IF($Q$12=Lists!$U$16,IF(Periods!CG28="","",MAX($Z3:CF3)+1),"") ->  | CH3: =IF($Q$12=Lists!$U$16,IF(Periods!CH28="","",MAX($Z3:CG3)+1),"") ->  | CI3: =IF($Q$12=Lists!$U$16,IF(Periods!CI28="","",MAX($Z3:CH3)+1),"") ->  | CJ3: =IF($Q$12=Lists!$U$16,IF(Periods!CJ28="","",MAX($Z3:CI3)+1),"") ->  | CK3: =IF($Q$12=Lists!$U$16,IF(Periods!CK28="","",MAX($Z3:CJ3)+1),"") ->  | CL3: =IF($Q$12=Lists!$U$16,IF(Periods!CL28="","",MAX($Z3:CK3)+1),"") ->  | CM3: =IF($Q$12=Lists!$U$16,IF(Periods!CM28="","",MAX($Z3:CL3)+1),"") ->  | CN3: =IF($Q$12=Lists!$U$16,IF(Periods!CN28="","",MAX($Z3:CM3)+1),"") ->  | CO3: =IF($Q$12=Lists!$U$16,IF(Periods!CO28="","",MAX($Z3:CN3)+1),"") ->  | CP3: =IF($Q$12=Lists!$U$16,IF(Periods!CP28="","",MAX($Z3:CO3)+1),"") ->  | CQ3: =IF($Q$12=Lists!$U$16,IF(Periods!CQ28="","",MAX($Z3:CP3)+1),"") ->  | CR3: =IF($Q$12=Lists!$U$16,IF(Periods!CR28="","",MAX($Z3:CQ3)+1),"") ->  | CS3: =IF($Q$12=Lists!$U$16,IF(Periods!CS28="","",MAX($Z3:CR3)+1),"") ->  | CT3: =IF($Q$12=Lists!$U$16,IF(Periods!CT28="","",MAX($Z3:CS3)+1),"") ->  | CU3: =IF($Q$12=Lists!$U$16,IF(Periods!CU28="","",MAX($Z3:CT3)+1),"") ->  | CV3: =IF($Q$12=Lists!$U$16,IF(Periods!CV28="","",MAX($Z3:CU3)+1),"") ->  | CW3: =IF($Q$12=Lists!$U$16,IF(Periods!CW28="","",MAX($Z3:CV3)+1),"") ->  | CX3: =IF($Q$12=Lists!$U$16,IF(Periods!CX28="","",MAX($Z3:CW3)+1),"") ->  | CY3: =IF($Q$12=Lists!$U$16,IF(Periods!CY28="","",MAX($Z3:CX3)+1),"") ->  | CZ3: =IF($Q$12=Lists!$U$16,IF(Periods!CZ28="","",MAX($Z3:CY3)+1),"") ->  | DA3: =IF($Q$12=Lists!$U$16,IF(Periods!DA28="","",MAX($Z3:CZ3)+1),"") ->  | DB3: =IF($Q$12=Lists!$U$16,IF(Periods!DB28="","",MAX($Z3:DA3)+1),"") ->  | DC3: =IF($Q$12=Lists!$U$16,IF(Periods!DC28="","",MAX($Z3:DB3)+1),"") ->  | DD3: =IF($Q$12=Lists!$U$16,IF(Periods!DD28="","",MAX($Z3:DC3)+1),"") ->  | DE3: =IF($Q$12=Lists!$U$16,IF(Periods!DE28="","",MAX($Z3:DD3)+1),"") ->  | DF3: =IF($Q$12=Lists!$U$16,IF(Periods!DF28="","",MAX($Z3:DE3)+1),"") ->  | DG3: =IF($Q$12=Lists!$U$16,IF(Periods!DG28="","",MAX($Z3:DF3)+1),"") ->  | DH3: =IF($Q$12=Lists!$U$16,IF(Periods!DH28="","",MAX($Z3:DG3)+1),"") ->  | DI3: =IF($Q$12=Lists!$U$16,IF(Periods!DI28="","",MAX($Z3:DH3)+1),"") ->  | DJ3: =IF($Q$12=Lists!$U$16,IF(Periods!DJ28="","",MAX($Z3:DI3)+1),"") ->  | DK3: =IF($Q$12=Lists!$U$16,IF(Periods!DK28="","",MAX($Z3:DJ3)+1),"") ->  | DL3: =IF($Q$12=Lists!$U$16,IF(Periods!DL28="","",MAX($Z3:DK3)+1),"") ->  | DM3: =IF($Q$12=Lists!$U$16,IF(Periods!DM28="","",MAX($Z3:DL3)+1),"") ->  | DN3: =IF($Q$12=Lists!$U$16,IF(Periods!DN28="","",MAX($Z3:DM3)+1),"") ->  | DO3: =IF($Q$12=Lists!$U$16,IF(Periods!DO28="","",MAX($Z3:DN3)+1),"") ->  | DP3: =IF($Q$12=Lists!$U$16,IF(Periods!DP28="","",MAX($Z3:DO3)+1),"") ->  | DQ3: =IF($Q$12=Lists!$U$16,IF(Periods!DQ28="","",MAX($Z3:DP3)+1),"") ->  | DR3: =IF($Q$12=Lists!$U$16,IF(Periods!DR28="","",MAX($Z3:DQ3)+1),"") ->  | DS3: =IF($Q$12=Lists!$U$16,IF(Periods!DS28="","",MAX($Z3:DR3)+1),"") ->  | DT3: =IF($Q$12=Lists!$U$16,IF(Periods!DT28="","",MAX($Z3:DS3)+1),"") ->  | DU3: =IF($Q$12=Lists!$U$16,IF(Periods!DU28="","",MAX($Z3:DT3)+1),"") ->  | DV3: =IF($Q$12=Lists!$U$16,IF(Periods!DV28="","",MAX($Z3:DU3)+1),"") ->  | DW3: =IF($Q$12=Lists!$U$16,IF(Periods!DW28="","",MAX($Z3:DV3)+1),"") ->  | DX3: =IF($Q$12=Lists!$U$16,IF(Periods!DX28="","",MAX($Z3:DW3)+1),"") ->  | DY3: =IF($Q$12=Lists!$U$16,IF(Periods!DY28="","",MAX($Z3:DX3)+1),"") ->  | DZ3: =IF($Q$12=Lists!$U$16,IF(Periods!DZ28="","",MAX($Z3:DY3)+1),"") ->  | EA3: =IF($Q$12=Lists!$U$16,IF(Periods!EA28="","",MAX($Z3:DZ3)+1),"") ->  | EB3: =IF($Q$12=Lists!$U$16,IF(Periods!EB28="","",MAX($Z3:EA3)+1),"") ->  | EC3: =IF($Q$12=Lists!$U$16,IF(Periods!EC28="","",MAX($Z3:EB3)+1),"") ->  | ED3: =IF($Q$12=Lists!$U$16,IF(Periods!ED28="","",MAX($Z3:EC3)+1),"") ->  | EE3: =IF($Q$12=Lists!$U$16,IF(Periods!EE28="","",MAX($Z3:ED3)+1),"") ->  | EF3: =IF($Q$12=Lists!$U$16,IF(Periods!EF28="","",MAX($Z3:EE3)+1),"") ->  | EG3: =IF($Q$12=Lists!$U$16,IF(Periods!EG28="","",MAX($Z3:EF3)+1),"") ->  | EH3: =IF($Q$12=Lists!$U$16,IF(Periods!EH28="","",MAX($Z3:EG3)+1),"") ->  | EI3: =IF($Q$12=Lists!$U$16,IF(Periods!EI28="","",MAX($Z3:EH3)+1),"") ->  | EJ3: =IF($Q$12=Lists!$U$16,IF(Periods!EJ28="","",MAX($Z3:EI3)+1),"") ->  | EK3: =IF($Q$12=Lists!$U$16,IF(Periods!EK28="","",MAX($Z3:EJ3)+1),"") ->  | EL3: =IF($Q$12=Lists!$U$16,IF(Periods!EL28="","",MAX($Z3:EK3)+1),"") ->  | EM3: =IF($Q$12=Lists!$U$16,IF(Periods!EM28="","",MAX($Z3:EL3)+1),"") ->  | EN3: =IF($Q$12=Lists!$U$16,IF(Periods!EN28="","",MAX($Z3:EM3)+1),"") ->  | EO3: =IF($Q$12=Lists!$U$16,IF(Periods!EO28="","",MAX($Z3:EN3)+1),"") ->  | EP3: =IF($Q$12=Lists!$U$16,IF(Periods!EP28="","",MAX($Z3:EO3)+1),"") ->  | EQ3: =IF($Q$12=Lists!$U$16,IF(Periods!EQ28="","",MAX($Z3:EP3)+1),"") ->  | ER3: =IF($Q$12=Lists!$U$16,IF(Periods!ER28="","",MAX($Z3:EQ3)+1),"") ->  | ES3: =IF($Q$12=Lists!$U$16,IF(Periods!ES28="","",MAX($Z3:ER3)+1),"") ->  | ET3: =IF($Q$12=Lists!$U$16,IF(Periods!ET28="","",MAX($Z3:ES3)+1),"") ->  | EU3: =IF($Q$12=Lists!$U$16,IF(Periods!EU28="","",MAX($Z3:ET3)+1),"") ->  | EV3: =IF($Q$12=Lists!$U$16,IF(Periods!EV28="","",MAX($Z3:EU3)+1),"") ->  | EW3: =IF($Q$12=Lists!$U$16,IF(Periods!EW28="","",MAX($Z3:EV3)+1),"") ->  | EX3: =IF($Q$12=Lists!$U$16,IF(Periods!EX28="","",MAX($Z3:EW3)+1),"") ->  | EY3: =IF($Q$12=Lists!$U$16,IF(Periods!EY28="","",MAX($Z3:EX3)+1),"") ->  | EZ3: =IF($Q$12=Lists!$U$16,IF(Periods!EZ28="","",MAX($Z3:EY3)+1),"") ->  | FA3: =IF($Q$12=Lists!$U$16,IF(Periods!FA28="","",MAX($Z3:EZ3)+1),"") ->  | FB3: =IF($Q$12=Lists!$U$16,IF(Periods!FB28="","",MAX($Z3:FA3)+1),"") ->  | FC3: =IF($Q$12=Lists!$U$16,IF(Periods!FC28="","",MAX($Z3:FB3)+1),"") -> 
Y4: =START!$K$133 -> номер план-периода: | AA4: =IF(OR(AA3<>"",AA11=""),"",MAX($Z4:Z4)+1) -> 1 | AB4: =IF(OR(AB3<>"",AB11=""),"",MAX($Z4:AA4)+1) -> 2 | AC4: =IF(OR(AC3<>"",AC11=""),"",MAX($Z4:AB4)+1) -> 3 | AD4: =IF(OR(AD3<>"",AD11=""),"",MAX($Z4:AC4)+1) -> 4 | AE4: =IF(OR(AE3<>"",AE11=""),"",MAX($Z4:AD4)+1) -> 5 | AF4: =IF(OR(AF3<>"",AF11=""),"",MAX($Z4:AE4)+1) -> 6 | AG4: =IF(OR(AG3<>"",AG11=""),"",MAX($Z4:AF4)+1) -> 7 | AH4: =IF(OR(AH3<>"",AH11=""),"",MAX($Z4:AG4)+1) -> 8 | AI4: =IF(OR(AI3<>"",AI11=""),"",MAX($Z4:AH4)+1) -> 9 | AJ4: =IF(OR(AJ3<>"",AJ11=""),"",MAX($Z4:AI4)+1) -> 10 | AK4: =IF(OR(AK3<>"",AK11=""),"",MAX($Z4:AJ4)+1) -> 11 | AL4: =IF(OR(AL3<>"",AL11=""),"",MAX($Z4:AK4)+1) -> 12 | AM4: =IF(OR(AM3<>"",AM11=""),"",MAX($Z4:AL4)+1) -> 13 | AN4: =IF(OR(AN3<>"",AN11=""),"",MAX($Z4:AM4)+1) -> 14 | AO4: =IF(OR(AO3<>"",AO11=""),"",MAX($Z4:AN4)+1) -> 15 | AP4: =IF(OR(AP3<>"",AP11=""),"",MAX($Z4:AO4)+1) -> 16 | AQ4: =IF(OR(AQ3<>"",AQ11=""),"",MAX($Z4:AP4)+1) -> 17 | AR4: =IF(OR(AR3<>"",AR11=""),"",MAX($Z4:AQ4)+1) -> 18 | AS4: =IF(OR(AS3<>"",AS11=""),"",MAX($Z4:AR4)+1) -> 19 | AT4: =IF(OR(AT3<>"",AT11=""),"",MAX($Z4:AS4)+1) -> 20 | AU4: =IF(OR(AU3<>"",AU11=""),"",MAX($Z4:AT4)+1) -> 21 | AV4: =IF(OR(AV3<>"",AV11=""),"",MAX($Z4:AU4)+1) -> 22 | AW4: =IF(OR(AW3<>"",AW11=""),"",MAX($Z4:AV4)+1) -> 23 | AX4: =IF(OR(AX3<>"",AX11=""),"",MAX($Z4:AW4)+1) -> 24 | AY4: =IF(OR(AY3<>"",AY11=""),"",MAX($Z4:AX4)+1) -> 25 | AZ4: =IF(OR(AZ3<>"",AZ11=""),"",MAX($Z4:AY4)+1) -> 26 | BA4: =IF(OR(BA3<>"",BA11=""),"",MAX($Z4:AZ4)+1) -> 27 | BB4: =IF(OR(BB3<>"",BB11=""),"",MAX($Z4:BA4)+1) -> 28 | BC4: =IF(OR(BC3<>"",BC11=""),"",MAX($Z4:BB4)+1) -> 29 | BD4: =IF(OR(BD3<>"",BD11=""),"",MAX($Z4:BC4)+1) -> 30 | BE4: =IF(OR(BE3<>"",BE11=""),"",MAX($Z4:BD4)+1) -> 31 | BF4: =IF(OR(BF3<>"",BF11=""),"",MAX($Z4:BE4)+1) -> 32 | BG4: =IF(OR(BG3<>"",BG11=""),"",MAX($Z4:BF4)+1) -> 33 | BH4: =IF(OR(BH3<>"",BH11=""),"",MAX($Z4:BG4)+1) -> 34 | BI4: =IF(OR(BI3<>"",BI11=""),"",MAX($Z4:BH4)+1) -> 35 | BJ4: =IF(OR(BJ3<>"",BJ11=""),"",MAX($Z4:BI4)+1) -> 36 | BK4: =IF(OR(BK3<>"",BK11=""),"",MAX($Z4:BJ4)+1) -> 37 | BL4: =IF(OR(BL3<>"",BL11=""),"",MAX($Z4:BK4)+1) -> 38 | BM4: =IF(OR(BM3<>"",BM11=""),"",MAX($Z4:BL4)+1) -> 39 | BN4: =IF(OR(BN3<>"",BN11=""),"",MAX($Z4:BM4)+1) -> 40 | BO4: =IF(OR(BO3<>"",BO11=""),"",MAX($Z4:BN4)+1) -> 41 | BP4: =IF(OR(BP3<>"",BP11=""),"",MAX($Z4:BO4)+1) -> 42 | BQ4: =IF(OR(BQ3<>"",BQ11=""),"",MAX($Z4:BP4)+1) -> 43 | BR4: =IF(OR(BR3<>"",BR11=""),"",MAX($Z4:BQ4)+1) -> 44 | BS4: =IF(OR(BS3<>"",BS11=""),"",MAX($Z4:BR4)+1) -> 45 | BT4: =IF(OR(BT3<>"",BT11=""),"",MAX($Z4:BS4)+1) -> 46 | BU4: =IF(OR(BU3<>"",BU11=""),"",MAX($Z4:BT4)+1) -> 47 | BV4: =IF(OR(BV3<>"",BV11=""),"",MAX($Z4:BU4)+1) -> 48 | BW4: =IF(OR(BW3<>"",BW11=""),"",MAX($Z4:BV4)+1) -> 49 | BX4: =IF(OR(BX3<>"",BX11=""),"",MAX($Z4:BW4)+1) -> 50 | BY4: =IF(OR(BY3<>"",BY11=""),"",MAX($Z4:BX4)+1) -> 51 | BZ4: =IF(OR(BZ3<>"",BZ11=""),"",MAX($Z4:BY4)+1) -> 52 | CA4: =IF(OR(CA3<>"",CA11=""),"",MAX($Z4:BZ4)+1) -> 53 | CB4: =IF(OR(CB3<>"",CB11=""),"",MAX($Z4:CA4)+1) -> 54 | CC4: =IF(OR(CC3<>"",CC11=""),"",MAX($Z4:CB4)+1) -> 55 | CD4: =IF(OR(CD3<>"",CD11=""),"",MAX($Z4:CC4)+1) -> 56 | CE4: =IF(OR(CE3<>"",CE11=""),"",MAX($Z4:CD4)+1) -> 57 | CF4: =IF(OR(CF3<>"",CF11=""),"",MAX($Z4:CE4)+1) -> 58 | CG4: =IF(OR(CG3<>"",CG11=""),"",MAX($Z4:CF4)+1) -> 59 | CH4: =IF(OR(CH3<>"",CH11=""),"",MAX($Z4:CG4)+1) -> 60 | CI4: =IF(OR(CI3<>"",CI11=""),"",MAX($Z4:CH4)+1) -> 61 | CJ4: =IF(OR(CJ3<>"",CJ11=""),"",MAX($Z4:CI4)+1) -> 62 | CK4: =IF(OR(CK3<>"",CK11=""),"",MAX($Z4:CJ4)+1) -> 63 | CL4: =IF(OR(CL3<>"",CL11=""),"",MAX($Z4:CK4)+1) -> 64 | CM4: =IF(OR(CM3<>"",CM11=""),"",MAX($Z4:CL4)+1) -> 65 | CN4: =IF(OR(CN3<>"",CN11=""),"",MAX($Z4:CM4)+1) -> 66 | CO4: =IF(OR(CO3<>"",CO11=""),"",MAX($Z4:CN4)+1) -> 67 | CP4: =IF(OR(CP3<>"",CP11=""),"",MAX($Z4:CO4)+1) -> 68 | CQ4: =IF(OR(CQ3<>"",CQ11=""),"",MAX($Z4:CP4)+1) -> 69 | CR4: =IF(OR(CR3<>"",CR11=""),"",MAX($Z4:CQ4)+1) -> 70 | CS4: =IF(OR(CS3<>"",CS11=""),"",MAX($Z4:CR4)+1) -> 71 | CT4: =IF(OR(CT3<>"",CT11=""),"",MAX($Z4:CS4)+1) -> 72 | CU4: =IF(OR(CU3<>"",CU11=""),"",MAX($Z4:CT4)+1) -> 73 | CV4: =IF(OR(CV3<>"",CV11=""),"",MAX($Z4:CU4)+1) -> 74 | CW4: =IF(OR(CW3<>"",CW11=""),"",MAX($Z4:CV4)+1) -> 75 | CX4: =IF(OR(CX3<>"",CX11=""),"",MAX($Z4:CW4)+1) -> 76 | CY4: =IF(OR(CY3<>"",CY11=""),"",MAX($Z4:CX4)+1) -> 77 | CZ4: =IF(OR(CZ3<>"",CZ11=""),"",MAX($Z4:CY4)+1) -> 78 | DA4: =IF(OR(DA3<>"",DA11=""),"",MAX($Z4:CZ4)+1) -> 79 | DB4: =IF(OR(DB3<>"",DB11=""),"",MAX($Z4:DA4)+1) -> 80 | DC4: =IF(OR(DC3<>"",DC11=""),"",MAX($Z4:DB4)+1) -> 81 | DD4: =IF(OR(DD3<>"",DD11=""),"",MAX($Z4:DC4)+1) -> 82 | DE4: =IF(OR(DE3<>"",DE11=""),"",MAX($Z4:DD4)+1) -> 83 | DF4: =IF(OR(DF3<>"",DF11=""),"",MAX($Z4:DE4)+1) -> 84 | DG4: =IF(OR(DG3<>"",DG11=""),"",MAX($Z4:DF4)+1) -> 85 | DH4: =IF(OR(DH3<>"",DH11=""),"",MAX($Z4:DG4)+1) -> 86 | DI4: =IF(OR(DI3<>"",DI11=""),"",MAX($Z4:DH4)+1) -> 87 | DJ4: =IF(OR(DJ3<>"",DJ11=""),"",MAX($Z4:DI4)+1) -> 88 | DK4: =IF(OR(DK3<>"",DK11=""),"",MAX($Z4:DJ4)+1) -> 89 | DL4: =IF(OR(DL3<>"",DL11=""),"",MAX($Z4:DK4)+1) -> 90 | DM4: =IF(OR(DM3<>"",DM11=""),"",MAX($Z4:DL4)+1) -> 91 | DN4: =IF(OR(DN3<>"",DN11=""),"",MAX($Z4:DM4)+1) -> 92 | DO4: =IF(OR(DO3<>"",DO11=""),"",MAX($Z4:DN4)+1) -> 93 | DP4: =IF(OR(DP3<>"",DP11=""),"",MAX($Z4:DO4)+1) -> 94 | DQ4: =IF(OR(DQ3<>"",DQ11=""),"",MAX($Z4:DP4)+1) -> 95 | DR4: =IF(OR(DR3<>"",DR11=""),"",MAX($Z4:DQ4)+1) -> 96 | DS4: =IF(OR(DS3<>"",DS11=""),"",MAX($Z4:DR4)+1) -> 97 | DT4: =IF(OR(DT3<>"",DT11=""),"",MAX($Z4:DS4)+1) -> 98 | DU4: =IF(OR(DU3<>"",DU11=""),"",MAX($Z4:DT4)+1) -> 99 | DV4: =IF(OR(DV3<>"",DV11=""),"",MAX($Z4:DU4)+1) -> 100 | DW4: =IF(OR(DW3<>"",DW11=""),"",MAX($Z4:DV4)+1) -> 101 | DX4: =IF(OR(DX3<>"",DX11=""),"",MAX($Z4:DW4)+1) -> 102 | DY4: =IF(OR(DY3<>"",DY11=""),"",MAX($Z4:DX4)+1) -> 103 | DZ4: =IF(OR(DZ3<>"",DZ11=""),"",MAX($Z4:DY4)+1) -> 104 | EA4: =IF(OR(EA3<>"",EA11=""),"",MAX($Z4:DZ4)+1) -> 105 | EB4: =IF(OR(EB3<>"",EB11=""),"",MAX($Z4:EA4)+1) -> 106 | EC4: =IF(OR(EC3<>"",EC11=""),"",MAX($Z4:EB4)+1) -> 107 | ED4: =IF(OR(ED3<>"",ED11=""),"",MAX($Z4:EC4)+1) -> 108 | EE4: =IF(OR(EE3<>"",EE11=""),"",MAX($Z4:ED4)+1) -> 109 | EF4: =IF(OR(EF3<>"",EF11=""),"",MAX($Z4:EE4)+1) -> 110 | EG4: =IF(OR(EG3<>"",EG11=""),"",MAX($Z4:EF4)+1) -> 111 | EH4: =IF(OR(EH3<>"",EH11=""),"",MAX($Z4:EG4)+1) -> 112 | EI4: =IF(OR(EI3<>"",EI11=""),"",MAX($Z4:EH4)+1) -> 113 | EJ4: =IF(OR(EJ3<>"",EJ11=""),"",MAX($Z4:EI4)+1) -> 114 | EK4: =IF(OR(EK3<>"",EK11=""),"",MAX($Z4:EJ4)+1) -> 115 | EL4: =IF(OR(EL3<>"",EL11=""),"",MAX($Z4:EK4)+1) -> 116 | EM4: =IF(OR(EM3<>"",EM11=""),"",MAX($Z4:EL4)+1) -> 117 | EN4: =IF(OR(EN3<>"",EN11=""),"",MAX($Z4:EM4)+1) -> 118 | EO4: =IF(OR(EO3<>"",EO11=""),"",MAX($Z4:EN4)+1) -> 119 | EP4: =IF(OR(EP3<>"",EP11=""),"",MAX($Z4:EO4)+1) -> 120 | EQ4: =IF(OR(EQ3<>"",EQ11=""),"",MAX($Z4:EP4)+1) ->  | ER4: =IF(OR(ER3<>"",ER11=""),"",MAX($Z4:EQ4)+1) ->  | ES4: =IF(OR(ES3<>"",ES11=""),"",MAX($Z4:ER4)+1) ->  | ET4: =IF(OR(ET3<>"",ET11=""),"",MAX($Z4:ES4)+1) ->  | EU4: =IF(OR(EU3<>"",EU11=""),"",MAX($Z4:ET4)+1) ->  | EV4: =IF(OR(EV3<>"",EV11=""),"",MAX($Z4:EU4)+1) ->  | EW4: =IF(OR(EW3<>"",EW11=""),"",MAX($Z4:EV4)+1) ->  | EX4: =IF(OR(EX3<>"",EX11=""),"",MAX($Z4:EW4)+1) ->  | EY4: =IF(OR(EY3<>"",EY11=""),"",MAX($Z4:EX4)+1) ->  | EZ4: =IF(OR(EZ3<>"",EZ11=""),"",MAX($Z4:EY4)+1) ->  | FA4: =IF(OR(FA3<>"",FA11=""),"",MAX($Z4:EZ4)+1) ->  | FB4: =IF(OR(FB3<>"",FB11=""),"",MAX($Z4:FA4)+1) ->  | FC4: =IF(OR(FC3<>"",FC11=""),"",MAX($Z4:FB4)+1) -> 
Y5: =START!$K$134 -> число даты начала: | AA5: =IF(AA11="","",DAY(AA11)) -> 1 | AB5: =IF(AB11="","",DAY(AB11)) -> 1 | AC5: 1 | AD5: 1 | AE5: 1 | AF5: 1 | AG5: 1 | AH5: 1 | AI5: 1 | AJ5: 1 | AK5: 1 | AL5: 1 | AM5: 1 | AN5: 1 | AO5: 1 | AP5: 1 | AQ5: 1 | AR5: 1 | AS5: 1 | AT5: 1 | AU5: 1 | AV5: 1 | AW5: 1 | AX5: 1 | AY5: 1 | AZ5: 1 | BA5: 1 | BB5: 1 | BC5: 1 | BD5: 1 | BE5: 1 | BF5: 1 | BG5: 1 | BH5: 1 | BI5: 1 | BJ5: 1 | BK5: 1 | BL5: 1 | BM5: 1 | BN5: 1 | BO5: 1 | BP5: 1 | BQ5: 1 | BR5: 1 | BS5: 1 | BT5: 1 | BU5: 1 | BV5: 1 | BW5: 1 | BX5: 1 | BY5: 1 | BZ5: 1 | CA5: 1 | CB5: 1 | CC5: 1 | CD5: 1 | CE5: 1 | CF5: 1 | CG5: 1 | CH5: 1 | CI5: 1 | CJ5: 1 | CK5: 1 | CL5: 1 | CM5: 1 | CN5: =IF(CN11="","",DAY(CN11)) -> 1 | CO5: 1 | CP5: 1 | CQ5: 1 | CR5: 1 | CS5: 1 | CT5: 1 | CU5: 1 | CV5: 1 | CW5: 1 | CX5: 1 | CY5: 1 | CZ5: 1 | DA5: 1 | DB5: 1 | DC5: 1 | DD5: 1 | DE5: 1 | DF5: 1 | DG5: 1 | DH5: 1 | DI5: 1 | DJ5: 1 | DK5: 1 | DL5: 1 | DM5: 1 | DN5: 1 | DO5: 1 | DP5: 1 | DQ5: 1 | DR5: 1 | DS5: 1 | DT5: 1 | DU5: 1 | DV5: 1 | DW5: 1 | DX5: 1 | DY5: 1 | DZ5: 1 | EA5: 1 | EB5: 1 | EC5: 1 | ED5: 1 | EE5: 1 | EF5: 1 | EG5: 1 | EH5: 1 | EI5: 1 | EJ5: 1 | EK5: 1 | EL5: 1 | EM5: 1 | EN5: 1 | EO5: 1 | EP5: 1 | EZ5: =IF(EZ11="","",DAY(EZ11)) ->  | FA5: =IF(FA11="","",DAY(FA11)) ->  | FB5: =IF(FB11="","",DAY(FB11)) ->  | FC5: =IF(FC11="","",DAY(FC11)) -> 
Y6: =START!$K$135 -> номер месяца даты начала: | AA6: =IF(AA11="","",MONTH(AA11)) -> 7 | AB6: =IF(AB11="","",MONTH(AB11)) -> 8 | AC6: 9 | AD6: 10 | AE6: 11 | AF6: 12 | AG6: 1 | AH6: 2 | AI6: 3 | AJ6: 4 | AK6: 5 | AL6: 6 | AM6: 7 | AN6: 8 | AO6: 9 | AP6: 10 | AQ6: 11 | AR6: 12 | AS6: 1 | AT6: 2 | AU6: 3 | AV6: 4 | AW6: 5 | AX6: 6 | AY6: 7 | AZ6: 8 | BA6: 9 | BB6: 10 | BC6: 11 | BD6: 12 | BE6: 1 | BF6: 2 | BG6: 3 | BH6: 4 | BI6: 5 | BJ6: 6 | BK6: 7 | BL6: 8 | BM6: 9 | BN6: 10 | BO6: 11 | BP6: 12 | BQ6: 1 | BR6: 2 | BS6: 3 | BT6: 4 | BU6: 5 | BV6: 6 | BW6: 7 | BX6: 8 | BY6: 9 | BZ6: 10 | CA6: 11 | CB6: 12 | CC6: 1 | CD6: 2 | CE6: 3 | CF6: 4 | CG6: 5 | CH6: 6 | CI6: 7 | CJ6: 8 | CK6: 9 | CL6: 10 | CM6: 11 | CN6: =IF(CN11="","",MONTH(CN11)) -> 12 | CO6: 1 | CP6: 2 | CQ6: 3 | CR6: 4 | CS6: 5 | CT6: 6 | CU6: 7 | CV6: 8 | CW6: 9 | CX6: 10 | CY6: 11 | CZ6: 12 | DA6: 1 | DB6: 2 | DC6: 3 | DD6: 4 | DE6: 5 | DF6: 6 | DG6: 7 | DH6: 8 | DI6: 9 | DJ6: 10 | DK6: 11 | DL6: 12 | DM6: 1 | DN6: 2 | DO6: 3 | DP6: 4 | DQ6: 5 | DR6: 6 | DS6: 7 | DT6: 8 | DU6: 9 | DV6: 10 | DW6: 11 | DX6: 12 | DY6: 1 | DZ6: 2 | EA6: 3 | EB6: 4 | EC6: 5 | ED6: 6 | EE6: 7 | EF6: 8 | EG6: 9 | EH6: 10 | EI6: 11 | EJ6: 12 | EK6: 1 | EL6: 2 | EM6: 3 | EN6: 4 | EO6: 5 | EP6: 6 | EZ6: =IF(EZ11="","",MONTH(EZ11)) ->  | FA6: =IF(FA11="","",MONTH(FA11)) ->  | FB6: =IF(FB11="","",MONTH(FB11)) ->  | FC6: =IF(FC11="","",MONTH(FC11)) -> 
Y7: =START!$K$136 -> год даты начала: | AA7: =IF(AA11="","",YEAR(AA11)-2000) -> 21 | AB7: =IF(AB11="","",YEAR(AB11)-2000) -> 21 | AC7: 21 | AD7: 21 | AE7: 21 | AF7: 21 | AG7: 22 | AH7: 22 | AI7: 22 | AJ7: 22 | AK7: 22 | AL7: 22 | AM7: 22 | AN7: 22 | AO7: 22 | AP7: 22 | AQ7: 22 | AR7: 22 | AS7: 23 | AT7: 23 | AU7: 23 | AV7: 23 | AW7: 23 | AX7: 23 | AY7: 23 | AZ7: 23 | BA7: 23 | BB7: 23 | BC7: 23 | BD7: 23 | BE7: 24 | BF7: 24 | BG7: 24 | BH7: 24 | BI7: 24 | BJ7: 24 | BK7: 24 | BL7: 24 | BM7: 24 | BN7: 24 | BO7: 24 | BP7: 24 | BQ7: 25 | BR7: 25 | BS7: 25 | BT7: 25 | BU7: 25 | BV7: 25 | BW7: 25 | BX7: 25 | BY7: 25 | BZ7: 25 | CA7: 25 | CB7: 25 | CC7: 26 | CD7: 26 | CE7: 26 | CF7: 26 | CG7: 26 | CH7: 26 | CI7: 26 | CJ7: 26 | CK7: 26 | CL7: 26 | CM7: 26 | CN7: =IF(CN11="","",YEAR(CN11)-2000) -> 26 | CO7: 27 | CP7: 27 | CQ7: 27 | CR7: 27 | CS7: 27 | CT7: 27 | CU7: 27 | CV7: 27 | CW7: 27 | CX7: 27 | CY7: 27 | CZ7: 27 | DA7: 28 | DB7: 28 | DC7: 28 | DD7: 28 | DE7: 28 | DF7: 28 | DG7: 28 | DH7: 28 | DI7: 28 | DJ7: 28 | DK7: 28 | DL7: 28 | DM7: 29 | DN7: 29 | DO7: 29 | DP7: 29 | DQ7: 29 | DR7: 29 | DS7: 29 | DT7: 29 | DU7: 29 | DV7: 29 | DW7: 29 | DX7: 29 | DY7: 30 | DZ7: 30 | EA7: 30 | EB7: 30 | EC7: 30 | ED7: 30 | EE7: 30 | EF7: 30 | EG7: 30 | EH7: 30 | EI7: 30 | EJ7: 30 | EK7: 31 | EL7: 31 | EM7: 31 | EN7: 31 | EO7: 31 | EP7: 31 | EZ7: =IF(EZ11="","",YEAR(EZ11)-2000) ->  | FA7: =IF(FA11="","",YEAR(FA11)-2000) ->  | FB7: =IF(FB11="","",YEAR(FB11)-2000) ->  | FC7: =IF(FC11="","",YEAR(FC11)-2000) -> 
Y8: =START!$K$137 -> число даты окончания: | AA8: =IF(AA12="","",DAY(AA12)) -> 31 | AB8: =IF(AB12="","",DAY(AB12)) -> 31 | AC8: 30 | AD8: 31 | AE8: 30 | AF8: 31 | AG8: 31 | AH8: 28 | AI8: 31 | AJ8: 30 | AK8: 31 | AL8: 30 | AM8: 31 | AN8: 31 | AO8: 30 | AP8: 31 | AQ8: 30 | AR8: 31 | AS8: 31 | AT8: 28 | AU8: 31 | AV8: 30 | AW8: 31 | AX8: 30 | AY8: 31 | AZ8: 31 | BA8: 30 | BB8: 31 | BC8: 30 | BD8: 31 | BE8: 31 | BF8: 29 | BG8: 31 | BH8: 30 | BI8: 31 | BJ8: 30 | BK8: 31 | BL8: 31 | BM8: 30 | BN8: 31 | BO8: 30 | BP8: 31 | BQ8: 31 | BR8: 28 | BS8: 31 | BT8: 30 | BU8: 31 | BV8: 30 | BW8: 31 | BX8: 31 | BY8: 30 | BZ8: 31 | CA8: 30 | CB8: 31 | CC8: 31 | CD8: 28 | CE8: 31 | CF8: 30 | CG8: 31 | CH8: 30 | CI8: 31 | CJ8: 31 | CK8: 30 | CL8: 31 | CM8: 30 | CN8: =IF(CN12="","",DAY(CN12)) -> 31 | CO8: 31 | CP8: 28 | CQ8: 31 | CR8: 30 | CS8: 31 | CT8: 30 | CU8: 31 | CV8: 31 | CW8: 30 | CX8: 31 | CY8: 30 | CZ8: 31 | DA8: 31 | DB8: 29 | DC8: 31 | DD8: 30 | DE8: 31 | DF8: 30 | DG8: 31 | DH8: 31 | DI8: 30 | DJ8: 31 | DK8: 30 | DL8: 31 | DM8: 31 | DN8: 28 | DO8: 31 | DP8: 30 | DQ8: 31 | DR8: 30 | DS8: 31 | DT8: 31 | DU8: 30 | DV8: 31 | DW8: 30 | DX8: 31 | DY8: 31 | DZ8: 28 | EA8: 31 | EB8: 30 | EC8: 31 | ED8: 30 | EE8: 31 | EF8: 31 | EG8: 30 | EH8: 31 | EI8: 30 | EJ8: 31 | EK8: 31 | EL8: 28 | EM8: 31 | EN8: 30 | EO8: 31 | EP8: 30 | EZ8: =IF(EZ12="","",DAY(EZ12)) ->  | FA8: =IF(FA12="","",DAY(FA12)) ->  | FB8: =IF(FB12="","",DAY(FB12)) ->  | FC8: =IF(FC12="","",DAY(FC12)) -> 
Y9: =START!$K$138 -> номер месяца даты окончания: | AA9: =IF(AA12="","",MONTH(AA12)) -> 7 | AB9: =IF(AB12="","",MONTH(AB12)) -> 8 | AC9: 9 | AD9: 10 | AE9: 11 | AF9: 12 | AG9: 1 | AH9: 2 | AI9: 3 | AJ9: 4 | AK9: 5 | AL9: 6 | AM9: 7 | AN9: 8 | AO9: 9 | AP9: 10 | AQ9: 11 | AR9: 12 | AS9: 1 | AT9: 2 | AU9: 3 | AV9: 4 | AW9: 5 | AX9: 6 | AY9: 7 | AZ9: 8 | BA9: 9 | BB9: 10 | BC9: 11 | BD9: 12 | BE9: 1 | BF9: 2 | BG9: 3 | BH9: 4 | BI9: 5 | BJ9: 6 | BK9: 7 | BL9: 8 | BM9: 9 | BN9: 10 | BO9: 11 | BP9: 12 | BQ9: 1 | BR9: 2 | BS9: 3 | BT9: 4 | BU9: 5 | BV9: 6 | BW9: 7 | BX9: 8 | BY9: 9 | BZ9: 10 | CA9: 11 | CB9: 12 | CC9: 1 | CD9: 2 | CE9: 3 | CF9: 4 | CG9: 5 | CH9: 6 | CI9: 7 | CJ9: 8 | CK9: 9 | CL9: 10 | CM9: 11 | CN9: =IF(CN12="","",MONTH(CN12)) -> 12 | CO9: 1 | CP9: 2 | CQ9: 3 | CR9: 4 | CS9: 5 | CT9: 6 | CU9: 7 | CV9: 8 | CW9: 9 | CX9: 10 | CY9: 11 | CZ9: 12 | DA9: 1 | DB9: 2 | DC9: 3 | DD9: 4 | DE9: 5 | DF9: 6 | DG9: 7 | DH9: 8 | DI9: 9 | DJ9: 10 | DK9: 11 | DL9: 12 | DM9: 1 | DN9: 2 | DO9: 3 | DP9: 4 | DQ9: 5 | DR9: 6 | DS9: 7 | DT9: 8 | DU9: 9 | DV9: 10 | DW9: 11 | DX9: 12 | DY9: 1 | DZ9: 2 | EA9: 3 | EB9: 4 | EC9: 5 | ED9: 6 | EE9: 7 | EF9: 8 | EG9: 9 | EH9: 10 | EI9: 11 | EJ9: 12 | EK9: 1 | EL9: 2 | EM9: 3 | EN9: 4 | EO9: 5 | EP9: 6 | EZ9: =IF(EZ12="","",MONTH(EZ12)) ->  | FA9: =IF(FA12="","",MONTH(FA12)) ->  | FB9: =IF(FB12="","",MONTH(FB12)) ->  | FC9: =IF(FC12="","",MONTH(FC12)) -> 
Y10: =START!$K$139 -> год даты окончания: | AA10: =IF(AA12="","",YEAR(AA12)-2000) -> 21 | AB10: =IF(AB12="","",YEAR(AB12)-2000) -> 21 | AC10: 21 | AD10: 21 | AE10: 21 | AF10: 21 | AG10: 22 | AH10: 22 | AI10: 22 | AJ10: 22 | AK10: 22 | AL10: 22 | AM10: 22 | AN10: 22 | AO10: 22 | AP10: 22 | AQ10: 22 | AR10: 22 | AS10: 23 | AT10: 23 | AU10: 23 | AV10: 23 | AW10: 23 | AX10: 23 | AY10: 23 | AZ10: 23 | BA10: 23 | BB10: 23 | BC10: 23 | BD10: 23 | BE10: 24 | BF10: 24 | BG10: 24 | BH10: 24 | BI10: 24 | BJ10: 24 | BK10: 24 | BL10: 24 | BM10: 24 | BN10: 24 | BO10: 24 | BP10: 24 | BQ10: 25 | BR10: 25 | BS10: 25 | BT10: 25 | BU10: 25 | BV10: 25 | BW10: 25 | BX10: 25 | BY10: 25 | BZ10: 25 | CA10: 25 | CB10: 25 | CC10: 26 | CD10: 26 | CE10: 26 | CF10: 26 | CG10: 26 | CH10: 26 | CI10: 26 | CJ10: 26 | CK10: 26 | CL10: 26 | CM10: 26 | CN10: =IF(CN12="","",YEAR(CN12)-2000) -> 26 | CO10: 27 | CP10: 27 | CQ10: 27 | CR10: 27 | CS10: 27 | CT10: 27 | CU10: 27 | CV10: 27 | CW10: 27 | CX10: 27 | CY10: 27 | CZ10: 27 | DA10: 28 | DB10: 28 | DC10: 28 | DD10: 28 | DE10: 28 | DF10: 28 | DG10: 28 | DH10: 28 | DI10: 28 | DJ10: 28 | DK10: 28 | DL10: 28 | DM10: 29 | DN10: 29 | DO10: 29 | DP10: 29 | DQ10: 29 | DR10: 29 | DS10: 29 | DT10: 29 | DU10: 29 | DV10: 29 | DW10: 29 | DX10: 29 | DY10: 30 | DZ10: 30 | EA10: 30 | EB10: 30 | EC10: 30 | ED10: 30 | EE10: 30 | EF10: 30 | EG10: 30 | EH10: 30 | EI10: 30 | EJ10: 30 | EK10: 31 | EL10: 31 | EM10: 31 | EN10: 31 | EO10: 31 | EP10: 31 | EZ10: =IF(EZ12="","",YEAR(EZ12)-2000) ->  | FA10: =IF(FA12="","",YEAR(FA12)-2000) ->  | FB10: =IF(FB12="","",YEAR(FB12)-2000) ->  | FC10: =IF(FC12="","",YEAR(FC12)-2000) -> 
C11: +7(985)201-6607 | F11: =INDIRECT("START!I29") -> Macro | I11: =INDIRECT("START!K29") -> Макропоказатели внешней среды | X11: =IF($Q$12=Lists!$U$16,IF(Periods!X20="","",Periods!X20),IF($Q$12=Lists!$U$17,IF(Periods!X35="","",Periods!X35),"")) -> 2021-07-01 | AA11: =IF($Q$12=Lists!$U$16,IF(Periods!AA20="","",Periods!AA20),IF($Q$12=Lists!$U$17,IF(Periods!AA35="","",Periods!AA35),"")) -> 2021-07-01 | AB11: =IF($Q$12=Lists!$U$16,IF(Periods!AB20="","",Periods!AB20),IF($Q$12=Lists!$U$17,IF(Periods!AB35="","",Periods!AB35),"")) -> 2021-08-01 | AC11: =IF($Q$12=Lists!$U$16,IF(Periods!AC20="","",Periods!AC20),IF($Q$12=Lists!$U$17,IF(Periods!AC35="","",Periods!AC35),"")) -> 2021-09-01 | AD11: =IF($Q$12=Lists!$U$16,IF(Periods!AD20="","",Periods!AD20),IF($Q$12=Lists!$U$17,IF(Periods!AD35="","",Periods!AD35),"")) -> 2021-10-01 | AE11: =IF($Q$12=Lists!$U$16,IF(Periods!AE20="","",Periods!AE20),IF($Q$12=Lists!$U$17,IF(Periods!AE35="","",Periods!AE35),"")) -> 2021-11-01 | AF11: =IF($Q$12=Lists!$U$16,IF(Periods!AF20="","",Periods!AF20),IF($Q$12=Lists!$U$17,IF(Periods!AF35="","",Periods!AF35),"")) -> 2021-12-01 | AG11: =IF($Q$12=Lists!$U$16,IF(Periods!AG20="","",Periods!AG20),IF($Q$12=Lists!$U$17,IF(Periods!AG35="","",Periods!AG35),"")) -> 2022-01-01 | AH11: =IF($Q$12=Lists!$U$16,IF(Periods!AH20="","",Periods!AH20),IF($Q$12=Lists!$U$17,IF(Periods!AH35="","",Periods!AH35),"")) -> 2022-02-01 | AI11: =IF($Q$12=Lists!$U$16,IF(Periods!AI20="","",Periods!AI20),IF($Q$12=Lists!$U$17,IF(Periods!AI35="","",Periods!AI35),"")) -> 2022-03-01 | AJ11: =IF($Q$12=Lists!$U$16,IF(Periods!AJ20="","",Periods!AJ20),IF($Q$12=Lists!$U$17,IF(Periods!AJ35="","",Periods!AJ35),"")) -> 2022-04-01 | AK11: =IF($Q$12=Lists!$U$16,IF(Periods!AK20="","",Periods!AK20),IF($Q$12=Lists!$U$17,IF(Periods!AK35="","",Periods!AK35),"")) -> 2022-05-01 | AL11: =IF($Q$12=Lists!$U$16,IF(Periods!AL20="","",Periods!AL20),IF($Q$12=Lists!$U$17,IF(Periods!AL35="","",Periods!AL35),"")) -> 2022-06-01 | AM11: =IF($Q$12=Lists!$U$16,IF(Periods!AM20="","",Periods!AM20),IF($Q$12=Lists!$U$17,IF(Periods!AM35="","",Periods!AM35),"")) -> 2022-07-01 | AN11: =IF($Q$12=Lists!$U$16,IF(Periods!AN20="","",Periods!AN20),IF($Q$12=Lists!$U$17,IF(Periods!AN35="","",Periods!AN35),"")) -> 2022-08-01 | AO11: =IF($Q$12=Lists!$U$16,IF(Periods!AO20="","",Periods!AO20),IF($Q$12=Lists!$U$17,IF(Periods!AO35="","",Periods!AO35),"")) -> 2022-09-01 | AP11: =IF($Q$12=Lists!$U$16,IF(Periods!AP20="","",Periods!AP20),IF($Q$12=Lists!$U$17,IF(Periods!AP35="","",Periods!AP35),"")) -> 2022-10-01 | AQ11: =IF($Q$12=Lists!$U$16,IF(Periods!AQ20="","",Periods!AQ20),IF($Q$12=Lists!$U$17,IF(Periods!AQ35="","",Periods!AQ35),"")) -> 2022-11-01 | AR11: =IF($Q$12=Lists!$U$16,IF(Periods!AR20="","",Periods!AR20),IF($Q$12=Lists!$U$17,IF(Periods!AR35="","",Periods!AR35),"")) -> 2022-12-01 | AS11: =IF($Q$12=Lists!$U$16,IF(Periods!AS20="","",Periods!AS20),IF($Q$12=Lists!$U$17,IF(Periods!AS35="","",Periods!AS35),"")) -> 2023-01-01 | AT11: =IF($Q$12=Lists!$U$16,IF(Periods!AT20="","",Periods!AT20),IF($Q$12=Lists!$U$17,IF(Periods!AT35="","",Periods!AT35),"")) -> 2023-02-01 | AU11: =IF($Q$12=Lists!$U$16,IF(Periods!AU20="","",Periods!AU20),IF($Q$12=Lists!$U$17,IF(Periods!AU35="","",Periods!AU35),"")) -> 2023-03-01 | AV11: =IF($Q$12=Lists!$U$16,IF(Periods!AV20="","",Periods!AV20),IF($Q$12=Lists!$U$17,IF(Periods!AV35="","",Periods!AV35),"")) -> 2023-04-01 | AW11: =IF($Q$12=Lists!$U$16,IF(Periods!AW20="","",Periods!AW20),IF($Q$12=Lists!$U$17,IF(Periods!AW35="","",Periods!AW35),"")) -> 2023-05-01 | AX11: =IF($Q$12=Lists!$U$16,IF(Periods!AX20="","",Periods!AX20),IF($Q$12=Lists!$U$17,IF(Periods!AX35="","",Periods!AX35),"")) -> 2023-06-01 | AY11: =IF($Q$12=Lists!$U$16,IF(Periods!AY20="","",Periods!AY20),IF($Q$12=Lists!$U$17,IF(Periods!AY35="","",Periods!AY35),"")) -> 2023-07-01 | AZ11: =IF($Q$12=Lists!$U$16,IF(Periods!AZ20="","",Periods!AZ20),IF($Q$12=Lists!$U$17,IF(Periods!AZ35="","",Periods!AZ35),"")) -> 2023-08-01 | BA11: =IF($Q$12=Lists!$U$16,IF(Periods!BA20="","",Periods!BA20),IF($Q$12=Lists!$U$17,IF(Periods!BA35="","",Periods!BA35),"")) -> 2023-09-01 | BB11: =IF($Q$12=Lists!$U$16,IF(Periods!BB20="","",Periods!BB20),IF($Q$12=Lists!$U$17,IF(Periods!BB35="","",Periods!BB35),"")) -> 2023-10-01 | BC11: =IF($Q$12=Lists!$U$16,IF(Periods!BC20="","",Periods!BC20),IF($Q$12=Lists!$U$17,IF(Periods!BC35="","",Periods!BC35),"")) -> 2023-11-01 | BD11: =IF($Q$12=Lists!$U$16,IF(Periods!BD20="","",Periods!BD20),IF($Q$12=Lists!$U$17,IF(Periods!BD35="","",Periods!BD35),"")) -> 2023-12-01 | BE11: =IF($Q$12=Lists!$U$16,IF(Periods!BE20="","",Periods!BE20),IF($Q$12=Lists!$U$17,IF(Periods!BE35="","",Periods!BE35),"")) -> 2024-01-01 | BF11: =IF($Q$12=Lists!$U$16,IF(Periods!BF20="","",Periods!BF20),IF($Q$12=Lists!$U$17,IF(Periods!BF35="","",Periods!BF35),"")) -> 2024-02-01 | BG11: =IF($Q$12=Lists!$U$16,IF(Periods!BG20="","",Periods!BG20),IF($Q$12=Lists!$U$17,IF(Periods!BG35="","",Periods!BG35),"")) -> 2024-03-01 | BH11: =IF($Q$12=Lists!$U$16,IF(Periods!BH20="","",Periods!BH20),IF($Q$12=Lists!$U$17,IF(Periods!BH35="","",Periods!BH35),"")) -> 2024-04-01 | BI11: =IF($Q$12=Lists!$U$16,IF(Periods!BI20="","",Periods!BI20),IF($Q$12=Lists!$U$17,IF(Periods!BI35="","",Periods!BI35),"")) -> 2024-05-01 | BJ11: =IF($Q$12=Lists!$U$16,IF(Periods!BJ20="","",Periods!BJ20),IF($Q$12=Lists!$U$17,IF(Periods!BJ35="","",Periods!BJ35),"")) -> 2024-06-01 | BK11: =IF($Q$12=Lists!$U$16,IF(Periods!BK20="","",Periods!BK20),IF($Q$12=Lists!$U$17,IF(Periods!BK35="","",Periods!BK35),"")) -> 2024-07-01 | BL11: =IF($Q$12=Lists!$U$16,IF(Periods!BL20="","",Periods!BL20),IF($Q$12=Lists!$U$17,IF(Periods!BL35="","",Periods!BL35),"")) -> 2024-08-01 | BM11: =IF($Q$12=Lists!$U$16,IF(Periods!BM20="","",Periods!BM20),IF($Q$12=Lists!$U$17,IF(Periods!BM35="","",Periods!BM35),"")) -> 2024-09-01 | BN11: =IF($Q$12=Lists!$U$16,IF(Periods!BN20="","",Periods!BN20),IF($Q$12=Lists!$U$17,IF(Periods!BN35="","",Periods!BN35),"")) -> 2024-10-01 | BO11: =IF($Q$12=Lists!$U$16,IF(Periods!BO20="","",Periods!BO20),IF($Q$12=Lists!$U$17,IF(Periods!BO35="","",Periods!BO35),"")) -> 2024-11-01 | BP11: =IF($Q$12=Lists!$U$16,IF(Periods!BP20="","",Periods!BP20),IF($Q$12=Lists!$U$17,IF(Periods!BP35="","",Periods!BP35),"")) -> 2024-12-01 | BQ11: =IF($Q$12=Lists!$U$16,IF(Periods!BQ20="","",Periods!BQ20),IF($Q$12=Lists!$U$17,IF(Periods!BQ35="","",Periods!BQ35),"")) -> 2025-01-01 | BR11: =IF($Q$12=Lists!$U$16,IF(Periods!BR20="","",Periods!BR20),IF($Q$12=Lists!$U$17,IF(Periods!BR35="","",Periods!BR35),"")) -> 2025-02-01 | BS11: =IF($Q$12=Lists!$U$16,IF(Periods!BS20="","",Periods!BS20),IF($Q$12=Lists!$U$17,IF(Periods!BS35="","",Periods!BS35),"")) -> 2025-03-01 | BT11: =IF($Q$12=Lists!$U$16,IF(Periods!BT20="","",Periods!BT20),IF($Q$12=Lists!$U$17,IF(Periods!BT35="","",Periods!BT35),"")) -> 2025-04-01 | BU11: =IF($Q$12=Lists!$U$16,IF(Periods!BU20="","",Periods!BU20),IF($Q$12=Lists!$U$17,IF(Periods!BU35="","",Periods!BU35),"")) -> 2025-05-01 | BV11: =IF($Q$12=Lists!$U$16,IF(Periods!BV20="","",Periods!BV20),IF($Q$12=Lists!$U$17,IF(Periods!BV35="","",Periods!BV35),"")) -> 2025-06-01 | BW11: =IF($Q$12=Lists!$U$16,IF(Periods!BW20="","",Periods!BW20),IF($Q$12=Lists!$U$17,IF(Periods!BW35="","",Periods!BW35),"")) -> 2025-07-01 | BX11: =IF($Q$12=Lists!$U$16,IF(Periods!BX20="","",Periods!BX20),IF($Q$12=Lists!$U$17,IF(Periods!BX35="","",Periods!BX35),"")) -> 2025-08-01 | BY11: =IF($Q$12=Lists!$U$16,IF(Periods!BY20="","",Periods!BY20),IF($Q$12=Lists!$U$17,IF(Periods!BY35="","",Periods!BY35),"")) -> 2025-09-01 | BZ11: =IF($Q$12=Lists!$U$16,IF(Periods!BZ20="","",Periods!BZ20),IF($Q$12=Lists!$U$17,IF(Periods!BZ35="","",Periods!BZ35),"")) -> 2025-10-01 | CA11: =IF($Q$12=Lists!$U$16,IF(Periods!CA20="","",Periods!CA20),IF($Q$12=Lists!$U$17,IF(Periods!CA35="","",Periods!CA35),"")) -> 2025-11-01 | CB11: =IF($Q$12=Lists!$U$16,IF(Periods!CB20="","",Periods!CB20),IF($Q$12=Lists!$U$17,IF(Periods!CB35="","",Periods!CB35),"")) -> 2025-12-01 | CC11: =IF($Q$12=Lists!$U$16,IF(Periods!CC20="","",Periods!CC20),IF($Q$12=Lists!$U$17,IF(Periods!CC35="","",Periods!CC35),"")) -> 2026-01-01 | CD11: =IF($Q$12=Lists!$U$16,IF(Periods!CD20="","",Periods!CD20),IF($Q$12=Lists!$U$17,IF(Periods!CD35="","",Periods!CD35),"")) -> 2026-02-01 | CE11: =IF($Q$12=Lists!$U$16,IF(Periods!CE20="","",Periods!CE20),IF($Q$12=Lists!$U$17,IF(Periods!CE35="","",Periods!CE35),"")) -> 2026-03-01 | CF11: =IF($Q$12=Lists!$U$16,IF(Periods!CF20="","",Periods!CF20),IF($Q$12=Lists!$U$17,IF(Periods!CF35="","",Periods!CF35),"")) -> 2026-04-01 | CG11: =IF($Q$12=Lists!$U$16,IF(Periods!CG20="","",Periods!CG20),IF($Q$12=Lists!$U$17,IF(Periods!CG35="","",Periods!CG35),"")) -> 2026-05-01 | CH11: =IF($Q$12=Lists!$U$16,IF(Periods!CH20="","",Periods!CH20),IF($Q$12=Lists!$U$17,IF(Periods!CH35="","",Periods!CH35),"")) -> 2026-06-01 | CI11: =IF($Q$12=Lists!$U$16,IF(Periods!CI20="","",Periods!CI20),IF($Q$12=Lists!$U$17,IF(Periods!CI35="","",Periods!CI35),"")) -> 2026-07-01 | CJ11: =IF($Q$12=Lists!$U$16,IF(Periods!CJ20="","",Periods!CJ20),IF($Q$12=Lists!$U$17,IF(Periods!CJ35="","",Periods!CJ35),"")) -> 2026-08-01 | CK11: =IF($Q$12=Lists!$U$16,IF(Periods!CK20="","",Periods!CK20),IF($Q$12=Lists!$U$17,IF(Periods!CK35="","",Periods!CK35),"")) -> 2026-09-01 | CL11: =IF($Q$12=Lists!$U$16,IF(Periods!CL20="","",Periods!CL20),IF($Q$12=Lists!$U$17,IF(Periods!CL35="","",Periods!CL35),"")) -> 2026-10-01 | CM11: =IF($Q$12=Lists!$U$16,IF(Periods!CM20="","",Periods!CM20),IF($Q$12=Lists!$U$17,IF(Periods!CM35="","",Periods!CM35),"")) -> 2026-11-01 | CN11: =IF($Q$12=Lists!$U$16,IF(Periods!CN20="","",Periods!CN20),IF($Q$12=Lists!$U$17,IF(Periods!CN35="","",Periods!CN35),"")) -> 2026-12-01 | CO11: =IF($Q$12=Lists!$U$16,IF(Periods!CO20="","",Periods!CO20),IF($Q$12=Lists!$U$17,IF(Periods!CO35="","",Periods!CO35),"")) -> 2027-01-01 | CP11: =IF($Q$12=Lists!$U$16,IF(Periods!CP20="","",Periods!CP20),IF($Q$12=Lists!$U$17,IF(Periods!CP35="","",Periods!CP35),"")) -> 2027-02-01 | CQ11: =IF($Q$12=Lists!$U$16,IF(Periods!CQ20="","",Periods!CQ20),IF($Q$12=Lists!$U$17,IF(Periods!CQ35="","",Periods!CQ35),"")) -> 2027-03-01 | CR11: =IF($Q$12=Lists!$U$16,IF(Periods!CR20="","",Periods!CR20),IF($Q$12=Lists!$U$17,IF(Periods!CR35="","",Periods!CR35),"")) -> 2027-04-01 | CS11: =IF($Q$12=Lists!$U$16,IF(Periods!CS20="","",Periods!CS20),IF($Q$12=Lists!$U$17,IF(Periods!CS35="","",Periods!CS35),"")) -> 2027-05-01 | CT11: =IF($Q$12=Lists!$U$16,IF(Periods!CT20="","",Periods!CT20),IF($Q$12=Lists!$U$17,IF(Periods!CT35="","",Periods!CT35),"")) -> 2027-06-01 | CU11: =IF($Q$12=Lists!$U$16,IF(Periods!CU20="","",Periods!CU20),IF($Q$12=Lists!$U$17,IF(Periods!CU35="","",Periods!CU35),"")) -> 2027-07-01 | CV11: =IF($Q$12=Lists!$U$16,IF(Periods!CV20="","",Periods!CV20),IF($Q$12=Lists!$U$17,IF(Periods!CV35="","",Periods!CV35),"")) -> 2027-08-01 | CW11: =IF($Q$12=Lists!$U$16,IF(Periods!CW20="","",Periods!CW20),IF($Q$12=Lists!$U$17,IF(Periods!CW35="","",Periods!CW35),"")) -> 2027-09-01 | CX11: =IF($Q$12=Lists!$U$16,IF(Periods!CX20="","",Periods!CX20),IF($Q$12=Lists!$U$17,IF(Periods!CX35="","",Periods!CX35),"")) -> 2027-10-01 | CY11: =IF($Q$12=Lists!$U$16,IF(Periods!CY20="","",Periods!CY20),IF($Q$12=Lists!$U$17,IF(Periods!CY35="","",Periods!CY35),"")) -> 2027-11-01 | CZ11: =IF($Q$12=Lists!$U$16,IF(Periods!CZ20="","",Periods!CZ20),IF($Q$12=Lists!$U$17,IF(Periods!CZ35="","",Periods!CZ35),"")) -> 2027-12-01 | DA11: =IF($Q$12=Lists!$U$16,IF(Periods!DA20="","",Periods!DA20),IF($Q$12=Lists!$U$17,IF(Periods!DA35="","",Periods!DA35),"")) -> 2028-01-01 | DB11: =IF($Q$12=Lists!$U$16,IF(Periods!DB20="","",Periods!DB20),IF($Q$12=Lists!$U$17,IF(Periods!DB35="","",Periods!DB35),"")) -> 2028-02-01 | DC11: =IF($Q$12=Lists!$U$16,IF(Periods!DC20="","",Periods!DC20),IF($Q$12=Lists!$U$17,IF(Periods!DC35="","",Periods!DC35),"")) -> 2028-03-01 | DD11: =IF($Q$12=Lists!$U$16,IF(Periods!DD20="","",Periods!DD20),IF($Q$12=Lists!$U$17,IF(Periods!DD35="","",Periods!DD35),"")) -> 2028-04-01 | DE11: =IF($Q$12=Lists!$U$16,IF(Periods!DE20="","",Periods!DE20),IF($Q$12=Lists!$U$17,IF(Periods!DE35="","",Periods!DE35),"")) -> 2028-05-01 | DF11: =IF($Q$12=Lists!$U$16,IF(Periods!DF20="","",Periods!DF20),IF($Q$12=Lists!$U$17,IF(Periods!DF35="","",Periods!DF35),"")) -> 2028-06-01 | DG11: =IF($Q$12=Lists!$U$16,IF(Periods!DG20="","",Periods!DG20),IF($Q$12=Lists!$U$17,IF(Periods!DG35="","",Periods!DG35),"")) -> 2028-07-01 | DH11: =IF($Q$12=Lists!$U$16,IF(Periods!DH20="","",Periods!DH20),IF($Q$12=Lists!$U$17,IF(Periods!DH35="","",Periods!DH35),"")) -> 2028-08-01 | DI11: =IF($Q$12=Lists!$U$16,IF(Periods!DI20="","",Periods!DI20),IF($Q$12=Lists!$U$17,IF(Periods!DI35="","",Periods!DI35),"")) -> 2028-09-01 | DJ11: =IF($Q$12=Lists!$U$16,IF(Periods!DJ20="","",Periods!DJ20),IF($Q$12=Lists!$U$17,IF(Periods!DJ35="","",Periods!DJ35),"")) -> 2028-10-01 | DK11: =IF($Q$12=Lists!$U$16,IF(Periods!DK20="","",Periods!DK20),IF($Q$12=Lists!$U$17,IF(Periods!DK35="","",Periods!DK35),"")) -> 2028-11-01 | DL11: =IF($Q$12=Lists!$U$16,IF(Periods!DL20="","",Periods!DL20),IF($Q$12=Lists!$U$17,IF(Periods!DL35="","",Periods!DL35),"")) -> 2028-12-01 | DM11: =IF($Q$12=Lists!$U$16,IF(Periods!DM20="","",Periods!DM20),IF($Q$12=Lists!$U$17,IF(Periods!DM35="","",Periods!DM35),"")) -> 2029-01-01 | DN11: =IF($Q$12=Lists!$U$16,IF(Periods!DN20="","",Periods!DN20),IF($Q$12=Lists!$U$17,IF(Periods!DN35="","",Periods!DN35),"")) -> 2029-02-01 | DO11: =IF($Q$12=Lists!$U$16,IF(Periods!DO20="","",Periods!DO20),IF($Q$12=Lists!$U$17,IF(Periods!DO35="","",Periods!DO35),"")) -> 2029-03-01 | DP11: =IF($Q$12=Lists!$U$16,IF(Periods!DP20="","",Periods!DP20),IF($Q$12=Lists!$U$17,IF(Periods!DP35="","",Periods!DP35),"")) -> 2029-04-01 | DQ11: =IF($Q$12=Lists!$U$16,IF(Periods!DQ20="","",Periods!DQ20),IF($Q$12=Lists!$U$17,IF(Periods!DQ35="","",Periods!DQ35),"")) -> 2029-05-01 | DR11: =IF($Q$12=Lists!$U$16,IF(Periods!DR20="","",Periods!DR20),IF($Q$12=Lists!$U$17,IF(Periods!DR35="","",Periods!DR35),"")) -> 2029-06-01 | DS11: =IF($Q$12=Lists!$U$16,IF(Periods!DS20="","",Periods!DS20),IF($Q$12=Lists!$U$17,IF(Periods!DS35="","",Periods!DS35),"")) -> 2029-07-01 | DT11: =IF($Q$12=Lists!$U$16,IF(Periods!DT20="","",Periods!DT20),IF($Q$12=Lists!$U$17,IF(Periods!DT35="","",Periods!DT35),"")) -> 2029-08-01 | DU11: =IF($Q$12=Lists!$U$16,IF(Periods!DU20="","",Periods!DU20),IF($Q$12=Lists!$U$17,IF(Periods!DU35="","",Periods!DU35),"")) -> 2029-09-01 | DV11: =IF($Q$12=Lists!$U$16,IF(Periods!DV20="","",Periods!DV20),IF($Q$12=Lists!$U$17,IF(Periods!DV35="","",Periods!DV35),"")) -> 2029-10-01 | DW11: =IF($Q$12=Lists!$U$16,IF(Periods!DW20="","",Periods!DW20),IF($Q$12=Lists!$U$17,IF(Periods!DW35="","",Periods!DW35),"")) -> 2029-11-01 | DX11: =IF($Q$12=Lists!$U$16,IF(Periods!DX20="","",Periods!DX20),IF($Q$12=Lists!$U$17,IF(Periods!DX35="","",Periods!DX35),"")) -> 2029-12-01 | DY11: =IF($Q$12=Lists!$U$16,IF(Periods!DY20="","",Periods!DY20),IF($Q$12=Lists!$U$17,IF(Periods!DY35="","",Periods!DY35),"")) -> 2030-01-01 | DZ11: =IF($Q$12=Lists!$U$16,IF(Periods!DZ20="","",Periods!DZ20),IF($Q$12=Lists!$U$17,IF(Periods!DZ35="","",Periods!DZ35),"")) -> 2030-02-01 | EA11: =IF($Q$12=Lists!$U$16,IF(Periods!EA20="","",Periods!EA20),IF($Q$12=Lists!$U$17,IF(Periods!EA35="","",Periods!EA35),"")) -> 2030-03-01 | EB11: =IF($Q$12=Lists!$U$16,IF(Periods!EB20="","",Periods!EB20),IF($Q$12=Lists!$U$17,IF(Periods!EB35="","",Periods!EB35),"")) -> 2030-04-01 | EC11: =IF($Q$12=Lists!$U$16,IF(Periods!EC20="","",Periods!EC20),IF($Q$12=Lists!$U$17,IF(Periods!EC35="","",Periods!EC35),"")) -> 2030-05-01 | ED11: =IF($Q$12=Lists!$U$16,IF(Periods!ED20="","",Periods!ED20),IF($Q$12=Lists!$U$17,IF(Periods!ED35="","",Periods!ED35),"")) -> 2030-06-01 | EE11: =IF($Q$12=Lists!$U$16,IF(Periods!EE20="","",Periods!EE20),IF($Q$12=Lists!$U$17,IF(Periods!EE35="","",Periods!EE35),"")) -> 2030-07-01 | EF11: =IF($Q$12=Lists!$U$16,IF(Periods!EF20="","",Periods!EF20),IF($Q$12=Lists!$U$17,IF(Periods!EF35="","",Periods!EF35),"")) -> 2030-08-01 | EG11: =IF($Q$12=Lists!$U$16,IF(Periods!EG20="","",Periods!EG20),IF($Q$12=Lists!$U$17,IF(Periods!EG35="","",Periods!EG35),"")) -> 2030-09-01 | EH11: =IF($Q$12=Lists!$U$16,IF(Periods!EH20="","",Periods!EH20),IF($Q$12=Lists!$U$17,IF(Periods!EH35="","",Periods!EH35),"")) -> 2030-10-01 | EI11: =IF($Q$12=Lists!$U$16,IF(Periods!EI20="","",Periods!EI20),IF($Q$12=Lists!$U$17,IF(Periods!EI35="","",Periods!EI35),"")) -> 2030-11-01 | EJ11: =IF($Q$12=Lists!$U$16,IF(Periods!EJ20="","",Periods!EJ20),IF($Q$12=Lists!$U$17,IF(Periods!EJ35="","",Periods!EJ35),"")) -> 2030-12-01 | EK11: =IF($Q$12=Lists!$U$16,IF(Periods!EK20="","",Periods!EK20),IF($Q$12=Lists!$U$17,IF(Periods!EK35="","",Periods!EK35),"")) -> 2031-01-01 | EL11: =IF($Q$12=Lists!$U$16,IF(Periods!EL20="","",Periods!EL20),IF($Q$12=Lists!$U$17,IF(Periods!EL35="","",Periods!EL35),"")) -> 2031-02-01 | EM11: =IF($Q$12=Lists!$U$16,IF(Periods!EM20="","",Periods!EM20),IF($Q$12=Lists!$U$17,IF(Periods!EM35="","",Periods!EM35),"")) -> 2031-03-01 | EN11: =IF($Q$12=Lists!$U$16,IF(Periods!EN20="","",Periods!EN20),IF($Q$12=Lists!$U$17,IF(Periods!EN35="","",Periods!EN35),"")) -> 2031-04-01 | EO11: =IF($Q$12=Lists!$U$16,IF(Periods!EO20="","",Periods!EO20),IF($Q$12=Lists!$U$17,IF(Periods!EO35="","",Periods!EO35),"")) -> 2031-05-01 | EP11: =IF($Q$12=Lists!$U$16,IF(Periods!EP20="","",Periods!EP20),IF($Q$12=Lists!$U$17,IF(Periods!EP35="","",Periods!EP35),"")) -> 2031-06-01 | EQ11: =IF($Q$12=Lists!$U$16,IF(Periods!EQ20="","",Periods!EQ20),IF($Q$12=Lists!$U$17,IF(Periods!EQ35="","",Periods!EQ35),"")) ->  | ER11: =IF($Q$12=Lists!$U$16,IF(Periods!ER20="","",Periods!ER20),IF($Q$12=Lists!$U$17,IF(Periods!ER35="","",Periods!ER35),"")) ->  | ES11: =IF($Q$12=Lists!$U$16,IF(Periods!ES20="","",Periods!ES20),IF($Q$12=Lists!$U$17,IF(Periods!ES35="","",Periods!ES35),"")) ->  | ET11: =IF($Q$12=Lists!$U$16,IF(Periods!ET20="","",Periods!ET20),IF($Q$12=Lists!$U$17,IF(Periods!ET35="","",Periods!ET35),"")) ->  | EU11: =IF($Q$12=Lists!$U$16,IF(Periods!EU20="","",Periods!EU20),IF($Q$12=Lists!$U$17,IF(Periods!EU35="","",Periods!EU35),"")) ->  | EV11: =IF($Q$12=Lists!$U$16,IF(Periods!EV20="","",Periods!EV20),IF($Q$12=Lists!$U$17,IF(Periods!EV35="","",Periods!EV35),"")) ->  | EW11: =IF($Q$12=Lists!$U$16,IF(Periods!EW20="","",Periods!EW20),IF($Q$12=Lists!$U$17,IF(Periods!EW35="","",Periods!EW35),"")) ->  | EX11: =IF($Q$12=Lists!$U$16,IF(Periods!EX20="","",Periods!EX20),IF($Q$12=Lists!$U$17,IF(Periods!EX35="","",Periods!EX35),"")) ->  | EY11: =IF($Q$12=Lists!$U$16,IF(Periods!EY20="","",Periods!EY20),IF($Q$12=Lists!$U$17,IF(Periods!EY35="","",Periods!EY35),"")) ->  | EZ11: =IF($Q$12=Lists!$U$16,IF(Periods!EZ20="","",Periods!EZ20),IF($Q$12=Lists!$U$17,IF(Periods!EZ35="","",Periods!EZ35),"")) ->  | FA11: =IF($Q$12=Lists!$U$16,IF(Periods!FA20="","",Periods!FA20),IF($Q$12=Lists!$U$17,IF(Periods!FA35="","",Periods!FA35),"")) ->  | FB11: =IF($Q$12=Lists!$U$16,IF(Periods!FB20="","",Periods!FB20),IF($Q$12=Lists!$U$17,IF(Periods!FB35="","",Periods!FB35),"")) ->  | FC11: =IF($Q$12=Lists!$U$16,IF(Periods!FC20="","",Periods!FC20),IF($Q$12=Lists!$U$17,IF(Periods!FC35="","",Periods!FC35),"")) -> 
H12: =Lists!$U$13 -> тип листа | Q12: =INDEX(Cntrl!$Q:$Q,SUMIFS(Cntrl!$A:$A,Cntrl!$I:$I,$F$11)) -> расчетный | X12: =IF($Q$12=Lists!$U$16,IF(Periods!X21="","",Periods!X21),IF($Q$12=Lists!$U$17,IF(Periods!X36="","",Periods!X36),"")) -> 2031-06-30 | AA12: =IF($Q$12=Lists!$U$16,IF(Periods!AA21="","",Periods!AA21),IF($Q$12=Lists!$U$17,IF(Periods!AA36="","",Periods!AA36),"")) -> 2021-07-31 | AB12: =IF($Q$12=Lists!$U$16,IF(Periods!AB21="","",Periods!AB21),IF($Q$12=Lists!$U$17,IF(Periods!AB36="","",Periods!AB36),"")) -> 2021-08-31 | AC12: =IF($Q$12=Lists!$U$16,IF(Periods!AC21="","",Periods!AC21),IF($Q$12=Lists!$U$17,IF(Periods!AC36="","",Periods!AC36),"")) -> 2021-09-30 | AD12: =IF($Q$12=Lists!$U$16,IF(Periods!AD21="","",Periods!AD21),IF($Q$12=Lists!$U$17,IF(Periods!AD36="","",Periods!AD36),"")) -> 2021-10-31 | AE12: =IF($Q$12=Lists!$U$16,IF(Periods!AE21="","",Periods!AE21),IF($Q$12=Lists!$U$17,IF(Periods!AE36="","",Periods!AE36),"")) -> 2021-11-30 | AF12: =IF($Q$12=Lists!$U$16,IF(Periods!AF21="","",Periods!AF21),IF($Q$12=Lists!$U$17,IF(Periods!AF36="","",Periods!AF36),"")) -> 2021-12-31 | AG12: =IF($Q$12=Lists!$U$16,IF(Periods!AG21="","",Periods!AG21),IF($Q$12=Lists!$U$17,IF(Periods!AG36="","",Periods!AG36),"")) -> 2022-01-31 | AH12: =IF($Q$12=Lists!$U$16,IF(Periods!AH21="","",Periods!AH21),IF($Q$12=Lists!$U$17,IF(Periods!AH36="","",Periods!AH36),"")) -> 2022-02-28 | AI12: =IF($Q$12=Lists!$U$16,IF(Periods!AI21="","",Periods!AI21),IF($Q$12=Lists!$U$17,IF(Periods!AI36="","",Periods!AI36),"")) -> 2022-03-31 | AJ12: =IF($Q$12=Lists!$U$16,IF(Periods!AJ21="","",Periods!AJ21),IF($Q$12=Lists!$U$17,IF(Periods!AJ36="","",Periods!AJ36),"")) -> 2022-04-30 | AK12: =IF($Q$12=Lists!$U$16,IF(Periods!AK21="","",Periods!AK21),IF($Q$12=Lists!$U$17,IF(Periods!AK36="","",Periods!AK36),"")) -> 2022-05-31 | AL12: =IF($Q$12=Lists!$U$16,IF(Periods!AL21="","",Periods!AL21),IF($Q$12=Lists!$U$17,IF(Periods!AL36="","",Periods!AL36),"")) -> 2022-06-30 | AM12: =IF($Q$12=Lists!$U$16,IF(Periods!AM21="","",Periods!AM21),IF($Q$12=Lists!$U$17,IF(Periods!AM36="","",Periods!AM36),"")) -> 2022-07-31 | AN12: =IF($Q$12=Lists!$U$16,IF(Periods!AN21="","",Periods!AN21),IF($Q$12=Lists!$U$17,IF(Periods!AN36="","",Periods!AN36),"")) -> 2022-08-31 | AO12: =IF($Q$12=Lists!$U$16,IF(Periods!AO21="","",Periods!AO21),IF($Q$12=Lists!$U$17,IF(Periods!AO36="","",Periods!AO36),"")) -> 2022-09-30 | AP12: =IF($Q$12=Lists!$U$16,IF(Periods!AP21="","",Periods!AP21),IF($Q$12=Lists!$U$17,IF(Periods!AP36="","",Periods!AP36),"")) -> 2022-10-31 | AQ12: =IF($Q$12=Lists!$U$16,IF(Periods!AQ21="","",Periods!AQ21),IF($Q$12=Lists!$U$17,IF(Periods!AQ36="","",Periods!AQ36),"")) -> 2022-11-30 | AR12: =IF($Q$12=Lists!$U$16,IF(Periods!AR21="","",Periods!AR21),IF($Q$12=Lists!$U$17,IF(Periods!AR36="","",Periods!AR36),"")) -> 2022-12-31 | AS12: =IF($Q$12=Lists!$U$16,IF(Periods!AS21="","",Periods!AS21),IF($Q$12=Lists!$U$17,IF(Periods!AS36="","",Periods!AS36),"")) -> 2023-01-31 | AT12: =IF($Q$12=Lists!$U$16,IF(Periods!AT21="","",Periods!AT21),IF($Q$12=Lists!$U$17,IF(Periods!AT36="","",Periods!AT36),"")) -> 2023-02-28 | AU12: =IF($Q$12=Lists!$U$16,IF(Periods!AU21="","",Periods!AU21),IF($Q$12=Lists!$U$17,IF(Periods!AU36="","",Periods!AU36),"")) -> 2023-03-31 | AV12: =IF($Q$12=Lists!$U$16,IF(Periods!AV21="","",Periods!AV21),IF($Q$12=Lists!$U$17,IF(Periods!AV36="","",Periods!AV36),"")) -> 2023-04-30 | AW12: =IF($Q$12=Lists!$U$16,IF(Periods!AW21="","",Periods!AW21),IF($Q$12=Lists!$U$17,IF(Periods!AW36="","",Periods!AW36),"")) -> 2023-05-31 | AX12: =IF($Q$12=Lists!$U$16,IF(Periods!AX21="","",Periods!AX21),IF($Q$12=Lists!$U$17,IF(Periods!AX36="","",Periods!AX36),"")) -> 2023-06-30 | AY12: =IF($Q$12=Lists!$U$16,IF(Periods!AY21="","",Periods!AY21),IF($Q$12=Lists!$U$17,IF(Periods!AY36="","",Periods!AY36),"")) -> 2023-07-31 | AZ12: =IF($Q$12=Lists!$U$16,IF(Periods!AZ21="","",Periods!AZ21),IF($Q$12=Lists!$U$17,IF(Periods!AZ36="","",Periods!AZ36),"")) -> 2023-08-31 | BA12: =IF($Q$12=Lists!$U$16,IF(Periods!BA21="","",Periods!BA21),IF($Q$12=Lists!$U$17,IF(Periods!BA36="","",Periods!BA36),"")) -> 2023-09-30 | BB12: =IF($Q$12=Lists!$U$16,IF(Periods!BB21="","",Periods!BB21),IF($Q$12=Lists!$U$17,IF(Periods!BB36="","",Periods!BB36),"")) -> 2023-10-31 | BC12: =IF($Q$12=Lists!$U$16,IF(Periods!BC21="","",Periods!BC21),IF($Q$12=Lists!$U$17,IF(Periods!BC36="","",Periods!BC36),"")) -> 2023-11-30 | BD12: =IF($Q$12=Lists!$U$16,IF(Periods!BD21="","",Periods!BD21),IF($Q$12=Lists!$U$17,IF(Periods!BD36="","",Periods!BD36),"")) -> 2023-12-31 | BE12: =IF($Q$12=Lists!$U$16,IF(Periods!BE21="","",Periods!BE21),IF($Q$12=Lists!$U$17,IF(Periods!BE36="","",Periods!BE36),"")) -> 2024-01-31 | BF12: =IF($Q$12=Lists!$U$16,IF(Periods!BF21="","",Periods!BF21),IF($Q$12=Lists!$U$17,IF(Periods!BF36="","",Periods!BF36),"")) -> 2024-02-29 | BG12: =IF($Q$12=Lists!$U$16,IF(Periods!BG21="","",Periods!BG21),IF($Q$12=Lists!$U$17,IF(Periods!BG36="","",Periods!BG36),"")) -> 2024-03-31 | BH12: =IF($Q$12=Lists!$U$16,IF(Periods!BH21="","",Periods!BH21),IF($Q$12=Lists!$U$17,IF(Periods!BH36="","",Periods!BH36),"")) -> 2024-04-30 | BI12: =IF($Q$12=Lists!$U$16,IF(Periods!BI21="","",Periods!BI21),IF($Q$12=Lists!$U$17,IF(Periods!BI36="","",Periods!BI36),"")) -> 2024-05-31 | BJ12: =IF($Q$12=Lists!$U$16,IF(Periods!BJ21="","",Periods!BJ21),IF($Q$12=Lists!$U$17,IF(Periods!BJ36="","",Periods!BJ36),"")) -> 2024-06-30 | BK12: =IF($Q$12=Lists!$U$16,IF(Periods!BK21="","",Periods!BK21),IF($Q$12=Lists!$U$17,IF(Periods!BK36="","",Periods!BK36),"")) -> 2024-07-31 | BL12: =IF($Q$12=Lists!$U$16,IF(Periods!BL21="","",Periods!BL21),IF($Q$12=Lists!$U$17,IF(Periods!BL36="","",Periods!BL36),"")) -> 2024-08-31 | BM12: =IF($Q$12=Lists!$U$16,IF(Periods!BM21="","",Periods!BM21),IF($Q$12=Lists!$U$17,IF(Periods!BM36="","",Periods!BM36),"")) -> 2024-09-30 | BN12: =IF($Q$12=Lists!$U$16,IF(Periods!BN21="","",Periods!BN21),IF($Q$12=Lists!$U$17,IF(Periods!BN36="","",Periods!BN36),"")) -> 2024-10-31 | BO12: =IF($Q$12=Lists!$U$16,IF(Periods!BO21="","",Periods!BO21),IF($Q$12=Lists!$U$17,IF(Periods!BO36="","",Periods!BO36),"")) -> 2024-11-30 | BP12: =IF($Q$12=Lists!$U$16,IF(Periods!BP21="","",Periods!BP21),IF($Q$12=Lists!$U$17,IF(Periods!BP36="","",Periods!BP36),"")) -> 2024-12-31 | BQ12: =IF($Q$12=Lists!$U$16,IF(Periods!BQ21="","",Periods!BQ21),IF($Q$12=Lists!$U$17,IF(Periods!BQ36="","",Periods!BQ36),"")) -> 2025-01-31 | BR12: =IF($Q$12=Lists!$U$16,IF(Periods!BR21="","",Periods!BR21),IF($Q$12=Lists!$U$17,IF(Periods!BR36="","",Periods!BR36),"")) -> 2025-02-28 | BS12: =IF($Q$12=Lists!$U$16,IF(Periods!BS21="","",Periods!BS21),IF($Q$12=Lists!$U$17,IF(Periods!BS36="","",Periods!BS36),"")) -> 2025-03-31 | BT12: =IF($Q$12=Lists!$U$16,IF(Periods!BT21="","",Periods!BT21),IF($Q$12=Lists!$U$17,IF(Periods!BT36="","",Periods!BT36),"")) -> 2025-04-30 | BU12: =IF($Q$12=Lists!$U$16,IF(Periods!BU21="","",Periods!BU21),IF($Q$12=Lists!$U$17,IF(Periods!BU36="","",Periods!BU36),"")) -> 2025-05-31 | BV12: =IF($Q$12=Lists!$U$16,IF(Periods!BV21="","",Periods!BV21),IF($Q$12=Lists!$U$17,IF(Periods!BV36="","",Periods!BV36),"")) -> 2025-06-30 | BW12: =IF($Q$12=Lists!$U$16,IF(Periods!BW21="","",Periods!BW21),IF($Q$12=Lists!$U$17,IF(Periods!BW36="","",Periods!BW36),"")) -> 2025-07-31 | BX12: =IF($Q$12=Lists!$U$16,IF(Periods!BX21="","",Periods!BX21),IF($Q$12=Lists!$U$17,IF(Periods!BX36="","",Periods!BX36),"")) -> 2025-08-31 | BY12: =IF($Q$12=Lists!$U$16,IF(Periods!BY21="","",Periods!BY21),IF($Q$12=Lists!$U$17,IF(Periods!BY36="","",Periods!BY36),"")) -> 2025-09-30 | BZ12: =IF($Q$12=Lists!$U$16,IF(Periods!BZ21="","",Periods!BZ21),IF($Q$12=Lists!$U$17,IF(Periods!BZ36="","",Periods!BZ36),"")) -> 2025-10-31 | CA12: =IF($Q$12=Lists!$U$16,IF(Periods!CA21="","",Periods!CA21),IF($Q$12=Lists!$U$17,IF(Periods!CA36="","",Periods!CA36),"")) -> 2025-11-30 | CB12: =IF($Q$12=Lists!$U$16,IF(Periods!CB21="","",Periods!CB21),IF($Q$12=Lists!$U$17,IF(Periods!CB36="","",Periods!CB36),"")) -> 2025-12-31 | CC12: =IF($Q$12=Lists!$U$16,IF(Periods!CC21="","",Periods!CC21),IF($Q$12=Lists!$U$17,IF(Periods!CC36="","",Periods!CC36),"")) -> 2026-01-31 | CD12: =IF($Q$12=Lists!$U$16,IF(Periods!CD21="","",Periods!CD21),IF($Q$12=Lists!$U$17,IF(Periods!CD36="","",Periods!CD36),"")) -> 2026-02-28 | CE12: =IF($Q$12=Lists!$U$16,IF(Periods!CE21="","",Periods!CE21),IF($Q$12=Lists!$U$17,IF(Periods!CE36="","",Periods!CE36),"")) -> 2026-03-31 | CF12: =IF($Q$12=Lists!$U$16,IF(Periods!CF21="","",Periods!CF21),IF($Q$12=Lists!$U$17,IF(Periods!CF36="","",Periods!CF36),"")) -> 2026-04-30 | CG12: =IF($Q$12=Lists!$U$16,IF(Periods!CG21="","",Periods!CG21),IF($Q$12=Lists!$U$17,IF(Periods!CG36="","",Periods!CG36),"")) -> 2026-05-31 | CH12: =IF($Q$12=Lists!$U$16,IF(Periods!CH21="","",Periods!CH21),IF($Q$12=Lists!$U$17,IF(Periods!CH36="","",Periods!CH36),"")) -> 2026-06-30 | CI12: =IF($Q$12=Lists!$U$16,IF(Periods!CI21="","",Periods!CI21),IF($Q$12=Lists!$U$17,IF(Periods!CI36="","",Periods!CI36),"")) -> 2026-07-31 | CJ12: =IF($Q$12=Lists!$U$16,IF(Periods!CJ21="","",Periods!CJ21),IF($Q$12=Lists!$U$17,IF(Periods!CJ36="","",Periods!CJ36),"")) -> 2026-08-31 | CK12: =IF($Q$12=Lists!$U$16,IF(Periods!CK21="","",Periods!CK21),IF($Q$12=Lists!$U$17,IF(Periods!CK36="","",Periods!CK36),"")) -> 2026-09-30 | CL12: =IF($Q$12=Lists!$U$16,IF(Periods!CL21="","",Periods!CL21),IF($Q$12=Lists!$U$17,IF(Periods!CL36="","",Periods!CL36),"")) -> 2026-10-31 | CM12: =IF($Q$12=Lists!$U$16,IF(Periods!CM21="","",Periods!CM21),IF($Q$12=Lists!$U$17,IF(Periods!CM36="","",Periods!CM36),"")) -> 2026-11-30 | CN12: =IF($Q$12=Lists!$U$16,IF(Periods!CN21="","",Periods!CN21),IF($Q$12=Lists!$U$17,IF(Periods!CN36="","",Periods!CN36),"")) -> 2026-12-31 | CO12: =IF($Q$12=Lists!$U$16,IF(Periods!CO21="","",Periods!CO21),IF($Q$12=Lists!$U$17,IF(Periods!CO36="","",Periods!CO36),"")) -> 2027-01-31 | CP12: =IF($Q$12=Lists!$U$16,IF(Periods!CP21="","",Periods!CP21),IF($Q$12=Lists!$U$17,IF(Periods!CP36="","",Periods!CP36),"")) -> 2027-02-28 | CQ12: =IF($Q$12=Lists!$U$16,IF(Periods!CQ21="","",Periods!CQ21),IF($Q$12=Lists!$U$17,IF(Periods!CQ36="","",Periods!CQ36),"")) -> 2027-03-31 | CR12: =IF($Q$12=Lists!$U$16,IF(Periods!CR21="","",Periods!CR21),IF($Q$12=Lists!$U$17,IF(Periods!CR36="","",Periods!CR36),"")) -> 2027-04-30 | CS12: =IF($Q$12=Lists!$U$16,IF(Periods!CS21="","",Periods!CS21),IF($Q$12=Lists!$U$17,IF(Periods!CS36="","",Periods!CS36),"")) -> 2027-05-31 | CT12: =IF($Q$12=Lists!$U$16,IF(Periods!CT21="","",Periods!CT21),IF($Q$12=Lists!$U$17,IF(Periods!CT36="","",Periods!CT36),"")) -> 2027-06-30 | CU12: =IF($Q$12=Lists!$U$16,IF(Periods!CU21="","",Periods!CU21),IF($Q$12=Lists!$U$17,IF(Periods!CU36="","",Periods!CU36),"")) -> 2027-07-31 | CV12: =IF($Q$12=Lists!$U$16,IF(Periods!CV21="","",Periods!CV21),IF($Q$12=Lists!$U$17,IF(Periods!CV36="","",Periods!CV36),"")) -> 2027-08-31 | CW12: =IF($Q$12=Lists!$U$16,IF(Periods!CW21="","",Periods!CW21),IF($Q$12=Lists!$U$17,IF(Periods!CW36="","",Periods!CW36),"")) -> 2027-09-30 | CX12: =IF($Q$12=Lists!$U$16,IF(Periods!CX21="","",Periods!CX21),IF($Q$12=Lists!$U$17,IF(Periods!CX36="","",Periods!CX36),"")) -> 2027-10-31 | CY12: =IF($Q$12=Lists!$U$16,IF(Periods!CY21="","",Periods!CY21),IF($Q$12=Lists!$U$17,IF(Periods!CY36="","",Periods!CY36),"")) -> 2027-11-30 | CZ12: =IF($Q$12=Lists!$U$16,IF(Periods!CZ21="","",Periods!CZ21),IF($Q$12=Lists!$U$17,IF(Periods!CZ36="","",Periods!CZ36),"")) -> 2027-12-31 | DA12: =IF($Q$12=Lists!$U$16,IF(Periods!DA21="","",Periods!DA21),IF($Q$12=Lists!$U$17,IF(Periods!DA36="","",Periods!DA36),"")) -> 2028-01-31 | DB12: =IF($Q$12=Lists!$U$16,IF(Periods!DB21="","",Periods!DB21),IF($Q$12=Lists!$U$17,IF(Periods!DB36="","",Periods!DB36),"")) -> 2028-02-29 | DC12: =IF($Q$12=Lists!$U$16,IF(Periods!DC21="","",Periods!DC21),IF($Q$12=Lists!$U$17,IF(Periods!DC36="","",Periods!DC36),"")) -> 2028-03-31 | DD12: =IF($Q$12=Lists!$U$16,IF(Periods!DD21="","",Periods!DD21),IF($Q$12=Lists!$U$17,IF(Periods!DD36="","",Periods!DD36),"")) -> 2028-04-30 | DE12: =IF($Q$12=Lists!$U$16,IF(Periods!DE21="","",Periods!DE21),IF($Q$12=Lists!$U$17,IF(Periods!DE36="","",Periods!DE36),"")) -> 2028-05-31 | DF12: =IF($Q$12=Lists!$U$16,IF(Periods!DF21="","",Periods!DF21),IF($Q$12=Lists!$U$17,IF(Periods!DF36="","",Periods!DF36),"")) -> 2028-06-30 | DG12: =IF($Q$12=Lists!$U$16,IF(Periods!DG21="","",Periods!DG21),IF($Q$12=Lists!$U$17,IF(Periods!DG36="","",Periods!DG36),"")) -> 2028-07-31 | DH12: =IF($Q$12=Lists!$U$16,IF(Periods!DH21="","",Periods!DH21),IF($Q$12=Lists!$U$17,IF(Periods!DH36="","",Periods!DH36),"")) -> 2028-08-31 | DI12: =IF($Q$12=Lists!$U$16,IF(Periods!DI21="","",Periods!DI21),IF($Q$12=Lists!$U$17,IF(Periods!DI36="","",Periods!DI36),"")) -> 2028-09-30 | DJ12: =IF($Q$12=Lists!$U$16,IF(Periods!DJ21="","",Periods!DJ21),IF($Q$12=Lists!$U$17,IF(Periods!DJ36="","",Periods!DJ36),"")) -> 2028-10-31 | DK12: =IF($Q$12=Lists!$U$16,IF(Periods!DK21="","",Periods!DK21),IF($Q$12=Lists!$U$17,IF(Periods!DK36="","",Periods!DK36),"")) -> 2028-11-30 | DL12: =IF($Q$12=Lists!$U$16,IF(Periods!DL21="","",Periods!DL21),IF($Q$12=Lists!$U$17,IF(Periods!DL36="","",Periods!DL36),"")) -> 2028-12-31 | DM12: =IF($Q$12=Lists!$U$16,IF(Periods!DM21="","",Periods!DM21),IF($Q$12=Lists!$U$17,IF(Periods!DM36="","",Periods!DM36),"")) -> 2029-01-31 | DN12: =IF($Q$12=Lists!$U$16,IF(Periods!DN21="","",Periods!DN21),IF($Q$12=Lists!$U$17,IF(Periods!DN36="","",Periods!DN36),"")) -> 2029-02-28 | DO12: =IF($Q$12=Lists!$U$16,IF(Periods!DO21="","",Periods!DO21),IF($Q$12=Lists!$U$17,IF(Periods!DO36="","",Periods!DO36),"")) -> 2029-03-31 | DP12: =IF($Q$12=Lists!$U$16,IF(Periods!DP21="","",Periods!DP21),IF($Q$12=Lists!$U$17,IF(Periods!DP36="","",Periods!DP36),"")) -> 2029-04-30 | DQ12: =IF($Q$12=Lists!$U$16,IF(Periods!DQ21="","",Periods!DQ21),IF($Q$12=Lists!$U$17,IF(Periods!DQ36="","",Periods!DQ36),"")) -> 2029-05-31 | DR12: =IF($Q$12=Lists!$U$16,IF(Periods!DR21="","",Periods!DR21),IF($Q$12=Lists!$U$17,IF(Periods!DR36="","",Periods!DR36),"")) -> 2029-06-30 | DS12: =IF($Q$12=Lists!$U$16,IF(Periods!DS21="","",Periods!DS21),IF($Q$12=Lists!$U$17,IF(Periods!DS36="","",Periods!DS36),"")) -> 2029-07-31 | DT12: =IF($Q$12=Lists!$U$16,IF(Periods!DT21="","",Periods!DT21),IF($Q$12=Lists!$U$17,IF(Periods!DT36="","",Periods!DT36),"")) -> 2029-08-31 | DU12: =IF($Q$12=Lists!$U$16,IF(Periods!DU21="","",Periods!DU21),IF($Q$12=Lists!$U$17,IF(Periods!DU36="","",Periods!DU36),"")) -> 2029-09-30 | DV12: =IF($Q$12=Lists!$U$16,IF(Periods!DV21="","",Periods!DV21),IF($Q$12=Lists!$U$17,IF(Periods!DV36="","",Periods!DV36),"")) -> 2029-10-31 | DW12: =IF($Q$12=Lists!$U$16,IF(Periods!DW21="","",Periods!DW21),IF($Q$12=Lists!$U$17,IF(Periods!DW36="","",Periods!DW36),"")) -> 2029-11-30 | DX12: =IF($Q$12=Lists!$U$16,IF(Periods!DX21="","",Periods!DX21),IF($Q$12=Lists!$U$17,IF(Periods!DX36="","",Periods!DX36),"")) -> 2029-12-31 | DY12: =IF($Q$12=Lists!$U$16,IF(Periods!DY21="","",Periods!DY21),IF($Q$12=Lists!$U$17,IF(Periods!DY36="","",Periods!DY36),"")) -> 2030-01-31 | DZ12: =IF($Q$12=Lists!$U$16,IF(Periods!DZ21="","",Periods!DZ21),IF($Q$12=Lists!$U$17,IF(Periods!DZ36="","",Periods!DZ36),"")) -> 2030-02-28 | EA12: =IF($Q$12=Lists!$U$16,IF(Periods!EA21="","",Periods!EA21),IF($Q$12=Lists!$U$17,IF(Periods!EA36="","",Periods!EA36),"")) -> 2030-03-31 | EB12: =IF($Q$12=Lists!$U$16,IF(Periods!EB21="","",Periods!EB21),IF($Q$12=Lists!$U$17,IF(Periods!EB36="","",Periods!EB36),"")) -> 2030-04-30 | EC12: =IF($Q$12=Lists!$U$16,IF(Periods!EC21="","",Periods!EC21),IF($Q$12=Lists!$U$17,IF(Periods!EC36="","",Periods!EC36),"")) -> 2030-05-31 | ED12: =IF($Q$12=Lists!$U$16,IF(Periods!ED21="","",Periods!ED21),IF($Q$12=Lists!$U$17,IF(Periods!ED36="","",Periods!ED36),"")) -> 2030-06-30 | EE12: =IF($Q$12=Lists!$U$16,IF(Periods!EE21="","",Periods!EE21),IF($Q$12=Lists!$U$17,IF(Periods!EE36="","",Periods!EE36),"")) -> 2030-07-31 | EF12: =IF($Q$12=Lists!$U$16,IF(Periods!EF21="","",Periods!EF21),IF($Q$12=Lists!$U$17,IF(Periods!EF36="","",Periods!EF36),"")) -> 2030-08-31 | EG12: =IF($Q$12=Lists!$U$16,IF(Periods!EG21="","",Periods!EG21),IF($Q$12=Lists!$U$17,IF(Periods!EG36="","",Periods!EG36),"")) -> 2030-09-30 | EH12: =IF($Q$12=Lists!$U$16,IF(Periods!EH21="","",Periods!EH21),IF($Q$12=Lists!$U$17,IF(Periods!EH36="","",Periods!EH36),"")) -> 2030-10-31 | EI12: =IF($Q$12=Lists!$U$16,IF(Periods!EI21="","",Periods!EI21),IF($Q$12=Lists!$U$17,IF(Periods!EI36="","",Periods!EI36),"")) -> 2030-11-30 | EJ12: =IF($Q$12=Lists!$U$16,IF(Periods!EJ21="","",Periods!EJ21),IF($Q$12=Lists!$U$17,IF(Periods!EJ36="","",Periods!EJ36),"")) -> 2030-12-31 | EK12: =IF($Q$12=Lists!$U$16,IF(Periods!EK21="","",Periods!EK21),IF($Q$12=Lists!$U$17,IF(Periods!EK36="","",Periods!EK36),"")) -> 2031-01-31 | EL12: =IF($Q$12=Lists!$U$16,IF(Periods!EL21="","",Periods!EL21),IF($Q$12=Lists!$U$17,IF(Periods!EL36="","",Periods!EL36),"")) -> 2031-02-28 | EM12: =IF($Q$12=Lists!$U$16,IF(Periods!EM21="","",Periods!EM21),IF($Q$12=Lists!$U$17,IF(Periods!EM36="","",Periods!EM36),"")) -> 2031-03-31 | EN12: =IF($Q$12=Lists!$U$16,IF(Periods!EN21="","",Periods!EN21),IF($Q$12=Lists!$U$17,IF(Periods!EN36="","",Periods!EN36),"")) -> 2031-04-30 | EO12: =IF($Q$12=Lists!$U$16,IF(Periods!EO21="","",Periods!EO21),IF($Q$12=Lists!$U$17,IF(Periods!EO36="","",Periods!EO36),"")) -> 2031-05-31 | EP12: =IF($Q$12=Lists!$U$16,IF(Periods!EP21="","",Periods!EP21),IF($Q$12=Lists!$U$17,IF(Periods!EP36="","",Periods!EP36),"")) -> 2031-06-30 | EQ12: =IF($Q$12=Lists!$U$16,IF(Periods!EQ21="","",Periods!EQ21),IF($Q$12=Lists!$U$17,IF(Periods!EQ36="","",Periods!EQ36),"")) ->  | ER12: =IF($Q$12=Lists!$U$16,IF(Periods!ER21="","",Periods!ER21),IF($Q$12=Lists!$U$17,IF(Periods!ER36="","",Periods!ER36),"")) ->  | ES12: =IF($Q$12=Lists!$U$16,IF(Periods!ES21="","",Periods!ES21),IF($Q$12=Lists!$U$17,IF(Periods!ES36="","",Periods!ES36),"")) ->  | ET12: =IF($Q$12=Lists!$U$16,IF(Periods!ET21="","",Periods!ET21),IF($Q$12=Lists!$U$17,IF(Periods!ET36="","",Periods!ET36),"")) ->  | EU12: =IF($Q$12=Lists!$U$16,IF(Periods!EU21="","",Periods!EU21),IF($Q$12=Lists!$U$17,IF(Periods!EU36="","",Periods!EU36),"")) ->  | EV12: =IF($Q$12=Lists!$U$16,IF(Periods!EV21="","",Periods!EV21),IF($Q$12=Lists!$U$17,IF(Periods!EV36="","",Periods!EV36),"")) ->  | EW12: =IF($Q$12=Lists!$U$16,IF(Periods!EW21="","",Periods!EW21),IF($Q$12=Lists!$U$17,IF(Periods!EW36="","",Periods!EW36),"")) ->  | EX12: =IF($Q$12=Lists!$U$16,IF(Periods!EX21="","",Periods!EX21),IF($Q$12=Lists!$U$17,IF(Periods!EX36="","",Periods!EX36),"")) ->  | EY12: =IF($Q$12=Lists!$U$16,IF(Periods!EY21="","",Periods!EY21),IF($Q$12=Lists!$U$17,IF(Periods!EY36="","",Periods!EY36),"")) ->  | EZ12: =IF($Q$12=Lists!$U$16,IF(Periods!EZ21="","",Periods!EZ21),IF($Q$12=Lists!$U$17,IF(Periods!EZ36="","",Periods!EZ36),"")) ->  | FA12: =IF($Q$12=Lists!$U$16,IF(Periods!FA21="","",Periods!FA21),IF($Q$12=Lists!$U$17,IF(Periods!FA36="","",Periods!FA36),"")) ->  | FB12: =IF($Q$12=Lists!$U$16,IF(Periods!FB21="","",Periods!FB21),IF($Q$12=Lists!$U$17,IF(Periods!FB36="","",Periods!FB36),"")) ->  | FC12: =IF($Q$12=Lists!$U$16,IF(Periods!FC21="","",Periods!FC21),IF($Q$12=Lists!$U$17,IF(Periods!FC36="","",Periods!FC36),"")) -> 
H13: показатель | M13: ед.изм. | Q13: значение | X13: итого | AA13: =IF($Q$12=Lists!$U$16,IF(Periods!AA22="","",Periods!AA22),IF($Q$12=Lists!$U$17,IF(Periods!AA37="","",Periods!AA37),"")) -> 2021-07-01 | AB13: =IF($Q$12=Lists!$U$16,IF(Periods!AB22="","",Periods!AB22),IF($Q$12=Lists!$U$17,IF(Periods!AB37="","",Periods!AB37),"")) -> 2021-08-01 | AC13: =IF($Q$12=Lists!$U$16,IF(Periods!AC22="","",Periods!AC22),IF($Q$12=Lists!$U$17,IF(Periods!AC37="","",Periods!AC37),"")) -> 2021-09-01 | AD13: =IF($Q$12=Lists!$U$16,IF(Periods!AD22="","",Periods!AD22),IF($Q$12=Lists!$U$17,IF(Periods!AD37="","",Periods!AD37),"")) -> 2021-10-01 | AE13: =IF($Q$12=Lists!$U$16,IF(Periods!AE22="","",Periods!AE22),IF($Q$12=Lists!$U$17,IF(Periods!AE37="","",Periods!AE37),"")) -> 2021-11-01 | AF13: =IF($Q$12=Lists!$U$16,IF(Periods!AF22="","",Periods!AF22),IF($Q$12=Lists!$U$17,IF(Periods!AF37="","",Periods!AF37),"")) -> 2021-12-01 | AG13: =IF($Q$12=Lists!$U$16,IF(Periods!AG22="","",Periods!AG22),IF($Q$12=Lists!$U$17,IF(Periods!AG37="","",Periods!AG37),"")) -> 2022-01-01 | AH13: =IF($Q$12=Lists!$U$16,IF(Periods!AH22="","",Periods!AH22),IF($Q$12=Lists!$U$17,IF(Periods!AH37="","",Periods!AH37),"")) -> 2022-02-01 | AI13: =IF($Q$12=Lists!$U$16,IF(Periods!AI22="","",Periods!AI22),IF($Q$12=Lists!$U$17,IF(Periods!AI37="","",Periods!AI37),"")) -> 2022-03-01 | AJ13: =IF($Q$12=Lists!$U$16,IF(Periods!AJ22="","",Periods!AJ22),IF($Q$12=Lists!$U$17,IF(Periods!AJ37="","",Periods!AJ37),"")) -> 2022-04-01 | AK13: =IF($Q$12=Lists!$U$16,IF(Periods!AK22="","",Periods!AK22),IF($Q$12=Lists!$U$17,IF(Periods!AK37="","",Periods!AK37),"")) -> 2022-05-01 | AL13: =IF($Q$12=Lists!$U$16,IF(Periods!AL22="","",Periods!AL22),IF($Q$12=Lists!$U$17,IF(Periods!AL37="","",Periods!AL37),"")) -> 2022-06-01 | AM13: =IF($Q$12=Lists!$U$16,IF(Periods!AM22="","",Periods!AM22),IF($Q$12=Lists!$U$17,IF(Periods!AM37="","",Periods!AM37),"")) -> 2022-07-01 | AN13: =IF($Q$12=Lists!$U$16,IF(Periods!AN22="","",Periods!AN22),IF($Q$12=Lists!$U$17,IF(Periods!AN37="","",Periods!AN37),"")) -> 2022-08-01 | AO13: =IF($Q$12=Lists!$U$16,IF(Periods!AO22="","",Periods!AO22),IF($Q$12=Lists!$U$17,IF(Periods!AO37="","",Periods!AO37),"")) -> 2022-09-01 | AP13: =IF($Q$12=Lists!$U$16,IF(Periods!AP22="","",Periods!AP22),IF($Q$12=Lists!$U$17,IF(Periods!AP37="","",Periods!AP37),"")) -> 2022-10-01 | AQ13: =IF($Q$12=Lists!$U$16,IF(Periods!AQ22="","",Periods!AQ22),IF($Q$12=Lists!$U$17,IF(Periods!AQ37="","",Periods!AQ37),"")) -> 2022-11-01 | AR13: =IF($Q$12=Lists!$U$16,IF(Periods!AR22="","",Periods!AR22),IF($Q$12=Lists!$U$17,IF(Periods!AR37="","",Periods!AR37),"")) -> 2022-12-01 | AS13: =IF($Q$12=Lists!$U$16,IF(Periods!AS22="","",Periods!AS22),IF($Q$12=Lists!$U$17,IF(Periods!AS37="","",Periods!AS37),"")) -> 2023-01-01 | AT13: =IF($Q$12=Lists!$U$16,IF(Periods!AT22="","",Periods!AT22),IF($Q$12=Lists!$U$17,IF(Periods!AT37="","",Periods!AT37),"")) -> 2023-02-01 | AU13: =IF($Q$12=Lists!$U$16,IF(Periods!AU22="","",Periods!AU22),IF($Q$12=Lists!$U$17,IF(Periods!AU37="","",Periods!AU37),"")) -> 2023-03-01 | AV13: =IF($Q$12=Lists!$U$16,IF(Periods!AV22="","",Periods!AV22),IF($Q$12=Lists!$U$17,IF(Periods!AV37="","",Periods!AV37),"")) -> 2023-04-01 | AW13: =IF($Q$12=Lists!$U$16,IF(Periods!AW22="","",Periods!AW22),IF($Q$12=Lists!$U$17,IF(Periods!AW37="","",Periods!AW37),"")) -> 2023-05-01 | AX13: =IF($Q$12=Lists!$U$16,IF(Periods!AX22="","",Periods!AX22),IF($Q$12=Lists!$U$17,IF(Periods!AX37="","",Periods!AX37),"")) -> 2023-06-01 | AY13: =IF($Q$12=Lists!$U$16,IF(Periods!AY22="","",Periods!AY22),IF($Q$12=Lists!$U$17,IF(Periods!AY37="","",Periods!AY37),"")) -> 2023-07-01 | AZ13: =IF($Q$12=Lists!$U$16,IF(Periods!AZ22="","",Periods!AZ22),IF($Q$12=Lists!$U$17,IF(Periods!AZ37="","",Periods!AZ37),"")) -> 2023-08-01 | BA13: =IF($Q$12=Lists!$U$16,IF(Periods!BA22="","",Periods!BA22),IF($Q$12=Lists!$U$17,IF(Periods!BA37="","",Periods!BA37),"")) -> 2023-09-01 | BB13: =IF($Q$12=Lists!$U$16,IF(Periods!BB22="","",Periods!BB22),IF($Q$12=Lists!$U$17,IF(Periods!BB37="","",Periods!BB37),"")) -> 2023-10-01 | BC13: =IF($Q$12=Lists!$U$16,IF(Periods!BC22="","",Periods!BC22),IF($Q$12=Lists!$U$17,IF(Periods!BC37="","",Periods!BC37),"")) -> 2023-11-01 | BD13: =IF($Q$12=Lists!$U$16,IF(Periods!BD22="","",Periods!BD22),IF($Q$12=Lists!$U$17,IF(Periods!BD37="","",Periods!BD37),"")) -> 2023-12-01 | BE13: =IF($Q$12=Lists!$U$16,IF(Periods!BE22="","",Periods!BE22),IF($Q$12=Lists!$U$17,IF(Periods!BE37="","",Periods!BE37),"")) -> 2024-01-01 | BF13: =IF($Q$12=Lists!$U$16,IF(Periods!BF22="","",Periods!BF22),IF($Q$12=Lists!$U$17,IF(Periods!BF37="","",Periods!BF37),"")) -> 2024-02-01 | BG13: =IF($Q$12=Lists!$U$16,IF(Periods!BG22="","",Periods!BG22),IF($Q$12=Lists!$U$17,IF(Periods!BG37="","",Periods!BG37),"")) -> 2024-03-01 | BH13: =IF($Q$12=Lists!$U$16,IF(Periods!BH22="","",Periods!BH22),IF($Q$12=Lists!$U$17,IF(Periods!BH37="","",Periods!BH37),"")) -> 2024-04-01 | BI13: =IF($Q$12=Lists!$U$16,IF(Periods!BI22="","",Periods!BI22),IF($Q$12=Lists!$U$17,IF(Periods!BI37="","",Periods!BI37),"")) -> 2024-05-01 | BJ13: =IF($Q$12=Lists!$U$16,IF(Periods!BJ22="","",Periods!BJ22),IF($Q$12=Lists!$U$17,IF(Periods!BJ37="","",Periods!BJ37),"")) -> 2024-06-01 | BK13: =IF($Q$12=Lists!$U$16,IF(Periods!BK22="","",Periods!BK22),IF($Q$12=Lists!$U$17,IF(Periods!BK37="","",Periods!BK37),"")) -> 2024-07-01 | BL13: =IF($Q$12=Lists!$U$16,IF(Periods!BL22="","",Periods!BL22),IF($Q$12=Lists!$U$17,IF(Periods!BL37="","",Periods!BL37),"")) -> 2024-08-01 | BM13: =IF($Q$12=Lists!$U$16,IF(Periods!BM22="","",Periods!BM22),IF($Q$12=Lists!$U$17,IF(Periods!BM37="","",Periods!BM37),"")) -> 2024-09-01 | BN13: =IF($Q$12=Lists!$U$16,IF(Periods!BN22="","",Periods!BN22),IF($Q$12=Lists!$U$17,IF(Periods!BN37="","",Periods!BN37),"")) -> 2024-10-01 | BO13: =IF($Q$12=Lists!$U$16,IF(Periods!BO22="","",Periods!BO22),IF($Q$12=Lists!$U$17,IF(Periods!BO37="","",Periods!BO37),"")) -> 2024-11-01 | BP13: =IF($Q$12=Lists!$U$16,IF(Periods!BP22="","",Periods!BP22),IF($Q$12=Lists!$U$17,IF(Periods!BP37="","",Periods!BP37),"")) -> 2024-12-01 | BQ13: =IF($Q$12=Lists!$U$16,IF(Periods!BQ22="","",Periods!BQ22),IF($Q$12=Lists!$U$17,IF(Periods!BQ37="","",Periods!BQ37),"")) -> 2025-01-01 | BR13: =IF($Q$12=Lists!$U$16,IF(Periods!BR22="","",Periods!BR22),IF($Q$12=Lists!$U$17,IF(Periods!BR37="","",Periods!BR37),"")) -> 2025-02-01 | BS13: =IF($Q$12=Lists!$U$16,IF(Periods!BS22="","",Periods!BS22),IF($Q$12=Lists!$U$17,IF(Periods!BS37="","",Periods!BS37),"")) -> 2025-03-01 | BT13: =IF($Q$12=Lists!$U$16,IF(Periods!BT22="","",Periods!BT22),IF($Q$12=Lists!$U$17,IF(Periods!BT37="","",Periods!BT37),"")) -> 2025-04-01 | BU13: =IF($Q$12=Lists!$U$16,IF(Periods!BU22="","",Periods!BU22),IF($Q$12=Lists!$U$17,IF(Periods!BU37="","",Periods!BU37),"")) -> 2025-05-01 | BV13: =IF($Q$12=Lists!$U$16,IF(Periods!BV22="","",Periods!BV22),IF($Q$12=Lists!$U$17,IF(Periods!BV37="","",Periods!BV37),"")) -> 2025-06-01 | BW13: =IF($Q$12=Lists!$U$16,IF(Periods!BW22="","",Periods!BW22),IF($Q$12=Lists!$U$17,IF(Periods!BW37="","",Periods!BW37),"")) -> 2025-07-01 | BX13: =IF($Q$12=Lists!$U$16,IF(Periods!BX22="","",Periods!BX22),IF($Q$12=Lists!$U$17,IF(Periods!BX37="","",Periods!BX37),"")) -> 2025-08-01 | BY13: =IF($Q$12=Lists!$U$16,IF(Periods!BY22="","",Periods!BY22),IF($Q$12=Lists!$U$17,IF(Periods!BY37="","",Periods!BY37),"")) -> 2025-09-01 | BZ13: =IF($Q$12=Lists!$U$16,IF(Periods!BZ22="","",Periods!BZ22),IF($Q$12=Lists!$U$17,IF(Periods!BZ37="","",Periods!BZ37),"")) -> 2025-10-01 | CA13: =IF($Q$12=Lists!$U$16,IF(Periods!CA22="","",Periods!CA22),IF($Q$12=Lists!$U$17,IF(Periods!CA37="","",Periods!CA37),"")) -> 2025-11-01 | CB13: =IF($Q$12=Lists!$U$16,IF(Periods!CB22="","",Periods!CB22),IF($Q$12=Lists!$U$17,IF(Periods!CB37="","",Periods!CB37),"")) -> 2025-12-01 | CC13: =IF($Q$12=Lists!$U$16,IF(Periods!CC22="","",Periods!CC22),IF($Q$12=Lists!$U$17,IF(Periods!CC37="","",Periods!CC37),"")) -> 2026-01-01 | CD13: =IF($Q$12=Lists!$U$16,IF(Periods!CD22="","",Periods!CD22),IF($Q$12=Lists!$U$17,IF(Periods!CD37="","",Periods!CD37),"")) -> 2026-02-01 | CE13: =IF($Q$12=Lists!$U$16,IF(Periods!CE22="","",Periods!CE22),IF($Q$12=Lists!$U$17,IF(Periods!CE37="","",Periods!CE37),"")) -> 2026-03-01 | CF13: =IF($Q$12=Lists!$U$16,IF(Periods!CF22="","",Periods!CF22),IF($Q$12=Lists!$U$17,IF(Periods!CF37="","",Periods!CF37),"")) -> 2026-04-01 | CG13: =IF($Q$12=Lists!$U$16,IF(Periods!CG22="","",Periods!CG22),IF($Q$12=Lists!$U$17,IF(Periods!CG37="","",Periods!CG37),"")) -> 2026-05-01 | CH13: =IF($Q$12=Lists!$U$16,IF(Periods!CH22="","",Periods!CH22),IF($Q$12=Lists!$U$17,IF(Periods!CH37="","",Periods!CH37),"")) -> 2026-06-01 | CI13: =IF($Q$12=Lists!$U$16,IF(Periods!CI22="","",Periods!CI22),IF($Q$12=Lists!$U$17,IF(Periods!CI37="","",Periods!CI37),"")) -> 2026-07-01 | CJ13: =IF($Q$12=Lists!$U$16,IF(Periods!CJ22="","",Periods!CJ22),IF($Q$12=Lists!$U$17,IF(Periods!CJ37="","",Periods!CJ37),"")) -> 2026-08-01 | CK13: =IF($Q$12=Lists!$U$16,IF(Periods!CK22="","",Periods!CK22),IF($Q$12=Lists!$U$17,IF(Periods!CK37="","",Periods!CK37),"")) -> 2026-09-01 | CL13: =IF($Q$12=Lists!$U$16,IF(Periods!CL22="","",Periods!CL22),IF($Q$12=Lists!$U$17,IF(Periods!CL37="","",Periods!CL37),"")) -> 2026-10-01 | CM13: =IF($Q$12=Lists!$U$16,IF(Periods!CM22="","",Periods!CM22),IF($Q$12=Lists!$U$17,IF(Periods!CM37="","",Periods!CM37),"")) -> 2026-11-01 | CN13: =IF($Q$12=Lists!$U$16,IF(Periods!CN22="","",Periods!CN22),IF($Q$12=Lists!$U$17,IF(Periods!CN37="","",Periods!CN37),"")) -> 2026-12-01 | CO13: =IF($Q$12=Lists!$U$16,IF(Periods!CO22="","",Periods!CO22),IF($Q$12=Lists!$U$17,IF(Periods!CO37="","",Periods!CO37),"")) -> 2027-01-01 | CP13: =IF($Q$12=Lists!$U$16,IF(Periods!CP22="","",Periods!CP22),IF($Q$12=Lists!$U$17,IF(Periods!CP37="","",Periods!CP37),"")) -> 2027-02-01 | CQ13: =IF($Q$12=Lists!$U$16,IF(Periods!CQ22="","",Periods!CQ22),IF($Q$12=Lists!$U$17,IF(Periods!CQ37="","",Periods!CQ37),"")) -> 2027-03-01 | CR13: =IF($Q$12=Lists!$U$16,IF(Periods!CR22="","",Periods!CR22),IF($Q$12=Lists!$U$17,IF(Periods!CR37="","",Periods!CR37),"")) -> 2027-04-01 | CS13: =IF($Q$12=Lists!$U$16,IF(Periods!CS22="","",Periods!CS22),IF($Q$12=Lists!$U$17,IF(Periods!CS37="","",Periods!CS37),"")) -> 2027-05-01 | CT13: =IF($Q$12=Lists!$U$16,IF(Periods!CT22="","",Periods!CT22),IF($Q$12=Lists!$U$17,IF(Periods!CT37="","",Periods!CT37),"")) -> 2027-06-01 | CU13: =IF($Q$12=Lists!$U$16,IF(Periods!CU22="","",Periods!CU22),IF($Q$12=Lists!$U$17,IF(Periods!CU37="","",Periods!CU37),"")) -> 2027-07-01 | CV13: =IF($Q$12=Lists!$U$16,IF(Periods!CV22="","",Periods!CV22),IF($Q$12=Lists!$U$17,IF(Periods!CV37="","",Periods!CV37),"")) -> 2027-08-01 | CW13: =IF($Q$12=Lists!$U$16,IF(Periods!CW22="","",Periods!CW22),IF($Q$12=Lists!$U$17,IF(Periods!CW37="","",Periods!CW37),"")) -> 2027-09-01 | CX13: =IF($Q$12=Lists!$U$16,IF(Periods!CX22="","",Periods!CX22),IF($Q$12=Lists!$U$17,IF(Periods!CX37="","",Periods!CX37),"")) -> 2027-10-01 | CY13: =IF($Q$12=Lists!$U$16,IF(Periods!CY22="","",Periods!CY22),IF($Q$12=Lists!$U$17,IF(Periods!CY37="","",Periods!CY37),"")) -> 2027-11-01 | CZ13: =IF($Q$12=Lists!$U$16,IF(Periods!CZ22="","",Periods!CZ22),IF($Q$12=Lists!$U$17,IF(Periods!CZ37="","",Periods!CZ37),"")) -> 2027-12-01 | DA13: =IF($Q$12=Lists!$U$16,IF(Periods!DA22="","",Periods!DA22),IF($Q$12=Lists!$U$17,IF(Periods!DA37="","",Periods!DA37),"")) -> 2028-01-01 | DB13: =IF($Q$12=Lists!$U$16,IF(Periods!DB22="","",Periods!DB22),IF($Q$12=Lists!$U$17,IF(Periods!DB37="","",Periods!DB37),"")) -> 2028-02-01 | DC13: =IF($Q$12=Lists!$U$16,IF(Periods!DC22="","",Periods!DC22),IF($Q$12=Lists!$U$17,IF(Periods!DC37="","",Periods!DC37),"")) -> 2028-03-01 | DD13: =IF($Q$12=Lists!$U$16,IF(Periods!DD22="","",Periods!DD22),IF($Q$12=Lists!$U$17,IF(Periods!DD37="","",Periods!DD37),"")) -> 2028-04-01 | DE13: =IF($Q$12=Lists!$U$16,IF(Periods!DE22="","",Periods!DE22),IF($Q$12=Lists!$U$17,IF(Periods!DE37="","",Periods!DE37),"")) -> 2028-05-01 | DF13: =IF($Q$12=Lists!$U$16,IF(Periods!DF22="","",Periods!DF22),IF($Q$12=Lists!$U$17,IF(Periods!DF37="","",Periods!DF37),"")) -> 2028-06-01 | DG13: =IF($Q$12=Lists!$U$16,IF(Periods!DG22="","",Periods!DG22),IF($Q$12=Lists!$U$17,IF(Periods!DG37="","",Periods!DG37),"")) -> 2028-07-01 | DH13: =IF($Q$12=Lists!$U$16,IF(Periods!DH22="","",Periods!DH22),IF($Q$12=Lists!$U$17,IF(Periods!DH37="","",Periods!DH37),"")) -> 2028-08-01 | DI13: =IF($Q$12=Lists!$U$16,IF(Periods!DI22="","",Periods!DI22),IF($Q$12=Lists!$U$17,IF(Periods!DI37="","",Periods!DI37),"")) -> 2028-09-01 | DJ13: =IF($Q$12=Lists!$U$16,IF(Periods!DJ22="","",Periods!DJ22),IF($Q$12=Lists!$U$17,IF(Periods!DJ37="","",Periods!DJ37),"")) -> 2028-10-01 | DK13: =IF($Q$12=Lists!$U$16,IF(Periods!DK22="","",Periods!DK22),IF($Q$12=Lists!$U$17,IF(Periods!DK37="","",Periods!DK37),"")) -> 2028-11-01 | DL13: =IF($Q$12=Lists!$U$16,IF(Periods!DL22="","",Periods!DL22),IF($Q$12=Lists!$U$17,IF(Periods!DL37="","",Periods!DL37),"")) -> 2028-12-01 | DM13: =IF($Q$12=Lists!$U$16,IF(Periods!DM22="","",Periods!DM22),IF($Q$12=Lists!$U$17,IF(Periods!DM37="","",Periods!DM37),"")) -> 2029-01-01 | DN13: =IF($Q$12=Lists!$U$16,IF(Periods!DN22="","",Periods!DN22),IF($Q$12=Lists!$U$17,IF(Periods!DN37="","",Periods!DN37),"")) -> 2029-02-01 | DO13: =IF($Q$12=Lists!$U$16,IF(Periods!DO22="","",Periods!DO22),IF($Q$12=Lists!$U$17,IF(Periods!DO37="","",Periods!DO37),"")) -> 2029-03-01 | DP13: =IF($Q$12=Lists!$U$16,IF(Periods!DP22="","",Periods!DP22),IF($Q$12=Lists!$U$17,IF(Periods!DP37="","",Periods!DP37),"")) -> 2029-04-01 | DQ13: =IF($Q$12=Lists!$U$16,IF(Periods!DQ22="","",Periods!DQ22),IF($Q$12=Lists!$U$17,IF(Periods!DQ37="","",Periods!DQ37),"")) -> 2029-05-01 | DR13: =IF($Q$12=Lists!$U$16,IF(Periods!DR22="","",Periods!DR22),IF($Q$12=Lists!$U$17,IF(Periods!DR37="","",Periods!DR37),"")) -> 2029-06-01 | DS13: =IF($Q$12=Lists!$U$16,IF(Periods!DS22="","",Periods!DS22),IF($Q$12=Lists!$U$17,IF(Periods!DS37="","",Periods!DS37),"")) -> 2029-07-01 | DT13: =IF($Q$12=Lists!$U$16,IF(Periods!DT22="","",Periods!DT22),IF($Q$12=Lists!$U$17,IF(Periods!DT37="","",Periods!DT37),"")) -> 2029-08-01 | DU13: =IF($Q$12=Lists!$U$16,IF(Periods!DU22="","",Periods!DU22),IF($Q$12=Lists!$U$17,IF(Periods!DU37="","",Periods!DU37),"")) -> 2029-09-01 | DV13: =IF($Q$12=Lists!$U$16,IF(Periods!DV22="","",Periods!DV22),IF($Q$12=Lists!$U$17,IF(Periods!DV37="","",Periods!DV37),"")) -> 2029-10-01 | DW13: =IF($Q$12=Lists!$U$16,IF(Periods!DW22="","",Periods!DW22),IF($Q$12=Lists!$U$17,IF(Periods!DW37="","",Periods!DW37),"")) -> 2029-11-01 | DX13: =IF($Q$12=Lists!$U$16,IF(Periods!DX22="","",Periods!DX22),IF($Q$12=Lists!$U$17,IF(Periods!DX37="","",Periods!DX37),"")) -> 2029-12-01 | DY13: =IF($Q$12=Lists!$U$16,IF(Periods!DY22="","",Periods!DY22),IF($Q$12=Lists!$U$17,IF(Periods!DY37="","",Periods!DY37),"")) -> 2030-01-01 | DZ13: =IF($Q$12=Lists!$U$16,IF(Periods!DZ22="","",Periods!DZ22),IF($Q$12=Lists!$U$17,IF(Periods!DZ37="","",Periods!DZ37),"")) -> 2030-02-01 | EA13: =IF($Q$12=Lists!$U$16,IF(Periods!EA22="","",Periods!EA22),IF($Q$12=Lists!$U$17,IF(Periods!EA37="","",Periods!EA37),"")) -> 2030-03-01 | EB13: =IF($Q$12=Lists!$U$16,IF(Periods!EB22="","",Periods!EB22),IF($Q$12=Lists!$U$17,IF(Periods!EB37="","",Periods!EB37),"")) -> 2030-04-01 | EC13: =IF($Q$12=Lists!$U$16,IF(Periods!EC22="","",Periods!EC22),IF($Q$12=Lists!$U$17,IF(Periods!EC37="","",Periods!EC37),"")) -> 2030-05-01 | ED13: =IF($Q$12=Lists!$U$16,IF(Periods!ED22="","",Periods!ED22),IF($Q$12=Lists!$U$17,IF(Periods!ED37="","",Periods!ED37),"")) -> 2030-06-01 | EE13: =IF($Q$12=Lists!$U$16,IF(Periods!EE22="","",Periods!EE22),IF($Q$12=Lists!$U$17,IF(Periods!EE37="","",Periods!EE37),"")) -> 2030-07-01 | EF13: =IF($Q$12=Lists!$U$16,IF(Periods!EF22="","",Periods!EF22),IF($Q$12=Lists!$U$17,IF(Periods!EF37="","",Periods!EF37),"")) -> 2030-08-01 | EG13: =IF($Q$12=Lists!$U$16,IF(Periods!EG22="","",Periods!EG22),IF($Q$12=Lists!$U$17,IF(Periods!EG37="","",Periods!EG37),"")) -> 2030-09-01 | EH13: =IF($Q$12=Lists!$U$16,IF(Periods!EH22="","",Periods!EH22),IF($Q$12=Lists!$U$17,IF(Periods!EH37="","",Periods!EH37),"")) -> 2030-10-01 | EI13: =IF($Q$12=Lists!$U$16,IF(Periods!EI22="","",Periods!EI22),IF($Q$12=Lists!$U$17,IF(Periods!EI37="","",Periods!EI37),"")) -> 2030-11-01 | EJ13: =IF($Q$12=Lists!$U$16,IF(Periods!EJ22="","",Periods!EJ22),IF($Q$12=Lists!$U$17,IF(Periods!EJ37="","",Periods!EJ37),"")) -> 2030-12-01 | EK13: =IF($Q$12=Lists!$U$16,IF(Periods!EK22="","",Periods!EK22),IF($Q$12=Lists!$U$17,IF(Periods!EK37="","",Periods!EK37),"")) -> 2031-01-01 | EL13: =IF($Q$12=Lists!$U$16,IF(Periods!EL22="","",Periods!EL22),IF($Q$12=Lists!$U$17,IF(Periods!EL37="","",Periods!EL37),"")) -> 2031-02-01 | EM13: =IF($Q$12=Lists!$U$16,IF(Periods!EM22="","",Periods!EM22),IF($Q$12=Lists!$U$17,IF(Periods!EM37="","",Periods!EM37),"")) -> 2031-03-01 | EN13: =IF($Q$12=Lists!$U$16,IF(Periods!EN22="","",Periods!EN22),IF($Q$12=Lists!$U$17,IF(Periods!EN37="","",Periods!EN37),"")) -> 2031-04-01 | EO13: =IF($Q$12=Lists!$U$16,IF(Periods!EO22="","",Periods!EO22),IF($Q$12=Lists!$U$17,IF(Periods!EO37="","",Periods!EO37),"")) -> 2031-05-01 | EP13: =IF($Q$12=Lists!$U$16,IF(Periods!EP22="","",Periods!EP22),IF($Q$12=Lists!$U$17,IF(Periods!EP37="","",Periods!EP37),"")) -> 2031-06-01 | EQ13: =IF($Q$12=Lists!$U$16,IF(Periods!EQ22="","",Periods!EQ22),IF($Q$12=Lists!$U$17,IF(Periods!EQ37="","",Periods!EQ37),"")) ->  | ER13: =IF($Q$12=Lists!$U$16,IF(Periods!ER22="","",Periods!ER22),IF($Q$12=Lists!$U$17,IF(Periods!ER37="","",Periods!ER37),"")) ->  | ES13: =IF($Q$12=Lists!$U$16,IF(Periods!ES22="","",Periods!ES22),IF($Q$12=Lists!$U$17,IF(Periods!ES37="","",Periods!ES37),"")) ->  | ET13: =IF($Q$12=Lists!$U$16,IF(Periods!ET22="","",Periods!ET22),IF($Q$12=Lists!$U$17,IF(Periods!ET37="","",Periods!ET37),"")) ->  | EU13: =IF($Q$12=Lists!$U$16,IF(Periods!EU22="","",Periods!EU22),IF($Q$12=Lists!$U$17,IF(Periods!EU37="","",Periods!EU37),"")) ->  | EV13: =IF($Q$12=Lists!$U$16,IF(Periods!EV22="","",Periods!EV22),IF($Q$12=Lists!$U$17,IF(Periods!EV37="","",Periods!EV37),"")) ->  | EW13: =IF($Q$12=Lists!$U$16,IF(Periods!EW22="","",Periods!EW22),IF($Q$12=Lists!$U$17,IF(Periods!EW37="","",Periods!EW37),"")) ->  | EX13: =IF($Q$12=Lists!$U$16,IF(Periods!EX22="","",Periods!EX22),IF($Q$12=Lists!$U$17,IF(Periods!EX37="","",Periods!EX37),"")) ->  | EY13: =IF($Q$12=Lists!$U$16,IF(Periods!EY22="","",Periods!EY22),IF($Q$12=Lists!$U$17,IF(Periods!EY37="","",Periods!EY37),"")) ->  | EZ13: =IF($Q$12=Lists!$U$16,IF(Periods!EZ22="","",Periods!EZ22),IF($Q$12=Lists!$U$17,IF(Periods!EZ37="","",Periods!EZ37),"")) ->  | FA13: =IF($Q$12=Lists!$U$16,IF(Periods!FA22="","",Periods!FA22),IF($Q$12=Lists!$U$17,IF(Periods!FA37="","",Periods!FA37),"")) ->  | FB13: =IF($Q$12=Lists!$U$16,IF(Periods!FB22="","",Periods!FB22),IF($Q$12=Lists!$U$17,IF(Periods!FB37="","",Periods!FB37),"")) ->  | FC13: =IF($Q$12=Lists!$U$16,IF(Periods!FC22="","",Periods!FC22),IF($Q$12=Lists!$U$17,IF(Periods!FC37="","",Periods!FC37),"")) -> 
D14: =INDIRECT("Cntrl!M17") -> 0 | E14: =SUM($F14:$FE14) -> 0 | F14: =IFERROR(_xlfn.SHEET($A$1)-SUMIFS(Cntrl!O$15:O$100000,Cntrl!I$15:I$100000,$F$11),1) -> 0 | G14: =SUM(G$15:G$99368) -> 0 | S14: =SUM(S$15:S$99368) -> 0 | T14: =SUM(T$15:T$99368) -> 0
A15: =ROW() -> 15 | H15: разработка финмоделей: https://mngmnt.ru/
A16: =ROW() -> 16 | G16: =IF($R16="^",IF(COUNTIF(Lists!$13:$13,H16)=1,0,1),0) -> 0 | H16: Параметры рабочего дня сотрудника
A17: =ROW() -> 17 | G17: =IF($R17="^",IF(COUNTIF(Lists!$13:$13,H17)=1,0,1),0) -> 0 | H17: =H16 -> Параметры рабочего дня сотрудника | I17: Время одной смены рабочего дня | M17: кол-во часов | P17: * | Q17: 8 | S17: =IF(G17<>0,1,IF(OR($Q17="",$Q17=0),0,IF($R17="^",IF(COUNTIF(INDIRECT(INDEX(Lists!$15:$15,SUMIFS(Lists!$1:$1,Lists!$13:$13,$H17))),$Q17)=1,0,1),0))) -> 0
A18: =ROW() -> 18 | G18: =IF($R18="^",IF(COUNTIF(Lists!$13:$13,H18)=1,0,1),0) -> 0 | H18: =H16 -> Параметры рабочего дня сотрудника | I18: Количество рабочих дней в месяце | M18: р.дней/мес. | P18: * | Q18: 20 | S18: =IF(G18<>0,1,IF(OR($Q18="",$Q18=0),0,IF($R18="^",IF(COUNTIF(INDIRECT(INDEX(Lists!$15:$15,SUMIFS(Lists!$1:$1,Lists!$13:$13,$H18))),$Q18)=1,0,1),0))) -> 0
A19: =ROW() -> 19 | G19: =IF($R19="^",IF(COUNTIF(Lists!$13:$13,H19)=1,0,1),0) -> 0 | H19: =H16 -> Параметры рабочего дня сотрудника | I19: Количество рабочих дней в расчетном периоде | M19: р.дней/расч.пер. | Q19: =Q18*SUMIFS(Lists!$AF:$AF,Lists!$I:$I,Periods!$Q$16)/30 -> 20 | S19: =IF(G19<>0,1,IF(OR($Q19="",$Q19=0),0,IF($R19="^",IF(COUNTIF(INDIRECT(INDEX(Lists!$15:$15,SUMIFS(Lists!$1:$1,Lists!$13:$13,$H19))),$Q19)=1,0,1),0))) -> 0
A20: =ROW() -> 20 | G20: =IF($R20="^",IF(COUNTIF(Lists!$13:$13,H20)=1,0,1),0) -> 0 | H20: =H16 -> Параметры рабочего дня сотрудника | I20: Количество рабочих часов в расчетном периоде | M20: р.часов/расч.пер. | Q20: =Q17*Q19 -> 160 | S20: =IF(G20<>0,1,IF(OR($Q20="",$Q20=0),0,IF($R20="^",IF(COUNTIF(INDIRECT(INDEX(Lists!$15:$15,SUMIFS(Lists!$1:$1,Lists!$13:$13,$H20))),$Q20)=1,0,1),0))) -> 0
A21: =ROW() -> 21
A22: =ROW() -> 22 | G22: =IF($R22="^",IF(COUNTIF(Lists!$13:$13,H22)=1,0,1),0) -> 0 | H22: =Lists!$CM$13 -> Система налогообложения | AA22: =IF(AA$11="","",IF(AA$7<>Z$7,IF(AND($Q23<>"",$Q23<>0),$Q23,IF(AND(AA24<>"",AA24<>0),AA24,IF(SUMIFS($A$25:$A29,$J$25:$J29,AA$7+2000)>0,IF(AND(INDEX($Q:$Q,SUMIFS($A$25:$A29,$J$25:$J29,AA$7+2000))<>0,INDEX($Q:$Q,SUMIFS($A$25:$A29,$J$25:$J29,AA$7+2000))<>""),INDEX($Q:$Q,SUMIFS($A$25:$A29,$J$25:$J29,AA$7+2000)),Lists!$CM$16),Lists!$CM$16))),Z22)) -> ОСНО | AB22: =IF(AB$11="","",IF(AB$7<>AA$7,IF(AND($Q23<>"",$Q23<>0),$Q23,IF(AND(AB24<>"",AB24<>0),AB24,IF(SUMIFS($A$25:$A29,$J$25:$J29,AB$7+2000)>0,IF(AND(INDEX($Q:$Q,SUMIFS($A$25:$A29,$J$25:$J29,AB$7+2000))<>0,INDEX($Q:$Q,SUMIFS($A$25:$A29,$J$25:$J29,AB$7+2000))<>""),INDEX($Q:$Q,SUMIFS($A$25:$A29,$J$25:$J29,AB$7+2000)),Lists!$CM$16),Lists!$CM$16))),AA22)) -> ОСНО | AC22: =IF(AC$11="","",IF(AC$7<>AB$7,IF(AND($Q23<>"",$Q23<>0),$Q23,IF(AND(AC24<>"",AC24<>0),AC24,IF(SUMIFS($A$25:$A29,$J$25:$J29,AC$7+2000)>0,IF(AND(INDEX($Q:$Q,SUMIFS($A$25:$A29,$J$25:$J29,AC$7+2000))<>0,INDEX($Q:$Q,SUMIFS($A$25:$A29,$J$25:$J29,AC$7+2000))<>""),INDEX($Q:$Q,SUMIFS($A$25:$A29,$J$25:$J29,AC$7+2000)),Lists!$CM$16),Lists!$CM$16))),AB22)) -> ОСНО | AD22: =IF(AD$11="","",IF(AD$7<>AC$7,IF(AND($Q23<>"",$Q23<>0),$Q23,IF(AND(AD24<>"",AD24<>0),AD24,IF(SUMIFS($A$25:$A29,$J$25:$J29,AD$7+2000)>0,IF(AND(INDEX($Q:$Q,SUMIFS($A$25:$A29,$J$25:$J29,AD$7+2000))<>0,INDEX($Q:$Q,SUMIFS($A$25:$A29,$J$25:$J29,AD$7+2000))<>""),INDEX($Q:$Q,SUMIFS($A$25:$A29,$J$25:$J29,AD$7+2000)),Lists!$CM$16),Lists!$CM$16))),AC22)) -> ОСНО | AE22: =IF(AE$11="","",IF(AE$7<>AD$7,IF(AND($Q23<>"",$Q23<>0),$Q23,IF(AND(AE24<>"",AE24<>0),AE24,IF(SUMIFS($A$25:$A29,$J$25:$J29,AE$7+2000)>0,IF(AND(INDEX($Q:$Q,SUMIFS($A$25:$A29,$J$25:$J29,AE$7+2000))<>0,INDEX($Q:$Q,SUMIFS($A$25:$A29,$J$25:$J29,AE$7+2000))<>""),INDEX($Q:$Q,SUMIFS($A$25:$A29,$J$25:$J29,AE$7+2000)),Lists!$CM$16),Lists!$CM$16))),AD22)) -> ОСНО | AF22: =IF(AF$11="","",IF(AF$7<>AE$7,IF(AND($Q23<>"",$Q23<>0),$Q23,IF(AND(AF24<>"",AF24<>0),AF24,IF(SUMIFS($A$25:$A29,$J$25:$J29,AF$7+2000)>0,IF(AND(INDEX($Q:$Q,SUMIFS($A$25:$A29,$J$25:$J29,AF$7+2000))<>0,INDEX($Q:$Q,SUMIFS($A$25:$A29,$J$25:$J29,AF$7+2000))<>""),INDEX($Q:$Q,SUMIFS($A$25:$A29,$J$25:$J29,AF$7+2000)),Lists!$CM$16),Lists!$CM$16))),AE22)) -> ОСНО | AG22: =IF(AG$11="","",IF(AG$7<>AF$7,IF(AND($Q23<>"",$Q23<>0),$Q23,IF(AND(AG24<>"",AG24<>0),AG24,IF(SUMIFS($A$25:$A29,$J$25:$J29,AG$7+2000)>0,IF(AND(INDEX($Q:$Q,SUMIFS($A$25:$A29,$J$25:$J29,AG$7+2000))<>0,INDEX($Q:$Q,SUMIFS($A$25:$A29,$J$25:$J29,AG$7+2000))<>""),INDEX($Q:$Q,SUMIFS($A$25:$A29,$J$25:$J29,AG$7+2000)),Lists!$CM$16),Lists!$CM$16))),AF22)) -> ОСНО | AH22: =IF(AH$11="","",IF(AH$7<>AG$7,IF(AND($Q23<>"",$Q23<>0),$Q23,IF(AND(AH24<>"",AH24<>0),AH24,IF(SUMIFS($A$25:$A29,$J$25:$J29,AH$7+2000)>0,IF(AND(INDEX($Q:$Q,SUMIFS($A$25:$A29,$J$25:$J29,AH$7+2000))<>0,INDEX($Q:$Q,SUMIFS($A$25:$A29,$J$25:$J29,AH$7+2000))<>""),INDEX($Q:$Q,SUMIFS($A$25:$A29,$J$25:$J29,AH$7+2000)),Lists!$CM$16),Lists!$CM$16))),AG22)) -> ОСНО | AI22: =IF(AI$11="","",IF(AI$7<>AH$7,IF(AND($Q23<>"",$Q23<>0),$Q23,IF(AND(AI24<>"",AI24<>0),AI24,IF(SUMIFS($A$25:$A29,$J$25:$J29,AI$7+2000)>0,IF(AND(INDEX($Q:$Q,SUMIFS($A$25:$A29,$J$25:$J29,AI$7+2000))<>0,INDEX($Q:$Q,SUMIFS($A$25:$A29,$J$25:$J29,AI$7+2000))<>""),INDEX($Q:$Q,SUMIFS($A$25:$A29,$J$25:$J29,AI$7+2000)),Lists!$CM$16),Lists!$CM$16))),AH22)) -> ОСНО | AJ22: =IF(AJ$11="","",IF(AJ$7<>AI$7,IF(AND($Q23<>"",$Q23<>0),$Q23,IF(AND(AJ24<>"",AJ24<>0),AJ24,IF(SUMIFS($A$25:$A29,$J$25:$J29,AJ$7+2000)>0,IF(AND(INDEX($Q:$Q,SUMIFS($A$25:$A29,$J$25:$J29,AJ$7+2000))<>0,INDEX($Q:$Q,SUMIFS($A$25:$A29,$J$25:$J29,AJ$7+2000))<>""),INDEX($Q:$Q,SUMIFS($A$25:$A29,$J$25:$J29,AJ$7+2000)),Lists!$CM$16),Lists!$CM$16))),AI22)) -> ОСНО | AK22: =IF(AK$11="","",IF(AK$7<>AJ$7,IF(AND($Q23<>"",$Q23<>0),$Q23,IF(AND(AK24<>"",AK24<>0),AK24,IF(SUMIFS($A$25:$A29,$J$25:$J29,AK$7+2000)>0,IF(AND(INDEX($Q:$Q,SUMIFS($A$25:$A29,$J$25:$J29,AK$7+2000))<>0,INDEX($Q:$Q,SUMIFS($A$25:$A29,$J$25:$J29,AK$7+2000))<>""),INDEX($Q:$Q,SUMIFS($A$25:$A29,$J$25:$J29,AK$7+2000)),Lists!$CM$16),Lists!$CM$16))),AJ22)) -> ОСНО | AL22: =IF(AL$11="","",IF(AL$7<>AK$7,IF(AND($Q23<>"",$Q23<>0),$Q23,IF(AND(AL24<>"",AL24<>0),AL24,IF(SUMIFS($A$25:$A29,$J$25:$J29,AL$7+2000)>0,IF(AND(INDEX($Q:$Q,SUMIFS($A$25:$A29,$J$25:$J29,AL$7+2000))<>0,INDEX($Q:$Q,SUMIFS($A$25:$A29,$J$25:$J29,AL$7+2000))<>""),INDEX($Q:$Q,SUMIFS($A$25:$A29,$J$25:$J29,AL$7+2000)),Lists!$CM$16),Lists!$CM$16))),AK22)) -> ОСНО | AM22: =IF(AM$11="","",IF(AM$7<>AL$7,IF(AND($Q23<>"",$Q23<>0),$Q23,IF(AND(AM24<>"",AM24<>0),AM24,IF(SUMIFS($A$25:$A29,$J$25:$J29,AM$7+2000)>0,IF(AND(INDEX($Q:$Q,SUMIFS($A$25:$A29,$J$25:$J29,AM$7+2000))<>0,INDEX($Q:$Q,SUMIFS($A$25:$A29,$J$25:$J29,AM$7+2000))<>""),INDEX($Q:$Q,SUMIFS($A$25:$A29,$J$25:$J29,AM$7+2000)),Lists!$CM$16),Lists!$CM$16))),AL22)) -> ОСНО | AN22: =IF(AN$11="","",IF(AN$7<>AM$7,IF(AND($Q23<>"",$Q23<>0),$Q23,IF(AND(AN24<>"",AN24<>0),AN24,IF(SUMIFS($A$25:$A29,$J$25:$J29,AN$7+2000)>0,IF(AND(INDEX($Q:$Q,SUMIFS($A$25:$A29,$J$25:$J29,AN$7+2000))<>0,INDEX($Q:$Q,SUMIFS($A$25:$A29,$J$25:$J29,AN$7+2000))<>""),INDEX($Q:$Q,SUMIFS($A$25:$A29,$J$25:$J29,AN$7+2000)),Lists!$CM$16),Lists!$CM$16))),AM22)) -> ОСНО | AO22: =IF(AO$11="","",IF(AO$7<>AN$7,IF(AND($Q23<>"",$Q23<>0),$Q23,IF(AND(AO24<>"",AO24<>0),AO24,IF(SUMIFS($A$25:$A29,$J$25:$J29,AO$7+2000)>0,IF(AND(INDEX($Q:$Q,SUMIFS($A$25:$A29,$J$25:$J29,AO$7+2000))<>0,INDEX($Q:$Q,SUMIFS($A$25:$A29,$J$25:$J29,AO$7+2000))<>""),INDEX($Q:$Q,SUMIFS($A$25:$A29,$J$25:$J29,AO$7+2000)),Lists!$CM$16),Lists!$CM$16))),AN22)) -> ОСНО | AP22: =IF(AP$11="","",IF(AP$7<>AO$7,IF(AND($Q23<>"",$Q23<>0),$Q23,IF(AND(AP24<>"",AP24<>0),AP24,IF(SUMIFS($A$25:$A29,$J$25:$J29,AP$7+2000)>0,IF(AND(INDEX($Q:$Q,SUMIFS($A$25:$A29,$J$25:$J29,AP$7+2000))<>0,INDEX($Q:$Q,SUMIFS($A$25:$A29,$J$25:$J29,AP$7+2000))<>""),INDEX($Q:$Q,SUMIFS($A$25:$A29,$J$25:$J29,AP$7+2000)),Lists!$CM$16),Lists!$CM$16))),AO22)) -> ОСНО | AQ22: =IF(AQ$11="","",IF(AQ$7<>AP$7,IF(AND($Q23<>"",$Q23<>0),$Q23,IF(AND(AQ24<>"",AQ24<>0),AQ24,IF(SUMIFS($A$25:$A29,$J$25:$J29,AQ$7+2000)>0,IF(AND(INDEX($Q:$Q,SUMIFS($A$25:$A29,$J$25:$J29,AQ$7+2000))<>0,INDEX($Q:$Q,SUMIFS($A$25:$A29,$J$25:$J29,AQ$7+2000))<>""),INDEX($Q:$Q,SUMIFS($A$25:$A29,$J$25:$J29,AQ$7+2000)),Lists!$CM$16),Lists!$CM$16))),AP22)) -> ОСНО | AR22: =IF(AR$11="","",IF(AR$7<>AQ$7,IF(AND($Q23<>"",$Q23<>0),$Q23,IF(AND(AR24<>"",AR24<>0),AR24,IF(SUMIFS($A$25:$A29,$J$25:$J29,AR$7+2000)>0,IF(AND(INDEX($Q:$Q,SUMIFS($A$25:$A29,$J$25:$J29,AR$7+2000))<>0,INDEX($Q:$Q,SUMIFS($A$25:$A29,$J$25:$J29,AR$7+2000))<>""),INDEX($Q:$Q,SUMIFS($A$25:$A29,$J$25:$J29,AR$7+2000)),Lists!$CM$16),Lists!$CM$16))),AQ22)) -> ОСНО | AS22: =IF(AS$11="","",IF(AS$7<>AR$7,IF(AND($Q23<>"",$Q23<>0),$Q23,IF(AND(AS24<>"",AS24<>0),AS24,IF(SUMIFS($A$25:$A29,$J$25:$J29,AS$7+2000)>0,IF(AND(INDEX($Q:$Q,SUMIFS($A$25:$A29,$J$25:$J29,AS$7+2000))<>0,INDEX($Q:$Q,SUMIFS($A$25:$A29,$J$25:$J29,AS$7+2000))<>""),INDEX($Q:$Q,SUMIFS($A$25:$A29,$J$25:$J29,AS$7+2000)),Lists!$CM$16),Lists!$CM$16))),AR22)) -> ОСНО | AT22: =IF(AT$11="","",IF(AT$7<>AS$7,IF(AND($Q23<>"",$Q23<>0),$Q23,IF(AND(AT24<>"",AT24<>0),AT24,IF(SUMIFS($A$25:$A29,$J$25:$J29,AT$7+2000)>0,IF(AND(INDEX($Q:$Q,SUMIFS($A$25:$A29,$J$25:$J29,AT$7+2000))<>0,INDEX($Q:$Q,SUMIFS($A$25:$A29,$J$25:$J29,AT$7+2000))<>""),INDEX($Q:$Q,SUMIFS($A$25:$A29,$J$25:$J29,AT$7+2000)),Lists!$CM$16),Lists!$CM$16))),AS22)) -> ОСНО | AU22: =IF(AU$11="","",IF(AU$7<>AT$7,IF(AND($Q23<>"",$Q23<>0),$Q23,IF(AND(AU24<>"",AU24<>0),AU24,IF(SUMIFS($A$25:$A29,$J$25:$J29,AU$7+2000)>0,IF(AND(INDEX($Q:$Q,SUMIFS($A$25:$A29,$J$25:$J29,AU$7+2000))<>0,INDEX($Q:$Q,SUMIFS($A$25:$A29,$J$25:$J29,AU$7+2000))<>""),INDEX($Q:$Q,SUMIFS($A$25:$A29,$J$25:$J29,AU$7+2000)),Lists!$CM$16),Lists!$CM$16))),AT22)) -> ОСНО | AV22: =IF(AV$11="","",IF(AV$7<>AU$7,IF(AND($Q23<>"",$Q23<>0),$Q23,IF(AND(AV24<>"",AV24<>0),AV24,IF(SUMIFS($A$25:$A29,$J$25:$J29,AV$7+2000)>0,IF(AND(INDEX($Q:$Q,SUMIFS($A$25:$A29,$J$25:$J29,AV$7+2000))<>0,INDEX($Q:$Q,SUMIFS($A$25:$A29,$J$25:$J29,AV$7+2000))<>""),INDEX($Q:$Q,SUMIFS($A$25:$A29,$J$25:$J29,AV$7+2000)),Lists!$CM$16),Lists!$CM$16))),AU22)) -> ОСНО | AW22: =IF(AW$11="","",IF(AW$7<>AV$7,IF(AND($Q23<>"",$Q23<>0),$Q23,IF(AND(AW24<>"",AW24<>0),AW24,IF(SUMIFS($A$25:$A29,$J$25:$J29,AW$7+2000)>0,IF(AND(INDEX($Q:$Q,SUMIFS($A$25:$A29,$J$25:$J29,AW$7+2000))<>0,INDEX($Q:$Q,SUMIFS($A$25:$A29,$J$25:$J29,AW$7+2000))<>""),INDEX($Q:$Q,SUMIFS($A$25:$A29,$J$25:$J29,AW$7+2000)),Lists!$CM$16),Lists!$CM$16))),AV22)) -> ОСНО | AX22: =IF(AX$11="","",IF(AX$7<>AW$7,IF(AND($Q23<>"",$Q23<>0),$Q23,IF(AND(AX24<>"",AX24<>0),AX24,IF(SUMIFS($A$25:$A29,$J$25:$J29,AX$7+2000)>0,IF(AND(INDEX($Q:$Q,SUMIFS($A$25:$A29,$J$25:$J29,AX$7+2000))<>0,INDEX($Q:$Q,SUMIFS($A$25:$A29,$J$25:$J29,AX$7+2000))<>""),INDEX($Q:$Q,SUMIFS($A$25:$A29,$J$25:$J29,AX$7+2000)),Lists!$CM$16),Lists!$CM$16))),AW22)) -> ОСНО | AY22: =IF(AY$11="","",IF(AY$7<>AX$7,IF(AND($Q23<>"",$Q23<>0),$Q23,IF(AND(AY24<>"",AY24<>0),AY24,IF(SUMIFS($A$25:$A29,$J$25:$J29,AY$7+2000)>0,IF(AND(INDEX($Q:$Q,SUMIFS($A$25:$A29,$J$25:$J29,AY$7+2000))<>0,INDEX($Q:$Q,SUMIFS($A$25:$A29,$J$25:$J29,AY$7+2000))<>""),INDEX($Q:$Q,SUMIFS($A$25:$A29,$J$25:$J29,AY$7+2000)),Lists!$CM$16),Lists!$CM$16))),AX22)) -> ОСНО | AZ22: =IF(AZ$11="","",IF(AZ$7<>AY$7,IF(AND($Q23<>"",$Q23<>0),$Q23,IF(AND(AZ24<>"",AZ24<>0),AZ24,IF(SUMIFS($A$25:$A29,$J$25:$J29,AZ$7+2000)>0,IF(AND(INDEX($Q:$Q,SUMIFS($A$25:$A29,$J$25:$J29,AZ$7+2000))<>0,INDEX($Q:$Q,SUMIFS($A$25:$A29,$J$25:$J29,AZ$7+2000))<>""),INDEX($Q:$Q,SUMIFS($A$25:$A29,$J$25:$J29,AZ$7+2000)),Lists!$CM$16),Lists!$CM$16))),AY22)) -> ОСНО | BA22: =IF(BA$11="","",IF(BA$7<>AZ$7,IF(AND($Q23<>"",$Q23<>0),$Q23,IF(AND(BA24<>"",BA24<>0),BA24,IF(SUMIFS($A$25:$A29,$J$25:$J29,BA$7+2000)>0,IF(AND(INDEX($Q:$Q,SUMIFS($A$25:$A29,$J$25:$J29,BA$7+2000))<>0,INDEX($Q:$Q,SUMIFS($A$25:$A29,$J$25:$J29,BA$7+2000))<>""),INDEX($Q:$Q,SUMIFS($A$25:$A29,$J$25:$J29,BA$7+2000)),Lists!$CM$16),Lists!$CM$16))),AZ22)) -> ОСНО | BB22: =IF(BB$11="","",IF(BB$7<>BA$7,IF(AND($Q23<>"",$Q23<>0),$Q23,IF(AND(BB24<>"",BB24<>0),BB24,IF(SUMIFS($A$25:$A29,$J$25:$J29,BB$7+2000)>0,IF(AND(INDEX($Q:$Q,SUMIFS($A$25:$A29,$J$25:$J29,BB$7+2000))<>0,INDEX($Q:$Q,SUMIFS($A$25:$A29,$J$25:$J29,BB$7+2000))<>""),INDEX($Q:$Q,SUMIFS($A$25:$A29,$J$25:$J29,BB$7+2000)),Lists!$CM$16),Lists!$CM$16))),BA22)) -> ОСНО | BC22: =IF(BC$11="","",IF(BC$7<>BB$7,IF(AND($Q23<>"",$Q23<>0),$Q23,IF(AND(BC24<>"",BC24<>0),BC24,IF(SUMIFS($A$25:$A29,$J$25:$J29,BC$7+2000)>0,IF(AND(INDEX($Q:$Q,SUMIFS($A$25:$A29,$J$25:$J29,BC$7+2000))<>0,INDEX($Q:$Q,SUMIFS($A$25:$A29,$J$25:$J29,BC$7+2000))<>""),INDEX($Q:$Q,SUMIFS($A$25:$A29,$J$25:$J29,BC$7+2000)),Lists!$CM$16),Lists!$CM$16))),BB22)) -> ОСНО | BD22: =IF(BD$11="","",IF(BD$7<>BC$7,IF(AND($Q23<>"",$Q23<>0),$Q23,IF(AND(BD24<>"",BD24<>0),BD24,IF(SUMIFS($A$25:$A29,$J$25:$J29,BD$7+2000)>0,IF(AND(INDEX($Q:$Q,SUMIFS($A$25:$A29,$J$25:$J29,BD$7+2000))<>0,INDEX($Q:$Q,SUMIFS($A$25:$A29,$J$25:$J29,BD$7+2000))<>""),INDEX($Q:$Q,SUMIFS($A$25:$A29,$J$25:$J29,BD$7+2000)),Lists!$CM$16),Lists!$CM$16))),BC22)) -> ОСНО | BE22: =IF(BE$11="","",IF(BE$7<>BD$7,IF(AND($Q23<>"",$Q23<>0),$Q23,IF(AND(BE24<>"",BE24<>0),BE24,IF(SUMIFS($A$25:$A29,$J$25:$J29,BE$7+2000)>0,IF(AND(INDEX($Q:$Q,SUMIFS($A$25:$A29,$J$25:$J29,BE$7+2000))<>0,INDEX($Q:$Q,SUMIFS($A$25:$A29,$J$25:$J29,BE$7+2000))<>""),INDEX($Q:$Q,SUMIFS($A$25:$A29,$J$25:$J29,BE$7+2000)),Lists!$CM$16),Lists!$CM$16))),BD22)) -> ОСНО | BF22: =IF(BF$11="","",IF(BF$7<>BE$7,IF(AND($Q23<>"",$Q23<>0),$Q23,IF(AND(BF24<>"",BF24<>0),BF24,IF(SUMIFS($A$25:$A29,$J$25:$J29,BF$7+2000)>0,IF(AND(INDEX($Q:$Q,SUMIFS($A$25:$A29,$J$25:$J29,BF$7+2000))<>0,INDEX($Q:$Q,SUMIFS($A$25:$A29,$J$25:$J29,BF$7+2000))<>""),INDEX($Q:$Q,SUMIFS($A$25:$A29,$J$25:$J29,BF$7+2000)),Lists!$CM$16),Lists!$CM$16))),BE22)) -> ОСНО | BG22: =IF(BG$11="","",IF(BG$7<>BF$7,IF(AND($Q23<>"",$Q23<>0),$Q23,IF(AND(BG24<>"",BG24<>0),BG24,IF(SUMIFS($A$25:$A29,$J$25:$J29,BG$7+2000)>0,IF(AND(INDEX($Q:$Q,SUMIFS($A$25:$A29,$J$25:$J29,BG$7+2000))<>0,INDEX($Q:$Q,SUMIFS($A$25:$A29,$J$25:$J29,BG$7+2000))<>""),INDEX($Q:$Q,SUMIFS($A$25:$A29,$J$25:$J29,BG$7+2000)),Lists!$CM$16),Lists!$CM$16))),BF22)) -> ОСНО | BH22: =IF(BH$11="","",IF(BH$7<>BG$7,IF(AND($Q23<>"",$Q23<>0),$Q23,IF(AND(BH24<>"",BH24<>0),BH24,IF(SUMIFS($A$25:$A29,$J$25:$J29,BH$7+2000)>0,IF(AND(INDEX($Q:$Q,SUMIFS($A$25:$A29,$J$25:$J29,BH$7+2000))<>0,INDEX($Q:$Q,SUMIFS($A$25:$A29,$J$25:$J29,BH$7+2000))<>""),INDEX($Q:$Q,SUMIFS($A$25:$A29,$J$25:$J29,BH$7+2000)),Lists!$CM$16),Lists!$CM$16))),BG22)) -> ОСНО | BI22: =IF(BI$11="","",IF(BI$7<>BH$7,IF(AND($Q23<>"",$Q23<>0),$Q23,IF(AND(BI24<>"",BI24<>0),BI24,IF(SUMIFS($A$25:$A29,$J$25:$J29,BI$7+2000)>0,IF(AND(INDEX($Q:$Q,SUMIFS($A$25:$A29,$J$25:$J29,BI$7+2000))<>0,INDEX($Q:$Q,SUMIFS($A$25:$A29,$J$25:$J29,BI$7+2000))<>""),INDEX($Q:$Q,SUMIFS($A$25:$A29,$J$25:$J29,BI$7+2000)),Lists!$CM$16),Lists!$CM$16))),BH22)) -> ОСНО | BJ22: =IF(BJ$11="","",IF(BJ$7<>BI$7,IF(AND($Q23<>"",$Q23<>0),$Q23,IF(AND(BJ24<>"",BJ24<>0),BJ24,IF(SUMIFS($A$25:$A29,$J$25:$J29,BJ$7+2000)>0,IF(AND(INDEX($Q:$Q,SUMIFS($A$25:$A29,$J$25:$J29,BJ$7+2000))<>0,INDEX($Q:$Q,SUMIFS($A$25:$A29,$J$25:$J29,BJ$7+2000))<>""),INDEX($Q:$Q,SUMIFS($A$25:$A29,$J$25:$J29,BJ$7+2000)),Lists!$CM$16),Lists!$CM$16))),BI22)) -> ОСНО | BK22: =IF(BK$11="","",IF(BK$7<>BJ$7,IF(AND($Q23<>"",$Q23<>0),$Q23,IF(AND(BK24<>"",BK24<>0),BK24,IF(SUMIFS($A$25:$A29,$J$25:$J29,BK$7+2000)>0,IF(AND(INDEX($Q:$Q,SUMIFS($A$25:$A29,$J$25:$J29,BK$7+2000))<>0,INDEX($Q:$Q,SUMIFS($A$25:$A29,$J$25:$J29,BK$7+2000))<>""),INDEX($Q:$Q,SUMIFS($A$25:$A29,$J$25:$J29,BK$7+2000)),Lists!$CM$16),Lists!$CM$16))),BJ22)) -> ОСНО | BL22: =IF(BL$11="","",IF(BL$7<>BK$7,IF(AND($Q23<>"",$Q23<>0),$Q23,IF(AND(BL24<>"",BL24<>0),BL24,IF(SUMIFS($A$25:$A29,$J$25:$J29,BL$7+2000)>0,IF(AND(INDEX($Q:$Q,SUMIFS($A$25:$A29,$J$25:$J29,BL$7+2000))<>0,INDEX($Q:$Q,SUMIFS($A$25:$A29,$J$25:$J29,BL$7+2000))<>""),INDEX($Q:$Q,SUMIFS($A$25:$A29,$J$25:$J29,BL$7+2000)),Lists!$CM$16),Lists!$CM$16))),BK22)) -> ОСНО | BM22: =IF(BM$11="","",IF(BM$7<>BL$7,IF(AND($Q23<>"",$Q23<>0),$Q23,IF(AND(BM24<>"",BM24<>0),BM24,IF(SUMIFS($A$25:$A29,$J$25:$J29,BM$7+2000)>0,IF(AND(INDEX($Q:$Q,SUMIFS($A$25:$A29,$J$25:$J29,BM$7+2000))<>0,INDEX($Q:$Q,SUMIFS($A$25:$A29,$J$25:$J29,BM$7+2000))<>""),INDEX($Q:$Q,SUMIFS($A$25:$A29,$J$25:$J29,BM$7+2000)),Lists!$CM$16),Lists!$CM$16))),BL22)) -> ОСНО | BN22: =IF(BN$11="","",IF(BN$7<>BM$7,IF(AND($Q23<>"",$Q23<>0),$Q23,IF(AND(BN24<>"",BN24<>0),BN24,IF(SUMIFS($A$25:$A29,$J$25:$J29,BN$7+2000)>0,IF(AND(INDEX($Q:$Q,SUMIFS($A$25:$A29,$J$25:$J29,BN$7+2000))<>0,INDEX($Q:$Q,SUMIFS($A$25:$A29,$J$25:$J29,BN$7+2000))<>""),INDEX($Q:$Q,SUMIFS($A$25:$A29,$J$25:$J29,BN$7+2000)),Lists!$CM$16),Lists!$CM$16))),BM22)) -> ОСНО | BO22: =IF(BO$11="","",IF(BO$7<>BN$7,IF(AND($Q23<>"",$Q23<>0),$Q23,IF(AND(BO24<>"",BO24<>0),BO24,IF(SUMIFS($A$25:$A29,$J$25:$J29,BO$7+2000)>0,IF(AND(INDEX($Q:$Q,SUMIFS($A$25:$A29,$J$25:$J29,BO$7+2000))<>0,INDEX($Q:$Q,SUMIFS($A$25:$A29,$J$25:$J29,BO$7+2000))<>""),INDEX($Q:$Q,SUMIFS($A$25:$A29,$J$25:$J29,BO$7+2000)),Lists!$CM$16),Lists!$CM$16))),BN22)) -> ОСНО | BP22: =IF(BP$11="","",IF(BP$7<>BO$7,IF(AND($Q23<>"",$Q23<>0),$Q23,IF(AND(BP24<>"",BP24<>0),BP24,IF(SUMIFS($A$25:$A29,$J$25:$J29,BP$7+2000)>0,IF(AND(INDEX($Q:$Q,SUMIFS($A$25:$A29,$J$25:$J29,BP$7+2000))<>0,INDEX($Q:$Q,SUMIFS($A$25:$A29,$J$25:$J29,BP$7+2000))<>""),INDEX($Q:$Q,SUMIFS($A$25:$A29,$J$25:$J29,BP$7+2000)),Lists!$CM$16),Lists!$CM$16))),BO22)) -> ОСНО | BQ22: =IF(BQ$11="","",IF(BQ$7<>BP$7,IF(AND($Q23<>"",$Q23<>0),$Q23,IF(AND(BQ24<>"",BQ24<>0),BQ24,IF(SUMIFS($A$25:$A29,$J$25:$J29,BQ$7+2000)>0,IF(AND(INDEX($Q:$Q,SUMIFS($A$25:$A29,$J$25:$J29,BQ$7+2000))<>0,INDEX($Q:$Q,SUMIFS($A$25:$A29,$J$25:$J29,BQ$7+2000))<>""),INDEX($Q:$Q,SUMIFS($A$25:$A29,$J$25:$J29,BQ$7+2000)),Lists!$CM$16),Lists!$CM$16))),BP22)) -> ОСНО | BR22: =IF(BR$11="","",IF(BR$7<>BQ$7,IF(AND($Q23<>"",$Q23<>0),$Q23,IF(AND(BR24<>"",BR24<>0),BR24,IF(SUMIFS($A$25:$A29,$J$25:$J29,BR$7+2000)>0,IF(AND(INDEX($Q:$Q,SUMIFS($A$25:$A29,$J$25:$J29,BR$7+2000))<>0,INDEX($Q:$Q,SUMIFS($A$25:$A29,$J$25:$J29,BR$7+2000))<>""),INDEX($Q:$Q,SUMIFS($A$25:$A29,$J$25:$J29,BR$7+2000)),Lists!$CM$16),Lists!$CM$16))),BQ22)) -> ОСНО | BS22: =IF(BS$11="","",IF(BS$7<>BR$7,IF(AND($Q23<>"",$Q23<>0),$Q23,IF(AND(BS24<>"",BS24<>0),BS24,IF(SUMIFS($A$25:$A29,$J$25:$J29,BS$7+2000)>0,IF(AND(INDEX($Q:$Q,SUMIFS($A$25:$A29,$J$25:$J29,BS$7+2000))<>0,INDEX($Q:$Q,SUMIFS($A$25:$A29,$J$25:$J29,BS$7+2000))<>""),INDEX($Q:$Q,SUMIFS($A$25:$A29,$J$25:$J29,BS$7+2000)),Lists!$CM$16),Lists!$CM$16))),BR22)) -> ОСНО | BT22: =IF(BT$11="","",IF(BT$7<>BS$7,IF(AND($Q23<>"",$Q23<>0),$Q23,IF(AND(BT24<>"",BT24<>0),BT24,IF(SUMIFS($A$25:$A29,$J$25:$J29,BT$7+2000)>0,IF(AND(INDEX($Q:$Q,SUMIFS($A$25:$A29,$J$25:$J29,BT$7+2000))<>0,INDEX($Q:$Q,SUMIFS($A$25:$A29,$J$25:$J29,BT$7+2000))<>""),INDEX($Q:$Q,SUMIFS($A$25:$A29,$J$25:$J29,BT$7+2000)),Lists!$CM$16),Lists!$CM$16))),BS22)) -> ОСНО | BU22: =IF(BU$11="","",IF(BU$7<>BT$7,IF(AND($Q23<>"",$Q23<>0),$Q23,IF(AND(BU24<>"",BU24<>0),BU24,IF(SUMIFS($A$25:$A29,$J$25:$J29,BU$7+2000)>0,IF(AND(INDEX($Q:$Q,SUMIFS($A$25:$A29,$J$25:$J29,BU$7+2000))<>0,INDEX($Q:$Q,SUMIFS($A$25:$A29,$J$25:$J29,BU$7+2000))<>""),INDEX($Q:$Q,SUMIFS($A$25:$A29,$J$25:$J29,BU$7+2000)),Lists!$CM$16),Lists!$CM$16))),BT22)) -> ОСНО | BV22: =IF(BV$11="","",IF(BV$7<>BU$7,IF(AND($Q23<>"",$Q23<>0),$Q23,IF(AND(BV24<>"",BV24<>0),BV24,IF(SUMIFS($A$25:$A29,$J$25:$J29,BV$7+2000)>0,IF(AND(INDEX($Q:$Q,SUMIFS($A$25:$A29,$J$25:$J29,BV$7+2000))<>0,INDEX($Q:$Q,SUMIFS($A$25:$A29,$J$25:$J29,BV$7+2000))<>""),INDEX($Q:$Q,SUMIFS($A$25:$A29,$J$25:$J29,BV$7+2000)),Lists!$CM$16),Lists!$CM$16))),BU22)) -> ОСНО | BW22: =IF(BW$11="","",IF(BW$7<>BV$7,IF(AND($Q23<>"",$Q23<>0),$Q23,IF(AND(BW24<>"",BW24<>0),BW24,IF(SUMIFS($A$25:$A29,$J$25:$J29,BW$7+2000)>0,IF(AND(INDEX($Q:$Q,SUMIFS($A$25:$A29,$J$25:$J29,BW$7+2000))<>0,INDEX($Q:$Q,SUMIFS($A$25:$A29,$J$25:$J29,BW$7+2000))<>""),INDEX($Q:$Q,SUMIFS($A$25:$A29,$J$25:$J29,BW$7+2000)),Lists!$CM$16),Lists!$CM$16))),BV22)) -> ОСНО | BX22: =IF(BX$11="","",IF(BX$7<>BW$7,IF(AND($Q23<>"",$Q23<>0),$Q23,IF(AND(BX24<>"",BX24<>0),BX24,IF(SUMIFS($A$25:$A29,$J$25:$J29,BX$7+2000)>0,IF(AND(INDEX($Q:$Q,SUMIFS($A$25:$A29,$J$25:$J29,BX$7+2000))<>0,INDEX($Q:$Q,SUMIFS($A$25:$A29,$J$25:$J29,BX$7+2000))<>""),INDEX($Q:$Q,SUMIFS($A$25:$A29,$J$25:$J29,BX$7+2000)),Lists!$CM$16),Lists!$CM$16))),BW22)) -> ОСНО | BY22: =IF(BY$11="","",IF(BY$7<>BX$7,IF(AND($Q23<>"",$Q23<>0),$Q23,IF(AND(BY24<>"",BY24<>0),BY24,IF(SUMIFS($A$25:$A29,$J$25:$J29,BY$7+2000)>0,IF(AND(INDEX($Q:$Q,SUMIFS($A$25:$A29,$J$25:$J29,BY$7+2000))<>0,INDEX($Q:$Q,SUMIFS($A$25:$A29,$J$25:$J29,BY$7+2000))<>""),INDEX($Q:$Q,SUMIFS($A$25:$A29,$J$25:$J29,BY$7+2000)),Lists!$CM$16),Lists!$CM$16))),BX22)) -> ОСНО | BZ22: =IF(BZ$11="","",IF(BZ$7<>BY$7,IF(AND($Q23<>"",$Q23<>0),$Q23,IF(AND(BZ24<>"",BZ24<>0),BZ24,IF(SUMIFS($A$25:$A29,$J$25:$J29,BZ$7+2000)>0,IF(AND(INDEX($Q:$Q,SUMIFS($A$25:$A29,$J$25:$J29,BZ$7+2000))<>0,INDEX($Q:$Q,SUMIFS($A$25:$A29,$J$25:$J29,BZ$7+2000))<>""),INDEX($Q:$Q,SUMIFS($A$25:$A29,$J$25:$J29,BZ$7+2000)),Lists!$CM$16),Lists!$CM$16))),BY22)) -> ОСНО | CA22: =IF(CA$11="","",IF(CA$7<>BZ$7,IF(AND($Q23<>"",$Q23<>0),$Q23,IF(AND(CA24<>"",CA24<>0),CA24,IF(SUMIFS($A$25:$A29,$J$25:$J29,CA$7+2000)>0,IF(AND(INDEX($Q:$Q,SUMIFS($A$25:$A29,$J$25:$J29,CA$7+2000))<>0,INDEX($Q:$Q,SUMIFS($A$25:$A29,$J$25:$J29,CA$7+2000))<>""),INDEX($Q:$Q,SUMIFS($A$25:$A29,$J$25:$J29,CA$7+2000)),Lists!$CM$16),Lists!$CM$16))),BZ22)) -> ОСНО | CB22: =IF(CB$11="","",IF(CB$7<>CA$7,IF(AND($Q23<>"",$Q23<>0),$Q23,IF(AND(CB24<>"",CB24<>0),CB24,IF(SUMIFS($A$25:$A29,$J$25:$J29,CB$7+2000)>0,IF(AND(INDEX($Q:$Q,SUMIFS($A$25:$A29,$J$25:$J29,CB$7+2000))<>0,INDEX($Q:$Q,SUMIFS($A$25:$A29,$J$25:$J29,CB$7+2000))<>""),INDEX($Q:$Q,SUMIFS($A$25:$A29,$J$25:$J29,CB$7+2000)),Lists!$CM$16),Lists!$CM$16))),CA22)) -> ОСНО | CC22: =IF(CC$11="","",IF(CC$7<>CB$7,IF(AND($Q23<>"",$Q23<>0),$Q23,IF(AND(CC24<>"",CC24<>0),CC24,IF(SUMIFS($A$25:$A29,$J$25:$J29,CC$7+2000)>0,IF(AND(INDEX($Q:$Q,SUMIFS($A$25:$A29,$J$25:$J29,CC$7+2000))<>0,INDEX($Q:$Q,SUMIFS($A$25:$A29,$J$25:$J29,CC$7+2000))<>""),INDEX($Q:$Q,SUMIFS($A$25:$A29,$J$25:$J29,CC$7+2000)),Lists!$CM$16),Lists!$CM$16))),CB22)) -> ОСНО | CD22: =IF(CD$11="","",IF(CD$7<>CC$7,IF(AND($Q23<>"",$Q23<>0),$Q23,IF(AND(CD24<>"",CD24<>0),CD24,IF(SUMIFS($A$25:$A29,$J$25:$J29,CD$7+2000)>0,IF(AND(INDEX($Q:$Q,SUMIFS($A$25:$A29,$J$25:$J29,CD$7+2000))<>0,INDEX($Q:$Q,SUMIFS($A$25:$A29,$J$25:$J29,CD$7+2000))<>""),INDEX($Q:$Q,SUMIFS($A$25:$A29,$J$25:$J29,CD$7+2000)),Lists!$CM$16),Lists!$CM$16))),CC22)) -> ОСНО | CE22: =IF(CE$11="","",IF(CE$7<>CD$7,IF(AND($Q23<>"",$Q23<>0),$Q23,IF(AND(CE24<>"",CE24<>0),CE24,IF(SUMIFS($A$25:$A29,$J$25:$J29,CE$7+2000)>0,IF(AND(INDEX($Q:$Q,SUMIFS($A$25:$A29,$J$25:$J29,CE$7+2000))<>0,INDEX($Q:$Q,SUMIFS($A$25:$A29,$J$25:$J29,CE$7+2000))<>""),INDEX($Q:$Q,SUMIFS($A$25:$A29,$J$25:$J29,CE$7+2000)),Lists!$CM$16),Lists!$CM$16))),CD22)) -> ОСНО | CF22: =IF(CF$11="","",IF(CF$7<>CE$7,IF(AND($Q23<>"",$Q23<>0),$Q23,IF(AND(CF24<>"",CF24<>0),CF24,IF(SUMIFS($A$25:$A29,$J$25:$J29,CF$7+2000)>0,IF(AND(INDEX($Q:$Q,SUMIFS($A$25:$A29,$J$25:$J29,CF$7+2000))<>0,INDEX($Q:$Q,SUMIFS($A$25:$A29,$J$25:$J29,CF$7+2000))<>""),INDEX($Q:$Q,SUMIFS($A$25:$A29,$J$25:$J29,CF$7+2000)),Lists!$CM$16),Lists!$CM$16))),CE22)) -> ОСНО | CG22: =IF(CG$11="","",IF(CG$7<>CF$7,IF(AND($Q23<>"",$Q23<>0),$Q23,IF(AND(CG24<>"",CG24<>0),CG24,IF(SUMIFS($A$25:$A29,$J$25:$J29,CG$7+2000)>0,IF(AND(INDEX($Q:$Q,SUMIFS($A$25:$A29,$J$25:$J29,CG$7+2000))<>0,INDEX($Q:$Q,SUMIFS($A$25:$A29,$J$25:$J29,CG$7+2000))<>""),INDEX($Q:$Q,SUMIFS($A$25:$A29,$J$25:$J29,CG$7+2000)),Lists!$CM$16),Lists!$CM$16))),CF22)) -> ОСНО | CH22: =IF(CH$11="","",IF(CH$7<>CG$7,IF(AND($Q23<>"",$Q23<>0),$Q23,IF(AND(CH24<>"",CH24<>0),CH24,IF(SUMIFS($A$25:$A29,$J$25:$J29,CH$7+2000)>0,IF(AND(INDEX($Q:$Q,SUMIFS($A$25:$A29,$J$25:$J29,CH$7+2000))<>0,INDEX($Q:$Q,SUMIFS($A$25:$A29,$J$25:$J29,CH$7+2000))<>""),INDEX($Q:$Q,SUMIFS($A$25:$A29,$J$25:$J29,CH$7+2000)),Lists!$CM$16),Lists!$CM$16))),CG22)) -> ОСНО | CI22: =IF(CI$11="","",IF(CI$7<>CH$7,IF(AND($Q23<>"",$Q23<>0),$Q23,IF(AND(CI24<>"",CI24<>0),CI24,IF(SUMIFS($A$25:$A29,$J$25:$J29,CI$7+2000)>0,IF(AND(INDEX($Q:$Q,SUMIFS($A$25:$A29,$J$25:$J29,CI$7+2000))<>0,INDEX($Q:$Q,SUMIFS($A$25:$A29,$J$25:$J29,CI$7+2000))<>""),INDEX($Q:$Q,SUMIFS($A$25:$A29,$J$25:$J29,CI$7+2000)),Lists!$CM$16),Lists!$CM$16))),CH22)) -> ОСНО | CJ22: =IF(CJ$11="","",IF(CJ$7<>CI$7,IF(AND($Q23<>"",$Q23<>0),$Q23,IF(AND(CJ24<>"",CJ24<>0),CJ24,IF(SUMIFS($A$25:$A29,$J$25:$J29,CJ$7+2000)>0,IF(AND(INDEX($Q:$Q,SUMIFS($A$25:$A29,$J$25:$J29,CJ$7+2000))<>0,INDEX($Q:$Q,SUMIFS($A$25:$A29,$J$25:$J29,CJ$7+2000))<>""),INDEX($Q:$Q,SUMIFS($A$25:$A29,$J$25:$J29,CJ$7+2000)),Lists!$CM$16),Lists!$CM$16))),CI22)) -> ОСНО | CK22: =IF(CK$11="","",IF(CK$7<>CJ$7,IF(AND($Q23<>"",$Q23<>0),$Q23,IF(AND(CK24<>"",CK24<>0),CK24,IF(SUMIFS($A$25:$A29,$J$25:$J29,CK$7+2000)>0,IF(AND(INDEX($Q:$Q,SUMIFS($A$25:$A29,$J$25:$J29,CK$7+2000))<>0,INDEX($Q:$Q,SUMIFS($A$25:$A29,$J$25:$J29,CK$7+2000))<>""),INDEX($Q:$Q,SUMIFS($A$25:$A29,$J$25:$J29,CK$7+2000)),Lists!$CM$16),Lists!$CM$16))),CJ22)) -> ОСНО | CL22: =IF(CL$11="","",IF(CL$7<>CK$7,IF(AND($Q23<>"",$Q23<>0),$Q23,IF(AND(CL24<>"",CL24<>0),CL24,IF(SUMIFS($A$25:$A29,$J$25:$J29,CL$7+2000)>0,IF(AND(INDEX($Q:$Q,SUMIFS($A$25:$A29,$J$25:$J29,CL$7+2000))<>0,INDEX($Q:$Q,SUMIFS($A$25:$A29,$J$25:$J29,CL$7+2000))<>""),INDEX($Q:$Q,SUMIFS($A$25:$A29,$J$25:$J29,CL$7+2000)),Lists!$CM$16),Lists!$CM$16))),CK22)) -> ОСНО | CM22: =IF(CM$11="","",IF(CM$7<>CL$7,IF(AND($Q23<>"",$Q23<>0),$Q23,IF(AND(CM24<>"",CM24<>0),CM24,IF(SUMIFS($A$25:$A29,$J$25:$J29,CM$7+2000)>0,IF(AND(INDEX($Q:$Q,SUMIFS($A$25:$A29,$J$25:$J29,CM$7+2000))<>0,INDEX($Q:$Q,SUMIFS($A$25:$A29,$J$25:$J29,CM$7+2000))<>""),INDEX($Q:$Q,SUMIFS($A$25:$A29,$J$25:$J29,CM$7+2000)),Lists!$CM$16),Lists!$CM$16))),CL22)) -> ОСНО | CN22: =IF(CN$11="","",IF(CN$7<>CM$7,IF(AND($Q23<>"",$Q23<>0),$Q23,IF(AND(CN24<>"",CN24<>0),CN24,IF(SUMIFS($A$25:$A29,$J$25:$J29,CN$7+2000)>0,IF(AND(INDEX($Q:$Q,SUMIFS($A$25:$A29,$J$25:$J29,CN$7+2000))<>0,INDEX($Q:$Q,SUMIFS($A$25:$A29,$J$25:$J29,CN$7+2000))<>""),INDEX($Q:$Q,SUMIFS($A$25:$A29,$J$25:$J29,CN$7+2000)),Lists!$CM$16),Lists!$CM$16))),CM22)) -> ОСНО | CO22: =IF(CO$11="","",IF(CO$7<>CN$7,IF(AND($Q23<>"",$Q23<>0),$Q23,IF(AND(CO24<>"",CO24<>0),CO24,IF(SUMIFS($A$25:$A29,$J$25:$J29,CO$7+2000)>0,IF(AND(INDEX($Q:$Q,SUMIFS($A$25:$A29,$J$25:$J29,CO$7+2000))<>0,INDEX($Q:$Q,SUMIFS($A$25:$A29,$J$25:$J29,CO$7+2000))<>""),INDEX($Q:$Q,SUMIFS($A$25:$A29,$J$25:$J29,CO$7+2000)),Lists!$CM$16),Lists!$CM$16))),CN22)) -> ОСНО | CP22: =IF(CP$11="","",IF(CP$7<>CO$7,IF(AND($Q23<>"",$Q23<>0),$Q23,IF(AND(CP24<>"",CP24<>0),CP24,IF(SUMIFS($A$25:$A29,$J$25:$J29,CP$7+2000)>0,IF(AND(INDEX($Q:$Q,SUMIFS($A$25:$A29,$J$25:$J29,CP$7+2000))<>0,INDEX($Q:$Q,SUMIFS($A$25:$A29,$J$25:$J29,CP$7+2000))<>""),INDEX($Q:$Q,SUMIFS($A$25:$A29,$J$25:$J29,CP$7+2000)),Lists!$CM$16),Lists!$CM$16))),CO22)) -> ОСНО | CQ22: =IF(CQ$11="","",IF(CQ$7<>CP$7,IF(AND($Q23<>"",$Q23<>0),$Q23,IF(AND(CQ24<>"",CQ24<>0),CQ24,IF(SUMIFS($A$25:$A29,$J$25:$J29,CQ$7+2000)>0,IF(AND(INDEX($Q:$Q,SUMIFS($A$25:$A29,$J$25:$J29,CQ$7+2000))<>0,INDEX($Q:$Q,SUMIFS($A$25:$A29,$J$25:$J29,CQ$7+2000))<>""),INDEX($Q:$Q,SUMIFS($A$25:$A29,$J$25:$J29,CQ$7+2000)),Lists!$CM$16),Lists!$CM$16))),CP22)) -> ОСНО | CR22: =IF(CR$11="","",IF(CR$7<>CQ$7,IF(AND($Q23<>"",$Q23<>0),$Q23,IF(AND(CR24<>"",CR24<>0),CR24,IF(SUMIFS($A$25:$A29,$J$25:$J29,CR$7+2000)>0,IF(AND(INDEX($Q:$Q,SUMIFS($A$25:$A29,$J$25:$J29,CR$7+2000))<>0,INDEX($Q:$Q,SUMIFS($A$25:$A29,$J$25:$J29,CR$7+2000))<>""),INDEX($Q:$Q,SUMIFS($A$25:$A29,$J$25:$J29,CR$7+2000)),Lists!$CM$16),Lists!$CM$16))),CQ22)) -> ОСНО | CS22: =IF(CS$11="","",IF(CS$7<>CR$7,IF(AND($Q23<>"",$Q23<>0),$Q23,IF(AND(CS24<>"",CS24<>0),CS24,IF(SUMIFS($A$25:$A29,$J$25:$J29,CS$7+2000)>0,IF(AND(INDEX($Q:$Q,SUMIFS($A$25:$A29,$J$25:$J29,CS$7+2000))<>0,INDEX($Q:$Q,SUMIFS($A$25:$A29,$J$25:$J29,CS$7+2000))<>""),INDEX($Q:$Q,SUMIFS($A$25:$A29,$J$25:$J29,CS$7+2000)),Lists!$CM$16),Lists!$CM$16))),CR22)) -> ОСНО | CT22: =IF(CT$11="","",IF(CT$7<>CS$7,IF(AND($Q23<>"",$Q23<>0),$Q23,IF(AND(CT24<>"",CT24<>0),CT24,IF(SUMIFS($A$25:$A29,$J$25:$J29,CT$7+2000)>0,IF(AND(INDEX($Q:$Q,SUMIFS($A$25:$A29,$J$25:$J29,CT$7+2000))<>0,INDEX($Q:$Q,SUMIFS($A$25:$A29,$J$25:$J29,CT$7+2000))<>""),INDEX($Q:$Q,SUMIFS($A$25:$A29,$J$25:$J29,CT$7+2000)),Lists!$CM$16),Lists!$CM$16))),CS22)) -> ОСНО | CU22: =IF(CU$11="","",IF(CU$7<>CT$7,IF(AND($Q23<>"",$Q23<>0),$Q23,IF(AND(CU24<>"",CU24<>0),CU24,IF(SUMIFS($A$25:$A29,$J$25:$J29,CU$7+2000)>0,IF(AND(INDEX($Q:$Q,SUMIFS($A$25:$A29,$J$25:$J29,CU$7+2000))<>0,INDEX($Q:$Q,SUMIFS($A$25:$A29,$J$25:$J29,CU$7+2000))<>""),INDEX($Q:$Q,SUMIFS($A$25:$A29,$J$25:$J29,CU$7+2000)),Lists!$CM$16),Lists!$CM$16))),CT22)) -> ОСНО | CV22: =IF(CV$11="","",IF(CV$7<>CU$7,IF(AND($Q23<>"",$Q23<>0),$Q23,IF(AND(CV24<>"",CV24<>0),CV24,IF(SUMIFS($A$25:$A29,$J$25:$J29,CV$7+2000)>0,IF(AND(INDEX($Q:$Q,SUMIFS($A$25:$A29,$J$25:$J29,CV$7+2000))<>0,INDEX($Q:$Q,SUMIFS($A$25:$A29,$J$25:$J29,CV$7+2000))<>""),INDEX($Q:$Q,SUMIFS($A$25:$A29,$J$25:$J29,CV$7+2000)),Lists!$CM$16),Lists!$CM$16))),CU22)) -> ОСНО | CW22: =IF(CW$11="","",IF(CW$7<>CV$7,IF(AND($Q23<>"",$Q23<>0),$Q23,IF(AND(CW24<>"",CW24<>0),CW24,IF(SUMIFS($A$25:$A29,$J$25:$J29,CW$7+2000)>0,IF(AND(INDEX($Q:$Q,SUMIFS($A$25:$A29,$J$25:$J29,CW$7+2000))<>0,INDEX($Q:$Q,SUMIFS($A$25:$A29,$J$25:$J29,CW$7+2000))<>""),INDEX($Q:$Q,SUMIFS($A$25:$A29,$J$25:$J29,CW$7+2000)),Lists!$CM$16),Lists!$CM$16))),CV22)) -> ОСНО | CX22: =IF(CX$11="","",IF(CX$7<>CW$7,IF(AND($Q23<>"",$Q23<>0),$Q23,IF(AND(CX24<>"",CX24<>0),CX24,IF(SUMIFS($A$25:$A29,$J$25:$J29,CX$7+2000)>0,IF(AND(INDEX($Q:$Q,SUMIFS($A$25:$A29,$J$25:$J29,CX$7+2000))<>0,INDEX($Q:$Q,SUMIFS($A$25:$A29,$J$25:$J29,CX$7+2000))<>""),INDEX($Q:$Q,SUMIFS($A$25:$A29,$J$25:$J29,CX$7+2000)),Lists!$CM$16),Lists!$CM$16))),CW22)) -> ОСНО | CY22: =IF(CY$11="","",IF(CY$7<>CX$7,IF(AND($Q23<>"",$Q23<>0),$Q23,IF(AND(CY24<>"",CY24<>0),CY24,IF(SUMIFS($A$25:$A29,$J$25:$J29,CY$7+2000)>0,IF(AND(INDEX($Q:$Q,SUMIFS($A$25:$A29,$J$25:$J29,CY$7+2000))<>0,INDEX($Q:$Q,SUMIFS($A$25:$A29,$J$25:$J29,CY$7+2000))<>""),INDEX($Q:$Q,SUMIFS($A$25:$A29,$J$25:$J29,CY$7+2000)),Lists!$CM$16),Lists!$CM$16))),CX22)) -> ОСНО | CZ22: =IF(CZ$11="","",IF(CZ$7<>CY$7,IF(AND($Q23<>"",$Q23<>0),$Q23,IF(AND(CZ24<>"",CZ24<>0),CZ24,IF(SUMIFS($A$25:$A29,$J$25:$J29,CZ$7+2000)>0,IF(AND(INDEX($Q:$Q,SUMIFS($A$25:$A29,$J$25:$J29,CZ$7+2000))<>0,INDEX($Q:$Q,SUMIFS($A$25:$A29,$J$25:$J29,CZ$7+2000))<>""),INDEX($Q:$Q,SUMIFS($A$25:$A29,$J$25:$J29,CZ$7+2000)),Lists!$CM$16),Lists!$CM$16))),CY22)) -> ОСНО | DA22: =IF(DA$11="","",IF(DA$7<>CZ$7,IF(AND($Q23<>"",$Q23<>0),$Q23,IF(AND(DA24<>"",DA24<>0),DA24,IF(SUMIFS($A$25:$A29,$J$25:$J29,DA$7+2000)>0,IF(AND(INDEX($Q:$Q,SUMIFS($A$25:$A29,$J$25:$J29,DA$7+2000))<>0,INDEX($Q:$Q,SUMIFS($A$25:$A29,$J$25:$J29,DA$7+2000))<>""),INDEX($Q:$Q,SUMIFS($A$25:$A29,$J$25:$J29,DA$7+2000)),Lists!$CM$16),Lists!$CM$16))),CZ22)) -> ОСНО | DB22: =IF(DB$11="","",IF(DB$7<>DA$7,IF(AND($Q23<>"",$Q23<>0),$Q23,IF(AND(DB24<>"",DB24<>0),DB24,IF(SUMIFS($A$25:$A29,$J$25:$J29,DB$7+2000)>0,IF(AND(INDEX($Q:$Q,SUMIFS($A$25:$A29,$J$25:$J29,DB$7+2000))<>0,INDEX($Q:$Q,SUMIFS($A$25:$A29,$J$25:$J29,DB$7+2000))<>""),INDEX($Q:$Q,SUMIFS($A$25:$A29,$J$25:$J29,DB$7+2000)),Lists!$CM$16),Lists!$CM$16))),DA22)) -> ОСНО | DC22: =IF(DC$11="","",IF(DC$7<>DB$7,IF(AND($Q23<>"",$Q23<>0),$Q23,IF(AND(DC24<>"",DC24<>0),DC24,IF(SUMIFS($A$25:$A29,$J$25:$J29,DC$7+2000)>0,IF(AND(INDEX($Q:$Q,SUMIFS($A$25:$A29,$J$25:$J29,DC$7+2000))<>0,INDEX($Q:$Q,SUMIFS($A$25:$A29,$J$25:$J29,DC$7+2000))<>""),INDEX($Q:$Q,SUMIFS($A$25:$A29,$J$25:$J29,DC$7+2000)),Lists!$CM$16),Lists!$CM$16))),DB22)) -> ОСНО | DD22: =IF(DD$11="","",IF(DD$7<>DC$7,IF(AND($Q23<>"",$Q23<>0),$Q23,IF(AND(DD24<>"",DD24<>0),DD24,IF(SUMIFS($A$25:$A29,$J$25:$J29,DD$7+2000)>0,IF(AND(INDEX($Q:$Q,SUMIFS($A$25:$A29,$J$25:$J29,DD$7+2000))<>0,INDEX($Q:$Q,SUMIFS($A$25:$A29,$J$25:$J29,DD$7+2000))<>""),INDEX($Q:$Q,SUMIFS($A$25:$A29,$J$25:$J29,DD$7+2000)),Lists!$CM$16),Lists!$CM$16))),DC22)) -> ОСНО | DE22: =IF(DE$11="","",IF(DE$7<>DD$7,IF(AND($Q23<>"",$Q23<>0),$Q23,IF(AND(DE24<>"",DE24<>0),DE24,IF(SUMIFS($A$25:$A29,$J$25:$J29,DE$7+2000)>0,IF(AND(INDEX($Q:$Q,SUMIFS($A$25:$A29,$J$25:$J29,DE$7+2000))<>0,INDEX($Q:$Q,SUMIFS($A$25:$A29,$J$25:$J29,DE$7+2000))<>""),INDEX($Q:$Q,SUMIFS($A$25:$A29,$J$25:$J29,DE$7+2000)),Lists!$CM$16),Lists!$CM$16))),DD22)) -> ОСНО | DF22: =IF(DF$11="","",IF(DF$7<>DE$7,IF(AND($Q23<>"",$Q23<>0),$Q23,IF(AND(DF24<>"",DF24<>0),DF24,IF(SUMIFS($A$25:$A29,$J$25:$J29,DF$7+2000)>0,IF(AND(INDEX($Q:$Q,SUMIFS($A$25:$A29,$J$25:$J29,DF$7+2000))<>0,INDEX($Q:$Q,SUMIFS($A$25:$A29,$J$25:$J29,DF$7+2000))<>""),INDEX($Q:$Q,SUMIFS($A$25:$A29,$J$25:$J29,DF$7+2000)),Lists!$CM$16),Lists!$CM$16))),DE22)) -> ОСНО | DG22: =IF(DG$11="","",IF(DG$7<>DF$7,IF(AND($Q23<>"",$Q23<>0),$Q23,IF(AND(DG24<>"",DG24<>0),DG24,IF(SUMIFS($A$25:$A29,$J$25:$J29,DG$7+2000)>0,IF(AND(INDEX($Q:$Q,SUMIFS($A$25:$A29,$J$25:$J29,DG$7+2000))<>0,INDEX($Q:$Q,SUMIFS($A$25:$A29,$J$25:$J29,DG$7+2000))<>""),INDEX($Q:$Q,SUMIFS($A$25:$A29,$J$25:$J29,DG$7+2000)),Lists!$CM$16),Lists!$CM$16))),DF22)) -> ОСНО | DH22: =IF(DH$11="","",IF(DH$7<>DG$7,IF(AND($Q23<>"",$Q23<>0),$Q23,IF(AND(DH24<>"",DH24<>0),DH24,IF(SUMIFS($A$25:$A29,$J$25:$J29,DH$7+2000)>0,IF(AND(INDEX($Q:$Q,SUMIFS($A$25:$A29,$J$25:$J29,DH$7+2000))<>0,INDEX($Q:$Q,SUMIFS($A$25:$A29,$J$25:$J29,DH$7+2000))<>""),INDEX($Q:$Q,SUMIFS($A$25:$A29,$J$25:$J29,DH$7+2000)),Lists!$CM$16),Lists!$CM$16))),DG22)) -> ОСНО | DI22: =IF(DI$11="","",IF(DI$7<>DH$7,IF(AND($Q23<>"",$Q23<>0),$Q23,IF(AND(DI24<>"",DI24<>0),DI24,IF(SUMIFS($A$25:$A29,$J$25:$J29,DI$7+2000)>0,IF(AND(INDEX($Q:$Q,SUMIFS($A$25:$A29,$J$25:$J29,DI$7+2000))<>0,INDEX($Q:$Q,SUMIFS($A$25:$A29,$J$25:$J29,DI$7+2000))<>""),INDEX($Q:$Q,SUMIFS($A$25:$A29,$J$25:$J29,DI$7+2000)),Lists!$CM$16),Lists!$CM$16))),DH22)) -> ОСНО | DJ22: =IF(DJ$11="","",IF(DJ$7<>DI$7,IF(AND($Q23<>"",$Q23<>0),$Q23,IF(AND(DJ24<>"",DJ24<>0),DJ24,IF(SUMIFS($A$25:$A29,$J$25:$J29,DJ$7+2000)>0,IF(AND(INDEX($Q:$Q,SUMIFS($A$25:$A29,$J$25:$J29,DJ$7+2000))<>0,INDEX($Q:$Q,SUMIFS($A$25:$A29,$J$25:$J29,DJ$7+2000))<>""),INDEX($Q:$Q,SUMIFS($A$25:$A29,$J$25:$J29,DJ$7+2000)),Lists!$CM$16),Lists!$CM$16))),DI22)) -> ОСНО | DK22: =IF(DK$11="","",IF(DK$7<>DJ$7,IF(AND($Q23<>"",$Q23<>0),$Q23,IF(AND(DK24<>"",DK24<>0),DK24,IF(SUMIFS($A$25:$A29,$J$25:$J29,DK$7+2000)>0,IF(AND(INDEX($Q:$Q,SUMIFS($A$25:$A29,$J$25:$J29,DK$7+2000))<>0,INDEX($Q:$Q,SUMIFS($A$25:$A29,$J$25:$J29,DK$7+2000))<>""),INDEX($Q:$Q,SUMIFS($A$25:$A29,$J$25:$J29,DK$7+2000)),Lists!$CM$16),Lists!$CM$16))),DJ22)) -> ОСНО | DL22: =IF(DL$11="","",IF(DL$7<>DK$7,IF(AND($Q23<>"",$Q23<>0),$Q23,IF(AND(DL24<>"",DL24<>0),DL24,IF(SUMIFS($A$25:$A29,$J$25:$J29,DL$7+2000)>0,IF(AND(INDEX($Q:$Q,SUMIFS($A$25:$A29,$J$25:$J29,DL$7+2000))<>0,INDEX($Q:$Q,SUMIFS($A$25:$A29,$J$25:$J29,DL$7+2000))<>""),INDEX($Q:$Q,SUMIFS($A$25:$A29,$J$25:$J29,DL$7+2000)),Lists!$CM$16),Lists!$CM$16))),DK22)) -> ОСНО | DM22: =IF(DM$11="","",IF(DM$7<>DL$7,IF(AND($Q23<>"",$Q23<>0),$Q23,IF(AND(DM24<>"",DM24<>0),DM24,IF(SUMIFS($A$25:$A29,$J$25:$J29,DM$7+2000)>0,IF(AND(INDEX($Q:$Q,SUMIFS($A$25:$A29,$J$25:$J29,DM$7+2000))<>0,INDEX($Q:$Q,SUMIFS($A$25:$A29,$J$25:$J29,DM$7+2000))<>""),INDEX($Q:$Q,SUMIFS($A$25:$A29,$J$25:$J29,DM$7+2000)),Lists!$CM$16),Lists!$CM$16))),DL22)) -> ОСНО | DN22: =IF(DN$11="","",IF(DN$7<>DM$7,IF(AND($Q23<>"",$Q23<>0),$Q23,IF(AND(DN24<>"",DN24<>0),DN24,IF(SUMIFS($A$25:$A29,$J$25:$J29,DN$7+2000)>0,IF(AND(INDEX($Q:$Q,SUMIFS($A$25:$A29,$J$25:$J29,DN$7+2000))<>0,INDEX($Q:$Q,SUMIFS($A$25:$A29,$J$25:$J29,DN$7+2000))<>""),INDEX($Q:$Q,SUMIFS($A$25:$A29,$J$25:$J29,DN$7+2000)),Lists!$CM$16),Lists!$CM$16))),DM22)) -> ОСНО | DO22: =IF(DO$11="","",IF(DO$7<>DN$7,IF(AND($Q23<>"",$Q23<>0),$Q23,IF(AND(DO24<>"",DO24<>0),DO24,IF(SUMIFS($A$25:$A29,$J$25:$J29,DO$7+2000)>0,IF(AND(INDEX($Q:$Q,SUMIFS($A$25:$A29,$J$25:$J29,DO$7+2000))<>0,INDEX($Q:$Q,SUMIFS($A$25:$A29,$J$25:$J29,DO$7+2000))<>""),INDEX($Q:$Q,SUMIFS($A$25:$A29,$J$25:$J29,DO$7+2000)),Lists!$CM$16),Lists!$CM$16))),DN22)) -> ОСНО | DP22: =IF(DP$11="","",IF(DP$7<>DO$7,IF(AND($Q23<>"",$Q23<>0),$Q23,IF(AND(DP24<>"",DP24<>0),DP24,IF(SUMIFS($A$25:$A29,$J$25:$J29,DP$7+2000)>0,IF(AND(INDEX($Q:$Q,SUMIFS($A$25:$A29,$J$25:$J29,DP$7+2000))<>0,INDEX($Q:$Q,SUMIFS($A$25:$A29,$J$25:$J29,DP$7+2000))<>""),INDEX($Q:$Q,SUMIFS($A$25:$A29,$J$25:$J29,DP$7+2000)),Lists!$CM$16),Lists!$CM$16))),DO22)) -> ОСНО | DQ22: =IF(DQ$11="","",IF(DQ$7<>DP$7,IF(AND($Q23<>"",$Q23<>0),$Q23,IF(AND(DQ24<>"",DQ24<>0),DQ24,IF(SUMIFS($A$25:$A29,$J$25:$J29,DQ$7+2000)>0,IF(AND(INDEX($Q:$Q,SUMIFS($A$25:$A29,$J$25:$J29,DQ$7+2000))<>0,INDEX($Q:$Q,SUMIFS($A$25:$A29,$J$25:$J29,DQ$7+2000))<>""),INDEX($Q:$Q,SUMIFS($A$25:$A29,$J$25:$J29,DQ$7+2000)),Lists!$CM$16),Lists!$CM$16))),DP22)) -> ОСНО | DR22: =IF(DR$11="","",IF(DR$7<>DQ$7,IF(AND($Q23<>"",$Q23<>0),$Q23,IF(AND(DR24<>"",DR24<>0),DR24,IF(SUMIFS($A$25:$A29,$J$25:$J29,DR$7+2000)>0,IF(AND(INDEX($Q:$Q,SUMIFS($A$25:$A29,$J$25:$J29,DR$7+2000))<>0,INDEX($Q:$Q,SUMIFS($A$25:$A29,$J$25:$J29,DR$7+2000))<>""),INDEX($Q:$Q,SUMIFS($A$25:$A29,$J$25:$J29,DR$7+2000)),Lists!$CM$16),Lists!$CM$16))),DQ22)) -> ОСНО | DS22: =IF(DS$11="","",IF(DS$7<>DR$7,IF(AND($Q23<>"",$Q23<>0),$Q23,IF(AND(DS24<>"",DS24<>0),DS24,IF(SUMIFS($A$25:$A29,$J$25:$J29,DS$7+2000)>0,IF(AND(INDEX($Q:$Q,SUMIFS($A$25:$A29,$J$25:$J29,DS$7+2000))<>0,INDEX($Q:$Q,SUMIFS($A$25:$A29,$J$25:$J29,DS$7+2000))<>""),INDEX($Q:$Q,SUMIFS($A$25:$A29,$J$25:$J29,DS$7+2000)),Lists!$CM$16),Lists!$CM$16))),DR22)) -> ОСНО | DT22: =IF(DT$11="","",IF(DT$7<>DS$7,IF(AND($Q23<>"",$Q23<>0),$Q23,IF(AND(DT24<>"",DT24<>0),DT24,IF(SUMIFS($A$25:$A29,$J$25:$J29,DT$7+2000)>0,IF(AND(INDEX($Q:$Q,SUMIFS($A$25:$A29,$J$25:$J29,DT$7+2000))<>0,INDEX($Q:$Q,SUMIFS($A$25:$A29,$J$25:$J29,DT$7+2000))<>""),INDEX($Q:$Q,SUMIFS($A$25:$A29,$J$25:$J29,DT$7+2000)),Lists!$CM$16),Lists!$CM$16))),DS22)) -> ОСНО | DU22: =IF(DU$11="","",IF(DU$7<>DT$7,IF(AND($Q23<>"",$Q23<>0),$Q23,IF(AND(DU24<>"",DU24<>0),DU24,IF(SUMIFS($A$25:$A29,$J$25:$J29,DU$7+2000)>0,IF(AND(INDEX($Q:$Q,SUMIFS($A$25:$A29,$J$25:$J29,DU$7+2000))<>0,INDEX($Q:$Q,SUMIFS($A$25:$A29,$J$25:$J29,DU$7+2000))<>""),INDEX($Q:$Q,SUMIFS($A$25:$A29,$J$25:$J29,DU$7+2000)),Lists!$CM$16),Lists!$CM$16))),DT22)) -> ОСНО | DV22: =IF(DV$11="","",IF(DV$7<>DU$7,IF(AND($Q23<>"",$Q23<>0),$Q23,IF(AND(DV24<>"",DV24<>0),DV24,IF(SUMIFS($A$25:$A29,$J$25:$J29,DV$7+2000)>0,IF(AND(INDEX($Q:$Q,SUMIFS($A$25:$A29,$J$25:$J29,DV$7+2000))<>0,INDEX($Q:$Q,SUMIFS($A$25:$A29,$J$25:$J29,DV$7+2000))<>""),INDEX($Q:$Q,SUMIFS($A$25:$A29,$J$25:$J29,DV$7+2000)),Lists!$CM$16),Lists!$CM$16))),DU22)) -> ОСНО | DW22: =IF(DW$11="","",IF(DW$7<>DV$7,IF(AND($Q23<>"",$Q23<>0),$Q23,IF(AND(DW24<>"",DW24<>0),DW24,IF(SUMIFS($A$25:$A29,$J$25:$J29,DW$7+2000)>0,IF(AND(INDEX($Q:$Q,SUMIFS($A$25:$A29,$J$25:$J29,DW$7+2000))<>0,INDEX($Q:$Q,SUMIFS($A$25:$A29,$J$25:$J29,DW$7+2000))<>""),INDEX($Q:$Q,SUMIFS($A$25:$A29,$J$25:$J29,DW$7+2000)),Lists!$CM$16),Lists!$CM$16))),DV22)) -> ОСНО | DX22: =IF(DX$11="","",IF(DX$7<>DW$7,IF(AND($Q23<>"",$Q23<>0),$Q23,IF(AND(DX24<>"",DX24<>0),DX24,IF(SUMIFS($A$25:$A29,$J$25:$J29,DX$7+2000)>0,IF(AND(INDEX($Q:$Q,SUMIFS($A$25:$A29,$J$25:$J29,DX$7+2000))<>0,INDEX($Q:$Q,SUMIFS($A$25:$A29,$J$25:$J29,DX$7+2000))<>""),INDEX($Q:$Q,SUMIFS($A$25:$A29,$J$25:$J29,DX$7+2000)),Lists!$CM$16),Lists!$CM$16))),DW22)) -> ОСНО | DY22: =IF(DY$11="","",IF(DY$7<>DX$7,IF(AND($Q23<>"",$Q23<>0),$Q23,IF(AND(DY24<>"",DY24<>0),DY24,IF(SUMIFS($A$25:$A29,$J$25:$J29,DY$7+2000)>0,IF(AND(INDEX($Q:$Q,SUMIFS($A$25:$A29,$J$25:$J29,DY$7+2000))<>0,INDEX($Q:$Q,SUMIFS($A$25:$A29,$J$25:$J29,DY$7+2000))<>""),INDEX($Q:$Q,SUMIFS($A$25:$A29,$J$25:$J29,DY$7+2000)),Lists!$CM$16),Lists!$CM$16))),DX22)) -> ОСНО | DZ22: =IF(DZ$11="","",IF(DZ$7<>DY$7,IF(AND($Q23<>"",$Q23<>0),$Q23,IF(AND(DZ24<>"",DZ24<>0),DZ24,IF(SUMIFS($A$25:$A29,$J$25:$J29,DZ$7+2000)>0,IF(AND(INDEX($Q:$Q,SUMIFS($A$25:$A29,$J$25:$J29,DZ$7+2000))<>0,INDEX($Q:$Q,SUMIFS($A$25:$A29,$J$25:$J29,DZ$7+2000))<>""),INDEX($Q:$Q,SUMIFS($A$25:$A29,$J$25:$J29,DZ$7+2000)),Lists!$CM$16),Lists!$CM$16))),DY22)) -> ОСНО | EA22: =IF(EA$11="","",IF(EA$7<>DZ$7,IF(AND($Q23<>"",$Q23<>0),$Q23,IF(AND(EA24<>"",EA24<>0),EA24,IF(SUMIFS($A$25:$A29,$J$25:$J29,EA$7+2000)>0,IF(AND(INDEX($Q:$Q,SUMIFS($A$25:$A29,$J$25:$J29,EA$7+2000))<>0,INDEX($Q:$Q,SUMIFS($A$25:$A29,$J$25:$J29,EA$7+2000))<>""),INDEX($Q:$Q,SUMIFS($A$25:$A29,$J$25:$J29,EA$7+2000)),Lists!$CM$16),Lists!$CM$16))),DZ22)) -> ОСНО | EB22: =IF(EB$11="","",IF(EB$7<>EA$7,IF(AND($Q23<>"",$Q23<>0),$Q23,IF(AND(EB24<>"",EB24<>0),EB24,IF(SUMIFS($A$25:$A29,$J$25:$J29,EB$7+2000)>0,IF(AND(INDEX($Q:$Q,SUMIFS($A$25:$A29,$J$25:$J29,EB$7+2000))<>0,INDEX($Q:$Q,SUMIFS($A$25:$A29,$J$25:$J29,EB$7+2000))<>""),INDEX($Q:$Q,SUMIFS($A$25:$A29,$J$25:$J29,EB$7+2000)),Lists!$CM$16),Lists!$CM$16))),EA22)) -> ОСНО | EC22: =IF(EC$11="","",IF(EC$7<>EB$7,IF(AND($Q23<>"",$Q23<>0),$Q23,IF(AND(EC24<>"",EC24<>0),EC24,IF(SUMIFS($A$25:$A29,$J$25:$J29,EC$7+2000)>0,IF(AND(INDEX($Q:$Q,SUMIFS($A$25:$A29,$J$25:$J29,EC$7+2000))<>0,INDEX($Q:$Q,SUMIFS($A$25:$A29,$J$25:$J29,EC$7+2000))<>""),INDEX($Q:$Q,SUMIFS($A$25:$A29,$J$25:$J29,EC$7+2000)),Lists!$CM$16),Lists!$CM$16))),EB22)) -> ОСНО | ED22: =IF(ED$11="","",IF(ED$7<>EC$7,IF(AND($Q23<>"",$Q23<>0),$Q23,IF(AND(ED24<>"",ED24<>0),ED24,IF(SUMIFS($A$25:$A29,$J$25:$J29,ED$7+2000)>0,IF(AND(INDEX($Q:$Q,SUMIFS($A$25:$A29,$J$25:$J29,ED$7+2000))<>0,INDEX($Q:$Q,SUMIFS($A$25:$A29,$J$25:$J29,ED$7+2000))<>""),INDEX($Q:$Q,SUMIFS($A$25:$A29,$J$25:$J29,ED$7+2000)),Lists!$CM$16),Lists!$CM$16))),EC22)) -> ОСНО | EE22: =IF(EE$11="","",IF(EE$7<>ED$7,IF(AND($Q23<>"",$Q23<>0),$Q23,IF(AND(EE24<>"",EE24<>0),EE24,IF(SUMIFS($A$25:$A29,$J$25:$J29,EE$7+2000)>0,IF(AND(INDEX($Q:$Q,SUMIFS($A$25:$A29,$J$25:$J29,EE$7+2000))<>0,INDEX($Q:$Q,SUMIFS($A$25:$A29,$J$25:$J29,EE$7+2000))<>""),INDEX($Q:$Q,SUMIFS($A$25:$A29,$J$25:$J29,EE$7+2000)),Lists!$CM$16),Lists!$CM$16))),ED22)) -> ОСНО | EF22: =IF(EF$11="","",IF(EF$7<>EE$7,IF(AND($Q23<>"",$Q23<>0),$Q23,IF(AND(EF24<>"",EF24<>0),EF24,IF(SUMIFS($A$25:$A29,$J$25:$J29,EF$7+2000)>0,IF(AND(INDEX($Q:$Q,SUMIFS($A$25:$A29,$J$25:$J29,EF$7+2000))<>0,INDEX($Q:$Q,SUMIFS($A$25:$A29,$J$25:$J29,EF$7+2000))<>""),INDEX($Q:$Q,SUMIFS($A$25:$A29,$J$25:$J29,EF$7+2000)),Lists!$CM$16),Lists!$CM$16))),EE22)) -> ОСНО | EG22: =IF(EG$11="","",IF(EG$7<>EF$7,IF(AND($Q23<>"",$Q23<>0),$Q23,IF(AND(EG24<>"",EG24<>0),EG24,IF(SUMIFS($A$25:$A29,$J$25:$J29,EG$7+2000)>0,IF(AND(INDEX($Q:$Q,SUMIFS($A$25:$A29,$J$25:$J29,EG$7+2000))<>0,INDEX($Q:$Q,SUMIFS($A$25:$A29,$J$25:$J29,EG$7+2000))<>""),INDEX($Q:$Q,SUMIFS($A$25:$A29,$J$25:$J29,EG$7+2000)),Lists!$CM$16),Lists!$CM$16))),EF22)) -> ОСНО | EH22: =IF(EH$11="","",IF(EH$7<>EG$7,IF(AND($Q23<>"",$Q23<>0),$Q23,IF(AND(EH24<>"",EH24<>0),EH24,IF(SUMIFS($A$25:$A29,$J$25:$J29,EH$7+2000)>0,IF(AND(INDEX($Q:$Q,SUMIFS($A$25:$A29,$J$25:$J29,EH$7+2000))<>0,INDEX($Q:$Q,SUMIFS($A$25:$A29,$J$25:$J29,EH$7+2000))<>""),INDEX($Q:$Q,SUMIFS($A$25:$A29,$J$25:$J29,EH$7+2000)),Lists!$CM$16),Lists!$CM$16))),EG22)) -> ОСНО | EI22: =IF(EI$11="","",IF(EI$7<>EH$7,IF(AND($Q23<>"",$Q23<>0),$Q23,IF(AND(EI24<>"",EI24<>0),EI24,IF(SUMIFS($A$25:$A29,$J$25:$J29,EI$7+2000)>0,IF(AND(INDEX($Q:$Q,SUMIFS($A$25:$A29,$J$25:$J29,EI$7+2000))<>0,INDEX($Q:$Q,SUMIFS($A$25:$A29,$J$25:$J29,EI$7+2000))<>""),INDEX($Q:$Q,SUMIFS($A$25:$A29,$J$25:$J29,EI$7+2000)),Lists!$CM$16),Lists!$CM$16))),EH22)) -> ОСНО | EJ22: =IF(EJ$11="","",IF(EJ$7<>EI$7,IF(AND($Q23<>"",$Q23<>0),$Q23,IF(AND(EJ24<>"",EJ24<>0),EJ24,IF(SUMIFS($A$25:$A29,$J$25:$J29,EJ$7+2000)>0,IF(AND(INDEX($Q:$Q,SUMIFS($A$25:$A29,$J$25:$J29,EJ$7+2000))<>0,INDEX($Q:$Q,SUMIFS($A$25:$A29,$J$25:$J29,EJ$7+2000))<>""),INDEX($Q:$Q,SUMIFS($A$25:$A29,$J$25:$J29,EJ$7+2000)),Lists!$CM$16),Lists!$CM$16))),EI22)) -> ОСНО | EK22: =IF(EK$11="","",IF(EK$7<>EJ$7,IF(AND($Q23<>"",$Q23<>0),$Q23,IF(AND(EK24<>"",EK24<>0),EK24,IF(SUMIFS($A$25:$A29,$J$25:$J29,EK$7+2000)>0,IF(AND(INDEX($Q:$Q,SUMIFS($A$25:$A29,$J$25:$J29,EK$7+2000))<>0,INDEX($Q:$Q,SUMIFS($A$25:$A29,$J$25:$J29,EK$7+2000))<>""),INDEX($Q:$Q,SUMIFS($A$25:$A29,$J$25:$J29,EK$7+2000)),Lists!$CM$16),Lists!$CM$16))),EJ22)) -> ОСНО | EL22: =IF(EL$11="","",IF(EL$7<>EK$7,IF(AND($Q23<>"",$Q23<>0),$Q23,IF(AND(EL24<>"",EL24<>0),EL24,IF(SUMIFS($A$25:$A29,$J$25:$J29,EL$7+2000)>0,IF(AND(INDEX($Q:$Q,SUMIFS($A$25:$A29,$J$25:$J29,EL$7+2000))<>0,INDEX($Q:$Q,SUMIFS($A$25:$A29,$J$25:$J29,EL$7+2000))<>""),INDEX($Q:$Q,SUMIFS($A$25:$A29,$J$25:$J29,EL$7+2000)),Lists!$CM$16),Lists!$CM$16))),EK22)) -> ОСНО | EM22: =IF(EM$11="","",IF(EM$7<>EL$7,IF(AND($Q23<>"",$Q23<>0),$Q23,IF(AND(EM24<>"",EM24<>0),EM24,IF(SUMIFS($A$25:$A29,$J$25:$J29,EM$7+2000)>0,IF(AND(INDEX($Q:$Q,SUMIFS($A$25:$A29,$J$25:$J29,EM$7+2000))<>0,INDEX($Q:$Q,SUMIFS($A$25:$A29,$J$25:$J29,EM$7+2000))<>""),INDEX($Q:$Q,SUMIFS($A$25:$A29,$J$25:$J29,EM$7+2000)),Lists!$CM$16),Lists!$CM$16))),EL22)) -> ОСНО | EN22: =IF(EN$11="","",IF(EN$7<>EM$7,IF(AND($Q23<>"",$Q23<>0),$Q23,IF(AND(EN24<>"",EN24<>0),EN24,IF(SUMIFS($A$25:$A29,$J$25:$J29,EN$7+2000)>0,IF(AND(INDEX($Q:$Q,SUMIFS($A$25:$A29,$J$25:$J29,EN$7+2000))<>0,INDEX($Q:$Q,SUMIFS($A$25:$A29,$J$25:$J29,EN$7+2000))<>""),INDEX($Q:$Q,SUMIFS($A$25:$A29,$J$25:$J29,EN$7+2000)),Lists!$CM$16),Lists!$CM$16))),EM22)) -> ОСНО | EO22: =IF(EO$11="","",IF(EO$7<>EN$7,IF(AND($Q23<>"",$Q23<>0),$Q23,IF(AND(EO24<>"",EO24<>0),EO24,IF(SUMIFS($A$25:$A29,$J$25:$J29,EO$7+2000)>0,IF(AND(INDEX($Q:$Q,SUMIFS($A$25:$A29,$J$25:$J29,EO$7+2000))<>0,INDEX($Q:$Q,SUMIFS($A$25:$A29,$J$25:$J29,EO$7+2000))<>""),INDEX($Q:$Q,SUMIFS($A$25:$A29,$J$25:$J29,EO$7+2000)),Lists!$CM$16),Lists!$CM$16))),EN22)) -> ОСНО | EP22: =IF(EP$11="","",IF(EP$7<>EO$7,IF(AND($Q23<>"",$Q23<>0),$Q23,IF(AND(EP24<>"",EP24<>0),EP24,IF(SUMIFS($A$25:$A29,$J$25:$J29,EP$7+2000)>0,IF(AND(INDEX($Q:$Q,SUMIFS($A$25:$A29,$J$25:$J29,EP$7+2000))<>0,INDEX($Q:$Q,SUMIFS($A$25:$A29,$J$25:$J29,EP$7+2000))<>""),INDEX($Q:$Q,SUMIFS($A$25:$A29,$J$25:$J29,EP$7+2000)),Lists!$CM$16),Lists!$CM$16))),EO22)) -> ОСНО | EQ22: =IF(EQ$11="","",IF(EQ$7<>EP$7,IF(AND($Q23<>"",$Q23<>0),$Q23,IF(AND(EQ24<>"",EQ24<>0),EQ24,IF(SUMIFS($A$25:$A29,$J$25:$J29,EQ$7+2000)>0,IF(AND(INDEX($Q:$Q,SUMIFS($A$25:$A29,$J$25:$J29,EQ$7+2000))<>0,INDEX($Q:$Q,SUMIFS($A$25:$A29,$J$25:$J29,EQ$7+2000))<>""),INDEX($Q:$Q,SUMIFS($A$25:$A29,$J$25:$J29,EQ$7+2000)),Lists!$CM$16),Lists!$CM$16))),EP22)) ->  | ER22: =IF(ER$11="","",IF(ER$7<>EQ$7,IF(AND($Q23<>"",$Q23<>0),$Q23,IF(AND(ER24<>"",ER24<>0),ER24,IF(SUMIFS($A$25:$A29,$J$25:$J29,ER$7+2000)>0,IF(AND(INDEX($Q:$Q,SUMIFS($A$25:$A29,$J$25:$J29,ER$7+2000))<>0,INDEX($Q:$Q,SUMIFS($A$25:$A29,$J$25:$J29,ER$7+2000))<>""),INDEX($Q:$Q,SUMIFS($A$25:$A29,$J$25:$J29,ER$7+2000)),Lists!$CM$16),Lists!$CM$16))),EQ22)) ->  | ES22: =IF(ES$11="","",IF(ES$7<>ER$7,IF(AND($Q23<>"",$Q23<>0),$Q23,IF(AND(ES24<>"",ES24<>0),ES24,IF(SUMIFS($A$25:$A29,$J$25:$J29,ES$7+2000)>0,IF(AND(INDEX($Q:$Q,SUMIFS($A$25:$A29,$J$25:$J29,ES$7+2000))<>0,INDEX($Q:$Q,SUMIFS($A$25:$A29,$J$25:$J29,ES$7+2000))<>""),INDEX($Q:$Q,SUMIFS($A$25:$A29,$J$25:$J29,ES$7+2000)),Lists!$CM$16),Lists!$CM$16))),ER22)) ->  | ET22: =IF(ET$11="","",IF(ET$7<>ES$7,IF(AND($Q23<>"",$Q23<>0),$Q23,IF(AND(ET24<>"",ET24<>0),ET24,IF(SUMIFS($A$25:$A29,$J$25:$J29,ET$7+2000)>0,IF(AND(INDEX($Q:$Q,SUMIFS($A$25:$A29,$J$25:$J29,ET$7+2000))<>0,INDEX($Q:$Q,SUMIFS($A$25:$A29,$J$25:$J29,ET$7+2000))<>""),INDEX($Q:$Q,SUMIFS($A$25:$A29,$J$25:$J29,ET$7+2000)),Lists!$CM$16),Lists!$CM$16))),ES22)) ->  | EU22: =IF(EU$11="","",IF(EU$7<>ET$7,IF(AND($Q23<>"",$Q23<>0),$Q23,IF(AND(EU24<>"",EU24<>0),EU24,IF(SUMIFS($A$25:$A29,$J$25:$J29,EU$7+2000)>0,IF(AND(INDEX($Q:$Q,SUMIFS($A$25:$A29,$J$25:$J29,EU$7+2000))<>0,INDEX($Q:$Q,SUMIFS($A$25:$A29,$J$25:$J29,EU$7+2000))<>""),INDEX($Q:$Q,SUMIFS($A$25:$A29,$J$25:$J29,EU$7+2000)),Lists!$CM$16),Lists!$CM$16))),ET22)) ->  | EV22: =IF(EV$11="","",IF(EV$7<>EU$7,IF(AND($Q23<>"",$Q23<>0),$Q23,IF(AND(EV24<>"",EV24<>0),EV24,IF(SUMIFS($A$25:$A29,$J$25:$J29,EV$7+2000)>0,IF(AND(INDEX($Q:$Q,SUMIFS($A$25:$A29,$J$25:$J29,EV$7+2000))<>0,INDEX($Q:$Q,SUMIFS($A$25:$A29,$J$25:$J29,EV$7+2000))<>""),INDEX($Q:$Q,SUMIFS($A$25:$A29,$J$25:$J29,EV$7+2000)),Lists!$CM$16),Lists!$CM$16))),EU22)) ->  | EW22: =IF(EW$11="","",IF(EW$7<>EV$7,IF(AND($Q23<>"",$Q23<>0),$Q23,IF(AND(EW24<>"",EW24<>0),EW24,IF(SUMIFS($A$25:$A29,$J$25:$J29,EW$7+2000)>0,IF(AND(INDEX($Q:$Q,SUMIFS($A$25:$A29,$J$25:$J29,EW$7+2000))<>0,INDEX($Q:$Q,SUMIFS($A$25:$A29,$J$25:$J29,EW$7+2000))<>""),INDEX($Q:$Q,SUMIFS($A$25:$A29,$J$25:$J29,EW$7+2000)),Lists!$CM$16),Lists!$CM$16))),EV22)) ->  | EX22: =IF(EX$11="","",IF(EX$7<>EW$7,IF(AND($Q23<>"",$Q23<>0),$Q23,IF(AND(EX24<>"",EX24<>0),EX24,IF(SUMIFS($A$25:$A29,$J$25:$J29,EX$7+2000)>0,IF(AND(INDEX($Q:$Q,SUMIFS($A$25:$A29,$J$25:$J29,EX$7+2000))<>0,INDEX($Q:$Q,SUMIFS($A$25:$A29,$J$25:$J29,EX$7+2000))<>""),INDEX($Q:$Q,SUMIFS($A$25:$A29,$J$25:$J29,EX$7+2000)),Lists!$CM$16),Lists!$CM$16))),EW22)) ->  | EY22: =IF(EY$11="","",IF(EY$7<>EX$7,IF(AND($Q23<>"",$Q23<>0),$Q23,IF(AND(EY24<>"",EY24<>0),EY24,IF(SUMIFS($A$25:$A29,$J$25:$J29,EY$7+2000)>0,IF(AND(INDEX($Q:$Q,SUMIFS($A$25:$A29,$J$25:$J29,EY$7+2000))<>0,INDEX($Q:$Q,SUMIFS($A$25:$A29,$J$25:$J29,EY$7+2000))<>""),INDEX($Q:$Q,SUMIFS($A$25:$A29,$J$25:$J29,EY$7+2000)),Lists!$CM$16),Lists!$CM$16))),EX22)) ->  | EZ22: =IF(EZ$11="","",IF(EZ$7<>EY$7,IF(AND($Q23<>"",$Q23<>0),$Q23,IF(AND(EZ24<>"",EZ24<>0),EZ24,IF(SUMIFS($A$25:$A29,$J$25:$J29,EZ$7+2000)>0,IF(AND(INDEX($Q:$Q,SUMIFS($A$25:$A29,$J$25:$J29,EZ$7+2000))<>0,INDEX($Q:$Q,SUMIFS($A$25:$A29,$J$25:$J29,EZ$7+2000))<>""),INDEX($Q:$Q,SUMIFS($A$25:$A29,$J$25:$J29,EZ$7+2000)),Lists!$CM$16),Lists!$CM$16))),EY22)) ->  | FA22: =IF(FA$11="","",IF(FA$7<>EZ$7,IF(AND($Q23<>"",$Q23<>0),$Q23,IF(AND(FA24<>"",FA24<>0),FA24,IF(SUMIFS($A$25:$A29,$J$25:$J29,FA$7+2000)>0,IF(AND(INDEX($Q:$Q,SUMIFS($A$25:$A29,$J$25:$J29,FA$7+2000))<>0,INDEX($Q:$Q,SUMIFS($A$25:$A29,$J$25:$J29,FA$7+2000))<>""),INDEX($Q:$Q,SUMIFS($A$25:$A29,$J$25:$J29,FA$7+2000)),Lists!$CM$16),Lists!$CM$16))),EZ22)) ->  | FB22: =IF(FB$11="","",IF(FB$7<>FA$7,IF(AND($Q23<>"",$Q23<>0),$Q23,IF(AND(FB24<>"",FB24<>0),FB24,IF(SUMIFS($A$25:$A29,$J$25:$J29,FB$7+2000)>0,IF(AND(INDEX($Q:$Q,SUMIFS($A$25:$A29,$J$25:$J29,FB$7+2000))<>0,INDEX($Q:$Q,SUMIFS($A$25:$A29,$J$25:$J29,FB$7+2000))<>""),INDEX($Q:$Q,SUMIFS($A$25:$A29,$J$25:$J29,FB$7+2000)),Lists!$CM$16),Lists!$CM$16))),FA22)) ->  | FC22: =IF(FC$11="","",IF(FC$7<>FB$7,IF(AND($Q23<>"",$Q23<>0),$Q23,IF(AND(FC24<>"",FC24<>0),FC24,IF(SUMIFS($A$25:$A29,$J$25:$J29,FC$7+2000)>0,IF(AND(INDEX($Q:$Q,SUMIFS($A$25:$A29,$J$25:$J29,FC$7+2000))<>0,INDEX($Q:$Q,SUMIFS($A$25:$A29,$J$25:$J29,FC$7+2000))<>""),INDEX($Q:$Q,SUMIFS($A$25:$A29,$J$25:$J29,FC$7+2000)),Lists!$CM$16),Lists!$CM$16))),FB22)) -> 
A23: =ROW() -> 23 | G23: =IF($R23="^",IF(COUNTIF(Lists!$13:$13,H23)=1,0,1),0) -> 0 | H23: =H22 -> Система налогообложения | I23: Единое значение для всех периодов расчета | M23: вып.список | P23: * | Q23: ОСНО | R23: ^ | S23: =IF(G23<>0,1,IF(OR($Q23="",$Q23=0),0,IF($R23="^",IF(COUNTIF(INDIRECT(INDEX(Lists!$15:$15,SUMIFS(Lists!$1:$1,Lists!$13:$13,$H23))),$Q23)=1,0,1),0))) -> 0
A24: =ROW() -> 24 | G24: =IF($R24="^",IF(COUNTIF(Lists!$13:$13,H24)=1,0,1),0) -> 0 | H24: =H22 -> Система налогообложения | I24: Вручную для каждого периода расчетов | M24: вып.список | Y24: *
A25: =ROW() -> 25 | G25: =IF($R25="^",IF(COUNTIF(Lists!$13:$13,H25)=1,0,1),0) -> 0 | H25: =H22 -> Система налогообложения | I25: г | J25: =YEAR(Periods!$Q$17) -> 2021 | M25: вып.список | P25: * | R25: ^ | S25: =IF(G25<>0,1,IF(OR($Q25="",$Q25=0),0,IF($R25="^",IF(COUNTIF(INDIRECT(INDEX(Lists!$15:$15,SUMIFS(Lists!$1:$1,Lists!$13:$13,$H25))),$Q25)=1,0,1),0))) -> 0
A26: =ROW() -> 26 | G26: =IF($R26="^",IF(COUNTIF(Lists!$13:$13,H26)=1,0,1),0) -> 0 | H26: =H22 -> Система налогообложения | I26: =I25 -> г | J26: =J25+1 -> 2022 | M26: вып.список | P26: * | R26: ^ | S26: =IF(G26<>0,1,IF(OR($Q26="",$Q26=0),0,IF($R26="^",IF(COUNTIF(INDIRECT(INDEX(Lists!$15:$15,SUMIFS(Lists!$1:$1,Lists!$13:$13,$H26))),$Q26)=1,0,1),0))) -> 0
A27: =ROW() -> 27 | G27: =IF($R27="^",IF(COUNTIF(Lists!$13:$13,H27)=1,0,1),0) -> 0 | H27: =H22 -> Система налогообложения | I27: =I25 -> г | J27: =J26+1 -> 2023 | M27: вып.список | P27: * | R27: ^ | S27: =IF(G27<>0,1,IF(OR($Q27="",$Q27=0),0,IF($R27="^",IF(COUNTIF(INDIRECT(INDEX(Lists!$15:$15,SUMIFS(Lists!$1:$1,Lists!$13:$13,$H27))),$Q27)=1,0,1),0))) -> 0
A28: =ROW() -> 28 | G28: =IF($R28="^",IF(COUNTIF(Lists!$13:$13,H28)=1,0,1),0) -> 0 | H28: =H22 -> Система налогообложения | I28: =I25 -> г | J28: =J27+1 -> 2024 | M28: вып.список | P28: * | R28: ^ | S28: =IF(G28<>0,1,IF(OR($Q28="",$Q28=0),0,IF($R28="^",IF(COUNTIF(INDIRECT(INDEX(Lists!$15:$15,SUMIFS(Lists!$1:$1,Lists!$13:$13,$H28))),$Q28)=1,0,1),0))) -> 0
A29: =ROW() -> 29 | L29: пустая строка
A30: =ROW() -> 30
A31: =ROW() -> 31 | G31: =IF($R31="^",IF(COUNTIF(Lists!$13:$13,H31)=1,0,1),0) -> 0 | H31: Ставки налога на прибыль
A32: =ROW() -> 32 | G32: =IF($R32="^",IF(COUNTIF(Lists!$13:$13,H32)=1,0,1),0) -> 0 | H32: =H31 -> Ставки налога на прибыль | I32: =Lists!$CM$16 -> ОСНО | M32: % | P32: * | Q32: 0.2 | S32: =IF(G32<>0,1,IF(OR($Q32="",$Q32=0),0,IF($R32="^",IF(COUNTIF(INDIRECT(INDEX(Lists!$15:$15,SUMIFS(Lists!$1:$1,Lists!$13:$13,$H32))),$Q32)=1,0,1),0))) -> 0
A33: =ROW() -> 33 | G33: =IF($R33="^",IF(COUNTIF(Lists!$13:$13,H33)=1,0,1),0) -> 0 | H33: =H32 -> Ставки налога на прибыль | I33: =Lists!$CM$17 -> УСН(6%) | M33: % | P33: * | Q33: 0.06 | S33: =IF(G33<>0,1,IF(OR($Q33="",$Q33=0),0,IF($R33="^",IF(COUNTIF(INDIRECT(INDEX(Lists!$15:$15,SUMIFS(Lists!$1:$1,Lists!$13:$13,$H33))),$Q33)=1,0,1),0))) -> 0
A34: =ROW() -> 34 | G34: =IF($R34="^",IF(COUNTIF(Lists!$13:$13,H34)=1,0,1),0) -> 0 | H34: =H33 -> Ставки налога на прибыль | I34: =I33 -> УСН(6%) | J34: ограничения суммы НП на вычет соцсборов | M34: % | P34: * | Q34: 0.5 | S34: =IF(G34<>0,1,IF(OR($Q34="",$Q34=0),0,IF($R34="^",IF(COUNTIF(INDIRECT(INDEX(Lists!$15:$15,SUMIFS(Lists!$1:$1,Lists!$13:$13,$H34))),$Q34)=1,0,1),0))) -> 0
A35: =ROW() -> 35 | G35: =IF($R35="^",IF(COUNTIF(Lists!$13:$13,H35)=1,0,1),0) -> 0 | H35: =H34 -> Ставки налога на прибыль | I35: =Lists!$CM$18 -> УСН(15%) | M35: % | P35: * | Q35: 0.15 | S35: =IF(G35<>0,1,IF(OR($Q35="",$Q35=0),0,IF($R35="^",IF(COUNTIF(INDIRECT(INDEX(Lists!$15:$15,SUMIFS(Lists!$1:$1,Lists!$13:$13,$H35))),$Q35)=1,0,1),0))) -> 0
A36: =ROW() -> 36 | G36: =IF($R36="^",IF(COUNTIF(Lists!$13:$13,H36)=1,0,1),0) -> 0 | H36: =H35 -> Ставки налога на прибыль | I36: =I35 -> УСН(15%) | J36: минимальный процент от дохода | M36: % | P36: * | Q36: 0.01 | S36: =IF(G36<>0,1,IF(OR($Q36="",$Q36=0),0,IF($R36="^",IF(COUNTIF(INDIRECT(INDEX(Lists!$15:$15,SUMIFS(Lists!$1:$1,Lists!$13:$13,$H36))),$Q36)=1,0,1),0))) -> 0
A37: =ROW() -> 37 | G37: =IF($R37="^",IF(COUNTIF(Lists!$13:$13,H37)=1,0,1),0) -> 0 | H37: =H31 -> Ставки налога на прибыль | I37: =Lists!$CM$19 -> ТОСЭР | M37: %
A38: =ROW() -> 38 | G38: =IF($R38="^",IF(COUNTIF(Lists!$13:$13,H38)=1,0,1),0) -> 0 | H38: =H31 -> Ставки налога на прибыль | I38: г | J38: 5 | M38: % | P38: * | Q38: 0 | S38: =IF(G38<>0,1,IF(OR($Q38="",$Q38=0),0,IF($R38="^",IF(COUNTIF(INDIRECT(INDEX(Lists!$15:$15,SUMIFS(Lists!$1:$1,Lists!$13:$13,$H38))),$Q38)=1,0,1),0))) -> 0
A39: =ROW() -> 39 | G39: =IF($R39="^",IF(COUNTIF(Lists!$13:$13,H39)=1,0,1),0) -> 0 | H39: =H31 -> Ставки налога на прибыль | I39: =I38 -> г | J39: 10 | M39: % | P39: * | Q39: 0.12 | S39: =IF(G39<>0,1,IF(OR($Q39="",$Q39=0),0,IF($R39="^",IF(COUNTIF(INDIRECT(INDEX(Lists!$15:$15,SUMIFS(Lists!$1:$1,Lists!$13:$13,$H39))),$Q39)=1,0,1),0))) -> 0
A40: =ROW() -> 40 | L40: пустая строка
A41: =ROW() -> 41
A42: =ROW() -> 42 | G42: =IF($R42="^",IF(COUNTIF(Lists!$13:$13,H42)=1,0,1),0) -> 0 | H42: Ставки НДС
A43: =ROW() -> 43 | G43: =IF($R43="^",IF(COUNTIF(Lists!$13:$13,H43)=1,0,1),0) -> 0 | H43: =H42 -> Ставки НДС | I43: =Lists!$CM$16 -> ОСНО | M43: % | P43: * | Q43: 0.2 | S43: =IF(G43<>0,1,IF(OR($Q43="",$Q43=0),0,IF($R43="^",IF(COUNTIF(INDIRECT(INDEX(Lists!$15:$15,SUMIFS(Lists!$1:$1,Lists!$13:$13,$H43))),$Q43)=1,0,1),0))) -> 0
A44: =ROW() -> 44 | G44: =IF($R44="^",IF(COUNTIF(Lists!$13:$13,H44)=1,0,1),0) -> 0 | H44: =H43 -> Ставки НДС | I44: =Lists!$CM$17 -> УСН(6%) | M44: % | P44: * | Q44: 0 | S44: =IF(G44<>0,1,IF(OR($Q44="",$Q44=0),0,IF($R44="^",IF(COUNTIF(INDIRECT(INDEX(Lists!$15:$15,SUMIFS(Lists!$1:$1,Lists!$13:$13,$H44))),$Q44)=1,0,1),0))) -> 0
A45: =ROW() -> 45 | G45: =IF($R45="^",IF(COUNTIF(Lists!$13:$13,H45)=1,0,1),0) -> 0 | H45: =H42 -> Ставки НДС | I45: =Lists!$CM$18 -> УСН(15%) | M45: % | P45: * | Q45: 0 | S45: =IF(G45<>0,1,IF(OR($Q45="",$Q45=0),0,IF($R45="^",IF(COUNTIF(INDIRECT(INDEX(Lists!$15:$15,SUMIFS(Lists!$1:$1,Lists!$13:$13,$H45))),$Q45)=1,0,1),0))) -> 0
A46: =ROW() -> 46 | G46: =IF($R46="^",IF(COUNTIF(Lists!$13:$13,H46)=1,0,1),0) -> 0 | H46: =H42 -> Ставки НДС | I46: =Lists!$CM$19 -> ТОСЭР | M46: %
A47: =ROW() -> 47 | G47: =IF($R47="^",IF(COUNTIF(Lists!$13:$13,H47)=1,0,1),0) -> 0 | H47: =H42 -> Ставки НДС | I47: г | J47: 5 | M47: % | P47: * | Q47: 0.2 | S47: =IF(G47<>0,1,IF(OR($Q47="",$Q47=0),0,IF($R47="^",IF(COUNTIF(INDIRECT(INDEX(Lists!$15:$15,SUMIFS(Lists!$1:$1,Lists!$13:$13,$H47))),$Q47)=1,0,1),0))) -> 0
A48: =ROW() -> 48 | G48: =IF($R48="^",IF(COUNTIF(Lists!$13:$13,H48)=1,0,1),0) -> 0 | H48: =H42 -> Ставки НДС | I48: =I47 -> г | J48: 10 | M48: % | P48: * | Q48: 0.2 | S48: =IF(G48<>0,1,IF(OR($Q48="",$Q48=0),0,IF($R48="^",IF(COUNTIF(INDIRECT(INDEX(Lists!$15:$15,SUMIFS(Lists!$1:$1,Lists!$13:$13,$H48))),$Q48)=1,0,1),0))) -> 0
A49: =ROW() -> 49 | L49: пустая строка
A50: =ROW() -> 50
A51: =ROW() -> 51 | G51: =IF($R51="^",IF(COUNTIF(Lists!$13:$13,H51)=1,0,1),0) -> 0 | H51: Ставки соцсборов
A52: =ROW() -> 52 | G52: =IF($R52="^",IF(COUNTIF(Lists!$13:$13,H52)=1,0,1),0) -> 0 | H52: =H51 -> Ставки соцсборов | I52: =Lists!$CM$16 -> ОСНО | M52: % | P52: * | Q52: 0.3 | S52: =IF(G52<>0,1,IF(OR($Q52="",$Q52=0),0,IF($R52="^",IF(COUNTIF(INDIRECT(INDEX(Lists!$15:$15,SUMIFS(Lists!$1:$1,Lists!$13:$13,$H52))),$Q52)=1,0,1),0))) -> 0
A53: =ROW() -> 53 | G53: =IF($R53="^",IF(COUNTIF(Lists!$13:$13,H53)=1,0,1),0) -> 0 | H53: =H52 -> Ставки соцсборов | I53: =Lists!$CM$17 -> УСН(6%) | M53: % | P53: * | Q53: 0.3 | S53: =IF(G53<>0,1,IF(OR($Q53="",$Q53=0),0,IF($R53="^",IF(COUNTIF(INDIRECT(INDEX(Lists!$15:$15,SUMIFS(Lists!$1:$1,Lists!$13:$13,$H53))),$Q53)=1,0,1),0))) -> 0
A54: =ROW() -> 54 | G54: =IF($R54="^",IF(COUNTIF(Lists!$13:$13,H54)=1,0,1),0) -> 0 | H54: =H51 -> Ставки соцсборов | I54: =Lists!$CM$18 -> УСН(15%) | M54: % | P54: * | Q54: 0.3 | S54: =IF(G54<>0,1,IF(OR($Q54="",$Q54=0),0,IF($R54="^",IF(COUNTIF(INDIRECT(INDEX(Lists!$15:$15,SUMIFS(Lists!$1:$1,Lists!$13:$13,$H54))),$Q54)=1,0,1),0))) -> 0
A55: =ROW() -> 55 | G55: =IF($R55="^",IF(COUNTIF(Lists!$13:$13,H55)=1,0,1),0) -> 0 | H55: =H51 -> Ставки соцсборов | I55: =Lists!$CM$19 -> ТОСЭР | M55: %
A56: =ROW() -> 56 | G56: =IF($R56="^",IF(COUNTIF(Lists!$13:$13,H56)=1,0,1),0) -> 0 | H56: =H51 -> Ставки соцсборов | I56: г | J56: 5 | M56: % | P56: * | Q56: 0.076 | S56: =IF(G56<>0,1,IF(OR($Q56="",$Q56=0),0,IF($R56="^",IF(COUNTIF(INDIRECT(INDEX(Lists!$15:$15,SUMIFS(Lists!$1:$1,Lists!$13:$13,$H56))),$Q56)=1,0,1),0))) -> 0
A57: =ROW() -> 57 | G57: =IF($R57="^",IF(COUNTIF(Lists!$13:$13,H57)=1,0,1),0) -> 0 | H57: =H51 -> Ставки соцсборов | I57: =I56 -> г | J57: 10 | M57: % | P57: * | Q57: 0.076 | S57: =IF(G57<>0,1,IF(OR($Q57="",$Q57=0),0,IF($R57="^",IF(COUNTIF(INDIRECT(INDEX(Lists!$15:$15,SUMIFS(Lists!$1:$1,Lists!$13:$13,$H57))),$Q57)=1,0,1),0))) -> 0
A58: =ROW() -> 58 | L58: пустая строка
A59: =ROW() -> 59
A60: =ROW() -> 60 | G60: =IF($R60="^",IF(COUNTIF(Lists!$13:$13,H60)=1,0,1),0) -> 0 | H60: Ставки земельного налога | AA60: =IF(AA$22=$I62,$Q62,IF(AA$22=$I63,$Q63,IF(AA$22=$I64,IF(AA$7-$AA$7<$J65,$Q65,IF(AA$7-$AA$7<$J66,$Q66,$Q61)),$Q61))) -> 0.015 | AB60: =IF(AB$22=$I62,$Q62,IF(AB$22=$I63,$Q63,IF(AB$22=$I64,IF(AB$7-$AA$7<$J65,$Q65,IF(AB$7-$AA$7<$J66,$Q66,$Q61)),$Q61))) -> 0.015 | AC60: 0.015 | AD60: 0.015 | AE60: 0.015 | AF60: 0.015 | AG60: 0.015 | AH60: 0.015 | AI60: 0.015 | AJ60: 0.015 | AK60: 0.015 | AL60: 0.015 | AM60: 0.015 | AN60: 0.015 | AO60: 0.015 | AP60: 0.015 | AQ60: 0.015 | AR60: 0.015 | AS60: 0.015 | AT60: 0.015 | AU60: 0.015 | AV60: 0.015 | AW60: 0.015 | AX60: 0.015 | AY60: 0.015 | AZ60: 0.015 | BA60: 0.015 | BB60: 0.015 | BC60: 0.015 | BD60: 0.015 | BE60: 0.015 | BF60: 0.015 | BG60: 0.015 | BH60: 0.015 | BI60: 0.015 | BJ60: 0.015 | BK60: 0.015 | BL60: 0.015 | BM60: 0.015 | BN60: 0.015 | BO60: 0.015 | BP60: 0.015 | BQ60: 0.015 | BR60: 0.015 | BS60: 0.015 | BT60: 0.015 | BU60: 0.015 | BV60: 0.015 | BW60: 0.015 | BX60: 0.015 | BY60: 0.015 | BZ60: 0.015 | CA60: 0.015 | CB60: 0.015 | CC60: 0.015 | CD60: 0.015 | CE60: 0.015 | CF60: 0.015 | CG60: 0.015 | CH60: 0.015 | CI60: 0.015 | CJ60: 0.015 | CK60: 0.015 | CL60: 0.015 | CM60: 0.015 | CN60: =IF(CN$22=$I62,$Q62,IF(CN$22=$I63,$Q63,IF(CN$22=$I64,IF(CN$7-$AA$7<$J65,$Q65,IF(CN$7-$AA$7<$J66,$Q66,$Q61)),$Q61))) -> 0.015 | CO60: 0.015 | CP60: 0.015 | CQ60: 0.015 | CR60: 0.015 | CS60: 0.015 | CT60: 0.015 | CU60: 0.015 | CV60: 0.015 | CW60: 0.015 | CX60: 0.015 | CY60: 0.015 | CZ60: 0.015 | DA60: 0.015 | DB60: 0.015 | DC60: 0.015 | DD60: 0.015 | DE60: 0.015 | DF60: 0.015 | DG60: 0.015 | DH60: 0.015 | DI60: 0.015 | DJ60: 0.015 | DK60: 0.015 | DL60: 0.015 | DM60: 0.015 | DN60: 0.015 | DO60: 0.015 | DP60: 0.015 | DQ60: 0.015 | DR60: 0.015 | DS60: 0.015 | DT60: 0.015 | DU60: 0.015 | DV60: 0.015 | DW60: 0.015 | DX60: 0.015 | DY60: 0.015 | DZ60: 0.015 | EA60: 0.015 | EB60: 0.015 | EC60: 0.015 | ED60: 0.015 | EE60: 0.015 | EF60: 0.015 | EG60: 0.015 | EH60: 0.015 | EI60: 0.015 | EJ60: 0.015 | EK60: 0.015 | EL60: 0.015 | EM60: 0.015 | EN60: 0.015 | EO60: 0.015 | EP60: 0.015 | EQ60: 0.015 | ER60: 0.015 | ES60: 0.015 | ET60: 0.015 | EU60: 0.015 | EV60: 0.015 | EW60: 0.015 | EX60: 0.015 | EY60: 0.015 | EZ60: =IF(EZ$22=$I62,$Q62,IF(EZ$22=$I63,$Q63,IF(EZ$22=$I64,IF(EZ$7-$AA$7<$J65,$Q65,IF(EZ$7-$AA$7<$J66,$Q66,$Q61)),$Q61))) -> 0.015 | FA60: =IF(FA$22=$I62,$Q62,IF(FA$22=$I63,$Q63,IF(FA$22=$I64,IF(FA$7-$AA$7<$J65,$Q65,IF(FA$7-$AA$7<$J66,$Q66,$Q61)),$Q61))) -> 0.015 | FB60: =IF(FB$22=$I62,$Q62,IF(FB$22=$I63,$Q63,IF(FB$22=$I64,IF(FB$7-$AA$7<$J65,$Q65,IF(FB$7-$AA$7<$J66,$Q66,$Q61)),$Q61))) -> 0.015 | FC60: =IF(FC$22=$I62,$Q62,IF(FC$22=$I63,$Q63,IF(FC$22=$I64,IF(FC$7-$AA$7<$J65,$Q65,IF(FC$7-$AA$7<$J66,$Q66,$Q61)),$Q61))) -> 0.015
A61: =ROW() -> 61 | G61: =IF($R61="^",IF(COUNTIF(Lists!$13:$13,H61)=1,0,1),0) -> 0 | H61: =H60 -> Ставки земельного налога | I61: =Lists!$CM$16 -> ОСНО | M61: % | P61: * | Q61: 0.015 | S61: =IF(G61<>0,1,IF(OR($Q61="",$Q61=0),0,IF($R61="^",IF(COUNTIF(INDIRECT(INDEX(Lists!$15:$15,SUMIFS(Lists!$1:$1,Lists!$13:$13,$H61))),$Q61)=1,0,1),0))) -> 0
A62: =ROW() -> 62 | G62: =IF($R62="^",IF(COUNTIF(Lists!$13:$13,H62)=1,0,1),0) -> 0 | H62: =H61 -> Ставки земельного налога | I62: =Lists!$CM$17 -> УСН(6%) | M62: % | P62: * | Q62: 0.015 | S62: =IF(G62<>0,1,IF(OR($Q62="",$Q62=0),0,IF($R62="^",IF(COUNTIF(INDIRECT(INDEX(Lists!$15:$15,SUMIFS(Lists!$1:$1,Lists!$13:$13,$H62))),$Q62)=1,0,1),0))) -> 0
A63: =ROW() -> 63 | G63: =IF($R63="^",IF(COUNTIF(Lists!$13:$13,H63)=1,0,1),0) -> 0 | H63: =H60 -> Ставки земельного налога | I63: =Lists!$CM$18 -> УСН(15%) | M63: % | P63: * | Q63: 0.015 | S63: =IF(G63<>0,1,IF(OR($Q63="",$Q63=0),0,IF($R63="^",IF(COUNTIF(INDIRECT(INDEX(Lists!$15:$15,SUMIFS(Lists!$1:$1,Lists!$13:$13,$H63))),$Q63)=1,0,1),0))) -> 0
A64: =ROW() -> 64 | G64: =IF($R64="^",IF(COUNTIF(Lists!$13:$13,H64)=1,0,1),0) -> 0 | H64: =H60 -> Ставки земельного налога | I64: =Lists!$CM$19 -> ТОСЭР | M64: %
A65: =ROW() -> 65 | G65: =IF($R65="^",IF(COUNTIF(Lists!$13:$13,H65)=1,0,1),0) -> 0 | H65: =H60 -> Ставки земельного налога | I65: г | J65: 5 | M65: % | P65: * | Q65: 0 | S65: =IF(G65<>0,1,IF(OR($Q65="",$Q65=0),0,IF($R65="^",IF(COUNTIF(INDIRECT(INDEX(Lists!$15:$15,SUMIFS(Lists!$1:$1,Lists!$13:$13,$H65))),$Q65)=1,0,1),0))) -> 0
A66: =ROW() -> 66 | G66: =IF($R66="^",IF(COUNTIF(Lists!$13:$13,H66)=1,0,1),0) -> 0 | H66: =H60 -> Ставки земельного налога | I66: =I65 -> г | J66: 20 | M66: % | P66: * | Q66: 0 | S66: =IF(G66<>0,1,IF(OR($Q66="",$Q66=0),0,IF($R66="^",IF(COUNTIF(INDIRECT(INDEX(Lists!$15:$15,SUMIFS(Lists!$1:$1,Lists!$13:$13,$H66))),$Q66)=1,0,1),0))) -> 0
A67: =ROW() -> 67 | L67: пустая строка
A68: =ROW() -> 68
A69: =ROW() -> 69 | G69: =IF($R69="^",IF(COUNTIF(Lists!$13:$13,H69)=1,0,1),0) -> 0 | H69: Ставки налога на имущество | AA69: =IF(AA$22=$I71,$Q71,IF(AA$22=$I72,$Q72,IF(AA$22=$I73,IF(AA$7-$AA$7<$J74,$Q74,IF(AA$7-$AA$7<$J75,$Q75,$Q70)),$Q70))) -> 0.015 | AB69: 0.015 | AC69: 0.015 | AD69: 0.015 | AE69: 0.015 | AF69: 0.015 | AG69: 0.015 | AH69: 0.015 | AI69: 0.015 | AJ69: 0.015 | AK69: 0.015 | AL69: 0.015 | AM69: 0.015 | AN69: 0.015 | AO69: 0.015 | AP69: 0.015 | AQ69: 0.015 | AR69: 0.015 | AS69: 0.015 | AT69: 0.015 | AU69: 0.015 | AV69: 0.015 | AW69: 0.015 | AX69: 0.015 | AY69: 0.015 | AZ69: 0.015 | BA69: 0.015 | BB69: 0.015 | BC69: 0.015 | BD69: 0.015 | BE69: 0.015 | BF69: 0.015 | BG69: =IF(BG$22=$I71,$Q71,IF(BG$22=$I72,$Q72,IF(BG$22=$I73,IF(BG$7-$AA$7<$J74,$Q74,IF(BG$7-$AA$7<$J75,$Q75,$Q70)),$Q70))) -> 0.015 | BH69: 0.015 | BI69: 0.015 | BJ69: 0.015 | BK69: 0.015 | BL69: 0.015 | BM69: 0.015 | BN69: 0.015 | BO69: 0.015 | BP69: 0.015 | BQ69: 0.015 | BR69: 0.015 | BS69: 0.015 | BT69: 0.015 | BU69: 0.015 | BV69: 0.015 | BW69: 0.015 | BX69: 0.015 | BY69: 0.015 | BZ69: 0.015 | CA69: 0.015 | CB69: 0.015 | CC69: 0.015 | CD69: 0.015 | CE69: 0.015 | CF69: 0.015 | CG69: 0.015 | CH69: 0.015 | CI69: 0.015 | CJ69: 0.015 | CK69: 0.015 | CL69: 0.015 | CM69: =IF(CM$22=$I71,$Q71,IF(CM$22=$I72,$Q72,IF(CM$22=$I73,IF(CM$7-$AA$7<$J74,$Q74,IF(CM$7-$AA$7<$J75,$Q75,$Q70)),$Q70))) -> 0.015 | CN69: 0.015 | CO69: 0.015 | CP69: 0.015 | CQ69: 0.015 | CR69: 0.015 | CS69: 0.015 | CT69: 0.015 | CU69: 0.015 | CV69: 0.015 | CW69: 0.015 | CX69: 0.015 | CY69: 0.015 | CZ69: 0.015 | DA69: 0.015 | DB69: 0.015 | DC69: 0.015 | DD69: 0.015 | DE69: 0.015 | DF69: 0.015 | DG69: 0.015 | DH69: 0.015 | DI69: 0.015 | DJ69: 0.015 | DK69: 0.015 | DL69: 0.015 | DM69: 0.015 | DN69: 0.015 | DO69: 0.015 | DP69: 0.015 | DQ69: 0.015 | DR69: 0.015 | DS69: =IF(DS$22=$I71,$Q71,IF(DS$22=$I72,$Q72,IF(DS$22=$I73,IF(DS$7-$AA$7<$J74,$Q74,IF(DS$7-$AA$7<$J75,$Q75,$Q70)),$Q70))) -> 0.015 | DT69: 0.015 | DU69: 0.015 | DV69: 0.015 | DW69: 0.015 | DX69: 0.015 | DY69: 0.015 | DZ69: 0.015 | EA69: 0.015 | EB69: 0.015 | EC69: 0.015 | ED69: 0.015 | EE69: 0.015 | EF69: 0.015 | EG69: 0.015 | EH69: 0.015 | EI69: 0.015 | EJ69: 0.015 | EK69: 0.015 | EL69: 0.015 | EM69: 0.015 | EN69: 0.015 | EO69: 0.015 | EP69: 0.015 | EQ69: 0.015 | ER69: 0.015 | ES69: 0.015 | ET69: 0.015 | EU69: 0.015 | EV69: 0.015 | EW69: 0.015 | EX69: 0.015 | EY69: =IF(EY$22=$I71,$Q71,IF(EY$22=$I72,$Q72,IF(EY$22=$I73,IF(EY$7-$AA$7<$J74,$Q74,IF(EY$7-$AA$7<$J75,$Q75,$Q70)),$Q70))) -> 0.015 | EZ69: 0.015 | FA69: 0.015 | FB69: 0.015 | FC69: 0.015
A70: =ROW() -> 70 | G70: =IF($R70="^",IF(COUNTIF(Lists!$13:$13,H70)=1,0,1),0) -> 0 | H70: =H69 -> Ставки налога на имущество | I70: =Lists!$CM$16 -> ОСНО | M70: % | P70: * | Q70: 0.015 | S70: =IF(G70<>0,1,IF(OR($Q70="",$Q70=0),0,IF($R70="^",IF(COUNTIF(INDIRECT(INDEX(Lists!$15:$15,SUMIFS(Lists!$1:$1,Lists!$13:$13,$H70))),$Q70)=1,0,1),0))) -> 0
A71: =ROW() -> 71 | G71: =IF($R71="^",IF(COUNTIF(Lists!$13:$13,H71)=1,0,1),0) -> 0 | H71: =H70 -> Ставки налога на имущество | I71: =Lists!$CM$17 -> УСН(6%) | M71: % | P71: * | Q71: 0.015 | S71: =IF(G71<>0,1,IF(OR($Q71="",$Q71=0),0,IF($R71="^",IF(COUNTIF(INDIRECT(INDEX(Lists!$15:$15,SUMIFS(Lists!$1:$1,Lists!$13:$13,$H71))),$Q71)=1,0,1),0))) -> 0
A72: =ROW() -> 72 | G72: =IF($R72="^",IF(COUNTIF(Lists!$13:$13,H72)=1,0,1),0) -> 0 | H72: =H69 -> Ставки налога на имущество | I72: =Lists!$CM$18 -> УСН(15%) | M72: % | P72: * | Q72: 0.015 | S72: =IF(G72<>0,1,IF(OR($Q72="",$Q72=0),0,IF($R72="^",IF(COUNTIF(INDIRECT(INDEX(Lists!$15:$15,SUMIFS(Lists!$1:$1,Lists!$13:$13,$H72))),$Q72)=1,0,1),0))) -> 0
A73: =ROW() -> 73 | G73: =IF($R73="^",IF(COUNTIF(Lists!$13:$13,H73)=1,0,1),0) -> 0 | H73: =H69 -> Ставки налога на имущество | I73: =Lists!$CM$19 -> ТОСЭР | M73: %
A74: =ROW() -> 74 | G74: =IF($R74="^",IF(COUNTIF(Lists!$13:$13,H74)=1,0,1),0) -> 0 | H74: =H69 -> Ставки налога на имущество | I74: г | J74: 5 | M74: % | P74: * | Q74: 0 | S74: =IF(G74<>0,1,IF(OR($Q74="",$Q74=0),0,IF($R74="^",IF(COUNTIF(INDIRECT(INDEX(Lists!$15:$15,SUMIFS(Lists!$1:$1,Lists!$13:$13,$H74))),$Q74)=1,0,1),0))) -> 0
A75: =ROW() -> 75 | G75: =IF($R75="^",IF(COUNTIF(Lists!$13:$13,H75)=1,0,1),0) -> 0 | H75: =H69 -> Ставки налога на имущество | I75: =I74 -> г | J75: 20 | M75: % | P75: * | Q75: 0 | S75: =IF(G75<>0,1,IF(OR($Q75="",$Q75=0),0,IF($R75="^",IF(COUNTIF(INDIRECT(INDEX(Lists!$15:$15,SUMIFS(Lists!$1:$1,Lists!$13:$13,$H75))),$Q75)=1,0,1),0))) -> 0
A76: =ROW() -> 76 | L76: пустая строка
A77: =ROW() -> 77
A78: =ROW() -> 78 | G78: =IF($R78="^",IF(COUNTIF(Lists!$13:$13,H78)=1,0,1),0) -> 0 | H78: Ставки транспортного налога | AA78: =IF(AA$22=$I80,$Q80,IF(AA$22=$I81,$Q81,IF(AA$22=$I82,IF(AA$7-$AA$7<$J83,$Q83,IF(AA$7-$AA$7<$J84,$Q84,$Q79)),$Q79))) -> 0.0045 | AB78: 0.0045 | AC78: 0.0045 | AD78: 0.0045 | AE78: 0.0045 | AF78: 0.0045 | AG78: 0.0045 | AH78: 0.0045 | AI78: 0.0045 | AJ78: 0.0045 | AK78: 0.0045 | AL78: 0.0045 | AM78: 0.0045 | AN78: 0.0045 | AO78: 0.0045 | AP78: 0.0045 | AQ78: 0.0045 | AR78: 0.0045 | AS78: 0.0045 | AT78: 0.0045 | AU78: 0.0045 | AV78: 0.0045 | AW78: 0.0045 | AX78: 0.0045 | AY78: 0.0045 | AZ78: 0.0045 | BA78: 0.0045 | BB78: 0.0045 | BC78: 0.0045 | BD78: 0.0045 | BE78: 0.0045 | BF78: 0.0045 | BG78: =IF(BG$22=$I80,$Q80,IF(BG$22=$I81,$Q81,IF(BG$22=$I82,IF(BG$7-$AA$7<$J83,$Q83,IF(BG$7-$AA$7<$J84,$Q84,$Q79)),$Q79))) -> 0.0045 | BH78: 0.0045 | BI78: 0.0045 | BJ78: 0.0045 | BK78: 0.0045 | BL78: 0.0045 | BM78: 0.0045 | BN78: 0.0045 | BO78: 0.0045 | BP78: 0.0045 | BQ78: 0.0045 | BR78: 0.0045 | BS78: 0.0045 | BT78: 0.0045 | BU78: 0.0045 | BV78: 0.0045 | BW78: 0.0045 | BX78: 0.0045 | BY78: 0.0045 | BZ78: 0.0045 | CA78: 0.0045 | CB78: 0.0045 | CC78: 0.0045 | CD78: 0.0045 | CE78: 0.0045 | CF78: 0.0045 | CG78: 0.0045 | CH78: 0.0045 | CI78: 0.0045 | CJ78: 0.0045 | CK78: 0.0045 | CL78: 0.0045 | CM78: =IF(CM$22=$I80,$Q80,IF(CM$22=$I81,$Q81,IF(CM$22=$I82,IF(CM$7-$AA$7<$J83,$Q83,IF(CM$7-$AA$7<$J84,$Q84,$Q79)),$Q79))) -> 0.0045 | CN78: 0.0045 | CO78: 0.0045 | CP78: 0.0045 | CQ78: 0.0045 | CR78: 0.0045 | CS78: 0.0045 | CT78: 0.0045 | CU78: 0.0045 | CV78: 0.0045 | CW78: 0.0045 | CX78: 0.0045 | CY78: 0.0045 | CZ78: 0.0045 | DA78: 0.0045 | DB78: 0.0045 | DC78: 0.0045 | DD78: 0.0045 | DE78: 0.0045 | DF78: 0.0045 | DG78: 0.0045 | DH78: 0.0045 | DI78: 0.0045 | DJ78: 0.0045 | DK78: 0.0045 | DL78: 0.0045 | DM78: 0.0045 | DN78: 0.0045 | DO78: 0.0045 | DP78: 0.0045 | DQ78: 0.0045 | DR78: 0.0045 | DS78: =IF(DS$22=$I80,$Q80,IF(DS$22=$I81,$Q81,IF(DS$22=$I82,IF(DS$7-$AA$7<$J83,$Q83,IF(DS$7-$AA$7<$J84,$Q84,$Q79)),$Q79))) -> 0.0045 | DT78: 0.0045 | DU78: 0.0045 | DV78: 0.0045 | DW78: 0.0045 | DX78: 0.0045 | DY78: 0.0045 | DZ78: 0.0045 | EA78: 0.0045 | EB78: 0.0045 | EC78: 0.0045 | ED78: 0.0045 | EE78: 0.0045 | EF78: 0.0045 | EG78: 0.0045 | EH78: 0.0045 | EI78: 0.0045 | EJ78: 0.0045 | EK78: 0.0045 | EL78: 0.0045 | EM78: 0.0045 | EN78: 0.0045 | EO78: 0.0045 | EP78: 0.0045 | EQ78: 0.0045 | ER78: 0.0045 | ES78: 0.0045 | ET78: 0.0045 | EU78: 0.0045 | EV78: 0.0045 | EW78: 0.0045 | EX78: 0.0045 | EY78: =IF(EY$22=$I80,$Q80,IF(EY$22=$I81,$Q81,IF(EY$22=$I82,IF(EY$7-$AA$7<$J83,$Q83,IF(EY$7-$AA$7<$J84,$Q84,$Q79)),$Q79))) -> 0.0045 | EZ78: 0.0045 | FA78: 0.0045 | FB78: 0.0045 | FC78: 0.0045
A79: =ROW() -> 79 | G79: =IF($R79="^",IF(COUNTIF(Lists!$13:$13,H79)=1,0,1),0) -> 0 | H79: =H78 -> Ставки транспортного налога | I79: =Lists!$CM$16 -> ОСНО | M79: % | P79: * | Q79: 0.0045 | S79: =IF(G79<>0,1,IF(OR($Q79="",$Q79=0),0,IF($R79="^",IF(COUNTIF(INDIRECT(INDEX(Lists!$15:$15,SUMIFS(Lists!$1:$1,Lists!$13:$13,$H79))),$Q79)=1,0,1),0))) -> 0
A80: =ROW() -> 80 | G80: =IF($R80="^",IF(COUNTIF(Lists!$13:$13,H80)=1,0,1),0) -> 0 | H80: =H79 -> Ставки транспортного налога | I80: =Lists!$CM$17 -> УСН(6%) | M80: % | P80: * | Q80: 0.0045 | S80: =IF(G80<>0,1,IF(OR($Q80="",$Q80=0),0,IF($R80="^",IF(COUNTIF(INDIRECT(INDEX(Lists!$15:$15,SUMIFS(Lists!$1:$1,Lists!$13:$13,$H80))),$Q80)=1,0,1),0))) -> 0
A81: =ROW() -> 81 | G81: =IF($R81="^",IF(COUNTIF(Lists!$13:$13,H81)=1,0,1),0) -> 0 | H81: =H78 -> Ставки транспортного налога | I81: =Lists!$CM$18 -> УСН(15%) | M81: % | P81: * | Q81: 0.0045 | S81: =IF(G81<>0,1,IF(OR($Q81="",$Q81=0),0,IF($R81="^",IF(COUNTIF(INDIRECT(INDEX(Lists!$15:$15,SUMIFS(Lists!$1:$1,Lists!$13:$13,$H81))),$Q81)=1,0,1),0))) -> 0
A82: =ROW() -> 82 | G82: =IF($R82="^",IF(COUNTIF(Lists!$13:$13,H82)=1,0,1),0) -> 0 | H82: =H78 -> Ставки транспортного налога | I82: =Lists!$CM$19 -> ТОСЭР | M82: %
A83: =ROW() -> 83 | G83: =IF($R83="^",IF(COUNTIF(Lists!$13:$13,H83)=1,0,1),0) -> 0 | H83: =H78 -> Ставки транспортного налога | I83: г | J83: 5 | M83: % | P83: * | Q83: 0 | S83: =IF(G83<>0,1,IF(OR($Q83="",$Q83=0),0,IF($R83="^",IF(COUNTIF(INDIRECT(INDEX(Lists!$15:$15,SUMIFS(Lists!$1:$1,Lists!$13:$13,$H83))),$Q83)=1,0,1),0))) -> 0
A84: =ROW() -> 84 | G84: =IF($R84="^",IF(COUNTIF(Lists!$13:$13,H84)=1,0,1),0) -> 0 | H84: =H78 -> Ставки транспортного налога | I84: =I83 -> г | J84: 20 | M84: % | P84: * | Q84: 0 | S84: =IF(G84<>0,1,IF(OR($Q84="",$Q84=0),0,IF($R84="^",IF(COUNTIF(INDIRECT(INDEX(Lists!$15:$15,SUMIFS(Lists!$1:$1,Lists!$13:$13,$H84))),$Q84)=1,0,1),0))) -> 0
A85: =ROW() -> 85 | L85: пустая строка
A86: =ROW() -> 86
A87: =ROW() -> 87 | G87: =IF($R87="^",IF(COUNTIF(Lists!$13:$13,H87)=1,0,1),0) -> 0 | H87: =Items!$BO$27 -> НДС к возмещению по капзатратам
A88: =ROW() -> 88 | G88: =IF($R88="^",IF(COUNTIF(Lists!$13:$13,H88)=1,0,1),0) -> 0 | H88: =H87 -> НДС к возмещению по капзатратам | I88: кол-во месяцев на возмещение НДС | M88: кол-во мес. | P88: * | Q88: 7 | S88: =IF(G88<>0,1,IF(OR($Q88="",$Q88=0),0,IF($R88="^",IF(COUNTIF(INDIRECT(INDEX(Lists!$15:$15,SUMIFS(Lists!$1:$1,Lists!$13:$13,$H88))),$Q88)=1,0,1),0))) -> 0
H91: разработка финмоделей: https://mngmnt.ru/

Sheet Items
I1: =COLUMN() -> 9 | M1: =COLUMN() -> 13 | Q1: =COLUMN() -> 17 | AD1: =COLUMN() -> 30 | AH1: =COLUMN() -> 34 | AL1: =COLUMN() -> 38 | AN1: =COLUMN() -> 40 | AQ1: =COLUMN() -> 43 | AU1: =COLUMN() -> 47 | AY1: =COLUMN() -> 51 | BC1: =COLUMN() -> 55 | BG1: =COLUMN() -> 59 | BK1: =COLUMN() -> 63 | BO1: =COLUMN() -> 67 | BS1: =COLUMN() -> 71
I2: =LEFT(ADDRESS(1,COLUMN(),4),LEN(ADDRESS(1,COLUMN(),4))-1) -> I | M2: =LEFT(ADDRESS(1,COLUMN(),4),LEN(ADDRESS(1,COLUMN(),4))-1) -> M | Q2: =LEFT(ADDRESS(1,COLUMN(),4),LEN(ADDRESS(1,COLUMN(),4))-1) -> Q | AD2: =LEFT(ADDRESS(1,COLUMN(),4),LEN(ADDRESS(1,COLUMN(),4))-1) -> AD | AH2: =LEFT(ADDRESS(1,COLUMN(),4),LEN(ADDRESS(1,COLUMN(),4))-1) -> AH | AL2: =LEFT(ADDRESS(1,COLUMN(),4),LEN(ADDRESS(1,COLUMN(),4))-1) -> AL | AN2: =LEFT(ADDRESS(1,COLUMN(),4),LEN(ADDRESS(1,COLUMN(),4))-1) -> AN | AQ2: =LEFT(ADDRESS(1,COLUMN(),4),LEN(ADDRESS(1,COLUMN(),4))-1) -> AQ | AU2: =LEFT(ADDRESS(1,COLUMN(),4),LEN(ADDRESS(1,COLUMN(),4))-1) -> AU | AY2: =LEFT(ADDRESS(1,COLUMN(),4),LEN(ADDRESS(1,COLUMN(),4))-1) -> AY | BC2: =LEFT(ADDRESS(1,COLUMN(),4),LEN(ADDRESS(1,COLUMN(),4))-1) -> BC | BG2: =LEFT(ADDRESS(1,COLUMN(),4),LEN(ADDRESS(1,COLUMN(),4))-1) -> BG | BK2: =LEFT(ADDRESS(1,COLUMN(),4),LEN(ADDRESS(1,COLUMN(),4))-1) -> BK | BO2: =LEFT(ADDRESS(1,COLUMN(),4),LEN(ADDRESS(1,COLUMN(),4))-1) -> BO | BS2: =LEFT(ADDRESS(1,COLUMN(),4),LEN(ADDRESS(1,COLUMN(),4))-1) -> BS
C11: +7(985)201-6607 | F11: =INDIRECT("START!I30") -> Items | I11: =INDIRECT("START!K30") -> Справочники статей доходов и расходов и т.д.
I12: =START!$I$32 -> Mrkting | M12: =START!$I$32 -> Mrkting | Q12: =START!$I$32 -> Mrkting | AD12: =START!$I$34 -> Sales | AH12: =START!$I$34 -> Sales | AL12: =START!$I$35 -> Prdction | AN12: =START!$I$35 -> Prdction | AQ12: =START!$I$35 -> Prdction | AU12: =START!$I$33 -> CapEx | AY12: =START!$I$33 -> CapEx | BC12: =START!$I$37 -> Exp | BG12: =START!$I$36 -> HR | BK12: =START!$I$54 -> Calc | BO12: =START!$I$54 -> Calc | BS12: =START!$I$54 -> Calc
I13: Капитальные затраты маркетинга | M13: Прямые переменные расходы маркетинга | Q13: Прямые постоянные расходы маркетинга | AD13: Прямые переменные коммерческие расходы | AH13: Прямые постоянные расходы отдела продаж | AL13: Прямые производственные расходы | AN13: ед.изм. | AQ13: Постоянные производственные расходы | AU13: Капзатраты разовые амортизируемые | AY13: Капзатраты переменные амортизируемые | BC13: Постоянные расходы | BG13: Расходы на персонал | BK13: Статьи Баланса | BO13: Статьи отчета о прибылях и убытках | BS13: Статьи отчета о ДДС
D14: =INDIRECT("Cntrl!M17") -> 0 | E14: =SUM($F14:$PM14) -> 0 | F14: =IFERROR(_xlfn.SHEET($A$1)-SUMIFS(Cntrl!O$15:O$100000,Cntrl!I$15:I$100000,$F$11),1) -> 0 | I14: =IF(OR(I13=0,I13=""),1,IF(COUNTIF(13:13,I13)=1,0,1)) -> 0 | K14: =SUM(K$15:K$100000) -> 0 | M14: =IF(OR(M13=0,M13=""),1,IF(COUNTIF(13:13,M13)=1,0,1)) -> 0 | O14: =SUM(O$15:O$100000) -> 0 | Q14: =IF(OR(Q13=0,Q13=""),1,IF(COUNTIF(13:13,Q13)=1,0,1)) -> 0 | S14: =SUM(S$15:S$100000) -> 0 | AD14: =IF(OR(AD13=0,AD13=""),1,IF(COUNTIF(13:13,AD13)=1,0,1)) -> 0 | AF14: =SUM(AF$15:AF$100000) -> 0 | AH14: =IF(OR(AH13=0,AH13=""),1,IF(COUNTIF(13:13,AH13)=1,0,1)) -> 0 | AJ14: =SUM(AJ$15:AJ$100000) -> 0 | AL14: =IF(OR(AL13=0,AL13=""),1,IF(COUNTIF(13:13,AL13)=1,0,1)) -> 0 | AN14: =IF(OR(AN13=0,AN13=""),1,IF(COUNTIF(13:13,AN13)=1,0,1)) -> 0 | AO14: =SUM(AO$15:AO$100000) -> 0 | AQ14: =IF(OR(AQ13=0,AQ13=""),1,IF(COUNTIF(13:13,AQ13)=1,0,1)) -> 0 | AS14: =SUM(AS$15:AS$100000) -> 0 | AU14: =IF(OR(AU13=0,AU13=""),1,IF(COUNTIF(13:13,AU13)=1,0,1)) -> 0 | AW14: =SUM(AW$15:AW$100000) -> 0 | AY14: =IF(OR(AY13=0,AY13=""),1,IF(COUNTIF(13:13,AY13)=1,0,1)) -> 0 | BA14: =SUM(BA$15:BA$100000) -> 0 | BC14: =IF(OR(BC13=0,BC13=""),1,IF(COUNTIF(13:13,BC13)=1,0,1)) -> 0 | BE14: =SUM(BE$15:BE$100000) -> 0 | BG14: =IF(OR(BG13=0,BG13=""),1,IF(COUNTIF(13:13,BG13)=1,0,1)) -> 0 | BI14: =SUM(BI$15:BI$100000) -> 0 | BK14: =IF(OR(BK13=0,BK13=""),1,IF(COUNTIF(13:13,BK13)=1,0,1)) -> 0 | BM14: =SUM(BM$15:BM$100000) -> 0 | BO14: =IF(OR(BO13=0,BO13=""),1,IF(COUNTIF(13:13,BO13)=1,0,1)) -> 0 | BQ14: =SUM(BQ$15:BQ$100000) -> 0 | BS14: =IF(OR(BS13=0,BS13=""),1,IF(COUNTIF(13:13,BS13)=1,0,1)) -> 0 | BU14: =SUM(BU$15:BU$100000) -> 0
A15: =ROW() -> 15 | I15: =$F$11&"!"&I$2&$A16&":"&I$2&($A15+MAX(J$15:J$100000)) -> Items!I16:I18 | M15: =$F$11&"!"&M$2&$A16&":"&M$2&($A15+MAX(N$15:N$100000)) -> Items!M16:M18 | Q15: =$F$11&"!"&Q$2&$A16&":"&Q$2&($A15+MAX(R$15:R$100000)) -> Items!Q16:Q17 | AD15: =$F$11&"!"&AD$2&$A16&":"&AD$2&($A15+MAX(AE$15:AE$100000)) -> Items!AD16:AD18 | AH15: =$F$11&"!"&AH$2&$A16&":"&AH$2&($A15+MAX(AI$15:AI$100000)) -> Items!AH16:AH17 | AL15: =$F$11&"!"&AL$2&$A16&":"&AL$2&($A15+MAX(AM$15:AM$100000)) -> Items!AL16:AL18 | AN15: =$F$11&"!"&AN$2&$A16&":"&AN$2&($A15+MAX(AO$15:AO$100000)) -> Items!AN16:AN15 | AQ15: =$F$11&"!"&AQ$2&$A16&":"&AQ$2&($A15+MAX(AR$15:AR$100000)) -> Items!AQ16:AQ17 | AU15: =$F$11&"!"&AU$2&$A16&":"&AU$2&($A15+MAX(AV$15:AV$100000)) -> Items!AU16:AU25 | AY15: =$F$11&"!"&AY$2&$A16&":"&AY$2&($A15+MAX(AZ$15:AZ$100000)) -> Items!AY16:AY25 | BC15: =$F$11&"!"&BC$2&$A16&":"&BC$2&($A15+MAX(BD$15:BD$100000)) -> Items!BC16:BC22 | BG15: =$F$11&"!"&BG$2&$A16&":"&BG$2&($A15+MAX(BH$15:BH$100000)) -> Items!BG16:BG20 | BK15: =$F$11&"!"&BK$2&$A16&":"&BK$2&($A15+MAX(BL$15:BL$100000)) -> Items!BK16:BK46 | BO15: =$F$11&"!"&BO$2&$A16&":"&BO$2&($A15+MAX(BP$15:BP$100000)) -> Items!BO16:BO35 | BS15: =$F$11&"!"&BS$2&$A16&":"&BS$2&($A15+MAX(BT$15:BT$100000)) -> Items!BS16:BS42
A16: =ROW() -> 16 | H16: * | I16: Подготовка рекламных материалов | J16: =MAX(J$15:J15)+1 -> 1 | K16: =IF(OR(I16=0,I16=""),0,IF(COUNTIF(I$15:I$100000,I16)=1,0,1)) -> 0 | L16: * | M16: Представительские расходы | N16: =MAX(N$15:N15)+1 -> 1 | O16: =IF(OR(M16=0,M16=""),0,IF(COUNTIF(M$15:M$100000,M16)=1,0,1)) -> 0 | Q16: ФОТ сотрудников маркетинга | R16: =MAX(R$15:R15)+1 -> 1 | S16: =IF(OR(Q16=0,Q16=""),0,IF(COUNTIF(Q$15:Q$100000,Q16)=1,0,1)) -> 0 | AC16: * | AD16: Представительские расходы | AE16: =MAX(AE$15:AE15)+1 -> 1 | AF16: =IF(OR(AD16=0,AD16=""),0,IF(COUNTIF(AD$15:AD$100000,AD16)=1,0,1)) -> 0 | AH16: ФОТ продавцов-консультантов | AI16: =MAX(AI$15:AI15)+1 -> 1 | AJ16: =IF(OR(AH16=0,AH16=""),0,IF(COUNTIF(AH$15:AH$100000,AH16)=1,0,1)) -> 0 | AK16: * | AL16: Сырье и материалы - 1 | AM16: =MAX(AM$15:AM15)+1 -> 1 | AN16: шт | AO16: =IF(OR(AL16=0,AL16=""),0,IF(COUNTIF(AL$15:AL$100000,AL16)=1,0,1)) -> 0 | AQ16: ФОТ производственных рабочих | AR16: =MAX(AR$15:AR15)+1 -> 1 | AS16: =IF(OR(AQ16=0,AQ16=""),0,IF(COUNTIF(AQ$15:AQ$100000,AQ16)=1,0,1)) -> 0 | AT16: * | AU16: Оформление юрлица | AV16: =MAX(AV$15:AV15)+1 -> 1 | AW16: =IF(OR(AU16=0,AU16=""),0,IF(COUNTIF(AU$15:AU$100000,AU16)=1,0,1)) -> 0 | AX16: * | AY16: Ремонтные работы (200кв.м.) | AZ16: =MAX(AZ$15:AZ15)+1 -> 1 | BA16: =IF(OR(AY16=0,AY16=""),0,IF(COUNTIF(AY$15:AY$100000,AY16)=1,0,1)) -> 0 | BB16: * | BC16: Аутсорсинг бухгалтерии | BD16: =MAX(BD$15:BD15)+1 -> 1 | BE16: =IF(OR(BC16=0,BC16=""),0,IF(COUNTIF(BC$15:BC$100000,BC16)=1,0,1)) -> 0 | BF16: * | BG16: Аренда офиса | BH16: =MAX(BH$15:BH15)+1 -> 1 | BI16: =IF(OR(BG16=0,BG16=""),0,IF(COUNTIF(BG$15:BG$100000,BG16)=1,0,1)) -> 0 | BJ16: * | BK16: Дебиторская задолженность | BL16: =MAX(BL$15:BL15)+1 -> 1 | BM16: =IF(OR(BK16=0,BK16=""),0,IF(COUNTIF(BK$15:BK$100000,BK16)=1,0,1)) -> 0 | BN16: * | BO16: Выручка | BP16: =MAX(BP$15:BP15)+1 -> 1 | BQ16: =IF(OR(BO16=0,BO16=""),0,IF(COUNTIF(BO$15:BO$100000,BO16)=1,0,1)) -> 0 | BR16: * | BS16: Финпоток проекта без финансирования (CF) | BT16: =MAX(BT$15:BT15)+1 -> 1 | BU16: =IF(OR(BS16=0,BS16=""),0,IF(COUNTIF(BS$15:BS$100000,BS16)=1,0,1)) -> 0
A17: =ROW() -> 17 | H17: * | I17: Съемка видео-роликов | J17: =MAX(J$15:J16)+1 -> 2 | K17: =IF(OR(I17=0,I17=""),0,IF(COUNTIF(I$15:I$100000,I17)=1,0,1)) -> 0 | L17: * | M17: Командировочные расходы | N17: =MAX(N$15:N16)+1 -> 2 | O17: =IF(OR(M17=0,M17=""),0,IF(COUNTIF(M$15:M$100000,M17)=1,0,1)) -> 0 | P17: * | Q17: Прочие расходы маркетинга | R17: =MAX(R$15:R16)+1 -> 2 | S17: =IF(OR(Q17=0,Q17=""),0,IF(COUNTIF(Q$15:Q$100000,Q17)=1,0,1)) -> 0 | AC17: * | AD17: Консультационные расходы | AE17: =MAX(AE$15:AE16)+1 -> 2 | AF17: =IF(OR(AD17=0,AD17=""),0,IF(COUNTIF(AD$15:AD$100000,AD17)=1,0,1)) -> 0 | AG17: * | AH17: Прочие расходы отдела продаж | AI17: =MAX(AI$15:AI16)+1 -> 2 | AJ17: =IF(OR(AH17=0,AH17=""),0,IF(COUNTIF(AH$15:AH$100000,AH17)=1,0,1)) -> 0 | AK17: * | AL17: Сырье и материалы - 2 | AM17: =MAX(AM$15:AM16)+1 -> 2 | AN17: шт | AO17: =IF(OR(AL17=0,AL17=""),0,IF(COUNTIF(AL$15:AL$100000,AL17)=1,0,1)) -> 0 | AP17: * | AQ17: Прочие производственные расходы | AR17: =MAX(AR$15:AR16)+1 -> 2 | AS17: =IF(OR(AQ17=0,AQ17=""),0,IF(COUNTIF(AQ$15:AQ$100000,AQ17)=1,0,1)) -> 0 | AT17: * | AU17: Юридические расходы | AV17: =MAX(AV$15:AV16)+1 -> 2 | AW17: =IF(OR(AU17=0,AU17=""),0,IF(COUNTIF(AU$15:AU$100000,AU17)=1,0,1)) -> 0 | AX17: * | AY17: Торговое пространство | AZ17: =MAX(AZ$15:AZ16)+1 -> 2 | BA17: =IF(OR(AY17=0,AY17=""),0,IF(COUNTIF(AY$15:AY$100000,AY17)=1,0,1)) -> 0 | BB17: * | BC17: Юридические расходы | BD17: =MAX(BD$15:BD16)+1 -> 2 | BE17: 0 | BF17: * | BG17: Расходы на организацию рабочего места | BH17: =MAX(BH$15:BH16)+1 -> 2 | BI17: =IF(OR(BG17=0,BG17=""),0,IF(COUNTIF(BG$15:BG$100000,BG17)=1,0,1)) -> 0 | BJ17: * | BK17: Авансы полученные | BL17: =MAX(BL$15:BL16)+1 -> 2 | BM17: 0 | BN17: * | BO17: Себестоимость | BP17: =MAX(BP$15:BP16)+1 -> 2 | BQ17: 0 | BR17: * | BS17: Финпоток проекта нарастающим итогом | BT17: =MAX(BT$15:BT16)+1 -> 2 | BU17: 0
A18: =ROW() -> 18 | H18: * | I18: Аутсорсинг внешних исполнителей | J18: =MAX(J$15:J17)+1 -> 3 | K18: =IF(OR(I18=0,I18=""),0,IF(COUNTIF(I$15:I$100000,I18)=1,0,1)) -> 0 | L18: * | M18: Расходы на поддержание конверсии | N18: =MAX(N$15:N17)+1 -> 3 | O18: =IF(OR(M18=0,M18=""),0,IF(COUNTIF(M$15:M$100000,M18)=1,0,1)) -> 0 | AC18: * | AD18: Прочие расходники | AE18: =MAX(AE$15:AE17)+1 -> 3 | AF18: =IF(OR(AD18=0,AD18=""),0,IF(COUNTIF(AD$15:AD$100000,AD18)=1,0,1)) -> 0 | AK18: * | AL18: Сырье и материалы - 3 | AM18: =MAX(AM$15:AM17)+1 -> 3 | AN18: шт | AO18: =IF(OR(AL18=0,AL18=""),0,IF(COUNTIF(AL$15:AL$100000,AL18)=1,0,1)) -> 0 | AT18: * | AU18: Разработка логотипа и дизайна | AV18: =MAX(AV$15:AV17)+1 -> 3 | AW18: =IF(OR(AU18=0,AU18=""),0,IF(COUNTIF(AU$15:AU$100000,AU18)=1,0,1)) -> 0 | AX18: * | AY18: Подсобные помещения | AZ18: =MAX(AZ$15:AZ17)+1 -> 3 | BA18: =IF(OR(AY18=0,AY18=""),0,IF(COUNTIF(AY$15:AY$100000,AY18)=1,0,1)) -> 0 | BB18: * | BC18: Расходы на ПО и т.п. | BD18: =MAX(BD$15:BD17)+1 -> 3 | BE18: 0 | BF18: * | BG18: Расходы на оргтехнику | BH18: =MAX(BH$15:BH17)+1 -> 3 | BI18: =IF(OR(BG18=0,BG18=""),0,IF(COUNTIF(BG$15:BG$100000,BG18)=1,0,1)) -> 0 | BJ18: * | BK18: Поступление запасов | BL18: =MAX(BL$15:BL17)+1 -> 3 | BM18: 0 | BN18: * | BO18: Валовая прибыль | BP18: =MAX(BP$15:BP17)+1 -> 3 | BQ18: 0 | BR18: * | BS18: Свободный положительный финпоток проекта | BT18: =MAX(BT$15:BT17)+1 -> 3 | BU18: 0
A19: =ROW() -> 19 | AT19: * | AU19: Заключение контрактов с поставщиками | AV19: =MAX(AV$15:AV18)+1 -> 4 | AW19: =IF(OR(AU19=0,AU19=""),0,IF(COUNTIF(AU$15:AU$100000,AU19)=1,0,1)) -> 0 | AX19: * | AY19: Торговое оборудование | AZ19: =MAX(AZ$15:AZ18)+1 -> 4 | BA19: =IF(OR(AY19=0,AY19=""),0,IF(COUNTIF(AY$15:AY$100000,AY19)=1,0,1)) -> 0 | BB19: * | BC19: Банковские расходы | BD19: =MAX(BD$15:BD18)+1 -> 4 | BE19: 0 | BF19: * | BG19: Канцелярские расходы | BH19: =MAX(BH$15:BH18)+1 -> 4 | BI19: =IF(OR(BG19=0,BG19=""),0,IF(COUNTIF(BG$15:BG$100000,BG19)=1,0,1)) -> 0 | BJ19: * | BK19: Списание запасов на незавершенное пр-во | BL19: =MAX(BL$15:BL18)+1 -> 4 | BM19: 0 | BN19: * | BO19: НДС начисленный | BP19: =MAX(BP$15:BP18)+1 -> 4 | BQ19: 0 | BR19: * | BS19: Свободный отрицательный финпоток проекта | BT19: =MAX(BT$15:BT18)+1 -> 4 | BU19: 0
A20: =ROW() -> 20 | AT20: * | AU20: Оборудование для РЦ | AV20: =MAX(AV$15:AV19)+1 -> 5 | AW20: 0 | AX20: * | AY20: Охранная и пожарная сигнализации | AZ20: =MAX(AZ$15:AZ19)+1 -> 5 | BA20: 0 | BB20: * | BC20: Расходы на уборку-охрану | BD20: =MAX(BD$15:BD19)+1 -> 5 | BE20: 0 | BF20: * | BG20: Прочие расходы на персонал | BH20: =MAX(BH$15:BH19)+1 -> 5 | BI20: =IF(OR(BG20=0,BG20=""),0,IF(COUNTIF(BG$15:BG$100000,BG20)=1,0,1)) -> 0 | BJ20: * | BK20: Запасы | BL20: =MAX(BL$15:BL19)+1 -> 5 | BM20: 0 | BN20: * | BO20: НДС к возмещению | BP20: =MAX(BP$15:BP19)+1 -> 5 | BQ20: 0 | BR20: * | BS20: Свободный финпоток (FCF) | BT20: =MAX(BT$15:BT19)+1 -> 5 | BU20: 0
A21: =ROW() -> 21 | AT21: * | AU21: Лицензирование | AV21: =MAX(AV$15:AV20)+1 -> 6 | AW21: 0 | AX21: * | AY21: Оргтехника, кассовая техника и ПО | AZ21: =MAX(AZ$15:AZ20)+1 -> 6 | BA21: 0 | BB21: * | BC21: Обслуживание автопарка | BD21: =MAX(BD$15:BD20)+1 -> 6 | BE21: 0 | BJ21: * | BK21: Незавершенное производство | BL21: =MAX(BL$15:BL20)+1 -> 6 | BM21: 0 | BN21: * | BO21: Прямые расходы | BP21: =MAX(BP$15:BP20)+1 -> 6 | BQ21: 0 | BR21: * | BS21: Кассовый разрыв | BT21: =MAX(BT$15:BT20)+1 -> 6 | BU21: 0
A22: =ROW() -> 22 | AT22: * | AU22: ="Разовые капзатраты - "&AV22 -> Разовые капзатраты - 7 | AV22: =MAX(AV$15:AV21)+1 -> 7 | AW22: 0 | AX22: * | AY22: Автомобиль | AZ22: =MAX(AZ$15:AZ21)+1 -> 7 | BA22: 0 | BB22: * | BC22: Постоянный расход - 7 | BD22: =MAX(BD$15:BD21)+1 -> 7 | BE22: 0 | BJ22: * | BK22: Авансы выданные | BL22: =MAX(BL$15:BL21)+1 -> 7 | BM22: 0 | BN22: * | BO22: Маржинальная прибыль | BP22: =MAX(BP$15:BP21)+1 -> 7 | BQ22: 0 | BR22: * | BS22: Поступление финансирования от Учредителей | BT22: =MAX(BT$15:BT21)+1 -> 7 | BU22: 0
A23: =ROW() -> 23 | AT23: * | AU23: ="Разовые капзатраты - "&AV23 -> Разовые капзатраты - 8 | AV23: =MAX(AV$15:AV22)+1 -> 8 | AW23: 0 | AX23: * | AY23: ="Переменные капзатраты - "&AZ23 -> Переменные капзатраты - 8 | AZ23: =MAX(AZ$15:AZ22)+1 -> 8 | BA23: 0 | BJ23: * | BK23: Кредиторская задолженность | BL23: =MAX(BL$15:BL22)+1 -> 8 | BM23: 0 | BN23: * | BO23: Управленческие расходы | BP23: =MAX(BP$15:BP22)+1 -> 8 | BQ23: 0 | BR23: * | BS23: Финпоток проекта для кредиторов | BT23: =MAX(BT$15:BT22)+1 -> 8 | BU23: 0
A24: =ROW() -> 24 | AT24: * | AU24: ="Разовые капзатраты - "&AV24 -> Разовые капзатраты - 9 | AV24: =MAX(AV$15:AV23)+1 -> 9 | AW24: 0 | AX24: * | AY24: ="Переменные капзатраты - "&AZ24 -> Переменные капзатраты - 9 | AZ24: =MAX(AZ$15:AZ23)+1 -> 9 | BA24: 0 | BJ24: * | BK24: Задолженность перед персоналом | BL24: =MAX(BL$15:BL23)+1 -> 9 | BM24: 0 | BN24: * | BO24: ФОТ управленческого персонала | BP24: =MAX(BP$15:BP23)+1 -> 9 | BQ24: 0 | BR24: * | BS24: Финпоток проекта для кредиторов нараст. итогом | BT24: =MAX(BT$15:BT23)+1 -> 9 | BU24: 0
A25: =ROW() -> 25 | AT25: * | AU25: ="Разовые капзатраты - "&AV25 -> Разовые капзатраты - 10 | AV25: =MAX(AV$15:AV24)+1 -> 10 | AW25: 0 | AX25: * | AY25: ="Переменные капзатраты - "&AZ25 -> Переменные капзатраты - 10 | AZ25: =MAX(AZ$15:AZ24)+1 -> 10 | BA25: 0 | BJ25: * | BK25: Задолженность по соцсборам | BL25: =MAX(BL$15:BL24)+1 -> 10 | BM25: 0 | BN25: * | BO25: EBITDA | BP25: =MAX(BP$15:BP24)+1 -> 10 | BQ25: 0 | BR25: * | BS25: Свободный полож. финпоток для кредиторов | BT25: =MAX(BT$15:BT24)+1 -> 10 | BU25: 0
A26: =ROW() -> 26 | BJ26: * | BK26: АКТИВЫ | BL26: =MAX(BL$15:BL25)+1 -> 11 | BM26: =IF(OR(BK26=0,BK26=""),0,IF(COUNTIF(BK$15:BK$100000,BK26)=1,0,1)) -> 0 | BN26: * | BO26: Капзатраты | BP26: =MAX(BP$15:BP25)+1 -> 11 | BQ26: =IF(OR(BO26=0,BO26=""),0,IF(COUNTIF(BO$15:BO$100000,BO26)=1,0,1)) -> 0 | BR26: * | BS26: Свободный отриц. финпоток для кредиторов | BT26: =MAX(BT$15:BT25)+1 -> 11 | BU26: 0
A27: =ROW() -> 27 | BJ27: * | BK27: ПАССИВЫ | BL27: =MAX(BL$15:BL26)+1 -> 12 | BM27: 0 | BN27: * | BO27: НДС к возмещению по капзатратам | BP27: =MAX(BP$15:BP26)+1 -> 12 | BQ27: 0 | BR27: * | BS27: Свободный финпоток для кредиторов | BT27: =MAX(BT$15:BT26)+1 -> 12 | BU27: 0
A28: =ROW() -> 28 | BJ28: * | BK28: Денежные средства | BL28: =MAX(BL$15:BL27)+1 -> 13 | BM28: 0 | BN28: * | BO28: Амортизация | BP28: =MAX(BP$15:BP27)+1 -> 13 | BQ28: 0 | BR28: * | BS28: Кассовый разрыв проекта для кредиторов | BT28: =MAX(BT$15:BT27)+1 -> 13 | BU28: 0
A29: =ROW() -> 29 | BJ29: * | BK29: Собственный капитал | BL29: =MAX(BL$15:BL28)+1 -> 14 | BM29: 0 | BN29: * | BO29: EBIT | BP29: =MAX(BP$15:BP28)+1 -> 14 | BQ29: 0 | BR29: * | BS29: Поступление кредита | BT29: =MAX(BT$15:BT28)+1 -> 14 | BU29: 0
A30: =ROW() -> 30 | BJ30: * | BK30: Промежуточный баланс-контроль | BL30: =MAX(BL$15:BL29)+1 -> 15 | BM30: 0 | BN30: * | BO30: Прочие доходы | BP30: =MAX(BP$15:BP29)+1 -> 15 | BQ30: 0 | BR30: * | BS30: Возврат кредита | BT30: =MAX(BT$15:BT29)+1 -> 15 | BU30: 0
A31: =ROW() -> 31 | BJ31: * | BK31: Задолженность по прямым расходам | BL31: =MAX(BL$15:BL30)+1 -> 16 | BM31: 0 | BN31: * | BO31: Проценты начисленные | BP31: =MAX(BP$15:BP30)+1 -> 16 | BQ31: 0 | BR31: * | BS31: Оплата процентов по кредиту | BT31: =MAX(BT$15:BT30)+1 -> 16 | BU31: 0
A32: =ROW() -> 32 | BJ32: * | BK32: Задолженность по управленческим расходам | BL32: =MAX(BL$15:BL31)+1 -> 17 | BM32: =IF(OR(BK32=0,BK32=""),0,IF(COUNTIF(BK$15:BK$100000,BK32)=1,0,1)) -> 0 | BN32: * | BO32: Прибыль до налога на прибыль | BP32: =MAX(BP$15:BP31)+1 -> 17 | BQ32: 0 | BR32: * | BS32: Финпоток проекта с учетом финансирования | BT32: =MAX(BT$15:BT31)+1 -> 17 | BU32: 0
A33: =ROW() -> 33 | BJ33: * | BK33: Задолженность по капзатратам | BL33: =MAX(BL$15:BL32)+1 -> 18 | BM33: 0 | BN33: * | BO33: Налог на прибыль | BP33: =MAX(BP$15:BP32)+1 -> 18 | BQ33: 0 | BR33: * | BS33: Финпоток проекта с уч. финансир. нараст. итогом | BT33: =MAX(BT$15:BT32)+1 -> 18 | BU33: 0
A34: =ROW() -> 34 | BJ34: * | BK34: Внеоборотные активы | BL34: =MAX(BL$15:BL33)+1 -> 19 | BM34: 0 | BN34: * | BO34: Чистая прибыль | BP34: =MAX(BP$15:BP33)+1 -> 19 | BQ34: 0 | BR34: * | BS34: Осаточный кассовый разрыв | BT34: =MAX(BT$15:BT33)+1 -> 19 | BU34: 0
A35: =ROW() -> 35 | BJ35: * | BK35: ДЗ по возмещению НДС с капзатрат | BL35: =MAX(BL$15:BL34)+1 -> 20 | BM35: 0 | BN35: * | BO35: Проценты начисленные по кредиту | BP35: =MAX(BP$15:BP34)+1 -> 20 | BQ35: 0 | BR35: * | BS35: Итоговый финпоток | BT35: =MAX(BT$15:BT34)+1 -> 20 | BU35: =IF(OR(BS35=0,BS35=""),0,IF(COUNTIF(BS$15:BS$100000,BS35)=1,0,1)) -> 0
A36: =ROW() -> 36 | BJ36: * | BK36: Задолженность по налогам | BL36: =MAX(BL$15:BL35)+1 -> 21 | BM36: 0 | BR36: * | BS36: Итоговый финпоток нараст. итогом | BT36: =MAX(BT$15:BT35)+1 -> 21 | BU36: 0
A37: =ROW() -> 37 | BJ37: * | BK37: Задолженность по НДС | BL37: =MAX(BL$15:BL36)+1 -> 22 | BM37: 0 | BR37: * | BS37: Итоговый кассовый разрыв | BT37: =MAX(BT$15:BT36)+1 -> 22 | BU37: 0
A38: =ROW() -> 38 | BJ38: * | BK38: Задолженность по НП | BL38: =MAX(BL$15:BL37)+1 -> 23 | BM38: 0 | BR38: * | BS38: Финпоток по операционной деятельности | BT38: =MAX(BT$15:BT37)+1 -> 23 | BU38: 0
A39: =ROW() -> 39 | BJ39: * | BK39: Остаток долга по кредиту | BL39: =MAX(BL$15:BL38)+1 -> 24 | BM39: 0 | BR39: * | BS39: Финпоток по основной деятельности | BT39: =MAX(BT$15:BT38)+1 -> 24 | BU39: 0
A40: =ROW() -> 40 | BJ40: * | BK40: Задолженность по выплате %% по кредиту | BL40: =MAX(BL$15:BL39)+1 -> 25 | BM40: 0 | BR40: * | BS40: Финпоток по финансовой деятельности | BT40: =MAX(BT$15:BT39)+1 -> 25 | BU40: 0
A41: =ROW() -> 41 | BJ41: * | BK41: Вложения Учредителей в капитал | BL41: =MAX(BL$15:BL40)+1 -> 26 | BM41: 0 | BR41: * | BS41: Поступление ДС | BT41: =MAX(BT$15:BT40)+1 -> 26 | BU41: 0
A42: =ROW() -> 42 | BJ42: * | BK42: БАЛАНС | BL42: =MAX(BL$15:BL41)+1 -> 27 | BM42: 0 | BR42: * | BS42: Итоговый свободный финпоток (Total FCF) | BT42: =MAX(BT$15:BT41)+1 -> 27 | BU42: 0
A43: =ROW() -> 43 | BJ43: * | BL43: =MAX(BL$15:BL42)+1 -> 28 | BM43: 0
A44: =ROW() -> 44 | BJ44: * | BL44: =MAX(BL$15:BL43)+1 -> 29 | BM44: 0
A45: =ROW() -> 45 | BJ45: * | BL45: =MAX(BL$15:BL44)+1 -> 30 | BM45: 0
A46: =ROW() -> 46 | BJ46: * | BL46: =MAX(BL$15:BL45)+1 -> 31 | BM46: 0
A47: =ROW() -> 47
A48: =ROW() -> 48
A49: =ROW() -> 49
A50: =ROW() -> 50
A51: =ROW() -> 51
A52: =ROW() -> 52
A53: =ROW() -> 53
A54: =ROW() -> 54
A55: =ROW() -> 55
A56: =ROW() -> 56
A57: =ROW() -> 57
A58: =ROW() -> 58
A59: =ROW() -> 59
A60: =ROW() -> 60
A61: =ROW() -> 61
A62: =ROW() -> 62
A63: =ROW() -> 63
A64: =ROW() -> 64
A65: =ROW() -> 65
A66: =ROW() -> 66
A67: =ROW() -> 67
A68: =ROW() -> 68
A69: =ROW() -> 69
A70: =ROW() -> 70

Sheet KPI
I1: =COLUMN() -> 9
I2: =LEFT(ADDRESS(1,COLUMN(),4),LEN(ADDRESS(1,COLUMN(),4))-1) -> I
C11: +7(985)201-6607 | F11: =INDIRECT("START!I31") -> KPI | I11: =INDIRECT("START!K31") -> Справочники ключевых показателей эффективности
I13: Список показателей эффективности | Q13: Формулы расчета показателей
D14: =INDIRECT("Cntrl!M17") -> 0 | E14: =SUM($F14:$ML14) -> 0 | F14: =IFERROR(_xlfn.SHEET($A$1)-SUMIFS(Cntrl!O$15:O$100000,Cntrl!I$15:I$100000,$F$11),1) -> 0 | I14: =IF(OR(I13=0,I13=""),1,IF(COUNTIF(13:13,I13)=1,0,1)) -> 0 | K14: =SUM(K$15:K$100000) -> 0
A15: =ROW() -> 15 | I15: =$F$11&"!"&I$2&$A16&":"&I$2&($A15+MAX(J$15:J$100000)) -> KPI!I16:I92
A16: =ROW() -> 16 | I16: Срок окупаемости по чистой прибыли | J16: =MAX(J$15:J15)+1 -> 1 | K16: =IF(OR(I16=0,I16=""),0,IF(COUNTIF(I$15:I$100000,I16)=1,0,1)) -> 0
A17: =ROW() -> 17 | I17: Точка безубыточности по чистой прибыли | J17: =MAX(J$15:J16)+1 -> 2 | K17: =IF(OR(I17=0,I17=""),0,IF(COUNTIF(I$15:I$100000,I17)=1,0,1)) -> 0
A18: =ROW() -> 18 | I18: Срок окупаемости по финпотоку (PBP) | J18: =MAX(J$15:J17)+1 -> 3 | K18: 0
A19: =ROW() -> 19 | I19: Точка безубыточности по финпотоку | J19: =MAX(J$15:J18)+1 -> 4 | K19: 0
A20: =ROW() -> 20 | I20: IRR проекта | J20: =MAX(J$15:J19)+1 -> 5 | K20: 0
A21: =ROW() -> 21 | I21: NPV(Учредителя) | J21: =MAX(J$15:J20)+1 -> 6 | K21: 0
A22: =ROW() -> 22 | I22: IRR для кредиторов | J22: =MAX(J$15:J21)+1 -> 7 | K22: 0
A23: =ROW() -> 23 | I23: NPV(Кредиторов) | J23: =MAX(J$15:J22)+1 -> 8 | K23: =IF(OR(I23=0,I23=""),0,IF(COUNTIF(I$15:I$100000,I23)=1,0,1)) -> 0
A24: =ROW() -> 24 | I24: Рентабельность | J24: =MAX(J$15:J23)+1 -> 9 | K24: 0
A25: =ROW() -> 25 | I25: WACC | J25: =MAX(J$15:J24)+1 -> 10 | K25: 0
A26: =ROW() -> 26 | I26: NPV(WACC) | J26: =MAX(J$15:J25)+1 -> 11 | K26: 0
A27: =ROW() -> 27 | I27: ROI | J27: =MAX(J$15:J26)+1 -> 12 | K27: 0
A28: =ROW() -> 28 | I28: Дисконтированный срок окупаемости (DPBP) | J28: =MAX(J$15:J27)+1 -> 13 | K28: 0
A29: =ROW() -> 29 | I29: Коэффициент текущей ликвидности (L1) | J29: =MAX(J$15:J28)+1 -> 14 | K29: 0 | Q29: Отношение оборотных активов к краткосрочным обязательствам
A30: =ROW() -> 30 | I30: Коэффициент промежуточного покрытия (L2) | J30: =MAX(J$15:J29)+1 -> 15 | K30: 0 | Q30: Отношение суммы активов А1 и А2 к краткосрочным обязательствам
A31: =ROW() -> 31 | I31: Коэффициент абсолютной ликвидности (L3) | J31: =MAX(J$15:J30)+1 -> 16 | K31: =IF(OR(I31=0,I31=""),0,IF(COUNTIF(I$15:I$100000,I31)=1,0,1)) -> 0 | Q31: Отношение суммы активов А1 к краткосрочным обязательствам
A32: =ROW() -> 32 | I32: Коэффициент общей платежеспособности (L4) | J32: =MAX(J$15:J31)+1 -> 17 | K32: 0 | Q32: Отношение всех активов ко всем обязательствам
A33: =ROW() -> 33 | I33: Коэфф. платежеспособности по тек. обяз. (L5) | J33: =MAX(J$15:J32)+1 -> 18 | K33: 0 | Q33: Отношение среднемесячной выручки к краткосрочным обязательствам
A34: =ROW() -> 34 | J34: =MAX(J$15:J33)+1 -> 19 | K34: 0
A35: =ROW() -> 35 | I35: Оценка стоимости бизнеса/компании | J35: =MAX(J$15:J34)+1 -> 20 | K35: 0
A36: =ROW() -> 36 | J36: =MAX(J$15:J35)+1 -> 21 | K36: 0
A37: =ROW() -> 37 | J37: =MAX(J$15:J36)+1 -> 22 | K37: 0
A38: =ROW() -> 38 | J38: =MAX(J$15:J37)+1 -> 23 | K38: 0
A39: =ROW() -> 39 | I39: Терминальная стоимость (TV) | J39: =MAX(J$15:J38)+1 -> 24 | K39: 0
A40: =ROW() -> 40 | I40: NPV(TV) | J40: =MAX(J$15:J39)+1 -> 25 | K40: =IF(OR(I40=0,I40=""),0,IF(COUNTIF(I$15:I$100000,I40)=1,0,1)) -> 0
A41: =ROW() -> 41 | I41: CFADS | J41: =MAX(J$15:J40)+1 -> 26 | K41: 0
A42: =ROW() -> 42 | I42: Выплаты долга [Debt (Principals+Interests)] | J42: =MAX(J$15:J41)+1 -> 27 | K42: 0
A43: =ROW() -> 43 | I43: Выплаты тела кредитов (Principals) | J43: =MAX(J$15:J42)+1 -> 28 | K43: 0
A44: =ROW() -> 44 | I44: Выплаты %% (Interests) | J44: =MAX(J$15:J43)+1 -> 29 | K44: 0
A45: =ROW() -> 45 | I45: Коэф. покрытия выплат долга (DSCR) | J45: =MAX(J$15:J44)+1 -> 30 | K45: 0
A46: =ROW() -> 46 | I46: Коэф. покрытия процентов (ICR) | J46: =MAX(J$15:J45)+1 -> 31 | K46: =IF(OR(I46=0,I46=""),0,IF(COUNTIF(I$15:I$100000,I46)=1,0,1)) -> 0
A47: =ROW() -> 47 | I47: CF(EBIT) | J47: =MAX(J$15:J46)+1 -> 32 | K47: 0
A48: =ROW() -> 48 | I48: Наиболее ликвидные активы (А1) | J48: =MAX(J$15:J47)+1 -> 33 | K48: 0
A49: =ROW() -> 49 | I49: Денежные средства | J49: =MAX(J$15:J48)+1 -> 34 | K49: 0
A50: =ROW() -> 50 | I50: Финансовые вложения | J50: =MAX(J$15:J49)+1 -> 35 | K50: 0
A51: =ROW() -> 51 | I51: Быстро реализуемые активы (А2) | J51: =MAX(J$15:J50)+1 -> 36 | K51: 0
A52: =ROW() -> 52 | I52: Незавершенное производство | J52: =MAX(J$15:J51)+1 -> 37 | K52: 0
A53: =ROW() -> 53 | I53: Дебиторская задолженность | J53: =MAX(J$15:J52)+1 -> 38 | K53: =IF(OR(I53=0,I53=""),0,IF(COUNTIF(I$15:I$100000,I53)=1,0,1)) -> 0
A54: =ROW() -> 54 | I54: Авансы выданные | J54: =MAX(J$15:J53)+1 -> 39 | K54: 0
A55: =ROW() -> 55 | I55: Медленно реализуемые активы (А3) | J55: =MAX(J$15:J54)+1 -> 40 | K55: 0
A56: =ROW() -> 56 | I56: Запасы | J56: =MAX(J$15:J55)+1 -> 41 | K56: 0
A57: =ROW() -> 57 | I57: Трудно реализуемые активы (А4) | J57: =MAX(J$15:J56)+1 -> 42 | K57: 0
A58: =ROW() -> 58 | I58: Внеоборотные активы | J58: =MAX(J$15:J57)+1 -> 43 | K58: 0
A59: =ROW() -> 59 | I59: Наиболее срочные обязательства (П1) | J59: =MAX(J$15:J58)+1 -> 44 | K59: 0
A60: =ROW() -> 60 | I60: Овердрафт | J60: =MAX(J$15:J59)+1 -> 45 | K60: 0
A61: =ROW() -> 61 | I61: Кредиторская задолженность | J61: =MAX(J$15:J60)+1 -> 46 | K61: 0
A62: =ROW() -> 62 | I62: Краткосрочные обязательства (П2) | J62: =MAX(J$15:J61)+1 -> 47 | K62: 0
A63: =ROW() -> 63 | I63: Прочие краткосрочные обязательства | J63: =MAX(J$15:J62)+1 -> 48 | K63: 0
A64: =ROW() -> 64 | I64: Долгосрочные обязательства (П3) | J64: =MAX(J$15:J63)+1 -> 49 | K64: 0
A65: =ROW() -> 65 | I65: Долгосрочные кредиты | J65: =MAX(J$15:J64)+1 -> 50 | K65: 0
A66: =ROW() -> 66 | I66: Постоянные пассивы (П4) | J66: =MAX(J$15:J65)+1 -> 51 | K66: 0
A67: =ROW() -> 67 | I67: Собственный капитал | J67: =MAX(J$15:J66)+1 -> 52 | K67: =IF(OR(I67=0,I67=""),0,IF(COUNTIF(I$15:I$100000,I67)=1,0,1)) -> 0
A68: =ROW() -> 68 | I68: Собственные оборотные средства (СОС) | J68: =MAX(J$15:J67)+1 -> 53 | K68: 0 | Q68: Разность собственного капитала и внеоборотных активов
A69: =ROW() -> 69 | I69: Коэффициент финансовой устойчивости (S1) | J69: =MAX(J$15:J68)+1 -> 54 | K69: 0 | Q69: Отношение суммы собственного капитала и долгосрочных обязательств к активам
A70: =ROW() -> 70 | I70: Коэффициент автономии (независимости) (S2) | J70: =MAX(J$15:J69)+1 -> 55 | K70: 0 | Q70: Отношение собственного капитала к активам
I71: Коэфф. обеспеч-ти собств. об. средствами (S3) | J71: =MAX(J$15:J70)+1 -> 56 | K71: 0 | Q71: Отношение объема СОС к оборотным активам
I72: Коэффициент финансового рычага (S4) | J72: =MAX(J$15:J71)+1 -> 57 | K72: 0 | Q72: Отношение собственного капитала к заемному капиталу
I73: Рентабельность продаж (Return On Sales) (R1) | J73: =MAX(J$15:J72)+1 -> 58 | K73: 0 | Q73: Отношение валовой прибыли к выручке
I74: Рентабельность активов (Return On Assets) (R2) | J74: =MAX(J$15:J73)+1 -> 59 | K74: 0 | Q74: Отношение среднемесячной чистой прибыли за период к уровню активов на конец периода
I75: Рентаб-сть собств. капитала (Return On Equity) (R3) | J75: =MAX(J$15:J74)+1 -> 60 | K75: 0 | Q75: Отношение среднемесячной чистой прибыли за период к уровню собственного капитала на конец периода
I76: Рент. инвестиций (Return On Invested Capital) (R4) | J76: =MAX(J$15:J75)+1 -> 61 | K76: 0 | Q76: Отношение среднемес. EBITDA за период к уровню инвестиций (собств.+долгосроч.) на конец периода
I77: Рент. об. капитала (Return On Working Capital) (R5) | J77: =MAX(J$15:J76)+1 -> 62 | K77: 0 | Q77: Отношение среднемес. марж. прибыли за период к уровню оборотного капитала на конец периода
I78: Оборачиваемость запасов и незавершенки | J78: =MAX(J$15:J77)+1 -> 63 | K78: 0
I79: Период оборач-сти запасов и незавершенки (P1) | J79: =MAX(J$15:J78)+1 -> 64 | K79: =IF(OR(I79=0,I79=""),0,IF(COUNTIF(I$15:I$100000,I79)=1,0,1)) -> 0
I80: Оборачиваемость дебиторской задолженности | J80: =MAX(J$15:J79)+1 -> 65 | K80: 0
I81: Период оборач-ти дебит. задолженности (P2) | J81: =MAX(J$15:J80)+1 -> 66 | K81: 0
I82: Оборачиваемость кредиторской задолженности | J82: =MAX(J$15:J81)+1 -> 67 | K82: 0
I83: Период оборач-ти кредит. задолженности (P3) | J83: =MAX(J$15:J82)+1 -> 68 | K83: 0
I84: Финансовый цикл (P4) | J84: =MAX(J$15:J83)+1 -> 69 | K84: =IF(OR(I84=0,I84=""),0,IF(COUNTIF(I$15:I$100000,I84)=1,0,1)) -> 0
I85: ТЕМПЫ РОСТА АКТИВОВ [T(A)] | J85: =MAX(J$15:J84)+1 -> 70 | K85: 0
I86: ТЕМПЫ РОСТА ВЫРУЧКИ [T(R)] | J86: =MAX(J$15:J85)+1 -> 71 | K86: 0
I87: ТЕМПЫ РОСТА ЧИСТОЙ ПРИБЫЛИ [T(E)] | J87: =MAX(J$15:J86)+1 -> 72 | K87: 0
J88: =MAX(J$15:J87)+1 -> 73 | K88: 0
J89: =MAX(J$15:J88)+1 -> 74 | K89: 0
J90: =MAX(J$15:J89)+1 -> 75 | K90: 0
J91: =MAX(J$15:J90)+1 -> 76 | K91: 0
J92: =MAX(J$15:J91)+1 -> 77 | K92: 0

Sheet Mrkting
